Workbook

Sheet 1. Information Sheet
V1: Algoma Power Inc.
V2: Atikokan Hydro Inc.
V3: Attawapiskat Power Corp.
V4: Bluewater Power Distribution Corporation
V5: Brant County Power Inc.
V6: Brantford Power Inc.
V7: Burlington Hydro Inc.
V8: Cambridge and North Dumfries Hydro Inc.
V9: Canadian Niagara Power Inc.
V10: Centre Wellington Hydro Ltd.
V11: Chapleau Public Utilities Corporation
M12: Version | N12: 2.1 | V12: Clinton Power Corporation
V13: COLLUS Power Corporation
E14: Utility Name | F14: Oshawa PUC Networks Inc. | V14: Cooperative Hydro Embrun Inc.
V15: E.L.K. Energy Inc.
E16: Service Territory | F16: Oshawa | V16: Enersource Hydro Mississauga Inc.
V17: Entegrus Powerlines Inc.
E18: Assigned EB Number | F18: EB-2014-0101 | V18: ENWIN Utilities Ltd.
V19: Erie Thames Powerlines Corporation
E20: Name of Contact and Title | F20: David Savage, Corporate Controller | V20: Espanola Regional Hydro Distribution Corporation
V21: Essex Powerlines Corporation
E22: Phone Number | F22: 905-743 5219 | V22: Festival Hydro Inc.
V23: Fort Albany Power Corporation
E24: Email Address | F24: dsavage@opuc.on.ca | V24: Fort Frances Power Corporation
V25: Greater Sudbury Hydro Inc.
V26: Grimsby Power Inc.
B27: General Notes 1. Please ensure that your macros have been enabled. (Tools -> Macro -> Security) 2. Due to the time lag of deferral/variance account dispositions, this model assumes that all opening balances include previously disposed of amounts. Accordingly, all "Board Approved Dispositions" are deducted from the opening balance. 3. Please provide information in this model since the last time your balances were disposed. 4. For all Board-Approved dispositions, please ensure that the disposition amount has the same sign (e.g: debit balances are to have a positive figure and credit balance are to have a negative figure) as per the related Board decision. | V27: Guelph Hydro Electric Systems Inc.
V28: Haldimand County Hydro Inc.
B29: Notes | V29: Halton Hills Hydro Inc.
V30: Hearst Power Distribution Company Limited
C31: Pale green cells represent input cells. | V31: Horizon Utilities Corporation
V32: Hydro 2000 Inc.
C33: Pale blue cells represent drop-down lists. The applicant should select the appropriate item from the drop-down list. | V33: Hydro Hawkesbury Inc.
V34: Hydro One Brampton Networks Inc.
C35: White cells contain fixed values, automatically generated values or formulae. | V35: Hydro One Networks Inc.
V36: Hydro Ottawa Limited
V37: Innisfil Hydro Distribution Systems Limited
V38: Kashechewan Power Corporation
V39: Kenora Hydro Electric Corporation Ltd.
V40: Kingston Hydro Corporation
V41: Kitchener-Wilmot Hydro Inc.
V42: Lakefront Utilities Inc.
V43: Lakeland Power Distribution Ltd.
V44: London Hydro Inc.
V45: Midland Power Utility Corporation
V46: Milton Hydro Distribution inc.
V47: Newmarket - Tay Power Distribution Ltd.
V48: Niagara Peninsula Energy Inc.
V49: Niagara-on-the-Lake Hydro Inc.
V50: Norfolk Power Distribution Inc.
V51: North Bay Hydro Distribution Limited
V52: Northern Ontario Wires Inc.
V53: Oakville Hydro Electricity Distribution Inc.
V54: Orangeville Hydro Limited
V55: Orillia Power Distribution Corporation
V56: Oshawa PUC Networks Inc.
V57: Ottawa River Power Corporation
V58: Parry Sound Power Corporation
V59: Peterborough Distribution Incorporated
V60: PowerStream Inc.
V61: PUC Distribution Inc.
V62: Renfrew Hydro Inc.
V63: Rideau St. Lawrence Distribution Inc.
V64: Sioux Lookout Hydro Inc.
V65: St. Thomas Energy Inc.
V66: Thunder Bay Hydro Electricity Distribution Inc.
V67: Tillsonburg Hydro Inc.
V68: Toronto Hydro-Electric System Limited
V69: Veridian Connections Inc.
V70: Wasaga Distribution Inc.
V71: Waterloo North Hydro Inc.
V72: Welland Hydro-Electric System Corp.
V73: Wellington North Power Inc.
V74: West Coast Huron Energy Inc.
V75: West Perth Power Inc.
V76: Westario Power Inc.
V77: Whitby Hydro Electric Corporation
V78: Woodstock Hydro Services Inc.

Sheet 2. 2013 Continuity Schedule
BM1: ABC Utility
BM2: The example is for illustration purpose only.
BM4: Assumptions: | BN4: 1) DVAs were last disposed as at Dec 31, 2010 in its 2012 Decision and Order.
BN5: 2) There was no disposition of DVAs in Utility ABC's 2013 Decision and Order Since IRM threshold was not met.
BN6: 3) Rate year starts at May 1.
BN7: 4) Filed 2014 Rate application under CGAAP with the change of capitalization policy and depreciation expense policy effective JAN 1, 2013
E19: 2005 | O19: 2006 | Y19: 2007 | AI19: 2008 | AS19: 2009 | BC19: 2010 | BM19: 2011 | BW19: 2012 | CJ19: 2013 | CW19: 2014 | DA19: Projected Interest on Dec-31-13 Balances | DD19: 2.1.7 RRR
C20: Account Descriptions | D20: Account Number | E20: Opening Principal Amounts as of Jan-1-05 | F20: Transactions Debit / (Credit) during 2005 excluding interest and adjustments 3 | G20: Board-Approved Disposition during 2005 | H20: Adjustments during 2005 - other 2 | I20: Closing Principal Balance as of Dec-31-05 | J20: Opening Interest Amounts as of Jan-1-05 | K20: Interest Jan-1 to Dec-31-05 | L20: Board-Approved Disposition during 2005 | M20: Adjustments during 2005 - other 2 | N20: Closing Interest Amounts as of Dec-31-05 | O20: Opening Principal Amounts as of Jan-1-06 | P20: Transactions Debit / (Credit) during 2006 excluding interest and adjustments 3 | Q20: Board-Approved Disposition during 2006 1, 1A | R20: Adjustments during 2006 - other 2 | S20: Closing Principal Balance as of Dec-31-06 | T20: Opening Interest Amounts as of Jan-1-06 | U20: Interest Jan-1 to Dec-31-06 | V20: Board-Approved Disposition during 2006 1, 1A | W20: Adjustments during 2006 - other 2 | X20: Closing Interest Amounts as of Dec-31-06 | Y20: Opening Principal Amounts as of Jan-1-07 | Z20: Transactions Debit / (Credit) during 2007 excluding interest and adjustments 3 | AA20: Board-Approved Disposition during 2007 | AB20: Adjustments during 2007 - other 2 | AC20: Closing Principal Balance as of Dec-31-07 | AD20: Opening Interest Amounts as of Jan-1-07 | AE20: Interest Jan-1 to Dec-31-07 | AF20: Board-Approved Disposition during 2007 | AG20: Adjustments during 2007 - other 2 | AH20: Closing Interest Amounts as of Dec-31-07 | AI20: Opening Principal Amounts as of Jan-1-08 | AJ20: Transactions Debit / (Credit) during 2008 excluding interest and adjustments 3 | AK20: Board-Approved Disposition during 2008 | AL20: Adjustments during 2008 - other 2 | AM20: Closing Principal Balance as of Dec-31-08 | AN20: Opening Interest Amounts as of Jan-1-08 | AO20: Interest Jan-1 to Dec-31-08 | AP20: Board-Approved Disposition during 2008 | AQ20: Adjustments during 2008 - other 2 | AR20: Closing Interest Amounts as of Dec-31-08 | AS20: Opening Principal Amounts as of Jan-1-09 | AT20: Transactions Debit / (Credit) during 2009 excluding interest and adjustments 3 | AU20: Board-Approved Disposition during 2009 | AV20: Adjustments during 2009 - other 2 | AW20: Closing Principal Balance as of Dec-31-09 | AX20: Opening Interest Amounts as of Jan-1-09 | AY20: Interest Jan-1 to Dec-31-09 | AZ20: Board-Approved Disposition during 2009 | BA20: Adjustments during 2009 - other 2 | BB20: Closing Interest Amounts as of Dec-31-09 | BC20: Opening Principal Amounts as of Jan-1-10 | BD20: Transactions Debit / (Credit) during 2010 excluding interest and adjustments 3 | BE20: Board-Approved Disposition during 2010 | BF20: Adjustments during 2010 - other 2 | BG20: Closing Principal Balance as of Dec-31-10 | BH20: Opening Interest Amounts as of Jan-1-10 | BI20: Interest Jan-1 to Dec-31-10 | BJ20: Board-Approved Disposition during 2010 | BK20: Adjustments during 2010 - other 2 | BL20: Closing Interest Amounts as of Dec-31-10 | BM20: Opening Principal Amounts as of Jan-1-11 | BN20: Transactions Debit / (Credit) during 2011 excluding interest and adjustments 3 | BO20: Board-Approved Disposition during 2011 | BP20: Adjustments during 2010 - other 2 | BQ20: Closing Principal Balance as of Dec-31-11 | BR20: Opening Interest Amounts as of Jan-1-11 | BS20: Interest Jan-1 to Dec-31-11 | BT20: Board-Approved Disposition during 2011 | BU20: Adjustments during 2011 - other 2 | BV20: Closing Interest Amounts as of Dec-31-11 | BW20: Opening Principal Amounts as of Jan-1-12 | BX20: Transactions Debit / (Credit) during 2012 excluding interest and adjustments 3 | BY20: Board-Approved Disposition during 2012 | BZ20: Other 2 Adjustments during Q1 2012 | CA20: Other 2 Adjustments during Q2 2012 | CB20: Other 2 Adjustments during Q3 2012 | CC20: Other 2 Adjustments during Q4 2012 | CD20: Closing Principal Balance as of Dec-31-12 | CE20: Opening Interest Amounts as of Jan-1-12 | CF20: Interest Jan-1 to Dec-31-12 | CG20: Board-Approved Disposition during 2012 | CH20: Adjustments during 2012 - other 2 | CI20: Closing Interest Amounts as of Dec-31-12 | CJ20: Opening Principal Amounts as of Jan-1-13 | CK20: Transactions Debit / (Credit) during 2013 excluding interest and adjustments 3 | CL20: Board-Approved Disposition during 2013 | CM20: Other 2 Adjustments during Q1 2013 | CN20: Other 2 Adjustments during Q2 2013 | CO20: Other 2 Adjustments during Q3 2013 | CP20: Other 2 Adjustments during Q4 2013 | CQ20: Closing Principal Balance as of Dec-31-13 | CR20: Opening Interest Amounts as of Jan-1-13 | CS20: Interest Jan-1 to Dec-31-13 | CT20: Board-Approved Disposition during 2013 | CU20: Adjustments during 2013 - other 2 | CV20: Closing Interest Amounts as of Dec-31-13 | CW20: Principal Disposition during 2014 - instructed by Board | CX20: Interest Disposition during 2014 - instructed by Board | CY20: Closing Principal Balances as of Dec 31-13 Adjusted for Dispositions during 2014 | CZ20: Closing Interest Balances as of Dec 31-13 Adjusted for Dispositions during 2014 | DA20: Projected Interest from Jan 1, 2014 to December 31, 2014 on Dec 31 -13 balance adjusted for disposition during 2014 6 | DB20: Projected Interest from January 1, 2015 to April 30, 2015 on Dec 31 -13 balance adjusted for disposition during 2014 6 | DC20: Total Claim | DD20: As of Dec 31-13 | DE20: Variance RRR vs. 2013 Balance (Principal + Interest)
DC22: Claim before Forecasted Transactions
C23: Group 1 Accounts | CZ23: RATE = | DA23: 0.0147
A24: 1 | C24: LV Variance Account | D24: 1550 | I24: =E24+F24-G24+H24 -> 0 | N24: =J24+K24-L24+M24 -> 0 | O24: =I24 -> 0 | S24: =O24+P24-Q24+R24 -> 0 | T24: =N24 -> 0 | X24: =T24+U24-V24+W24 -> 0 | Y24: =S24 -> 0 | AC24: =Y24+Z24-AA24+AB24 -> 0 | AD24: =X24 -> 0 | AH24: =AD24+AE24-AF24+AG24 -> 0 | AI24: =AC24 -> 0 | AM24: =AI24+AJ24-AK24+AL24 -> 0 | AN24: =AH24 -> 0 | AR24: =AN24+AO24-AP24+AQ24 -> 0 | AS24: 0 | AW24: =AS24+AT24-AU24+AV24 -> 0 | AX24: =AR24 -> 0 | BB24: =AX24+AY24-AZ24+BA24 -> 0 | BC24: =AW24 -> 0 | BG24: =BC24+BD24-BE24+BF24 -> 0 | BH24: =BB24 -> 0 | BL24: =BH24+BI24-BJ24+BK24 -> 0 | BM24: =BG24 -> 0 | BQ24: =BM24+BN24-BO24+SUM(BP24:BP24) -> 0 | BR24: =BL24 -> 0 | BV24: =BR24+BS24-BT24+BU24 -> 0 | BW24: =BQ24 -> 0 | CD24: =BW24+BX24-BY24+SUM(BZ24:CC24) -> 0 | CE24: =BV24 -> 0 | CI24: =CE24+CF24-CG24+CH24 -> 0 | CJ24: =CD24 -> 0 | CQ24: =CJ24+CK24-CL24+SUM(CM24:CP24) -> 0 | CR24: =CI24 -> 0 | CV24: =CR24+CS24-CT24+CU24 -> 0 | CY24: =CQ24-CW24 -> 0 | CZ24: =CV24-CX24 -> 0 | DA24: =CQ24*$DA$23 -> 0 | DC24: =SUM(CY24:DB24) -> 0 | DE24: =DD24-SUM(CQ24,CV24) -> 0
A25: 2 | C25: RSVA - Wholesale Market Service Charge | D25: 1580 | I25: =E25+F25-G25+H25 -> 0 | N25: =J25+K25-L25+M25 -> 0 | O25: =I25 -> 0 | S25: =O25+P25-Q25+R25 -> 0 | T25: =N25 -> 0 | X25: =T25+U25-V25+W25 -> 0 | Y25: =S25 -> 0 | AC25: =Y25+Z25-AA25+AB25 -> 0 | AD25: =X25 -> 0 | AH25: =AD25+AE25-AF25+AG25 -> 0 | AI25: =AC25 -> 0 | AM25: =AI25+AJ25-AK25+AL25 -> 0 | AN25: =AH25 -> 0 | AR25: =AN25+AO25-AP25+AQ25 -> 0 | AS25: -2425784.74 | AT25: -275654 | AW25: =AS25+AT25-AU25+AV25 -> -2701438.74 | AX25: -129838.073 | AY25: -28185 | BB25: =AX25+AY25-AZ25+BA25 -> -158023.073 | BC25: =AW25 -> -2701438.74 | BD25: -1178621.153 | BE25: -2701438.88 | BG25: =BC25+BD25-BE25+SUM(BF25:BF25) -> -1178621.013 | BH25: =BB25 -> -158023.073 | BI25: -27029 | BJ25: -185415.81 | BL25: =BH25+BI25-BJ25+BK25 -> 363.7369931 | BM25: =BG25 -> -1178621.013 | BN25: -1126739.27 | BQ25: -2305360.283 | BR25: 363.7369931 | BS25: -43191.93004 | BV25: =BR25+BS25-BT25+BU25 -> -42828.19305 | BW25: =BQ25 -> -2305360.283 | BX25: -1350306.142 | BY25: -1178621 | CD25: =BW25+BX25-BY25+SUM(BZ25:CC25) -> -2477045.425 | CE25: =BV25 -> -42828.19305 | CF25: -27964.60151 | CG25: -16962.0045 | CI25: =CE25+CF25-CG25+CH25 -> -53830.79005 | CJ25: =CD25 -> -2477045.425 | CK25: -646474.1562 | CQ25: =CJ25+CK25-CL25+SUM(CM25:CP25) -> -3123519.581 | CR25: =CI25 -> -53830.79005 | CS25: -43401.53661 | CU25: -2.15 | CV25: =CR25+CS25-CT25+CU25 -> -97234.47666 | CY25: =CQ25-CW25 -> -3123519.581 | CZ25: =CV25-CX25 -> -97234.47666 | DA25: =CQ25*$DA$23 -> -45915.73785 | DC25: =SUM(CY25:DB25) -> -3266669.796 | DD25: -3220754.06 | DE25: =DD25-SUM(CQ25,CV25) -> -0.002037824597
A26: 3 | C26: RSVA - Retail Transmission Network Charge | D26: 1584 | I26: 0 | N26: 0 | O26: 0 | S26: 0 | T26: 0 | X26: 0 | Y26: 0 | AC26: 0 | AD26: 0 | AH26: 0 | AI26: 0 | AM26: 0 | AN26: 0 | AR26: 0 | AS26: 4017608.69 | AT26: 1273619 | AW26: =AS26+AT26-AU26+AV26 -> 5291227.69 | AX26: 344801.8404 | AY26: 51397 | BB26: 396198.8404 | BC26: 5291227.69 | BD26: 1355700.002 | BE26: 5291227.7 | BG26: =BC26+BD26-BE26+SUM(BF26:BF26) -> 1355699.992 | BH26: 396198.8404 | BI26: 48002.02319 | BJ26: 449851.9578 | BL26: =BH26+BI26-BJ26+BK26 -> -5651.094199 | BM26: 1355699.992 | BN26: 1285242.15 | BQ26: 2640942.142 | BR26: -5651.094199 | BS26: 59786.61736 | BV26: 54135.52316 | BW26: 2640942.142 | BX26: 1965449.441 | BY26: 1355700 | CD26: 3250691.583 | CE26: 54135.52316 | CF26: 31044.56214 | CG26: 14277.68784 | CI26: 70902.39746 | CJ26: 3250691.583 | CK26: 1651056.394 | CQ26: 4901747.977 | CR26: 70902.39746 | CS26: 55783.39555 | CU26: -1.46 | CV26: 126684.333 | CY26: 4901747.977 | CZ26: 126684.333 | DA26: =CQ26*$DA$23 -> 72055.69527 | DC26: 5100488.006 | DD26: 5028432.31 | DE26: -0.0004846788943
A27: 4 | C27: RSVA - Retail Transmission Connection Charge | D27: 1586 | I27: 0 | N27: 0 | O27: 0 | S27: 0 | T27: 0 | X27: 0 | Y27: 0 | AC27: 0 | AD27: 0 | AH27: 0 | AI27: 0 | AM27: 0 | AN27: 0 | AR27: 0 | AS27: -2609098.08 | AT27: -198605 | AW27: -2807703.08 | AX27: -365575.3447 | AY27: -31035 | BB27: -396610.3447 | BC27: -2807703.08 | BD27: -156490.8195 | BE27: -2807703.22 | BG27: -156490.6795 | BH27: -396610.3447 | BI27: -23566.35831 | BJ27: -425080.4128 | BL27: 4903.709731 | BM27: -156490.6795 | BN27: -718586.08 | BQ27: -875076.7595 | BR27: 4903.709731 | BS27: -24930.5645 | BV27: -20026.85477 | BW27: -875076.7595 | BX27: -652909.7737 | BY27: -156491 | CD27: -1371495.533 | CE27: -20026.85477 | CF27: -17861.50267 | CG27: 2603.617275 | CI27: -40491.97472 | CJ27: -1371495.533 | CK27: -1087358.953 | CQ27: -2458854.486 | CR27: -40491.97472 | CS27: -30560.89863 | CU27: -1.71 | CV27: -71054.58334 | CY27: -2458854.486 | CZ27: -71054.58334 | DA27: -36145.16094 | DC27: -2566054.23 | DD27: -2529909.07 | DE27: -0.0007146117277
A28: 5 | C28: RSVA - Power (excluding Global Adjustment) | D28: 1588 | I28: 0 | N28: 0 | O28: 0 | S28: 0 | T28: 0 | X28: 0 | Y28: 0 | AC28: 0 | AD28: 0 | AH28: 0 | AI28: 0 | AM28: 0 | AN28: 0 | AR28: 0 | AS28: -2240656.85 | AT28: -1201835.2 | AW28: -3442492.05 | AX28: 162283 | AY28: -40362 | BB28: 121921 | BC28: -3442492.05 | BD28: 45682 | BE28: -3442491.74 | BG28: 45681.69 | BH28: 121921 | BI28: -31764 | BJ28: 87014.05937 | BL28: 3142.940634 | BM28: 45681.69 | BN28: 109809.39 | BQ28: 155491.08 | BR28: 3142.940634 | BS28: -12035 | BV28: -8892.059366 | BW28: 155491.08 | BX28: 142153.953 | BY28: 45683 | CD28: 251962.033 | CE28: -8892.059366 | CF28: 9159 | CG28: 3814.151477 | CI28: -3547.210843 | CJ28: 251962.033 | CK28: 1601280.657 | CQ28: 1853242.69 | CR28: -3547.210843 | CS28: 3064.968372 | CU28: 1.28 | CV28: -480.9624715 | CY28: 1853242.69 | CZ28: -480.9624715 | DA28: 27242.66754 | DC28: 1880004.395 | DD28: 1852761.64 | DE28: -0.08752851887
A29: 6 | C29: RSVA - Global Adjustment | D29: 1589 | I29: 0 | N29: 0 | O29: 0 | S29: 0 | T29: 0 | X29: 0 | Y29: 0 | AC29: 0 | AD29: 0 | AH29: 0 | AI29: 0 | AM29: 0 | AN29: 0 | AR29: 0 | AS29: 1056519.4 | AT29: 650988.8 | AW29: 1707508.2 | AX29: -27364 | AY29: -837 | BB29: -28201 | BC29: 1707508.2 | BD29: -448597.8303 | BE29: 1707508.323 | BG29: -448597.9536 | BH29: -28201 | BI29: 4295 | BJ29: -10886.72427 | BL29: -13019.27573 | BM29: -448597.9536 | BN29: 402810.16 | BQ29: -45787.79359 | BR29: -13019.27573 | BS29: -5606 | BV29: -18625.27573 | BW29: -45787.79359 | BX29: -223711.6875 | BY29: -448598 | CD29: 179098.519 | CE29: -18625.27573 | CF29: =14270.63-19613.62 -> -5342.99 | CG29: -19613.62 | CI29: -4354.645731 | CJ29: 179098.519 | CK29: 898285.883 | CQ29: 1077384.402 | CR29: -4354.645731 | CS29: -2741.999921 | CU29: 0.62 | CV29: -7096.025651 | CY29: 1077384.402 | CZ29: -7096.025651 | DA29: =CQ29*$DA$23 -> 15837.55071 | DC29: =SUM(CY29:DB29) -> 1086125.927 | DD29: 1070288.38 | DE29: 0.003717488376
A30: 7 | C30: Recovery of Regulatory Asset Balances | D30: 1590 | I30: 0 | N30: 0 | O30: 0 | S30: 0 | T30: 0 | X30: 0 | Y30: 0 | AC30: 0 | AD30: 0 | AH30: 0 | AI30: 0 | AM30: 0 | AN30: 0 | AR30: 0 | AS30: -383683.7 | AT30: 220 | AW30: -383463.7 | AX30: 623495.8 | AY30: 3165 | BB30: 626660.8 | BC30: -383463.7 | BD30: 5.74 | BE30: -383463.89 | BG30: 5.93 | BH30: 626660.8 | BI30: 2220 | BJ30: 622772.45 | BL30: 6108.35 | BM30: =BG30 -> 5.93 | BP30: -5.93 | BQ30: 0 | BR30: 6108.35 | BS30: -9455.35 | BU30: 3347 | BV30: 9.276845958e-11 | BW30: 0 | BX30: =BY30 -> 6114.167907 | BY30: 6114.167907 | CD30: 0 | CE30: 9.276845958e-11 | CI30: 9.276845958e-11 | CJ30: 0 | CQ30: 0 | CR30: 9.276845958e-11 | CV30: 9.276845958e-11 | CY30: 0 | CZ30: 9.276845958e-11 | DA30: 0 | DC30: 9.276845958e-11 | DE30: -9.276845958e-11
A31: 8 | C31: Disposition and Recovery/Refund of Regulatory Balances (2008)7 | D31: 1595 | I31: 0 | N31: 0 | O31: =I31 -> 0 | S31: 0 | T31: =N31 -> 0 | X31: 0 | Y31: =S31 -> 0 | AC31: 0 | AD31: =X31 -> 0 | AH31: 0 | AI31: =AC31 -> 0 | AM31: 0 | AN31: =AH31 -> 0 | AR31: 0 | AS31: 0 | AW31: 0 | AX31: =AR31 -> 0 | BB31: 0 | BC31: =AW31 -> 0 | BG31: 0 | BH31: =BB31 -> 0 | BL31: 0 | BM31: =BG31 -> 0 | BQ31: 0 | BR31: 0 | BV31: 0 | BW31: =BQ31 -> 0 | CD31: 0 | CE31: =BV31 -> 0 | CI31: 0 | CJ31: =CD31 -> 0 | CQ31: 0 | CR31: =CI31 -> 0 | CV31: 0 | CY31: 0 | CZ31: 0 | DA31: 0 | DC31: 0 | DE31: 0
A32: 9 | C32: Disposition and Recovery/Refund of Regulatory Balances (2009)7 | D32: 1595 | I32: 0 | N32: 0 | O32: 0 | S32: 0 | T32: 0 | X32: 0 | Y32: 0 | AC32: 0 | AD32: 0 | AH32: 0 | AI32: 0 | AM32: 0 | AN32: 0 | AR32: 0 | AS32: 0 | AW32: 0 | AX32: =AR32 -> 0 | BB32: 0 | BC32: 0 | BG32: 0 | BH32: 0 | BL32: 0 | BM32: =BG32 -> 0 | BQ32: 0 | BR32: 0 | BV32: 0 | BW32: =BQ32 -> 0 | CD32: 0 | CE32: =BV32 -> 0 | CI32: 0 | CJ32: =CD32 -> 0 | CQ32: 0 | CR32: =CI32 -> 0 | CV32: 0 | CY32: 0 | CZ32: 0 | DA32: 0 | DC32: 0 | DE32: 0
A33: 10 | C33: Disposition and Recovery/Refund of Regulatory Balances (2010)7 | D33: 1595 | I33: =E33+F33-G33+H33 -> 0 | N33: =J33+K33-L33+M33 -> 0 | O33: =I33 -> 0 | S33: =O33+P33-Q33+R33 -> 0 | T33: =N33 -> 0 | X33: =T33+U33-V33+W33 -> 0 | Y33: =S33 -> 0 | AC33: =Y33+Z33-AA33+AB33 -> 0 | AD33: =X33 -> 0 | AH33: =AD33+AE33-AF33+AG33 -> 0 | AI33: =AC33 -> 0 | AM33: =AI33+AJ33-AK33+AL33 -> 0 | AN33: =AH33 -> 0 | AR33: =AN33+AO33-AP33+AQ33 -> 0 | AS33: 0 | AW33: =AS33+AT33-AU33+AV33 -> 0 | AX33: =AR33 -> 0 | BB33: =AX33+AY33-AZ33+BA33 -> 0 | BC33: =AW33 -> 0 | BG33: 0 | BH33: =BB33 -> 0 | BL33: =BH33+BI33-BJ33+BK33 -> 0 | BM33: =BG33 -> 0 | BQ33: 0 | BR33: 0 | BV33: =BR33+BS33-BT33+BU33 -> 0 | BW33: =BQ33 -> 0 | CD33: =BW33+BX33-BY33+SUM(BZ33:CC33) -> 0 | CE33: =BV33 -> 0 | CI33: =CE33+CF33-CG33+CH33 -> 0 | CJ33: =CD33 -> 0 | CQ33: =CJ33+CK33-CL33+SUM(CM33:CP33) -> 0 | CR33: =CI33 -> 0 | CV33: =CR33+CS33-CT33+CU33 -> 0 | CY33: 0 | CZ33: 0 | DA33: 0 | DC33: 0 | DE33: 0
A34: 11 | C34: Disposition and Recovery/Refund of Regulatory Balances (2012) | D34: 1595 | I34: =E34+F34-G34+H34 -> 0 | N34: =J34+K34-L34+M34 -> 0 | O34: =I34 -> 0 | S34: =O34+P34-Q34+R34 -> 0 | T34: =N34 -> 0 | X34: =T34+U34-V34+W34 -> 0 | Y34: =S34 -> 0 | AC34: =Y34+Z34-AA34+AB34 -> 0 | AD34: =X34 -> 0 | AH34: =AD34+AE34-AF34+AG34 -> 0 | AI34: =AC34 -> 0 | AM34: =AI34+AJ34-AK34+AL34 -> 0 | AN34: =AH34 -> 0 | AR34: =AN34+AO34-AP34+AQ34 -> 0 | AS34: 0 | AW34: =AS34+AT34-AU34+AV34 -> 0 | AX34: =AR34 -> 0 | BB34: =AX34+AY34-AZ34+BA34 -> 0 | BC34: =AW34 -> 0 | BD34: -83309.35 | BE34: 2336361.707 | BG34: =BC34+BD34-BE34+SUM(BF34:BF34) -> -2419671.057 | BH34: =BB34 -> 0 | BI34: -261.7302093 | BJ34: -538255.5165 | BL34: =BH34+BI34-BJ34+BK34 -> 537993.7863 | BM34: =BG34 -> -2419671.057 | BN34: =1161732+403330 -> 1565062 | BP34: 218241 | BQ34: -636368.0567 | BR34: 537993.7863 | BS34: -11165 | BU34: -532146 | BV34: =BR34+BS34-BT34+BU34 -> -5317.213731 | BW34: =BQ34 -> -636368.0567 | BX34: =1105383-407158 -> 698225 | BY34: -1042586.498 | CD34: =BW34+BX34-BY34+SUM(BZ34:CC34) -> 1104443.441 | CE34: =BV34 -> -5317.213731 | CG34: 10726.49791 | CH34: 16984 | CI34: =CE34+CF34-CG34+CH34 -> 940.2883615 | CJ34: =CD34 -> 1104443.441 | CK34: -238015 | CP34: =-CJ34-CK34 -> -866428.4412 | CQ34: =CJ34+CK34-CL34+SUM(CM34:CP34) -> 0 | CR34: =CI34 -> 940.2883615 | CS34: 15727 | CU34: =-CR34-CS34 -> -16667.28836 | CV34: =CR34+CS34-CT34+CU34 -> 0 | CY34: 0 | CZ34: 0 | DA34: =CQ34*$DA$23 -> 0 | DC34: 0 | DE34: 0 | DG34: Recovery not complete until end 2015 - moved to memo line
C36: Group 1 Sub-Total (including Account 1589 - Global Adjustment) | E36: =SUM(E24:E34) -> 0 | F36: =SUM(F24:F34) -> 0 | G36: 0 | H36: 0 | I36: 0 | J36: 0 | K36: 0 | L36: 0 | M36: 0 | N36: 0 | O36: 0 | P36: 0 | Q36: 0 | R36: 0 | S36: 0 | T36: 0 | U36: 0 | V36: 0 | W36: 0 | X36: 0 | Y36: 0 | Z36: 0 | AA36: 0 | AB36: 0 | AC36: 0 | AD36: 0 | AE36: 0 | AF36: 0 | AG36: 0 | AH36: 0 | AI36: 0 | AJ36: 0 | AK36: 0 | AL36: 0 | AM36: 0 | AN36: 0 | AO36: 0 | AP36: 0 | AQ36: 0 | AR36: 0 | AS36: -2585095.28 | AT36: 248733.6 | AU36: 0 | AV36: 0 | AW36: -2336361.68 | AX36: 607803.2226 | AY36: -45857 | AZ36: 0 | BA36: 0 | BB36: 561946.2226 | BC36: -2336361.68 | BD36: -465631.4102 | BE36: 0 | BF36: 0 | BG36: -2801993.09 | BH36: 561946.2226 | BI36: -28104.06532 | BJ36: 0.003625183366 | BK36: 0 | BL36: 533842.1537 | BM36: -2801993.09 | BN36: 1517598.35 | BO36: 0 | BP36: 218235.07 | BQ36: =SUM(BQ24:BQ34) -> -1066159.67 | BR36: 533842.1537 | BS36: -46597.22718 | BT36: 0 | BU36: -528799 | BV36: -41554.07348 | BW36: -1066159.67 | BX36: 585014.9583 | BY36: -1418799.33 | BZ36: 0 | CA36: 0 | CB36: 0 | CC36: 0 | CD36: 937654.6181 | CE36: -41554.07348 | CF36: -10965.53204 | CG36: -5153.67 | CH36: 16984 | CI36: -30381.93552 | CJ36: =SUM(CJ24:CJ34) -> 937654.6181 | CK36: 2178774.825 | CL36: 0 | CM36: 0 | CN36: 0 | CO36: 0 | CP36: -866428.4412 | CQ36: 2250001.002 | CR36: -30381.93552 | CS36: -2129.071234 | CT36: 0 | CU36: -16670.70836 | CV36: -49181.71512 | CW36: 0 | CX36: 0 | CY36: =SUM(CY24:CY34) -> 2250001.002 | CZ36: =SUM(CZ24:CZ34) -> -49181.71512 | DA36: 33075.01473 | DB36: 0 | DC36: =SUM(DC24:DC34) -> 2233894.302 | DD36: 2200819.2 | DE36: -0.08704814548
C37: Group 1 Sub-Total (excluding Account 1589 - Global Adjustment) | E37: =E36-E38 -> 0 | F37: =F36-F38 -> 0 | G37: =G36-G38 -> 0 | H37: 0 | I37: 0 | J37: 0 | K37: 0 | L37: =L36-L38 -> 0 | M37: =M36-M38 -> 0 | N37: 0 | O37: 0 | P37: 0 | Q37: =Q36-Q38 -> 0 | R37: 0 | S37: 0 | T37: 0 | U37: 0 | V37: =V36-V38 -> 0 | W37: =W36-W38 -> 0 | X37: =X36-X38 -> 0 | Y37: 0 | Z37: 0 | AA37: 0 | AB37: 0 | AC37: 0 | AD37: 0 | AE37: 0 | AF37: =AF36-AF38 -> 0 | AG37: =AG36-AG38 -> 0 | AH37: =AH36-AH38 -> 0 | AI37: 0 | AJ37: 0 | AK37: 0 | AL37: 0 | AM37: 0 | AN37: 0 | AO37: 0 | AP37: =AP36-AP38 -> 0 | AQ37: =AQ36-AQ38 -> 0 | AR37: =AR36-AR38 -> 0 | AS37: -3641614.68 | AT37: -402255.2 | AU37: 0 | AV37: 0 | AW37: -4043869.88 | AX37: 635167.2226 | AY37: -45020 | AZ37: =AZ36-AZ38 -> 0 | BA37: =BA36-BA38 -> 0 | BB37: =BB36-BB38 -> 590147.2226 | BC37: -4043869.88 | BD37: -17033.57992 | BE37: -1707508.323 | BF37: 0 | BG37: -2353395.137 | BH37: 590147.2226 | BI37: -32399.06532 | BJ37: =BJ36-BJ38 -> 10886.72789 | BK37: 0 | BL37: 546861.4294 | BM37: -2353395.137 | BN37: 1114788.19 | BO37: 0 | BP37: 218235.07 | BQ37: -1020371.877 | BR37: 546861.4294 | BS37: -40991.22718 | BT37: 0 | BU37: -528799 | BV37: -22928.79775 | BW37: =BW36-BW38 -> -1020371.877 | BX37: 808726.6457 | BY37: -970201.33 | BZ37: 0 | CA37: 0 | CB37: 0 | CC37: 0 | CD37: 758556.0991 | CE37: -22928.79775 | CF37: -5622.542041 | CG37: 14459.95 | CH37: 16984 | CI37: -26027.28979 | CJ37: =CJ36-CJ38 -> 758556.0991 | CK37: 1280488.942 | CL37: 0 | CM37: 0 | CN37: 0 | CO37: 0 | CP37: -866428.4412 | CQ37: 1172616.6 | CR37: -26027.28979 | CS37: 612.928687 | CT37: 0 | CU37: -16671.32836 | CV37: -42085.68947 | CW37: 0 | CX37: 0 | CY37: =CY36-CY38 -> 1172616.6 | CZ37: -42085.68947 | DA37: 17237.46402 | DB37: 0 | DC37: =SUM(CY37:DB37) -> 1147768.375 | DD37: =DD36-DD38 -> 1130530.82 | DE37: -0.09076563409
C38: =C29 -> RSVA - Global Adjustment | D38: 1589 | E38: =E29 -> 0 | F38: =F29 -> 0 | G38: =G29 -> 0 | H38: 0 | I38: 0 | J38: 0 | K38: 0 | L38: =L29 -> 0 | M38: =M29 -> 0 | N38: 0 | O38: 0 | P38: 0 | Q38: =Q29 -> 0 | R38: 0 | S38: 0 | T38: 0 | U38: 0 | V38: 0 | W38: 0 | X38: 0 | Y38: 0 | Z38: 0 | AA38: =AA29 -> 0 | AB38: 0 | AC38: 0 | AD38: 0 | AE38: 0 | AF38: 0 | AG38: 0 | AH38: 0 | AI38: 0 | AJ38: 0 | AK38: 0 | AL38: 0 | AM38: 0 | AN38: 0 | AO38: 0 | AP38: =AP29 -> 0 | AQ38: =AQ29 -> 0 | AR38: =AR29 -> 0 | AS38: =AS29 -> 1056519.4 | AT38: 650988.8 | AU38: 0 | AV38: 0 | AW38: 1707508.2 | AX38: -27364 | AY38: -837 | AZ38: 0 | BA38: 0 | BB38: -28201 | BC38: =BC29 -> 1707508.2 | BD38: -448597.8303 | BE38: 1707508.323 | BF38: 0 | BG38: -448597.9536 | BH38: -28201 | BI38: 4295 | BJ38: -10886.72427 | BK38: 0 | BL38: -13019.27573 | BM38: =BM29 -> -448597.9536 | BN38: 402810.16 | BO38: 0 | BP38: 0 | BQ38: -45787.79359 | BR38: -13019.27573 | BS38: -5606 | BT38: 0 | BU38: 0 | BV38: -18625.27573 | BW38: =BW29 -> -45787.79359 | BX38: -223711.6875 | BY38: -448598 | BZ38: 0 | CA38: 0 | CB38: 0 | CC38: 0 | CD38: 179098.519 | CE38: -18625.27573 | CF38: -5342.99 | CG38: -19613.62 | CH38: 0 | CI38: -4354.645731 | CJ38: =CJ29 -> 179098.519 | CK38: =CK29 -> 898285.883 | CL38: 0 | CM38: 0 | CN38: 0 | CO38: 0 | CP38: 0 | CQ38: 1077384.402 | CR38: -4354.645731 | CS38: -2741.999921 | CT38: 0 | CU38: 0.62 | CV38: -7096.025651 | CW38: =CW29 -> 0 | CX38: 0 | CY38: =CY29 -> 1077384.402 | CZ38: -7096.025651 | DA38: 15837.55071 | DB38: 0 | DC38: 1086125.927 | DD38: =DD29 -> 1070288.38 | DE38: 0.003717488376
C40: Group 2 Accounts
A41: 12 | C41: Other Regulatory Assets - Sub-Account - Ampco Motion Costs | D41: 1508 | I41: =E41+F41-G41+H41 -> 0 | N41: =J41+K41-L41+M41 -> 0 | O41: =I41 -> 0 | S41: =O41+P41-Q41+R41 -> 0 | T41: =N41 -> 0 | X41: =T41+U41-V41+W41 -> 0 | Y41: =S41 -> 0 | AC41: =Y41+Z41-AA41+AB41 -> 0 | AD41: =X41 -> 0 | AH41: =AD41+AE41-AF41+AG41 -> 0 | AI41: =AC41 -> 0 | AM41: =AI41+AJ41-AK41+AL41 -> 0 | AN41: =AH41 -> 0 | AR41: =AN41+AO41-AP41+AQ41 -> 0 | AS41: 47239.07 | AW41: =AS41+AT41-AU41+AV41 -> 47239.07 | AX41: 0 | BB41: =AX41+AY41-AZ41+BA41 -> 0 | BC41: =AW41 -> 47239.07 | BG41: =BC41+BD41-BE41+SUM(BF41:BF41) -> 47239.07 | BH41: =BB41 -> 0 | BL41: =BH41+BI41-BJ41+BK41 -> 0 | BM41: =BG41 -> 47239.07 | BQ41: =BM41+BN41-BO41+SUM(BP41:BP41) -> 47239.07 | BR41: =BL41 -> 0 | BV41: =BR41+BS41-BT41+BU41 -> 0 | BW41: =BQ41 -> 47239.07 | BY41: =49111-CG41 -> 47239 | CD41: =BW41+BX41-BY41+SUM(BZ41:CC41) -> 0.07 | CE41: =BV41 -> 0 | CG41: =49111-47239 -> 1872 | CH41: 1872 | CI41: =CE41+CF41-CG41+CH41 -> 0 | CJ41: =CD41 -> 0.07 | CQ41: =CJ41+CK41-CL41+SUM(CM41:CP41) -> 0.07 | CR41: =CI41 -> 0 | CV41: =CR41+CS41-CT41+CU41 -> 0 | CY41: =CQ41-CW41 -> 0.07 | CZ41: =CV41-CX41 -> 0 | DA41: =CQ41*$DA$23 -> 0.001029 | DC41: 0.071029 | DD41: -3633.47 | DE41: =DD41-SUM(CQ41:CQ47)-SUM(CV41:CV47) -> -0.41259125
A42: 13 | C42: Other Regulatory Assets - Sub-Account - Acsys Deferred Revenue | D42: 1508 | I42: 0 | N42: 0 | O42: 0 | S42: 0 | T42: 0 | X42: 0 | Y42: 0 | AC42: 0 | AD42: 0 | AH42: 0 | AI42: 0 | AM42: 0 | AN42: 0 | AR42: 0 | AS42: -21501.1 | AW42: -21501.1 | AX42: 0 | BB42: 0 | BC42: =AW42 -> -21501.1 | BG42: -21501.1 | BH42: 0 | BL42: 0 | BM42: -21501.1 | BQ42: -21501.1 | BR42: 0 | BV42: 0 | BW42: -21501.1 | BY42: =-25916+4415 -> -21501 | CD42: -0.1 | CE42: 0 | CG42: =-25916+21501 -> -4415 | CH42: -4415 | CI42: 0 | CJ42: =CD42 -> -0.1 | CQ42: -0.1 | CR42: 0 | CV42: 0 | CY42: =CQ42-CW42 -> -0.1 | CZ42: 0 | DA42: =CQ42*$DA$23 -> -0.00147 | DC42: -0.10147
A43: 14 | C43: Other Regulatory Assets - Sub-Account - Deferred IFRS Transition Costs | D43: 1508 | I43: 0 | N43: 0 | O43: 0 | S43: 0 | T43: 0 | X43: 0 | Y43: 0 | AC43: 0 | AD43: 0 | AH43: 0 | AI43: 0 | AM43: 0 | AN43: 0 | AR43: 0 | AS43: 0 | AT43: 60368 | AW43: 60368 | AX43: -3419.386956 | AY43: 339.77 | BB43: -3079.616956 | BC43: 60368 | BD43: 106577 | BG43: 166945 | BH43: -3079.616956 | BI43: 1402.869615 | BL43: -1676.747341 | BM43: 166945 | BN43: 98902 | BQ43: 265847 | BR43: -1676.747341 | BS43: 3996.119932 | BV43: 2319.372591 | BW43: 265847 | BX43: =22995 -> 22995 | BY43: 166945 | CD43: =BW43+BX43-BY43+SUM(BZ43:CC43) -> 121897 | CE43: 2319.372591 | CF43: 643 | CG43: =170428-BY43 -> 3483 | CI43: -520.6274087 | CJ43: 121897 | CQ43: 121897 | CR43: -520.6274087 | CS43: -45 | CU43: -0.37 | CV43: -565.9974087 | CY43: 121897 | CZ43: -565.9974087 | DA43: 1791.8859 | DC43: 123122.8885
A44: 15 | C44: Other Regulatory Assets - Sub-Account - Capital Recovery (2008 Rates Motion) | D44: 1508 | AS44: 0 | AT44: 27000 | AW44: =AS44+AT44-AU44+AV44 -> 27000 | AX44: 0 | BB44: =AX44+AY44-AZ44+BA44 -> 0 | BC44: =AW44 -> 27000 | BG44: 27000 | BH44: 0 | BL44: =BH44+BI44-BJ44+BK44 -> 0 | BM44: 27000 | BN44: -27000 | BQ44: 0 | BR44: 0 | BV44: 0 | BW44: 0 | CD44: 0 | CE44: 0 | CI44: 0 | CJ44: 0 | CQ44: 0 | CR44: 0 | CV44: 0 | CY44: 0 | CZ44: 0 | DA44: 0 | DC44: 0
A45: 16 | C45: Other Regulatory Assets - Sub-Account - Financial Assistance Payment and Recovery Variance - Ontario Clean Energy Benefit Act8 | D45: 1508 | BM45: 0 | BQ45: 0 | BR45: 0 | BV45: 0 | BW45: 0 | CD45: =BW45+BX45-BY45+SUM(BZ45:CC45) -> 0 | CE45: =BV45 -> 0 | CI45: 0 | CJ45: 0 | CQ45: =CJ45+CK45-CL45+SUM(CM45:CP45) -> 0 | CR45: =CI45 -> 0 | CV45: 0 | CY45: 0 | CZ45: 0 | DA45: 0 | DC45: 0
A46: 17 | C46: Other Regulatory Assets - Sub-Account - Financial Assistance Payment and Recovery Carrying Charges | D46: 1508 | BM46: 0 | BQ46: 0 | BR46: 0 | BV46: 0 | BW46: 0 | CD46: =BW46+BX46-BY46+SUM(BZ46:CC46) -> 0 | CE46: =BV46 -> 0 | CI46: 0 | CJ46: 0 | CQ46: =CJ46+CK46-CL46+SUM(CM46:CP46) -> 0 | CR46: =CI46 -> 0 | CV46: 0 | CY46: 0 | CZ46: 0 | DA46: 0 | DC46: 0
A47: 18 | C47: Other Regulatory Assets - Sub-Account - Balance for future disposition (EB 2009 0240) | D47: 1508 | I47: 0 | N47: 0 | O47: 0 | S47: 0 | T47: 0 | X47: 0 | Y47: 0 | AC47: 0 | AD47: 0 | AH47: 0 | AI47: 0 | AM47: 0 | AN47: 0 | AR47: 0 | AS47: =AM47 -> 0 | AW47: 0 | AX47: =AR47 -> 0 | BB47: 0 | BC47: 0 | BG47: 0 | BH47: 0 | BL47: 0 | BM47: =BG47 -> 0 | BN47: -124964.03 | BQ47: -124964.03 | BR47: 0 | BV47: =BR47+BS47-BT47+BU47 -> 0 | BW47: -124964.03 | CD47: =BW47+BX47-BY47+SUM(BZ47:CC47) -> -124964.03 | CE47: =BV47 -> 0 | CI47: 0 | CJ47: -124964.03 | CQ47: =CJ47+CK47-CL47+SUM(CM47:CP47) -> -124964.03 | CR47: =CI47 -> 0 | CV47: 0 | CY47: -124964.03 | CZ47: 0 | DA47: -1836.971241 | DC47: -126801.0012
A48: 19 | C48: Retail Cost Variance Account - Retail | D48: 1518 | I48: 0 | N48: 0 | O48: 0 | S48: 0 | T48: 0 | X48: 0 | Y48: 0 | AC48: 0 | AD48: 0 | AH48: 0 | AI48: 0 | AM48: 0 | AN48: 0 | AR48: 0 | AS48: 0 | AW48: 0 | AX48: 0 | BB48: 0 | BC48: 0 | BG48: 0 | BH48: 0 | BL48: 0 | BM48: 0 | BQ48: 0 | BR48: 0 | BV48: 0 | BW48: 0 | CD48: 0 | CE48: 0 | CI48: 0 | CJ48: 0 | CQ48: 0 | CR48: 0 | CV48: 0 | CY48: 0 | CZ48: 0 | DA48: 0 | DC48: 0 | DE48: =DD48-SUM(CQ48,CV48) -> 0
A49: 20 | C49: Misc. Deferred Debits | D49: 1525 | I49: 0 | N49: 0 | O49: 0 | S49: 0 | T49: 0 | X49: 0 | Y49: 0 | AC49: 0 | AD49: 0 | AH49: 0 | AI49: 0 | AM49: 0 | AN49: 0 | AR49: 0 | AS49: 0 | AW49: 0 | AX49: 0 | BB49: 0 | BC49: 0 | BG49: 0 | BH49: 0 | BL49: 0 | BM49: 0 | BQ49: 0 | BR49: 0 | BV49: 0 | BW49: 0 | CD49: 0 | CE49: 0 | CI49: 0 | CJ49: 0 | CQ49: 0 | CR49: 0 | CV49: 0 | CY49: 0 | CZ49: 0 | DA49: 0 | DC49: 0 | DE49: 0
A50: 21 | C50: Renewable Generation Connection Capital Deferral Account | D50: 1531 | AW50: 0 | AX50: 0 | BB50: 0 | BC50: 0 | BG50: 0 | BH50: 0 | BL50: 0 | BM50: 0 | BQ50: 0 | BR50: 0 | BV50: 0 | BW50: 0 | CD50: 0 | CE50: 0 | CI50: 0 | CJ50: 0 | CQ50: 0 | CR50: 0 | CV50: 0 | CY50: 0 | CZ50: 0 | DA50: 0 | DC50: 0 | DE50: 0
A51: 22 | C51: Renewable Generation Connection OM&A Deferral Account | D51: 1532 | AW51: 0 | AX51: 0 | BB51: 0 | BC51: 0 | BG51: 0 | BH51: 0 | BL51: 0 | BM51: 0 | BQ51: 0 | BR51: 0 | BV51: 0 | BW51: 0 | CD51: 0 | CE51: 0 | CI51: 0 | CJ51: 0 | CQ51: 0 | CR51: 0 | CV51: 0 | CY51: 0 | CZ51: 0 | DA51: 0 | DC51: 0 | DE51: 0
A52: 23 | C52: Renewable Generation Connection Funding Adder Deferral Account | D52: 1533 | AW52: 0 | AX52: 0 | BB52: 0 | BC52: 0 | BG52: 0 | BH52: 0 | BL52: 0 | BM52: 0 | BQ52: 0 | BR52: 0 | BV52: 0 | BW52: 0 | CD52: 0 | CE52: 0 | CI52: 0 | CJ52: 0 | CQ52: 0 | CR52: 0 | CV52: 0 | CY52: 0 | CZ52: 0 | DA52: 0 | DC52: 0 | DE52: 0
A53: 24 | C53: Smart Grid Capital Deferral Account | D53: 1534 | AW53: 0 | AX53: 0 | BB53: 0 | BC53: 0 | BG53: 0 | BH53: 0 | BL53: 0 | BM53: 0 | BQ53: 0 | BR53: 0 | BV53: 0 | BW53: 0 | CD53: 0 | CE53: 0 | CI53: 0 | CJ53: 0 | CQ53: 0 | CR53: 0 | CV53: 0 | CY53: 0 | CZ53: 0 | DA53: 0 | DC53: 0 | DE53: 0
A54: 25 | C54: Smart Grid OM&A Deferral Account | D54: 1535 | AW54: 0 | AX54: 0 | BB54: 0 | BC54: 0 | BG54: 0 | BH54: 0 | BL54: 0 | BM54: 0 | BQ54: 0 | BR54: 0 | BV54: 0 | BW54: 0 | CD54: 0 | CE54: 0 | CI54: 0 | CJ54: 0 | CQ54: 0 | CR54: 0 | CV54: 0 | CY54: 0 | CZ54: 0 | DA54: 0 | DC54: 0 | DE54: 0
A55: 26 | C55: Smart Grid Funding Adder Deferral Account | D55: 1536 | AW55: 0 | AX55: 0 | BB55: 0 | BC55: 0 | BG55: 0 | BH55: 0 | BL55: 0 | BM55: 0 | BQ55: 0 | BR55: 0 | BV55: 0 | BW55: 0 | CD55: 0 | CE55: 0 | CI55: 0 | CJ55: 0 | CQ55: 0 | CR55: 0 | CV55: 0 | CY55: 0 | CZ55: 0 | DA55: 0 | DC55: 0 | DE55: 0
A56: 27 | C56: Retail Cost Variance Account - STR | D56: 1548 | I56: 0 | N56: 0 | O56: =I56 -> 0 | S56: 0 | T56: 0 | X56: 0 | Y56: =S56 -> 0 | AC56: 0 | AD56: =X56 -> 0 | AH56: 0 | AI56: =AC56 -> 0 | AM56: 0 | AN56: =AH56 -> 0 | AR56: 0 | AS56: =AM56 -> 0 | AW56: 0 | AX56: 0 | BB56: 0 | BC56: 0 | BG56: 0 | BH56: 0 | BL56: 0 | BM56: 0 | BQ56: 0 | BR56: 0 | BV56: 0 | BW56: 0 | CD56: 0 | CE56: 0 | CI56: 0 | CJ56: 0 | CQ56: 0 | CR56: 0 | CV56: 0 | CY56: 0 | CZ56: 0 | DA56: 0 | DC56: 0 | DE56: 0
A57: 28 | C57: Board-Approved CDM Variance Account | D57: 1567 | BB57: 0 | BG57: 0 | BH57: 0 | BL57: =BH57+BI57-BJ57+BK57 -> 0 | BM57: 0 | BQ57: 0 | BR57: 0 | BV57: =BR57+BS57-BT57+BU57 -> 0 | BW57: 0 | CD57: =BW57+BX57-BY57+SUM(BZ57:CC57) -> 0 | CE57: =BV57 -> 0 | CI57: =CE57+CF57-CG57+CH57 -> 0 | CJ57: 0 | CQ57: =CJ57+CK57-CL57+SUM(CM57:CP57) -> 0 | CR57: =CI57 -> 0 | CV57: =CR57+CS57-CT57+CU57 -> 0 | CY57: 0 | CZ57: 0 | DA57: 0 | DC57: 0 | DE57: 0
A58: 29 | C58: Extra-Ordinary Event Costs | D58: 1572 | I58: 0 | N58: 0 | O58: 0 | S58: 0 | T58: 0 | X58: 0 | Y58: =S58 -> 0 | AC58: 0 | AD58: =X58 -> 0 | AH58: 0 | AI58: =AC58 -> 0 | AM58: 0 | AN58: =AH58 -> 0 | AR58: 0 | AS58: =AM58 -> 0 | AW58: 0 | AX58: =AR58 -> 0 | BB58: 0 | BC58: =AW58 -> 0 | BG58: 0 | BH58: 0 | BL58: 0 | BM58: =BG58 -> 0 | BQ58: 0 | BR58: 0 | BV58: =BR58+BS58-BT58+BU58 -> 0 | BW58: =BQ58 -> 0 | CD58: =BW58+BX58-BY58+SUM(BZ58:CC58) -> 0 | CE58: =BV58 -> 0 | CI58: =CE58+CF58-CG58+CH58 -> 0 | CJ58: =CD58 -> 0 | CQ58: =CJ58+CK58-CL58+SUM(CM58:CP58) -> 0 | CR58: =CI58 -> 0 | CV58: =CR58+CS58-CT58+CU58 -> 0 | CY58: 0 | CZ58: 0 | DA58: 0 | DC58: 0 | DE58: 0
A59: 30 | C59: Deferred Rate Impact Amounts | D59: 1574 | I59: 0 | N59: 0 | O59: 0 | S59: 0 | T59: 0 | X59: 0 | Y59: =S59 -> 0 | AC59: 0 | AD59: =X59 -> 0 | AH59: 0 | AI59: =AC59 -> 0 | AM59: 0 | AN59: =AH59 -> 0 | AR59: 0 | AS59: =AM59 -> 0 | AW59: 0 | AX59: =AR59 -> 0 | BB59: 0 | BC59: =AW59 -> 0 | BG59: 0 | BH59: 0 | BL59: 0 | BM59: =BG59 -> 0 | BQ59: 0 | BR59: 0 | BV59: =BR59+BS59-BT59+BU59 -> 0 | BW59: =BQ59 -> 0 | CD59: 0 | CE59: 0 | CI59: =CE59+CF59-CG59+CH59 -> 0 | CJ59: =CD59 -> 0 | CQ59: 0 | CR59: 0 | CV59: =CR59+CS59-CT59+CU59 -> 0 | CY59: 0 | CZ59: 0 | DA59: 0 | DC59: 0 | DE59: 0
A60: 31 | C60: RSVA - One-time | D60: 1582 | I60: 0 | N60: 0 | O60: 0 | S60: 0 | T60: 0 | X60: 0 | Y60: =S60 -> 0 | AC60: 0 | AD60: =X60 -> 0 | AH60: 0 | AI60: =AC60 -> 0 | AM60: 0 | AN60: =AH60 -> 0 | AR60: 0 | AS60: 59409.33 | AW60: 59409.33 | AX60: 2191.279954 | AY60: 675.7811287 | BB60: 2867.061082 | BC60: =AW60 -> 59409.33 | BG60: 59409.33 | BH60: 2867.061082 | BI60: 473.7894068 | BL60: 3340.850489 | BM60: =BG60 -> 59409.33 | BQ60: 59409.33 | BR60: 3340.850489 | BS60: 873.317151 | BV60: =BR60+BS60-BT60+BU60 -> 4214.16764 | BW60: =BQ60 -> 59409.33 | BY60: =59409.33 -> 59409.33 | CD60: 0 | CE60: 4214.16764 | CG60: =63623-BY60 -> 4213.67 | CI60: =CE60+CF60-CG60+CH60 -> 0.49764 | CJ60: =CD60 -> 0 | CQ60: 0 | CR60: 0.49764 | CV60: =CR60+CS60-CT60+CU60 -> 0.49764 | CY60: 0 | CZ60: 0.49764 | DA60: 0 | DC60: 0.49764 | DD60: 1 | DE60: 0.50236
A61: 32 | C61: Special Purpose Charge Variance Account - MEI SPC Variance | D61: 1521 | I61: 0 | N61: 0 | O61: 0 | S61: 0 | T61: 0 | X61: 0 | Y61: =S61 -> 0 | AC61: 0 | AD61: =X61 -> 0 | AH61: 0 | AI61: =AC61 -> 0 | AM61: 0 | AN61: =AH61 -> 0 | AR61: 0 | AS61: =AM61 -> 0 | AW61: 0 | AX61: =AR61 -> 0 | BB61: 0 | BC61: =AW61 -> 0 | BD61: 429050 | BF61: -236328.52 | BG61: 192721.48 | BH61: 0 | BI61: 1270.4 | BL61: 1270.4 | BM61: =BG61 -> 192721.48 | BN61: -193735.74 | BQ61: -1014.26 | BR61: 1270.4 | BS61: 678 | BV61: =BR61+BS61-BT61+BU61 -> 1948.4 | BW61: =BQ61 -> -1014.26 | BX61: -2120.19 | CD61: -3134.45 | CE61: 1948.4 | CF61: -25.54182575 | CI61: =CE61+CF61-CG61+CH61 -> 1922.858174 | CJ61: =CD61 -> -3134.45 | CK61: 2.99 | CQ61: -3131.46 | CR61: 1922.858174 | CS61: -46.042164 | CU61: 1.57 | CV61: =CR61+CS61-CT61+CU61 -> 1878.38601 | CY61: -3131.46 | CZ61: 1878.38601 | DA61: -46.032462 | DC61: -1299.106452 | DD61: -1253.07 | DE61: 0.003989750071
C63: Group 2 Sub-Total | E63: =SUM(E41:E61) -> 0 | F63: 0 | G63: 0 | H63: 0 | I63: 0 | J63: 0 | K63: 0 | L63: =SUM(L41:L61) -> 0 | M63: =SUM(M41:M61) -> 0 | N63: =SUM(N41:N61) -> 0 | O63: =SUM(O41:O61) -> 0 | P63: 0 | Q63: 0 | R63: 0 | S63: 0 | T63: 0 | U63: 0 | V63: 0 | W63: 0 | X63: 0 | Y63: =SUM(Y41:Y61) -> 0 | Z63: 0 | AA63: 0 | AB63: 0 | AC63: 0 | AD63: 0 | AE63: 0 | AF63: 0 | AG63: 0 | AH63: 0 | AI63: 0 | AJ63: 0 | AK63: 0 | AL63: 0 | AM63: 0 | AN63: 0 | AO63: 0 | AP63: =SUM(AP41:AP61) -> 0 | AQ63: =SUM(AQ41:AQ61) -> 0 | AR63: 0 | AS63: 85147.3 | AT63: 87368 | AU63: 0 | AV63: 0 | AW63: 172515.3 | AX63: -1228.107002 | AY63: 1015.551129 | AZ63: 0 | BA63: 0 | BB63: -212.5558736 | BC63: =SUM(BC41:BC61) -> 172515.3 | BD63: 535627 | BE63: 0 | BF63: -236328.52 | BG63: 471813.78 | BH63: -212.5558736 | BI63: 3147.059022 | BJ63: 0 | BK63: 0 | BL63: 2934.503148 | BM63: =SUM(BM41:BM61) -> 471813.78 | BN63: -246797.77 | BO63: 0 | BP63: 0 | BQ63: 225016.01 | BR63: 2934.503148 | BS63: 5547.437083 | BT63: 0 | BU63: 0 | BV63: 8481.940231 | BW63: =SUM(BW41:BW61) -> 225016.01 | BX63: 20874.81 | BY63: =SUM(BY41:BY61) -> 252092.33 | BZ63: 0 | CA63: 0 | CB63: 0 | CC63: 0 | CD63: -6201.51 | CE63: 8481.940231 | CF63: 617.4581742 | CG63: 5153.67 | CH63: -2543 | CI63: 1402.728406 | CJ63: =SUM(CJ41:CJ61) -> -6201.51 | CK63: 2.99 | CL63: 0 | CM63: 0 | CN63: 0 | CO63: 0 | CP63: 0 | CQ63: -6198.52 | CR63: 1402.728406 | CS63: -91.042164 | CT63: 0 | CU63: 1.2 | CV63: 1312.886241 | CW63: =SUM(CW41:CW61) -> 0 | CX63: 0 | CY63: -6198.52 | CZ63: =SUM(CZ41:CZ61) -> 1312.886241 | DA63: -91.118244 | DB63: 0 | DC63: -4976.752003 | DD63: =SUM(DD41:DD61) -> -4885.54 | DE63: =DD63-SUM(CQ63,CV63) -> 0.09375850007
A65: 33 | C65: Deferred Payments in Lieu of Taxes | D65: 1562 | I65: =E65+F65-G65+H65 -> 0 | N65: =J65+K65-L65+M65 -> 0 | O65: =I65 -> 0 | S65: =O65+P65-Q65+R65 -> 0 | T65: =N65 -> 0 | X65: =T65+U65-V65+W65 -> 0 | Y65: =S65 -> 0 | AC65: =Y65+Z65-AA65+AB65 -> 0 | AD65: =X65 -> 0 | AH65: =AD65+AE65-AF65+AG65 -> 0 | AI65: =AC65 -> 0 | AM65: =AI65+AJ65-AK65+AL65 -> 0 | AN65: =AH65 -> 0 | AR65: =AN65+AO65-AP65+AQ65 -> 0 | AS65: =AM65 -> 0 | AW65: =AS65+AT65-AU65+AV65 -> 0 | AX65: =AR65 -> 0 | BB65: =AX65+AY65-AZ65+BA65 -> 0 | BC65: =AW65 -> 0 | BG65: =BC65+BD65-BE65+SUM(BF65:BF65) -> 0 | BH65: =BB65 -> 0 | BL65: =BH65+BI65-BJ65+BK65 -> 0 | BM65: =BG65 -> 0 | BN65: 1207581 | BQ65: =BM65+BN65-BO65+SUM(BP65:BP65) -> 1207581 | BR65: =BL65 -> 0 | BV65: =BR65+BS65-BT65+BU65 -> 0 | BW65: =BQ65 -> 1207581 | BY65: =BW65 -> 1207581 | CD65: =BW65+BX65-BY65+SUM(BZ65:CC65) -> 0 | CE65: =BV65 -> 0 | CI65: =CE65+CF65-CG65+CH65 -> 0 | CJ65: =CD65 -> 0 | CQ65: =CJ65+CK65-CL65+SUM(CM65:CP65) -> 0 | CR65: =CI65 -> 0 | CV65: =CR65+CS65-CT65+CU65 -> 0 | CY65: =CQ65-CW65 -> 0 | CZ65: =CV65-CX65 -> 0 | DA65: =CQ65*$DA$23 -> 0 | DC65: 0 | DE65: =DD65-SUM(CQ65,CV65) -> 0
A66: 34 | C66: PILs and Tax Variance for 2006 and Subsequent Years (excludes sub-account and contra account below) | D66: 1592 | I66: =E66+F66-G66+H66 -> 0 | N66: =J66+K66-L66+M66 -> 0 | O66: =I66 -> 0 | S66: =O66+P66-Q66+R66 -> 0 | T66: =N66 -> 0 | X66: =T66+U66-V66+W66 -> 0 | Y66: =S66 -> 0 | AC66: =Y66+Z66-AA66+AB66 -> 0 | AD66: =X66 -> 0 | AH66: =AD66+AE66-AF66+AG66 -> 0 | AI66: =AC66 -> 0 | AM66: =AI66+AJ66-AK66+AL66 -> 0 | AN66: =AH66 -> 0 | AR66: =AN66+AO66-AP66+AQ66 -> 0 | AS66: =AM66 -> 0 | AW66: =AS66+AT66-AU66+AV66 -> 0 | AX66: =AR66 -> 0 | BB66: =AX66+AY66-AZ66+BA66 -> 0 | BC66: =AW66 -> 0 | BG66: =BC66+BD66-BE66+SUM(BF66:BF66) -> 0 | BH66: =BB66 -> 0 | BL66: =BH66+BI66-BJ66+BK66 -> 0 | BM66: =BG66 -> 0 | BQ66: =BM66+BN66-BO66+SUM(BP66:BP66) -> 0 | BR66: =BL66 -> 0 | BV66: =BR66+BS66-BT66+BU66 -> 0 | BW66: =BQ66 -> 0 | CD66: =BW66+BX66-BY66+SUM(BZ66:CC66) -> 0 | CE66: =BV66 -> 0 | CI66: =CE66+CF66-CG66+CH66 -> 0 | CJ66: =CD66 -> 0 | CQ66: =CJ66+CK66-CL66+SUM(CM66:CP66) -> 0 | CR66: =CI66 -> 0 | CV66: =CR66+CS66-CT66+CU66 -> 0 | CY66: 0 | CZ66: =CV66-CX66 -> 0 | DA66: 0 | DC66: 0 | DE66: 0
A67: 35 | C67: PILs and Tax Variance for 2006 and Subsequent Years - Sub-Account HST/OVAT Input Tax Credits (ITCs) | D67: 1592 | I67: =E67+F67-G67+H67 -> 0 | N67: =J67+K67-L67+M67 -> 0 | O67: =I67 -> 0 | S67: =O67+P67-Q67+R67 -> 0 | T67: =N67 -> 0 | X67: =T67+U67-V67+W67 -> 0 | Y67: =S67 -> 0 | AC67: =Y67+Z67-AA67+AB67 -> 0 | AD67: =X67 -> 0 | AH67: =AD67+AE67-AF67+AG67 -> 0 | AI67: =AC67 -> 0 | AM67: =AI67+AJ67-AK67+AL67 -> 0 | AN67: =AH67 -> 0 | AR67: =AN67+AO67-AP67+AQ67 -> 0 | AS67: =AM67 -> 0 | AW67: =AS67+AT67-AU67+AV67 -> 0 | AX67: =AR67 -> 0 | BB67: =AX67+AY67-AZ67+BA67 -> 0 | BC67: =AW67 -> 0 | BG67: =BC67+BD67-BE67+SUM(BF67:BF67) -> 0 | BH67: =BB67 -> 0 | BL67: =BH67+BI67-BJ67+BK67 -> 0 | BM67: =BG67 -> 0 | BQ67: =BM67+BN67-BO67+SUM(BP67:BP67) -> 0 | BR67: =BL67 -> 0 | BV67: =BR67+BS67-BT67+BU67 -> 0 | BW67: =BQ67 -> 0 | CD67: =BW67+BX67-BY67+SUM(BZ67:CC67) -> 0 | CE67: =BV67 -> 0 | CI67: =CE67+CF67-CG67+CH67 -> 0 | CJ67: =CD67 -> 0 | CQ67: =CJ67+CK67-CL67+SUM(CM67:CP67) -> 0 | CR67: =CI67 -> 0 | CV67: =CR67+CS67-CT67+CU67 -> 0 | CY67: 0 | CZ67: 0 | DA67: 0 | DC67: 0 | DE67: 0
C69: Total of Group 1 and Group 2 Accounts (including 1562 and 1592) | E69: =+E63+E36+E65+E66+E67 -> 0 | F69: =+F63+F36+F65+F66+F67 -> 0 | G69: 0 | H69: 0 | I69: 0 | J69: 0 | K69: 0 | L69: 0 | M69: 0 | N69: 0 | O69: 0 | P69: 0 | Q69: 0 | R69: 0 | S69: 0 | T69: 0 | U69: 0 | V69: 0 | W69: 0 | X69: 0 | Y69: 0 | Z69: 0 | AA69: 0 | AB69: 0 | AC69: 0 | AD69: 0 | AE69: 0 | AF69: 0 | AG69: 0 | AH69: 0 | AI69: 0 | AJ69: 0 | AK69: 0 | AL69: 0 | AM69: 0 | AN69: 0 | AO69: 0 | AP69: 0 | AQ69: 0 | AR69: 0 | AS69: -2499947.98 | AT69: 336101.6 | AU69: 0 | AV69: 0 | AW69: =+AW63+AW36+AW65+AW66+AW67 -> -2163846.38 | AX69: 606575.1156 | AY69: -44841.44887 | AZ69: 0 | BA69: 0 | BB69: 561733.6668 | BC69: -2163846.38 | BD69: 69995.5898 | BE69: 0 | BF69: -236328.52 | BG69: -2330179.31 | BH69: 561733.6668 | BI69: -24957.0063 | BJ69: 0.003625183366 | BK69: 0 | BL69: 536776.6568 | BM69: -2330179.31 | BN69: 2478381.58 | BO69: 0 | BP69: 218235.07 | BQ69: =+BQ63+BQ36+BQ65+BQ66+BQ67 -> 366437.3398 | BR69: 536776.6568 | BS69: -41049.7901 | BT69: 0 | BU69: -528799 | BV69: -33072.13325 | BW69: 366437.3398 | BX69: 605889.7683 | BY69: 40874 | BZ69: 0 | CA69: 0 | CB69: =+CB63+CB36+CB65+CB66+CB67 -> 0 | CC69: 0 | CD69: 931453.1081 | CE69: -33072.13325 | CF69: -10348.07387 | CG69: -1.818989404e-12 | CH69: 14441 | CI69: -28979.20712 | CJ69: 931453.1081 | CK69: 2178777.815 | CL69: 0 | CM69: 0 | CN69: 0 | CO69: =+CO63+CO36+CO65+CO66+CO67 -> 0 | CP69: -866428.4412 | CQ69: 2243802.482 | CR69: -28979.20712 | CS69: -2220.113398 | CT69: 0 | CU69: -16669.50836 | CV69: -47868.82888 | CW69: 0 | CX69: 0 | CY69: 2243802.482 | CZ69: -47868.82888 | DA69: 32983.89649 | DB69: 0 | DC69: =+DC63+DC36+DC65+DC66+DC67 -> 2228917.55 | DD69: 2195933.66 | DE69: =DD69-SUM(CQ69,CV69) -> 0.006710354239
A72: 36 | C72: LRAM Variance Account | D72: 1568 | BG72: =BC72+BD72-BE72+SUM(BF72:BF72) -> 0 | BL72: =BH72+BI72-BJ72+BK72 -> 0 | BM72: =BG72 -> 0 | BQ72: =BM72+BN72-BO72+SUM(BP72:BP72) -> 0 | BR72: =BL72 -> 0 | BV72: =BR72+BS72-BT72+BU72 -> 0 | BW72: =BQ72 -> 0 | CD72: =BW72+BX72-BY72+SUM(BZ72:CC72) -> 0 | CE72: =BV72 -> 0 | CI72: =CE72+CF72-CG72+CH72 -> 0 | CJ72: =CD72 -> 0 | CQ72: =CJ72+CK72-CL72+SUM(CM72:CP72) -> 0 | CR72: =CI72 -> 0 | CV72: =CR72+CS72-CT72+CU72 -> 0 | CY72: =CQ72-CW72 -> 0 | CZ72: =CV72-CX72 -> 0 | DA72: =CQ72*$DA$23 -> 0 | DC72: =SUM(CY72:DB72) -> 0 | DE72: =DD72-SUM(CQ72,CV72) -> 0
C75: Total including Account 1568 | E75: =E69+E72 -> 0 | F75: =F69+F72 -> 0 | G75: 0 | H75: 0 | I75: 0 | J75: 0 | K75: 0 | L75: 0 | M75: 0 | N75: 0 | O75: 0 | P75: 0 | Q75: 0 | R75: 0 | S75: 0 | T75: 0 | U75: 0 | V75: 0 | W75: 0 | X75: 0 | Y75: 0 | Z75: 0 | AA75: 0 | AB75: 0 | AC75: 0 | AD75: 0 | AE75: 0 | AF75: 0 | AG75: 0 | AH75: 0 | AI75: 0 | AJ75: 0 | AK75: 0 | AL75: 0 | AM75: 0 | AN75: 0 | AO75: 0 | AP75: 0 | AQ75: 0 | AR75: 0 | AS75: -2499947.98 | AT75: 336101.6 | AU75: 0 | AV75: 0 | AW75: -2163846.38 | AX75: 606575.1156 | AY75: -44841.44887 | AZ75: 0 | BA75: 0 | BB75: 561733.6668 | BC75: -2163846.38 | BD75: 69995.5898 | BE75: 0 | BF75: -236328.52 | BG75: -2330179.31 | BH75: 561733.6668 | BI75: -24957.0063 | BJ75: 0.003625183366 | BK75: 0 | BL75: 536776.6568 | BM75: -2330179.31 | BN75: 2478381.58 | BO75: 0 | BP75: 218235.07 | BQ75: =BQ69+BQ72 -> 366437.3398 | BR75: 536776.6568 | BS75: -41049.7901 | BT75: 0 | BU75: -528799 | BV75: -33072.13325 | BW75: 366437.3398 | BX75: 605889.7683 | BY75: 40874 | BZ75: 0 | CA75: 0 | CB75: 0 | CC75: 0 | CD75: 931453.1081 | CE75: -33072.13325 | CF75: -10348.07387 | CG75: -1.818989404e-12 | CH75: 14441 | CI75: -28979.20712 | CJ75: =CJ69+CJ72 -> 931453.1081 | CK75: 2178777.815 | CL75: 0 | CM75: 0 | CN75: 0 | CO75: 0 | CP75: -866428.4412 | CQ75: 2243802.482 | CR75: -28979.20712 | CS75: -2220.113398 | CT75: 0 | CU75: -16669.50836 | CV75: -47868.82888 | CW75: 0 | CX75: 0 | CY75: 2243802.482 | CZ75: -47868.82888 | DA75: 32983.89649 | DB75: 0 | DC75: 2228917.55 | DD75: 2195933.66 | DE75: =DD75-SUM(CQ75,CV75) -> 0.006710354239
A77: 37 | C77: Smart Meter Capital and Recovery Offset Variance - Sub-Account - Capital10 | D77: 1555 | I77: =E77+F77-G77+H77 -> 0 | N77: =J77+K77-L77+M77 -> 0 | O77: =I77 -> 0 | S77: =O77+P77-Q77+R77 -> 0 | T77: =N77 -> 0 | X77: =T77+U77-V77+W77 -> 0 | Y77: =S77 -> 0 | AC77: =Y77+Z77-AA77+AB77 -> 0 | AD77: =X77 -> 0 | AH77: =AD77+AE77-AF77+AG77 -> 0 | AI77: =AC77 -> 0 | AM77: =AI77+AJ77-AK77+AL77 -> 0 | AN77: =AH77 -> 0 | AR77: =AN77+AO77-AP77+AQ77 -> 0 | AS77: =AM77 -> 0 | AT77: 170290.13 | AW77: =AS77+AT77-AU77+AV77 -> 170290.13 | AX77: 0 | BB77: =AX77+AY77-AZ77+BA77 -> 0 | BC77: =AW77 -> 170290.13 | BD77: 5714430.25 | BG77: =BC77+BD77-BE77+SUM(BF77:BF77) -> 5884720.38 | BH77: =BB77 -> 0 | BL77: =BH77+BI77-BJ77+BK77 -> 0 | BM77: =BG77 -> 5884720.38 | BN77: -2576723 | BQ77: =BM77+BN77-BO77+SUM(BP77:BP77) -> 3307997.38 | BR77: =BL77 -> 0 | BV77: =BR77+BS77-BT77+BU77 -> 0 | BW77: =BQ77 -> 3307997.38 | BX77: -408138 | CD77: =BW77+BX77-BY77+SUM(BZ77:CC77) -> 2899859.38 | CE77: =BV77 -> 0 | CI77: =CE77+CF77-CG77+CH77 -> 0 | CJ77: =CD77 -> 2899859.38 | CK77: -79259 | CQ77: =CJ77+CK77-CL77+SUM(CM77:CP77) -> 2820600.38 | CR77: =CI77 -> 0 | CU77: 0.14 | CV77: =CR77+CS77-CT77+CU77 -> 0.14 | CY77: =CQ77-CW77 -> 2820600.38 | CZ77: =CV77-CX77 -> 0.14 | DA77: =CQ77*$DA$23 -> 41462.82559 | DC77: 2862063.346 | DD77: 1074739.21 | DE77: =DD77-SUM(SUM(CQ77:CQ78),SUM(CV77:CV78)) -> 0.0005421007518
A78: 38 | C78: Smart Meter Capital and Recovery Offset Variance - Sub-Account - Recoveries10 | D78: 1555 | I78: =E78+F78-G78+H78 -> 0 | N78: =J78+K78-L78+M78 -> 0 | O78: =I78 -> 0 | S78: =O78+P78-Q78+R78 -> 0 | T78: =N78 -> 0 | X78: =T78+U78-V78+W78 -> 0 | Y78: =S78 -> 0 | AC78: =Y78+Z78-AA78+AB78 -> 0 | AD78: =X78 -> 0 | AH78: =AD78+AE78-AF78+AG78 -> 0 | AI78: =AC78 -> 0 | AM78: =AI78+AJ78-AK78+AL78 -> 0 | AN78: =AH78 -> 0 | AR78: =AN78+AO78-AP78+AQ78 -> 0 | AS78: -432302.03 | AT78: -415543.78 | AW78: =AS78+AT78-AU78+AV78 -> -847845.81 | AX78: -22921.73832 | AY78: -5711.472218 | BB78: =AX78+AY78-AZ78+BA78 -> -28633.21054 | BC78: =AW78 -> -847845.81 | BD78: -631021.5 | BG78: =BC78+BD78-BE78+SUM(BF78:BF78) -> -1478867.31 | BH78: =BB78 -> -28633.21054 | BI78: -7392 | BL78: =BH78+BI78-BJ78+BK78 -> -36025.21054 | BM78: =BG78 -> -1478867.31 | BN78: 316058 | BQ78: =BM78+BN78-BO78+SUM(BP78:BP78) -> -1162809.31 | BR78: =BL78 -> -36025.21054 | BS78: 36025.21 | BV78: =BR78+BS78-BT78+BU78 -> -0.0005421006426 | BW78: =BQ78 -> -1162809.31 | BX78: -132062 | CD78: =BW78+BX78-BY78+SUM(BZ78:CC78) -> -1294871.31 | CE78: =BV78 -> -0.0005421006426 | CI78: =CE78+CF78-CG78+CH78 -> -0.0005421006426 | CJ78: =CD78 -> -1294871.31 | CK78: -456571 | CQ78: =CJ78+CK78-CL78+SUM(CM78:CP78) -> -1751442.31 | CR78: =CI78 -> -0.0005421006426 | CS78: 5581 | CV78: =CR78+CS78-CT78+CU78 -> 5580.999458 | CY78: -1751442.31 | CZ78: =CV78-CX78 -> 5580.999458 | DA78: -25746.20196 | DC78: -1771607.512
A79: 39 | C79: Smart Meter Charge - Variance Account | D79: 1551 | I79: =E79+F79-G79+H79 -> 0 | N79: =J79+K79-L79+M79 -> 0 | O79: =I79 -> 0 | S79: =O79+P79-Q79+R79 -> 0 | T79: =N79 -> 0 | X79: =T79+U79-V79+W79 -> 0 | Y79: =S79 -> 0 | AC79: =Y79+Z79-AA79+AB79 -> 0 | AD79: =X79 -> 0 | AH79: =AD79+AE79-AF79+AG79 -> 0 | AI79: =AC79 -> 0 | AM79: =AI79+AJ79-AK79+AL79 -> 0 | AN79: =AH79 -> 0 | AR79: =AN79+AO79-AP79+AQ79 -> 0 | AS79: =AM79 -> 0 | AW79: =AS79+AT79-AU79+AV79 -> 0 | AX79: 0 | BB79: =AX79+AY79-AZ79+BA79 -> 0 | BC79: =AW79 -> 0 | BG79: =BC79+BD79-BE79+SUM(BF79:BF79) -> 0 | BH79: =BB79 -> 0 | BL79: =BH79+BI79-BJ79+BK79 -> 0 | BM79: =BG79 -> 0 | BQ79: =BM79+BN79-BO79+SUM(BP79:BP79) -> 0 | BR79: =BL79 -> 0 | BV79: =BR79+BS79-BT79+BU79 -> 0 | BW79: =BQ79 -> 0 | CD79: =BW79+BX79-BY79+SUM(BZ79:CC79) -> 0 | CE79: =BV79 -> 0 | CI79: =CE79+CF79-CG79+CH79 -> 0 | CJ79: =CD79 -> 0 | CK79: 29223.44 | CQ79: =CJ79+CK79-CL79+SUM(CM79:CP79) -> 29223.44 | CR79: =CI79 -> 0 | CS79: 330 | CU79: -0.55 | CV79: =CR79+CS79-CT79+CU79 -> 329.45 | CY79: 29223.44 | CZ79: =CV79-CX79 -> 329.45 | DA79: 429.584568 | DC79: 29982.47457 | DD79: 29552.89 | DE79: =DD79-SUM(CQ79,CV79) -> 0
A80: 40 | C80: Smart Meter OM&A Variance10 | D80: 1556 | I80: =E80+F80-G80+H80 -> 0 | N80: =J80+K80-L80+M80 -> 0 | O80: =I80 -> 0 | S80: =O80+P80-Q80+R80 -> 0 | T80: =N80 -> 0 | X80: =T80+U80-V80+W80 -> 0 | Y80: =S80 -> 0 | AC80: =Y80+Z80-AA80+AB80 -> 0 | AD80: =X80 -> 0 | AH80: =AD80+AE80-AF80+AG80 -> 0 | AI80: =AC80 -> 0 | AM80: =AI80+AJ80-AK80+AL80 -> 0 | AN80: =AH80 -> 0 | AR80: =AN80+AO80-AP80+AQ80 -> 0 | AS80: =AM80 -> 0 | AT80: 33475 | AW80: =AS80+AT80-AU80+AV80 -> 33475 | AX80: 0 | BB80: =AX80+AY80-AZ80+BA80 -> 0 | BC80: =AW80 -> 33475 | BD80: 43439 | BG80: =BC80+BD80-BE80+SUM(BF80:BF80) -> 76914 | BH80: =BB80 -> 0 | BI80: 15 | BL80: =BH80+BI80-BJ80+BK80 -> 15 | BM80: =BG80 -> 76914 | BN80: -76914 | BQ80: =BM80+BN80-BO80+SUM(BP80:BP80) -> 0 | BR80: =BL80 -> 15 | BS80: -15 | BV80: =BR80+BS80-BT80+BU80 -> 0 | BW80: =BQ80 -> 0 | CD80: =BW80+BX80-BY80+SUM(BZ80:CC80) -> 0 | CE80: =BV80 -> 0 | CI80: =CE80+CF80-CG80+CH80 -> 0 | CJ80: =CD80 -> 0 | CQ80: =CJ80+CK80-CL80+SUM(CM80:CP80) -> 0 | CR80: =CI80 -> 0 | CV80: =CR80+CS80-CT80+CU80 -> 0 | CY80: 0 | CZ80: 0 | DA80: 0 | DC80: 0 | DE80: 0
A82: 41 | C82: IFRS-CGAAP Transition PP&E Amounts Balance + Return Component9 | D82: 1575 | BX82: -1013271.25 | CC82: 0 | CD82: =BW82+BX82-BY82+SUM(BZ82:CC82) -> -1013271.25 | CE82: =BV82 -> 0 | CI82: =CE82+CF82-CG82+CH82 -> 0 | CJ82: =CD82 -> -1013271.25 | CK82: 199656 | CP82: 0 | CQ82: =CJ82+CK82-CL82+SUM(CM82:CP82) -> -813615.25 | CR82: =CI82 -> 0 | CV82: =CR82+CS82-CT82+CU82 -> 0 | CY82: -813615.25 | CZ82: =CV82-CX82 -> 0 | DC82: =SUM(CY82:DB82) -> -813615.25 | DD82: -813615.25 | DE82: =DD82-SUM(CQ82,CV82) -> 0
A83: 42 | C83: Accounting Changes Under CGAAP Balance + Return Component9 | D83: 1576 | CC83: 0 | CD83: =BW83+BX83-BY83+SUM(BZ83:CC83) -> 0 | CE83: =BV83 -> 0 | CI83: =CE83+CF83-CG83+CH83 -> 0 | CP83: 0 | CQ83: =CJ83+CK83-CL83+SUM(CM83:CP83) -> 0 | CR83: =CI83 -> 0 | CV83: =CR83+CS83-CT83+CU83 -> 0 | CY83: =CQ83-CW83 -> 0 | CZ83: =CV83-CX83 -> 0 | DC83: =SUM(CY83:DB83) -> 0 | DE83: 0
C85: The following is not included in the total claim but are included on a memo basis:
A86: 43 | C86: Deferred PILs Contra Account 5 | D86: 1563 | I86: =E86+F86-G86+H86 -> 0 | N86: =J86+K86-L86+M86 -> 0 | O86: =I86 -> 0 | S86: =O86+P86-Q86+R86 -> 0 | T86: =N86 -> 0 | X86: =T86+U86-V86+W86 -> 0 | Y86: =S86 -> 0 | AC86: =Y86+Z86-AA86+AB86 -> 0 | AD86: =X86 -> 0 | AH86: =AD86+AE86-AF86+AG86 -> 0 | AI86: =AC86 -> 0 | AM86: =AI86+AJ86-AK86+AL86 -> 0 | AN86: =AH86 -> 0 | AR86: =AN86+AO86-AP86+AQ86 -> 0 | AS86: =AM86 -> 0 | AW86: =AS86+AT86-AU86+AV86 -> 0 | AX86: =AR86 -> 0 | BB86: =AX86+AY86-AZ86+BA86 -> 0 | BC86: =AW86 -> 0 | BG86: =BC86+BD86-BE86+SUM(BF86:BF86) -> 0 | BH86: =BB86 -> 0 | BL86: =BH86+BI86-BJ86+BK86 -> 0 | BM86: =BG86 -> 0 | BQ86: =BM86+BN86-BO86+SUM(BP86:BP86) -> 0 | BR86: =BL86 -> 0 | BV86: =BR86+BS86-BT86+BU86 -> 0 | BW86: =BQ86 -> 0 | CD86: =BW86+BX86-BY86+SUM(BZ86:CC86) -> 0 | CE86: =BV86 -> 0 | CI86: =CE86+CF86-CG86+CH86 -> 0 | CJ86: =CD86 -> 0 | CQ86: =CJ86+CK86-CL86+SUM(CM86:CP86) -> 0 | CR86: =CI86 -> 0 | CV86: =CR86+CS86-CT86+CU86 -> 0 | CY86: =CQ86-CW86 -> 0 | CZ86: =CV86-CX86 -> 0 | DA86: =CQ86*$DA$23 -> 0 | DB86: =DA86/4 -> 0 | DC86: 0 | DE86: =DD86-SUM(CQ86,CV86) -> 0
A87: 44 | C87: PILs and Tax Variance for 2006 and Subsequent Years - Sub-Account HST/OVAT Contra Account | D87: 1592 | I87: =E87+F87-G87+H87 -> 0 | N87: =J87+K87-L87+M87 -> 0 | O87: =I87 -> 0 | S87: =O87+P87-Q87+R87 -> 0 | T87: =N87 -> 0 | X87: =T87+U87-V87+W87 -> 0 | Y87: =S87 -> 0 | AC87: =Y87+Z87-AA87+AB87 -> 0 | AD87: =X87 -> 0 | AH87: =AD87+AE87-AF87+AG87 -> 0 | AI87: =AC87 -> 0 | AM87: =AI87+AJ87-AK87+AL87 -> 0 | AN87: =AH87 -> 0 | AR87: =AN87+AO87-AP87+AQ87 -> 0 | AS87: =AM87 -> 0 | AW87: =AS87+AT87-AU87+AV87 -> 0 | AX87: =AR87 -> 0 | BB87: =AX87+AY87-AZ87+BA87 -> 0 | BC87: =AW87 -> 0 | BG87: =BC87+BD87-BE87+SUM(BF87:BF87) -> 0 | BH87: =BB87 -> 0 | BL87: =BH87+BI87-BJ87+BK87 -> 0 | BM87: =BG87 -> 0 | BN87: -40874 | BQ87: =BM87+BN87-BO87+SUM(BP87:BP87) -> -40874 | BR87: =BL87 -> 0 | BV87: =BR87+BS87-BT87+BU87 -> 0 | BW87: =BQ87 -> -40874 | BY87: =BW87 -> -40874 | CD87: =BW87+BX87-BY87+SUM(BZ87:CC87) -> 0 | CE87: =BV87 -> 0 | CI87: =CE87+CF87-CG87+CH87 -> 0 | CJ87: =CD87 -> 0 | CQ87: =CJ87+CK87-CL87+SUM(CM87:CP87) -> 0 | CR87: =CI87 -> 0 | CV87: =CR87+CS87-CT87+CU87 -> 0 | CY87: =CQ87-CW87 -> 0 | CZ87: =CV87-CX87 -> 0 | DA87: 0 | DB87: 0 | DC87: 0 | DE87: 0
A88: 45 | C88: Disposition and Recovery of Regulatory Balances7 | D88: 1595 | I88: =E88+F88-G88+H88 -> 0 | N88: =J88+K88-L88+M88 -> 0 | O88: =I88 -> 0 | S88: =O88+P88-Q88+R88 -> 0 | T88: =N88 -> 0 | X88: =T88+U88-V88+W88 -> 0 | Y88: =S88 -> 0 | AC88: =Y88+Z88-AA88+AB88 -> 0 | AD88: =X88 -> 0 | AH88: =AD88+AE88-AF88+AG88 -> 0 | AI88: =AC88 -> 0 | AM88: =AI88+AJ88-AK88+AL88 -> 0 | AN88: =AH88 -> 0 | AR88: =AN88+AO88-AP88+AQ88 -> 0 | AS88: =AM88 -> 0 | AW88: =AS88+AT88-AU88+AV88 -> 0 | AX88: =AR88 -> 0 | BB88: =AX88+AY88-AZ88+BA88 -> 0 | BC88: =AW88 -> 0 | BG88: =BC88+BD88-BE88+SUM(BF88:BF88) -> 0 | BH88: =BB88 -> 0 | BL88: =BH88+BI88-BJ88+BK88 -> 0 | BM88: =BG88 -> 0 | BQ88: =BM88+BN88-BO88+SUM(BP88:BP88) -> 0 | BR88: =BL88 -> 0 | BV88: =BR88+BS88-BT88+BU88 -> 0 | BW88: =BQ88 -> 0 | CD88: =BW88+BX88-BY88+SUM(BZ88:CC88) -> 0 | CE88: =BV88 -> 0 | CI88: =CE88+CF88-CG88+CH88 -> 0 | CJ88: =CD88 -> 0 | CP88: =-CP34 -> 866428.4412 | CQ88: =CJ88+CK88-CL88+SUM(CM88:CP88) -> 866428.4412 | CR88: =CI88 -> 0 | CU88: =-CU34 -> 16667.28836 | CV88: =CR88+CS88-CT88+CU88 -> 16667.28836 | CY88: =CQ88-CW88 -> 866428.4412 | CZ88: =CV88-CX88 -> 16667.28836 | DA88: 12736.49809 | DB88: =DA88/4 -> 3184.124521 | DC88: 899016.3522 | DD88: 883084.9 | DE88: =DD88-SUM(CQ88,CV88) -> -10.8295795 | DG88: 2012 Recovery Rider extends until Dec 2015
C91: For all Board-Approved dispositions, please ensure that the disposition amount has the same sign (e.g: debit balances are to have a positive figure and credit balance are to have a negative figure) as per the related Board decision. | BG91: =SUM(BG75:BG88) -> 2152587.76 | BH91: 533100.4562 | BI91: -32334.0063 | BJ91: 0.003625183366 | BK91: 0 | BL91: 500766.4463 | BM91: 2152587.76 | BN91: 99928.58 | BO91: 0 | BP91: 218235.07 | BQ91: =SUM(BQ75:BQ88) -> 2470751.41 | BR91: 500766.4463 | BS91: -5039.580098 | BT91: 0 | BU91: -528799 | BV91: -33072.13379 | BW91: 2470751.41 | BX91: -947581.4817 | BY91: 3.725290298e-09 | BZ91: 0 | CA91: 0 | CB91: 0 | CC91: 0 | CD91: 1523169.928 | CE91: -33072.13379 | CF91: -10348.07387 | CG91: -1.818989404e-12 | CH91: 14441 | CI91: -28979.20766 | CJ91: 1523169.928 | CK91: 1871827.255 | CL91: 0 | CM91: 0 | CN91: 0 | CO91: 0 | CP91: 0 | CQ91: 3394997.183 | CR91: -28979.20766 | CS91: 3690.886602 | CT91: 0 | CU91: -2.63 | CV91: -25290.95106 | CW91: 0 | CX91: 0 | CY91: 3394997.183 | CZ91: -25290.95106 | DA91: 61866.60277 | DB91: 3184.124521 | DC91: =SUM(DC75:DC88) -> 3434756.96 | DD91: =SUM(DD75:DD88) -> 3369695.41 | DE91: -10.82232705 | DG91: <== Total
B92: 1 | C92: Provide supporting statement indicating whether due to denial of costs in 2006 EDR by the Board, 10% transition costs write-off, etc. | BG92: =SUM(BG75:BG83) -> 2152587.76 | BH92: 533100.4562 | BI92: -32334.0063 | BJ92: 0.003625183366 | BK92: 0 | BL92: 500766.4463 | BM92: 2152587.76 | BN92: 140802.58 | BO92: 0 | BP92: 218235.07 | BQ92: =SUM(BQ75:BQ83) -> 2511625.41 | BR92: 500766.4463 | BS92: -5039.580098 | BT92: 0 | BU92: -528799 | BV92: -33072.13379 | BW92: 2511625.41 | BX92: -947581.4817 | BY92: 40874 | BZ92: 0 | CA92: 0 | CB92: 0 | CC92: 0 | CD92: 1523169.928 | CE92: -33072.13379 | CF92: -10348.07387 | CG92: -1.818989404e-12 | CH92: 14441 | CI92: -28979.20766 | CJ92: 1523169.928 | CK92: 1871827.255 | CL92: 0 | CM92: 0 | CN92: 0 | CO92: 0 | CP92: -866428.4412 | CQ92: 2528568.742 | CR92: -28979.20766 | CS92: 3690.886602 | CT92: 0 | CU92: -16669.91836 | CV92: -41958.23942 | CW92: 0 | CX92: 0 | CY92: 2528568.742 | CZ92: -41958.23942 | DA92: 49130.10468 | DB92: 0 | DC92: =SUM(DC75:DC83) -> 2535740.607 | DD92: =SUM(DD75:DD83) -> 2486610.51 | DE92: 0.007252454991 | DG92: <== Recovery Requested
B93: 1A | C93: Adjustments Instructed by the Board include deferral/variance account balances moved to Account 1590 as a result of the 2006 EDR and account 1595 during the 2008 EDR and subsequent years as ordered by the Board.
B94: 2 | C94: Please provide explanations for the nature of the adjustments. If the adjustment relates to previously Board Approved disposed balances, please provide amounts for adjustments and include supporting documentations. | BG94: =BG92-BG91 -> 0 | BH94: 0 | BI94: 0 | BJ94: 0 | BK94: 0 | BL94: 0 | BM94: 0 | BN94: 40874 | BO94: 0 | BP94: 0 | BQ94: 40874 | BR94: 0 | BS94: 0 | BT94: 0 | BU94: 0 | BV94: 0 | BW94: 40874 | BX94: 0 | BY94: 40874 | BZ94: 0 | CA94: 0 | CB94: 0 | CC94: 0 | CD94: 0 | CE94: 0 | CF94: 0 | CG94: 0 | CH94: 0 | CI94: 0 | CJ94: 0 | CK94: 0 | CL94: 0 | CM94: 0 | CN94: 0 | CO94: 0 | CP94: -866428.4412 | CQ94: -866428.4412 | CR94: 0 | CS94: 0 | CT94: 0 | CU94: -16667.28836 | CV94: -16667.28836 | CW94: 0 | CX94: 0 | CY94: -866428.4412 | CZ94: -16667.28836 | DA94: -12736.49809 | DB94: -3184.124521 | DC94: =DC92-DC91 -> -899016.3522 | DD94: =DD92-DD91 -> -883084.9 | DE94: 10.8295795
B95: 3 | C95: For RSVA accounts only, report the net variance to the account during the year. For all other accounts, record the transactions during the year.
B96: 4 | C96: Please describe "other" components of 1508 and add more component lines if necessary.
B97: 5 | C97: 1563 is a contra-account and is not included in the total but is shown on a memo basis. Account 1562 establishes the obligation to the ratepayer.
B98: 6 | C98: If the LDC’s 2013 rate year begins January 1, 2013, the projected interest is recorded from January 1, 2012 to December 31, 2012 on the December 31, 2011 balance adjusted for the disposed balances approved by the Board in the 2012 rate decision. If the LDC’s 2013 rate year begins May 1, 2013 the projected interest is recorded from January 1, 2012 to April 30, 2013 on the December 31, 2011 balance adjusted for the disposed balances approved by the Board in the 2012 rate decision. | AW98: =SUM(AW75:AW88,BB75:BB88) -> -2274826.604 | BG98: =BG91+BL91 -> 2653354.206 | BQ98: =BQ91+BV91 -> 2437679.276 | CD98: =CD91+CI91 -> 1494190.72 | CQ98: =CQ91+CV91 -> 3369706.232
CD99: =1494177-CD98 -> -13.72041364
B101: 7 | C101: Include Account 1595 as part of Group 1 accounts (lines 31, 32, 33 and 34) for review and disposition if the recovery (or refund) period has been completed. If the recovery (or refund) period has not been completed, include the
C102: balances in Account 1595 on a memo basis only (line 85).
B103: 8 | C103: As per the January 6, 2011 Letter from the Board, regarding the implementation of the Ontario Clean Energy Benefit:
C104: "By way of exception... The Board does acticipate that licensed distributors that cannot adapt their invoices as of January 1, 2011 will require a variance account for OCEB purposes... The Board expects that any principal
C105: balances in "Sub account Financial Assistance Payment and Recovery Variance - Ontario Clean Energy Benefit Act" will be addressed through the monthly settlement process with the IESO or the host distributor, as applicable.
B106: 9 | C106: The Board requires that disposition of Account 1575 and Account 1576 shall require the use of separate rate riders. In the "Other Adjustments during Q4 2012" column of the continuity schedule, please enter the amounts to be included in the Account 1575 and 1576 rate rider calculation from the applicable Chapter 2 appendices. For Account 1575, please provide the value in cell F39 from the relevant Chapter 2 Appendix (i.e. 2-EA, 2-EB or 2-EC). For Account 1576, please provide the value in cell F39 from the relevant Chapter 2 Appendix (i.e. 2-ED or 2-EE).
B107: 10 | C107: Deferral accounts related to Smart Meter deployment are not to be recovered/refunded through the Deferral and Variance Account rate rider. For details on how to dispose of balances in Smart Meter accounts see the Board's
C108: Guideline: Smart Meter Disposition and Cost Recovery (G-2011-0001)

Sheet 3. Appendix A
B16: Accounts that produced a variance on the 2014 continuity schedule are listed below. Please provide a detailed explanation for each variance below.
C20: Account Descriptions | D20: Account Number | E20: Variance RRR vs. 2013 Balance (Principal + Interest) | F20: Explanation
C23: Group 1 Accounts
A24: 1 | C24: LV Variance Account | D24: 1550 | E24: =IF(ISERROR(VLOOKUP($A24, '2. 2013 Continuity Schedule'!$A$20:$DE$90, MATCH('3. Appendix A'!$E$20, '2. 2013 Continuity Schedule'!$A$20:$DE$20,0),FALSE)), 0, VLOOKUP($A24, '2. 2013 Continuity Schedule'!$A$20:$DE$90, MATCH('3. Appendix A'!$E$20, '2. 2013 Continuity Schedule'!$A$20:$DE$20,0),FALSE)) -> 0
A25: 2 | C25: RSVA - Wholesale Market Service Charge | D25: 1580 | E25: =IF(ISERROR(VLOOKUP($A25, '2. 2013 Continuity Schedule'!$A$20:$DE$90, MATCH('3. Appendix A'!$E$20, '2. 2013 Continuity Schedule'!$A$20:$DE$20,0),FALSE)), 0, VLOOKUP($A25, '2. 2013 Continuity Schedule'!$A$20:$DE$90, MATCH('3. Appendix A'!$E$20, '2. 2013 Continuity Schedule'!$A$20:$DE$20,0),FALSE)) -> -0.002037824597
A26: 3 | C26: RSVA - Retail Transmission Network Charge | D26: 1584 | E26: =IF(ISERROR(VLOOKUP($A26, '2. 2013 Continuity Schedule'!$A$20:$DE$90, MATCH('3. Appendix A'!$E$20, '2. 2013 Continuity Schedule'!$A$20:$DE$20,0),FALSE)), 0, VLOOKUP($A26, '2. 2013 Continuity Schedule'!$A$20:$DE$90, MATCH('3. Appendix A'!$E$20, '2. 2013 Continuity Schedule'!$A$20:$DE$20,0),FALSE)) -> -0.0004846788943
A27: 4 | C27: RSVA - Retail Transmission Connection Charge | D27: 1586 | E27: =IF(ISERROR(VLOOKUP($A27, '2. 2013 Continuity Schedule'!$A$20:$DE$90, MATCH('3. Appendix A'!$E$20, '2. 2013 Continuity Schedule'!$A$20:$DE$20,0),FALSE)), 0, VLOOKUP($A27, '2. 2013 Continuity Schedule'!$A$20:$DE$90, MATCH('3. Appendix A'!$E$20, '2. 2013 Continuity Schedule'!$A$20:$DE$20,0),FALSE)) -> -0.0007146117277
A28: 5 | C28: RSVA - Power (excluding Global Adjustment) | D28: 1588 | E28: =IF(ISERROR(VLOOKUP($A28, '2. 2013 Continuity Schedule'!$A$20:$DE$90, MATCH('3. Appendix A'!$E$20, '2. 2013 Continuity Schedule'!$A$20:$DE$20,0),FALSE)), 0, VLOOKUP($A28, '2. 2013 Continuity Schedule'!$A$20:$DE$90, MATCH('3. Appendix A'!$E$20, '2. 2013 Continuity Schedule'!$A$20:$DE$20,0),FALSE)) -> -0.08752851887
A29: 6 | C29: RSVA - Global Adjustment | D29: 1589 | E29: =IF(ISERROR(VLOOKUP($A29, '2. 2013 Continuity Schedule'!$A$20:$DE$90, MATCH('3. Appendix A'!$E$20, '2. 2013 Continuity Schedule'!$A$20:$DE$20,0),FALSE)), 0, VLOOKUP($A29, '2. 2013 Continuity Schedule'!$A$20:$DE$90, MATCH('3. Appendix A'!$E$20, '2. 2013 Continuity Schedule'!$A$20:$DE$20,0),FALSE)) -> 0.003717488376
A30: 7 | C30: Recovery of Regulatory Asset Balances | D30: 1590 | E30: =IF(ISERROR(VLOOKUP($A30, '2. 2013 Continuity Schedule'!$A$20:$DE$90, MATCH('3. Appendix A'!$E$20, '2. 2013 Continuity Schedule'!$A$20:$DE$20,0),FALSE)), 0, VLOOKUP($A30, '2. 2013 Continuity Schedule'!$A$20:$DE$90, MATCH('3. Appendix A'!$E$20, '2. 2013 Continuity Schedule'!$A$20:$DE$20,0),FALSE)) -> -9.276845958e-11
A31: 8 | C31: Disposition and Recovery/Refund of Regulatory Balances (2008)7 | D31: 1595 | E31: =IF(ISERROR(VLOOKUP($A31, '2. 2013 Continuity Schedule'!$A$20:$DE$90, MATCH('3. Appendix A'!$E$20, '2. 2013 Continuity Schedule'!$A$20:$DE$20,0),FALSE)), 0, VLOOKUP($A31, '2. 2013 Continuity Schedule'!$A$20:$DE$90, MATCH('3. Appendix A'!$E$20, '2. 2013 Continuity Schedule'!$A$20:$DE$20,0),FALSE)) -> 0
A32: 9 | C32: Disposition and Recovery/Refund of Regulatory Balances (2009)7 | D32: 1595 | E32: =IF(ISERROR(VLOOKUP($A32, '2. 2013 Continuity Schedule'!$A$20:$DE$90, MATCH('3. Appendix A'!$E$20, '2. 2013 Continuity Schedule'!$A$20:$DE$20,0),FALSE)), 0, VLOOKUP($A32, '2. 2013 Continuity Schedule'!$A$20:$DE$90, MATCH('3. Appendix A'!$E$20, '2. 2013 Continuity Schedule'!$A$20:$DE$20,0),FALSE)) -> 0
A33: 10 | C33: Disposition and Recovery/Refund of Regulatory Balances (2010)7 | D33: 1595 | E33: =IF(ISERROR(VLOOKUP($A33, '2. 2013 Continuity Schedule'!$A$20:$DE$90, MATCH('3. Appendix A'!$E$20, '2. 2013 Continuity Schedule'!$A$20:$DE$20,0),FALSE)), 0, VLOOKUP($A33, '2. 2013 Continuity Schedule'!$A$20:$DE$90, MATCH('3. Appendix A'!$E$20, '2. 2013 Continuity Schedule'!$A$20:$DE$20,0),FALSE)) -> 0
A34: 11 | C34: Disposition and Recovery/Refund of Regulatory Balances (2011)7 | D34: 1595 | E34: =IF(ISERROR(VLOOKUP($A34, '2. 2013 Continuity Schedule'!$A$20:$DE$90, MATCH('3. Appendix A'!$E$20, '2. 2013 Continuity Schedule'!$A$20:$DE$20,0),FALSE)), 0, VLOOKUP($A34, '2. 2013 Continuity Schedule'!$A$20:$DE$90, MATCH('3. Appendix A'!$E$20, '2. 2013 Continuity Schedule'!$A$20:$DE$20,0),FALSE)) -> 0
C35: Group 2 Accounts
A36: 12 | C36: Other Regulatory Assets - Sub-Account - Ampco Motion Costs | D36: 1508 | E36: =IF(ISERROR(VLOOKUP($A36, '2. 2013 Continuity Schedule'!$A$20:$DE$90, MATCH('3. Appendix A'!$E$20, '2. 2013 Continuity Schedule'!$A$20:$DE$20,0),FALSE)), 0, VLOOKUP($A36, '2. 2013 Continuity Schedule'!$A$20:$DE$90, MATCH('3. Appendix A'!$E$20, '2. 2013 Continuity Schedule'!$A$20:$DE$20,0),FALSE)) -> -0.41259125
A37: 13 | C37: Other Regulatory Assets - Sub-Account - Acsys Deferred Revenue | D37: 1508 | E37: =IF(ISERROR(VLOOKUP($A37, '2. 2013 Continuity Schedule'!$A$20:$DE$90, MATCH('3. Appendix A'!$E$20, '2. 2013 Continuity Schedule'!$A$20:$DE$20,0),FALSE)), 0, VLOOKUP($A37, '2. 2013 Continuity Schedule'!$A$20:$DE$90, MATCH('3. Appendix A'!$E$20, '2. 2013 Continuity Schedule'!$A$20:$DE$20,0),FALSE)) -> 0
A38: 14 | C38: Other Regulatory Assets - Sub-Account - Deferred IFRS Transition Costs | D38: 1508 | E38: =IF(ISERROR(VLOOKUP($A38, '2. 2013 Continuity Schedule'!$A$20:$DE$90, MATCH('3. Appendix A'!$E$20, '2. 2013 Continuity Schedule'!$A$20:$DE$20,0),FALSE)), 0, VLOOKUP($A38, '2. 2013 Continuity Schedule'!$A$20:$DE$90, MATCH('3. Appendix A'!$E$20, '2. 2013 Continuity Schedule'!$A$20:$DE$20,0),FALSE)) -> 0
A39: 15 | C39: Other Regulatory Assets - Sub-Account - Capital Recovery (2008 Rates Motion) | D39: 1508 | E39: =IF(ISERROR(VLOOKUP($A39, '2. 2013 Continuity Schedule'!$A$20:$DE$90, MATCH('3. Appendix A'!$E$20, '2. 2013 Continuity Schedule'!$A$20:$DE$20,0),FALSE)), 0, VLOOKUP($A39, '2. 2013 Continuity Schedule'!$A$20:$DE$90, MATCH('3. Appendix A'!$E$20, '2. 2013 Continuity Schedule'!$A$20:$DE$20,0),FALSE)) -> 0
A40: 16 | C40: Other Regulatory Assets - Sub-Account - Financial Assistance Payment and Recovery Variance - Ontario Clean Energy Benefit Act8 | D40: 1508 | E40: =IF(ISERROR(VLOOKUP($A40, '2. 2013 Continuity Schedule'!$A$20:$DE$90, MATCH('3. Appendix A'!$E$20, '2. 2013 Continuity Schedule'!$A$20:$DE$20,0),FALSE)), 0, VLOOKUP($A40, '2. 2013 Continuity Schedule'!$A$20:$DE$90, MATCH('3. Appendix A'!$E$20, '2. 2013 Continuity Schedule'!$A$20:$DE$20,0),FALSE)) -> 0
A41: 17 | C41: Other Regulatory Assets - Sub-Account - Financial Assistance Payment and Recovery Carrying Charges | D41: 1508 | E41: =IF(ISERROR(VLOOKUP($A41, '2. 2013 Continuity Schedule'!$A$20:$DE$90, MATCH('3. Appendix A'!$E$20, '2. 2013 Continuity Schedule'!$A$20:$DE$20,0),FALSE)), 0, VLOOKUP($A41, '2. 2013 Continuity Schedule'!$A$20:$DE$90, MATCH('3. Appendix A'!$E$20, '2. 2013 Continuity Schedule'!$A$20:$DE$20,0),FALSE)) -> 0
A42: 18 | C42: Other Regulatory Assets - Sub-Account - Other 4 | D42: 1508 | E42: =IF(ISERROR(VLOOKUP($A42, '2. 2013 Continuity Schedule'!$A$20:$DE$90, MATCH('3. Appendix A'!$E$20, '2. 2013 Continuity Schedule'!$A$20:$DE$20,0),FALSE)), 0, VLOOKUP($A42, '2. 2013 Continuity Schedule'!$A$20:$DE$90, MATCH('3. Appendix A'!$E$20, '2. 2013 Continuity Schedule'!$A$20:$DE$20,0),FALSE)) -> 0
A43: 19 | C43: Retail Cost Variance Account - Retail | D43: 1518 | E43: =IF(ISERROR(VLOOKUP($A43, '2. 2013 Continuity Schedule'!$A$20:$DE$90, MATCH('3. Appendix A'!$E$20, '2. 2013 Continuity Schedule'!$A$20:$DE$20,0),FALSE)), 0, VLOOKUP($A43, '2. 2013 Continuity Schedule'!$A$20:$DE$90, MATCH('3. Appendix A'!$E$20, '2. 2013 Continuity Schedule'!$A$20:$DE$20,0),FALSE)) -> 0
A44: 20 | C44: Misc. Deferred Debits | D44: 1525 | E44: =IF(ISERROR(VLOOKUP($A44, '2. 2013 Continuity Schedule'!$A$20:$DE$90, MATCH('3. Appendix A'!$E$20, '2. 2013 Continuity Schedule'!$A$20:$DE$20,0),FALSE)), 0, VLOOKUP($A44, '2. 2013 Continuity Schedule'!$A$20:$DE$90, MATCH('3. Appendix A'!$E$20, '2. 2013 Continuity Schedule'!$A$20:$DE$20,0),FALSE)) -> 0
A45: 21 | C45: Renewable Generation Connection Capital Deferral Account | D45: 1531 | E45: =IF(ISERROR(VLOOKUP($A45, '2. 2013 Continuity Schedule'!$A$20:$DE$90, MATCH('3. Appendix A'!$E$20, '2. 2013 Continuity Schedule'!$A$20:$DE$20,0),FALSE)), 0, VLOOKUP($A45, '2. 2013 Continuity Schedule'!$A$20:$DE$90, MATCH('3. Appendix A'!$E$20, '2. 2013 Continuity Schedule'!$A$20:$DE$20,0),FALSE)) -> 0
A46: 22 | C46: Renewable Generation Connection OM&A Deferral Account | D46: 1532 | E46: =IF(ISERROR(VLOOKUP($A46, '2. 2013 Continuity Schedule'!$A$20:$DE$90, MATCH('3. Appendix A'!$E$20, '2. 2013 Continuity Schedule'!$A$20:$DE$20,0),FALSE)), 0, VLOOKUP($A46, '2. 2013 Continuity Schedule'!$A$20:$DE$90, MATCH('3. Appendix A'!$E$20, '2. 2013 Continuity Schedule'!$A$20:$DE$20,0),FALSE)) -> 0
A47: 23 | C47: Renewable Generation Connection Funding Adder Deferral Account | D47: 1533 | E47: =IF(ISERROR(VLOOKUP($A47, '2. 2013 Continuity Schedule'!$A$20:$DE$90, MATCH('3. Appendix A'!$E$20, '2. 2013 Continuity Schedule'!$A$20:$DE$20,0),FALSE)), 0, VLOOKUP($A47, '2. 2013 Continuity Schedule'!$A$20:$DE$90, MATCH('3. Appendix A'!$E$20, '2. 2013 Continuity Schedule'!$A$20:$DE$20,0),FALSE)) -> 0
A48: 24 | C48: Smart Grid Capital Deferral Account | D48: 1534 | E48: =IF(ISERROR(VLOOKUP($A48, '2. 2013 Continuity Schedule'!$A$20:$DE$90, MATCH('3. Appendix A'!$E$20, '2. 2013 Continuity Schedule'!$A$20:$DE$20,0),FALSE)), 0, VLOOKUP($A48, '2. 2013 Continuity Schedule'!$A$20:$DE$90, MATCH('3. Appendix A'!$E$20, '2. 2013 Continuity Schedule'!$A$20:$DE$20,0),FALSE)) -> 0
A49: 25 | C49: Smart Grid OM&A Deferral Account | D49: 1535 | E49: =IF(ISERROR(VLOOKUP($A49, '2. 2013 Continuity Schedule'!$A$20:$DE$90, MATCH('3. Appendix A'!$E$20, '2. 2013 Continuity Schedule'!$A$20:$DE$20,0),FALSE)), 0, VLOOKUP($A49, '2. 2013 Continuity Schedule'!$A$20:$DE$90, MATCH('3. Appendix A'!$E$20, '2. 2013 Continuity Schedule'!$A$20:$DE$20,0),FALSE)) -> 0
A50: 26 | C50: Smart Grid Funding Adder Deferral Account | D50: 1536 | E50: =IF(ISERROR(VLOOKUP($A50, '2. 2013 Continuity Schedule'!$A$20:$DE$90, MATCH('3. Appendix A'!$E$20, '2. 2013 Continuity Schedule'!$A$20:$DE$20,0),FALSE)), 0, VLOOKUP($A50, '2. 2013 Continuity Schedule'!$A$20:$DE$90, MATCH('3. Appendix A'!$E$20, '2. 2013 Continuity Schedule'!$A$20:$DE$20,0),FALSE)) -> 0
A51: 27 | C51: Retail Cost Variance Account - STR | D51: 1548 | E51: =IF(ISERROR(VLOOKUP($A51, '2. 2013 Continuity Schedule'!$A$20:$DE$90, MATCH('3. Appendix A'!$E$20, '2. 2013 Continuity Schedule'!$A$20:$DE$20,0),FALSE)), 0, VLOOKUP($A51, '2. 2013 Continuity Schedule'!$A$20:$DE$90, MATCH('3. Appendix A'!$E$20, '2. 2013 Continuity Schedule'!$A$20:$DE$20,0),FALSE)) -> 0
A52: 28 | C52: Board-Approved CDM Variance Account | D52: 1567 | E52: =IF(ISERROR(VLOOKUP($A52, '2. 2013 Continuity Schedule'!$A$20:$DE$90, MATCH('3. Appendix A'!$E$20, '2. 2013 Continuity Schedule'!$A$20:$DE$20,0),FALSE)), 0, VLOOKUP($A52, '2. 2013 Continuity Schedule'!$A$20:$DE$90, MATCH('3. Appendix A'!$E$20, '2. 2013 Continuity Schedule'!$A$20:$DE$20,0),FALSE)) -> 0
A53: 29 | C53: Extra-Ordinary Event Costs | D53: 1572 | E53: =IF(ISERROR(VLOOKUP($A53, '2. 2013 Continuity Schedule'!$A$20:$DE$90, MATCH('3. Appendix A'!$E$20, '2. 2013 Continuity Schedule'!$A$20:$DE$20,0),FALSE)), 0, VLOOKUP($A53, '2. 2013 Continuity Schedule'!$A$20:$DE$90, MATCH('3. Appendix A'!$E$20, '2. 2013 Continuity Schedule'!$A$20:$DE$20,0),FALSE)) -> 0
A54: 30 | C54: Deferred Rate Impact Amounts | D54: 1574 | E54: =IF(ISERROR(VLOOKUP($A54, '2. 2013 Continuity Schedule'!$A$20:$DE$90, MATCH('3. Appendix A'!$E$20, '2. 2013 Continuity Schedule'!$A$20:$DE$20,0),FALSE)), 0, VLOOKUP($A54, '2. 2013 Continuity Schedule'!$A$20:$DE$90, MATCH('3. Appendix A'!$E$20, '2. 2013 Continuity Schedule'!$A$20:$DE$20,0),FALSE)) -> 0
A55: 31 | C55: RSVA - One-time | D55: 1582 | E55: =IF(ISERROR(VLOOKUP($A55, '2. 2013 Continuity Schedule'!$A$20:$DE$90, MATCH('3. Appendix A'!$E$20, '2. 2013 Continuity Schedule'!$A$20:$DE$20,0),FALSE)), 0, VLOOKUP($A55, '2. 2013 Continuity Schedule'!$A$20:$DE$90, MATCH('3. Appendix A'!$E$20, '2. 2013 Continuity Schedule'!$A$20:$DE$20,0),FALSE)) -> 0.50236
A56: 32 | C56: Special Purpose Charge Variance Account - MEI SPC Variance | D56: 1521 | E56: =IF(ISERROR(VLOOKUP($A56, '2. 2013 Continuity Schedule'!$A$20:$DE$90, MATCH('3. Appendix A'!$E$20, '2. 2013 Continuity Schedule'!$A$20:$DE$20,0),FALSE)), 0, VLOOKUP($A56, '2. 2013 Continuity Schedule'!$A$20:$DE$90, MATCH('3. Appendix A'!$E$20, '2. 2013 Continuity Schedule'!$A$20:$DE$20,0),FALSE)) -> 0.003989750071
A57: 33 | C57: Deferred Payments in Lieu of Taxes | D57: 1562 | E57: =IF(ISERROR(VLOOKUP($A57, '2. 2013 Continuity Schedule'!$A$20:$DE$90, MATCH('3. Appendix A'!$E$20, '2. 2013 Continuity Schedule'!$A$20:$DE$20,0),FALSE)), 0, VLOOKUP($A57, '2. 2013 Continuity Schedule'!$A$20:$DE$90, MATCH('3. Appendix A'!$E$20, '2. 2013 Continuity Schedule'!$A$20:$DE$20,0),FALSE)) -> 0
A58: 34 | C58: PILs and Tax Variance for 2006 and Subsequent Years (excludes sub-account and contra account below) | D58: 1592 | E58: =IF(ISERROR(VLOOKUP($A58, '2. 2013 Continuity Schedule'!$A$20:$DE$90, MATCH('3. Appendix A'!$E$20, '2. 2013 Continuity Schedule'!$A$20:$DE$20,0),FALSE)), 0, VLOOKUP($A58, '2. 2013 Continuity Schedule'!$A$20:$DE$90, MATCH('3. Appendix A'!$E$20, '2. 2013 Continuity Schedule'!$A$20:$DE$20,0),FALSE)) -> 0
A59: 35 | C59: PILs and Tax Variance for 2006 and Subsequent Years - Sub-Account HST/OVAT Input Tax Credits (ITCs) | D59: 1592 | E59: =IF(ISERROR(VLOOKUP($A59, '2. 2013 Continuity Schedule'!$A$20:$DE$90, MATCH('3. Appendix A'!$E$20, '2. 2013 Continuity Schedule'!$A$20:$DE$20,0),FALSE)), 0, VLOOKUP($A59, '2. 2013 Continuity Schedule'!$A$20:$DE$90, MATCH('3. Appendix A'!$E$20, '2. 2013 Continuity Schedule'!$A$20:$DE$20,0),FALSE)) -> 0
A60: 36 | C60: LRAM Variance Account | D60: 1568 | E60: =IF(ISERROR(VLOOKUP($A60, '2. 2013 Continuity Schedule'!$A$20:$DE$90, MATCH('3. Appendix A'!$E$20, '2. 2013 Continuity Schedule'!$A$20:$DE$20,0),FALSE)), 0, VLOOKUP($A60, '2. 2013 Continuity Schedule'!$A$20:$DE$90, MATCH('3. Appendix A'!$E$20, '2. 2013 Continuity Schedule'!$A$20:$DE$20,0),FALSE)) -> 0
A61: 37 | C61: Smart Meter Capital and Recovery Offset Variance - Sub-Account - Capital10 | D61: 1555 | E61: =IF(ISERROR(VLOOKUP($A61, '2. 2013 Continuity Schedule'!$A$20:$DE$90, MATCH('3. Appendix A'!$E$20, '2. 2013 Continuity Schedule'!$A$20:$DE$20,0),FALSE)), 0, VLOOKUP($A61, '2. 2013 Continuity Schedule'!$A$20:$DE$90, MATCH('3. Appendix A'!$E$20, '2. 2013 Continuity Schedule'!$A$20:$DE$20,0),FALSE)) -> 0.0005421007518
A62: 38 | C62: Smart Meter Capital and Recovery Offset Variance - Sub-Account - Recoveries10 | D62: 1555 | E62: =IF(ISERROR(VLOOKUP($A62, '2. 2013 Continuity Schedule'!$A$20:$DE$90, MATCH('3. Appendix A'!$E$20, '2. 2013 Continuity Schedule'!$A$20:$DE$20,0),FALSE)), 0, VLOOKUP($A62, '2. 2013 Continuity Schedule'!$A$20:$DE$90, MATCH('3. Appendix A'!$E$20, '2. 2013 Continuity Schedule'!$A$20:$DE$20,0),FALSE)) -> 0
A63: 39 | C63: Smart Meter Charge - Variance Account | D63: 1551 | E63: =IF(ISERROR(VLOOKUP($A63, '2. 2013 Continuity Schedule'!$A$20:$DE$90, MATCH('3. Appendix A'!$E$20, '2. 2013 Continuity Schedule'!$A$20:$DE$20,0),FALSE)), 0, VLOOKUP($A63, '2. 2013 Continuity Schedule'!$A$20:$DE$90, MATCH('3. Appendix A'!$E$20, '2. 2013 Continuity Schedule'!$A$20:$DE$20,0),FALSE)) -> 0
A64: 40 | C64: Smart Meter OM&A Variance10 | D64: 1556 | E64: =IF(ISERROR(VLOOKUP($A64, '2. 2013 Continuity Schedule'!$A$20:$DE$90, MATCH('3. Appendix A'!$E$20, '2. 2013 Continuity Schedule'!$A$20:$DE$20,0),FALSE)), 0, VLOOKUP($A64, '2. 2013 Continuity Schedule'!$A$20:$DE$90, MATCH('3. Appendix A'!$E$20, '2. 2013 Continuity Schedule'!$A$20:$DE$20,0),FALSE)) -> 0
A65: 41 | C65: IFRS-CGAAP Transition PP&E Amounts Balance + Return Component9 | D65: 1575 | E65: =IF(ISERROR(VLOOKUP($A65, '2. 2013 Continuity Schedule'!$A$20:$DE$90, MATCH('3. Appendix A'!$E$20, '2. 2013 Continuity Schedule'!$A$20:$DE$20,0),FALSE)), 0, VLOOKUP($A65, '2. 2013 Continuity Schedule'!$A$20:$DE$90, MATCH('3. Appendix A'!$E$20, '2. 2013 Continuity Schedule'!$A$20:$DE$20,0),FALSE)) -> 0
A66: 42 | C66: Accounting Changes Under CGAAP Balance + Return Component9 | D66: 1576 | E66: =IF(ISERROR(VLOOKUP($A66, '2. 2013 Continuity Schedule'!$A$20:$DE$90, MATCH('3. Appendix A'!$E$20, '2. 2013 Continuity Schedule'!$A$20:$DE$20,0),FALSE)), 0, VLOOKUP($A66, '2. 2013 Continuity Schedule'!$A$20:$DE$90, MATCH('3. Appendix A'!$E$20, '2. 2013 Continuity Schedule'!$A$20:$DE$20,0),FALSE)) -> 0
A67: 43 | C67: Deferred PILs Contra Account 5 | D67: 1563 | E67: =IF(ISERROR(VLOOKUP($A67, '2. 2013 Continuity Schedule'!$A$20:$DE$90, MATCH('3. Appendix A'!$E$20, '2. 2013 Continuity Schedule'!$A$20:$DE$20,0),FALSE)), 0, VLOOKUP($A67, '2. 2013 Continuity Schedule'!$A$20:$DE$90, MATCH('3. Appendix A'!$E$20, '2. 2013 Continuity Schedule'!$A$20:$DE$20,0),FALSE)) -> 0
A68: 44 | C68: PILs and Tax Variance for 2006 and Subsequent Years - Sub-Account HST/OVAT Contra Account | D68: 1592 | E68: =IF(ISERROR(VLOOKUP($A68, '2. 2013 Continuity Schedule'!$A$20:$DE$90, MATCH('3. Appendix A'!$E$20, '2. 2013 Continuity Schedule'!$A$20:$DE$20,0),FALSE)), 0, VLOOKUP($A68, '2. 2013 Continuity Schedule'!$A$20:$DE$90, MATCH('3. Appendix A'!$E$20, '2. 2013 Continuity Schedule'!$A$20:$DE$20,0),FALSE)) -> 0
A69: 45 | C69: Disposition and Recovery of Regulatory Balances7 | D69: 1595 | E69: =IF(ISERROR(VLOOKUP($A69, '2. 2013 Continuity Schedule'!$A$20:$DE$90, MATCH('3. Appendix A'!$E$20, '2. 2013 Continuity Schedule'!$A$20:$DE$20,0),FALSE)), 0, VLOOKUP($A69, '2. 2013 Continuity Schedule'!$A$20:$DE$90, MATCH('3. Appendix A'!$E$20, '2. 2013 Continuity Schedule'!$A$20:$DE$20,0),FALSE)) -> -10.8295795
E76: =SUM(E23:E69) -> -10.82232705
C77: check | E77: =SUM('2. 2013 Continuity Schedule'!DE24:DE34,'2. 2013 Continuity Schedule'!DE41:DE61,'2. 2013 Continuity Schedule'!DE65:DE67,'2. 2013 Continuity Schedule'!DE72,'2. 2013 Continuity Schedule'!DE77:DE83,'2. 2013 Continuity Schedule'!DE86:DE88) -> -10.82232705

Sheet 4. Billing Determinants
B16: In the green shaded cells, enter the most recent Board Approved volumetric forecast. If there is a material difference between the latest Board-approved volumetric forecast and the most recent 12-month actual volumetric data, use the most recent 12-month actual data. Do not enter data for the MicroFit class.
B19: Rate Class (Enter Rate Classes in cells below) | C19: Units | D19: # of Customers | E19: Metered kWh | F19: Metered kW | G19: Billed kWh for Non-RPP Customers | H19: Estimated kW for Non-RPP Customers | I19: Distribution Revenue 1 | J19: 1590 Recovery Share Proportion | K19: 1595 Recovery Share Proportion (2008) 2 | L19: 1595 Recovery Share Proportion (2009) 2 | M19: 1595 Recovery Share Proportion (2012) 2 | N19: 1568 LRAM Variance Account Class Allocation ($ amounts)
B21: Residential | C21: kWh | D21: 49553.83333 | E21: 477226162.9 | G21: 44766974 | H21: =IF(ISERROR(F21/E21*G21), 0, F21/E21*G21) -> 0 | I21: 10532839.67 | M21: 0.803271714
B22: GS < 50 kW | C22: kWh | D22: 3910.5 | E22: 132507210.2 | G22: 22215524 | H22: =IF(ISERROR(F22/E22*G22), 0, F22/E22*G22) -> 0 | I22: 2554047.832 | M22: 0.1482009858
B23: GS 50 to 999 kW (I1 & I4) | C23: kW | D23: 499 | E23: 338496590.1 | F23: =409183+433977 -> 843160 | G23: =37137818+35860719 -> 72998537 | H23: 181831.8065 | I23: 3307940.311 | M23: 0.02585403457
B24: GS 1,000 to 4,999 kW (I2) | C24: kW | D24: 11 | E24: 79498674.9 | F24: 184241 | G24: 3599231 | H24: 8341.345557 | I24: 619787.261 | M24: -0.01580741006
B25: Large Use (I3) | C25: kW | D25: 1 | E25: 42498590.76 | F25: 92753 | G25: 42326219 | H25: 92376.79934 | I25: 281282.2569 | M25: -0.006865494662
B26: Street Lighting | C26: kW | D26: =12328-22 -> 12306 | E26: =9119271.2225715-37875 -> 9081396.223 | F26: 25261 | G26: 8394 | H26: 23.34892442 | I26: 616216.7259 | M26: 0.04331091161
B27: USL | C27: kWh | D27: 295 | E27: 2794202.215 | G27: 13908 | H27: 0 | I27: 11579.28255 | M27: 0.001927754961
B28: Sentinel Lights | C28: kW | D28: 22 | E28: =0.0035%*1082140702 -> 37874.92457 | F28: 115 | G28: 0 | H28: 0 | I28: 63.07 | M28: 0.000107503778
H29: 0
H30: 0
H31: 0
H32: 0
H33: 0
H34: 0
H35: 0
H36: 0
H37: 0
H38: 0
H39: 0
H40: 0
B41: Total | D41: =SUM(D21:D40) -> 66598.33333 | E41: =SUM(E21:E40) -> 1082140702 | F41: =SUM(F21:F40) -> 1145530 | G41: 185928787 | H41: 282573.3003 | I41: =SUM(I21:I40) -> 17923756.41 | J41: 0 | K41: 0 | L41: 0 | M41: 1 | N41: 0
M42: Balance as per Sheet 2 | N42: ='2. 2013 Continuity Schedule'!DC72 -> 0
M43: Variance | N43: =N41-N42 -> 0
A45: 1 For Account 1562, the allocation to customer classes should be performed on the basis of the test year distribution revenue allocation to customer classes found in the Applicant’s Cost of Service application that was most recently approved at the time of disposition of the 1562 account balances
A47: 2 Residual Account balance to be allocated to rate classes in proportion to the recovery share as established when rate riders were implemented.

Sheet 5. Allocation of Balances
D4: Amounts from Sheet 2 | E4: Allocator | F4: =IF(LEN(TRIM('4. Billing Determinants'!$B21))=0, "", '4. Billing Determinants'!$B21) -> Residential | G4: =IF(LEN(TRIM('4. Billing Determinants'!$B22))=0, "", '4. Billing Determinants'!$B22) -> GS < 50 kW | H4: =IF(LEN(TRIM('4. Billing Determinants'!$B23))=0, "", '4. Billing Determinants'!$B23) -> GS 50 to 999 kW (I1 & I4) | I4: =IF(LEN(TRIM('4. Billing Determinants'!$B24))=0, "", '4. Billing Determinants'!$B24) -> GS 1,000 to 4,999 kW (I2) | J4: =IF(LEN(TRIM('4. Billing Determinants'!$B25))=0, "", '4. Billing Determinants'!$B25) -> Large Use (I3) | K4: =IF(LEN(TRIM('4. Billing Determinants'!$B26))=0, "", '4. Billing Determinants'!$B26) -> Street Lighting | L4: =IF(LEN(TRIM('4. Billing Determinants'!$B27))=0, "", '4. Billing Determinants'!$B27) -> USL | M4: =IF(LEN(TRIM('4. Billing Determinants'!$B28))=0, "", '4. Billing Determinants'!$B28) -> Sentinel Lights | N4: =IF(LEN(TRIM('4. Billing Determinants'!$B29))=0, "", '4. Billing Determinants'!$B29) ->  | O4: =IF(LEN(TRIM('4. Billing Determinants'!$B30))=0, "", '4. Billing Determinants'!$B30) ->  | P4: =IF(LEN(TRIM('4. Billing Determinants'!$B31))=0, "", '4. Billing Determinants'!$B31) ->  | Q4: =IF(LEN(TRIM('4. Billing Determinants'!$B32))=0, "", '4. Billing Determinants'!$B32) ->  | R4: =IF(LEN(TRIM('4. Billing Determinants'!$B33))=0, "", '4. Billing Determinants'!$B33) ->  | S4: =IF(LEN(TRIM('4. Billing Determinants'!$B34))=0, "", '4. Billing Determinants'!$B34) ->  | T4: =IF(LEN(TRIM('4. Billing Determinants'!$B35))=0, "", '4. Billing Determinants'!$B35) ->  | U4: =IF(LEN(TRIM('4. Billing Determinants'!$B36))=0, "", '4. Billing Determinants'!$B36) ->  | V4: =IF(LEN(TRIM('4. Billing Determinants'!$B37))=0, "", '4. Billing Determinants'!$B37) ->  | W4: =IF(LEN(TRIM('4. Billing Determinants'!$B38))=0, "", '4. Billing Determinants'!$B38) ->  | X4: =IF(LEN(TRIM('4. Billing Determinants'!$B39))=0, "", '4. Billing Determinants'!$B39) ->  | Y4: =IF(LEN(TRIM('4. Billing Determinants'!$B40))=0, "", '4. Billing Determinants'!$B40) -> 
B5: LV Variance Account | C5: 1550 | D5: ='2. 2013 Continuity Schedule'!DC24 -> 0 | E5: kWh | F5: =IF(F$4="",0,IF($E5="kWh",VLOOKUP(F$4,'4. Billing Determinants'!$B$19:$N$41,4,0)/'4. Billing Determinants'!$E$41*$D5,IF($E5="kW",VLOOKUP(F$4,'4. Billing Determinants'!$B$19:$N$41,5,0)/'4. Billing Determinants'!$F$41*$D5,IF($E5="Non-RPP kWh",VLOOKUP(F$4,'4. Billing Determinants'!$B$19:$N$41,6,0)/'4. Billing Determinants'!$G$41*$D5,IF($E5="Distribution Rev.",VLOOKUP(F$4,'4. Billing Determinants'!$B$19:$N$41,8,0)/'4. Billing Determinants'!$I$41*$D5, VLOOKUP(F$4,'4. Billing Determinants'!$B$19:$N$41,3,0)/'4. Billing Determinants'!$D$41*$D5))))) -> 0 | G5: =IF(G$4="",0,IF($E5="kWh",VLOOKUP(G$4,'4. Billing Determinants'!$B$19:$N$41,4,0)/'4. Billing Determinants'!$E$41*$D5,IF($E5="kW",VLOOKUP(G$4,'4. Billing Determinants'!$B$19:$N$41,5,0)/'4. Billing Determinants'!$F$41*$D5,IF($E5="Non-RPP kWh",VLOOKUP(G$4,'4. Billing Determinants'!$B$19:$N$41,6,0)/'4. Billing Determinants'!$G$41*$D5,IF($E5="Distribution Rev.",VLOOKUP(G$4,'4. Billing Determinants'!$B$19:$N$41,8,0)/'4. Billing Determinants'!$I$41*$D5, VLOOKUP(G$4,'4. Billing Determinants'!$B$19:$N$41,3,0)/'4. Billing Determinants'!$D$41*$D5))))) -> 0 | H5: =IF(H$4="",0,IF($E5="kWh",VLOOKUP(H$4,'4. Billing Determinants'!$B$19:$N$41,4,0)/'4. Billing Determinants'!$E$41*$D5,IF($E5="kW",VLOOKUP(H$4,'4. Billing Determinants'!$B$19:$N$41,5,0)/'4. Billing Determinants'!$F$41*$D5,IF($E5="Non-RPP kWh",VLOOKUP(H$4,'4. Billing Determinants'!$B$19:$N$41,6,0)/'4. Billing Determinants'!$G$41*$D5,IF($E5="Distribution Rev.",VLOOKUP(H$4,'4. Billing Determinants'!$B$19:$N$41,8,0)/'4. Billing Determinants'!$I$41*$D5, VLOOKUP(H$4,'4. Billing Determinants'!$B$19:$N$41,3,0)/'4. Billing Determinants'!$D$41*$D5))))) -> 0 | I5: =IF(I$4="",0,IF($E5="kWh",VLOOKUP(I$4,'4. Billing Determinants'!$B$19:$N$41,4,0)/'4. Billing Determinants'!$E$41*$D5,IF($E5="kW",VLOOKUP(I$4,'4. Billing Determinants'!$B$19:$N$41,5,0)/'4. Billing Determinants'!$F$41*$D5,IF($E5="Non-RPP kWh",VLOOKUP(I$4,'4. Billing Determinants'!$B$19:$N$41,6,0)/'4. Billing Determinants'!$G$41*$D5,IF($E5="Distribution Rev.",VLOOKUP(I$4,'4. Billing Determinants'!$B$19:$N$41,8,0)/'4. Billing Determinants'!$I$41*$D5, VLOOKUP(I$4,'4. Billing Determinants'!$B$19:$N$41,3,0)/'4. Billing Determinants'!$D$41*$D5))))) -> 0 | J5: =IF(J$4="",0,IF($E5="kWh",VLOOKUP(J$4,'4. Billing Determinants'!$B$19:$N$41,4,0)/'4. Billing Determinants'!$E$41*$D5,IF($E5="kW",VLOOKUP(J$4,'4. Billing Determinants'!$B$19:$N$41,5,0)/'4. Billing Determinants'!$F$41*$D5,IF($E5="Non-RPP kWh",VLOOKUP(J$4,'4. Billing Determinants'!$B$19:$N$41,6,0)/'4. Billing Determinants'!$G$41*$D5,IF($E5="Distribution Rev.",VLOOKUP(J$4,'4. Billing Determinants'!$B$19:$N$41,8,0)/'4. Billing Determinants'!$I$41*$D5, VLOOKUP(J$4,'4. Billing Determinants'!$B$19:$N$41,3,0)/'4. Billing Determinants'!$D$41*$D5))))) -> 0 | K5: =IF(K$4="",0,IF($E5="kWh",VLOOKUP(K$4,'4. Billing Determinants'!$B$19:$N$41,4,0)/'4. Billing Determinants'!$E$41*$D5,IF($E5="kW",VLOOKUP(K$4,'4. Billing Determinants'!$B$19:$N$41,5,0)/'4. Billing Determinants'!$F$41*$D5,IF($E5="Non-RPP kWh",VLOOKUP(K$4,'4. Billing Determinants'!$B$19:$N$41,6,0)/'4. Billing Determinants'!$G$41*$D5,IF($E5="Distribution Rev.",VLOOKUP(K$4,'4. Billing Determinants'!$B$19:$N$41,8,0)/'4. Billing Determinants'!$I$41*$D5, VLOOKUP(K$4,'4. Billing Determinants'!$B$19:$N$41,3,0)/'4. Billing Determinants'!$D$41*$D5))))) -> 0 | L5: =IF(L$4="",0,IF($E5="kWh",VLOOKUP(L$4,'4. Billing Determinants'!$B$19:$N$41,4,0)/'4. Billing Determinants'!$E$41*$D5,IF($E5="kW",VLOOKUP(L$4,'4. Billing Determinants'!$B$19:$N$41,5,0)/'4. Billing Determinants'!$F$41*$D5,IF($E5="Non-RPP kWh",VLOOKUP(L$4,'4. Billing Determinants'!$B$19:$N$41,6,0)/'4. Billing Determinants'!$G$41*$D5,IF($E5="Distribution Rev.",VLOOKUP(L$4,'4. Billing Determinants'!$B$19:$N$41,8,0)/'4. Billing Determinants'!$I$41*$D5, VLOOKUP(L$4,'4. Billing Determinants'!$B$19:$N$41,3,0)/'4. Billing Determinants'!$D$41*$D5))))) -> 0 | M5: =IF(M$4="",0,IF($E5="kWh",VLOOKUP(M$4,'4. Billing Determinants'!$B$19:$N$41,4,0)/'4. Billing Determinants'!$E$41*$D5,IF($E5="kW",VLOOKUP(M$4,'4. Billing Determinants'!$B$19:$N$41,5,0)/'4. Billing Determinants'!$F$41*$D5,IF($E5="Non-RPP kWh",VLOOKUP(M$4,'4. Billing Determinants'!$B$19:$N$41,6,0)/'4. Billing Determinants'!$G$41*$D5,IF($E5="Distribution Rev.",VLOOKUP(M$4,'4. Billing Determinants'!$B$19:$N$41,8,0)/'4. Billing Determinants'!$I$41*$D5, VLOOKUP(M$4,'4. Billing Determinants'!$B$19:$N$41,3,0)/'4. Billing Determinants'!$D$41*$D5))))) -> 0 | N5: =IF(N$4="",0,IF($E5="kWh",VLOOKUP(N$4,'4. Billing Determinants'!$B$19:$N$41,4,0)/'4. Billing Determinants'!$E$41*$D5,IF($E5="kW",VLOOKUP(N$4,'4. Billing Determinants'!$B$19:$N$41,5,0)/'4. Billing Determinants'!$F$41*$D5,IF($E5="Non-RPP kWh",VLOOKUP(N$4,'4. Billing Determinants'!$B$19:$N$41,6,0)/'4. Billing Determinants'!$G$41*$D5,IF($E5="Distribution Rev.",VLOOKUP(N$4,'4. Billing Determinants'!$B$19:$N$41,8,0)/'4. Billing Determinants'!$I$41*$D5, VLOOKUP(N$4,'4. Billing Determinants'!$B$19:$N$41,3,0)/'4. Billing Determinants'!$D$41*$D5))))) -> 0 | O5: =IF(O$4="",0,IF($E5="kWh",VLOOKUP(O$4,'4. Billing Determinants'!$B$19:$N$41,4,0)/'4. Billing Determinants'!$E$41*$D5,IF($E5="kW",VLOOKUP(O$4,'4. Billing Determinants'!$B$19:$N$41,5,0)/'4. Billing Determinants'!$F$41*$D5,IF($E5="Non-RPP kWh",VLOOKUP(O$4,'4. Billing Determinants'!$B$19:$N$41,6,0)/'4. Billing Determinants'!$G$41*$D5,IF($E5="Distribution Rev.",VLOOKUP(O$4,'4. Billing Determinants'!$B$19:$N$41,8,0)/'4. Billing Determinants'!$I$41*$D5, VLOOKUP(O$4,'4. Billing Determinants'!$B$19:$N$41,3,0)/'4. Billing Determinants'!$D$41*$D5))))) -> 0 | P5: =IF(P$4="",0,IF($E5="kWh",VLOOKUP(P$4,'4. Billing Determinants'!$B$19:$N$41,4,0)/'4. Billing Determinants'!$E$41*$D5,IF($E5="kW",VLOOKUP(P$4,'4. Billing Determinants'!$B$19:$N$41,5,0)/'4. Billing Determinants'!$F$41*$D5,IF($E5="Non-RPP kWh",VLOOKUP(P$4,'4. Billing Determinants'!$B$19:$N$41,6,0)/'4. Billing Determinants'!$G$41*$D5,IF($E5="Distribution Rev.",VLOOKUP(P$4,'4. Billing Determinants'!$B$19:$N$41,8,0)/'4. Billing Determinants'!$I$41*$D5, VLOOKUP(P$4,'4. Billing Determinants'!$B$19:$N$41,3,0)/'4. Billing Determinants'!$D$41*$D5))))) -> 0 | Q5: =IF(Q$4="",0,IF($E5="kWh",VLOOKUP(Q$4,'4. Billing Determinants'!$B$19:$N$41,4,0)/'4. Billing Determinants'!$E$41*$D5,IF($E5="kW",VLOOKUP(Q$4,'4. Billing Determinants'!$B$19:$N$41,5,0)/'4. Billing Determinants'!$F$41*$D5,IF($E5="Non-RPP kWh",VLOOKUP(Q$4,'4. Billing Determinants'!$B$19:$N$41,6,0)/'4. Billing Determinants'!$G$41*$D5,IF($E5="Distribution Rev.",VLOOKUP(Q$4,'4. Billing Determinants'!$B$19:$N$41,8,0)/'4. Billing Determinants'!$I$41*$D5, VLOOKUP(Q$4,'4. Billing Determinants'!$B$19:$N$41,3,0)/'4. Billing Determinants'!$D$41*$D5))))) -> 0 | R5: =IF(R$4="",0,IF($E5="kWh",VLOOKUP(R$4,'4. Billing Determinants'!$B$19:$N$41,4,0)/'4. Billing Determinants'!$E$41*$D5,IF($E5="kW",VLOOKUP(R$4,'4. Billing Determinants'!$B$19:$N$41,5,0)/'4. Billing Determinants'!$F$41*$D5,IF($E5="Non-RPP kWh",VLOOKUP(R$4,'4. Billing Determinants'!$B$19:$N$41,6,0)/'4. Billing Determinants'!$G$41*$D5,IF($E5="Distribution Rev.",VLOOKUP(R$4,'4. Billing Determinants'!$B$19:$N$41,8,0)/'4. Billing Determinants'!$I$41*$D5, VLOOKUP(R$4,'4. Billing Determinants'!$B$19:$N$41,3,0)/'4. Billing Determinants'!$D$41*$D5))))) -> 0 | S5: =IF(S$4="",0,IF($E5="kWh",VLOOKUP(S$4,'4. Billing Determinants'!$B$19:$N$41,4,0)/'4. Billing Determinants'!$E$41*$D5,IF($E5="kW",VLOOKUP(S$4,'4. Billing Determinants'!$B$19:$N$41,5,0)/'4. Billing Determinants'!$F$41*$D5,IF($E5="Non-RPP kWh",VLOOKUP(S$4,'4. Billing Determinants'!$B$19:$N$41,6,0)/'4. Billing Determinants'!$G$41*$D5,IF($E5="Distribution Rev.",VLOOKUP(S$4,'4. Billing Determinants'!$B$19:$N$41,8,0)/'4. Billing Determinants'!$I$41*$D5, VLOOKUP(S$4,'4. Billing Determinants'!$B$19:$N$41,3,0)/'4. Billing Determinants'!$D$41*$D5))))) -> 0 | T5: =IF(T$4="",0,IF($E5="kWh",VLOOKUP(T$4,'4. Billing Determinants'!$B$19:$N$41,4,0)/'4. Billing Determinants'!$E$41*$D5,IF($E5="kW",VLOOKUP(T$4,'4. Billing Determinants'!$B$19:$N$41,5,0)/'4. Billing Determinants'!$F$41*$D5,IF($E5="Non-RPP kWh",VLOOKUP(T$4,'4. Billing Determinants'!$B$19:$N$41,6,0)/'4. Billing Determinants'!$G$41*$D5,IF($E5="Distribution Rev.",VLOOKUP(T$4,'4. Billing Determinants'!$B$19:$N$41,8,0)/'4. Billing Determinants'!$I$41*$D5, VLOOKUP(T$4,'4. Billing Determinants'!$B$19:$N$41,3,0)/'4. Billing Determinants'!$D$41*$D5))))) -> 0 | U5: =IF(U$4="",0,IF($E5="kWh",VLOOKUP(U$4,'4. Billing Determinants'!$B$19:$N$41,4,0)/'4. Billing Determinants'!$E$41*$D5,IF($E5="kW",VLOOKUP(U$4,'4. Billing Determinants'!$B$19:$N$41,5,0)/'4. Billing Determinants'!$F$41*$D5,IF($E5="Non-RPP kWh",VLOOKUP(U$4,'4. Billing Determinants'!$B$19:$N$41,6,0)/'4. Billing Determinants'!$G$41*$D5,IF($E5="Distribution Rev.",VLOOKUP(U$4,'4. Billing Determinants'!$B$19:$N$41,8,0)/'4. Billing Determinants'!$I$41*$D5, VLOOKUP(U$4,'4. Billing Determinants'!$B$19:$N$41,3,0)/'4. Billing Determinants'!$D$41*$D5))))) -> 0 | V5: =IF(V$4="",0,IF($E5="kWh",VLOOKUP(V$4,'4. Billing Determinants'!$B$19:$N$41,4,0)/'4. Billing Determinants'!$E$41*$D5,IF($E5="kW",VLOOKUP(V$4,'4. Billing Determinants'!$B$19:$N$41,5,0)/'4. Billing Determinants'!$F$41*$D5,IF($E5="Non-RPP kWh",VLOOKUP(V$4,'4. Billing Determinants'!$B$19:$N$41,6,0)/'4. Billing Determinants'!$G$41*$D5,IF($E5="Distribution Rev.",VLOOKUP(V$4,'4. Billing Determinants'!$B$19:$N$41,8,0)/'4. Billing Determinants'!$I$41*$D5, VLOOKUP(V$4,'4. Billing Determinants'!$B$19:$N$41,3,0)/'4. Billing Determinants'!$D$41*$D5))))) -> 0 | W5: =IF(W$4="",0,IF($E5="kWh",VLOOKUP(W$4,'4. Billing Determinants'!$B$19:$N$41,4,0)/'4. Billing Determinants'!$E$41*$D5,IF($E5="kW",VLOOKUP(W$4,'4. Billing Determinants'!$B$19:$N$41,5,0)/'4. Billing Determinants'!$F$41*$D5,IF($E5="Non-RPP kWh",VLOOKUP(W$4,'4. Billing Determinants'!$B$19:$N$41,6,0)/'4. Billing Determinants'!$G$41*$D5,IF($E5="Distribution Rev.",VLOOKUP(W$4,'4. Billing Determinants'!$B$19:$N$41,8,0)/'4. Billing Determinants'!$I$41*$D5, VLOOKUP(W$4,'4. Billing Determinants'!$B$19:$N$41,3,0)/'4. Billing Determinants'!$D$41*$D5))))) -> 0 | X5: =IF(X$4="",0,IF($E5="kWh",VLOOKUP(X$4,'4. Billing Determinants'!$B$19:$N$41,4,0)/'4. Billing Determinants'!$E$41*$D5,IF($E5="kW",VLOOKUP(X$4,'4. Billing Determinants'!$B$19:$N$41,5,0)/'4. Billing Determinants'!$F$41*$D5,IF($E5="Non-RPP kWh",VLOOKUP(X$4,'4. Billing Determinants'!$B$19:$N$41,6,0)/'4. Billing Determinants'!$G$41*$D5,IF($E5="Distribution Rev.",VLOOKUP(X$4,'4. Billing Determinants'!$B$19:$N$41,8,0)/'4. Billing Determinants'!$I$41*$D5, VLOOKUP(X$4,'4. Billing Determinants'!$B$19:$N$41,3,0)/'4. Billing Determinants'!$D$41*$D5))))) -> 0 | Y5: =IF(Y$4="",0,IF($E5="kWh",VLOOKUP(Y$4,'4. Billing Determinants'!$B$19:$N$41,4,0)/'4. Billing Determinants'!$E$41*$D5,IF($E5="kW",VLOOKUP(Y$4,'4. Billing Determinants'!$B$19:$N$41,5,0)/'4. Billing Determinants'!$F$41*$D5,IF($E5="Non-RPP kWh",VLOOKUP(Y$4,'4. Billing Determinants'!$B$19:$N$41,6,0)/'4. Billing Determinants'!$G$41*$D5,IF($E5="Distribution Rev.",VLOOKUP(Y$4,'4. Billing Determinants'!$B$19:$N$41,8,0)/'4. Billing Determinants'!$I$41*$D5, VLOOKUP(Y$4,'4. Billing Determinants'!$B$19:$N$41,3,0)/'4. Billing Determinants'!$D$41*$D5))))) -> 0
B6: RSVA - Wholesale Market Service Charge | C6: 1580 | D6: ='2. 2013 Continuity Schedule'!DC25 -> -3266669.796 | E6: kWh | F6: =IF(F$4="",0,IF($E6="kWh",VLOOKUP(F$4,'4. Billing Determinants'!$B$19:$N$41,4,0)/'4. Billing Determinants'!$E$41*$D6,IF($E6="kW",VLOOKUP(F$4,'4. Billing Determinants'!$B$19:$N$41,5,0)/'4. Billing Determinants'!$F$41*$D6,IF($E6="Non-RPP kWh",VLOOKUP(F$4,'4. Billing Determinants'!$B$19:$N$41,6,0)/'4. Billing Determinants'!$G$41*$D6,IF($E6="Distribution Rev.",VLOOKUP(F$4,'4. Billing Determinants'!$B$19:$N$41,8,0)/'4. Billing Determinants'!$I$41*$D6, VLOOKUP(F$4,'4. Billing Determinants'!$B$19:$N$41,3,0)/'4. Billing Determinants'!$D$41*$D6))))) -> -1440607.759 | G6: =IF(G$4="",0,IF($E6="kWh",VLOOKUP(G$4,'4. Billing Determinants'!$B$19:$N$41,4,0)/'4. Billing Determinants'!$E$41*$D6,IF($E6="kW",VLOOKUP(G$4,'4. Billing Determinants'!$B$19:$N$41,5,0)/'4. Billing Determinants'!$F$41*$D6,IF($E6="Non-RPP kWh",VLOOKUP(G$4,'4. Billing Determinants'!$B$19:$N$41,6,0)/'4. Billing Determinants'!$G$41*$D6,IF($E6="Distribution Rev.",VLOOKUP(G$4,'4. Billing Determinants'!$B$19:$N$41,8,0)/'4. Billing Determinants'!$I$41*$D6, VLOOKUP(G$4,'4. Billing Determinants'!$B$19:$N$41,3,0)/'4. Billing Determinants'!$D$41*$D6))))) -> -400000.943 | H6: =IF(H$4="",0,IF($E6="kWh",VLOOKUP(H$4,'4. Billing Determinants'!$B$19:$N$41,4,0)/'4. Billing Determinants'!$E$41*$D6,IF($E6="kW",VLOOKUP(H$4,'4. Billing Determinants'!$B$19:$N$41,5,0)/'4. Billing Determinants'!$F$41*$D6,IF($E6="Non-RPP kWh",VLOOKUP(H$4,'4. Billing Determinants'!$B$19:$N$41,6,0)/'4. Billing Determinants'!$G$41*$D6,IF($E6="Distribution Rev.",VLOOKUP(H$4,'4. Billing Determinants'!$B$19:$N$41,8,0)/'4. Billing Determinants'!$I$41*$D6, VLOOKUP(H$4,'4. Billing Determinants'!$B$19:$N$41,3,0)/'4. Billing Determinants'!$D$41*$D6))))) -> -1021823.303 | I6: =IF(I$4="",0,IF($E6="kWh",VLOOKUP(I$4,'4. Billing Determinants'!$B$19:$N$41,4,0)/'4. Billing Determinants'!$E$41*$D6,IF($E6="kW",VLOOKUP(I$4,'4. Billing Determinants'!$B$19:$N$41,5,0)/'4. Billing Determinants'!$F$41*$D6,IF($E6="Non-RPP kWh",VLOOKUP(I$4,'4. Billing Determinants'!$B$19:$N$41,6,0)/'4. Billing Determinants'!$G$41*$D6,IF($E6="Distribution Rev.",VLOOKUP(I$4,'4. Billing Determinants'!$B$19:$N$41,8,0)/'4. Billing Determinants'!$I$41*$D6, VLOOKUP(I$4,'4. Billing Determinants'!$B$19:$N$41,3,0)/'4. Billing Determinants'!$D$41*$D6))))) -> -239983.5064 | J6: =IF(J$4="",0,IF($E6="kWh",VLOOKUP(J$4,'4. Billing Determinants'!$B$19:$N$41,4,0)/'4. Billing Determinants'!$E$41*$D6,IF($E6="kW",VLOOKUP(J$4,'4. Billing Determinants'!$B$19:$N$41,5,0)/'4. Billing Determinants'!$F$41*$D6,IF($E6="Non-RPP kWh",VLOOKUP(J$4,'4. Billing Determinants'!$B$19:$N$41,6,0)/'4. Billing Determinants'!$G$41*$D6,IF($E6="Distribution Rev.",VLOOKUP(J$4,'4. Billing Determinants'!$B$19:$N$41,8,0)/'4. Billing Determinants'!$I$41*$D6, VLOOKUP(J$4,'4. Billing Determinants'!$B$19:$N$41,3,0)/'4. Billing Determinants'!$D$41*$D6))))) -> -128290.9538 | K6: =IF(K$4="",0,IF($E6="kWh",VLOOKUP(K$4,'4. Billing Determinants'!$B$19:$N$41,4,0)/'4. Billing Determinants'!$E$41*$D6,IF($E6="kW",VLOOKUP(K$4,'4. Billing Determinants'!$B$19:$N$41,5,0)/'4. Billing Determinants'!$F$41*$D6,IF($E6="Non-RPP kWh",VLOOKUP(K$4,'4. Billing Determinants'!$B$19:$N$41,6,0)/'4. Billing Determinants'!$G$41*$D6,IF($E6="Distribution Rev.",VLOOKUP(K$4,'4. Billing Determinants'!$B$19:$N$41,8,0)/'4. Billing Determinants'!$I$41*$D6, VLOOKUP(K$4,'4. Billing Determinants'!$B$19:$N$41,3,0)/'4. Billing Determinants'!$D$41*$D6))))) -> -27414.10861 | L6: =IF(L$4="",0,IF($E6="kWh",VLOOKUP(L$4,'4. Billing Determinants'!$B$19:$N$41,4,0)/'4. Billing Determinants'!$E$41*$D6,IF($E6="kW",VLOOKUP(L$4,'4. Billing Determinants'!$B$19:$N$41,5,0)/'4. Billing Determinants'!$F$41*$D6,IF($E6="Non-RPP kWh",VLOOKUP(L$4,'4. Billing Determinants'!$B$19:$N$41,6,0)/'4. Billing Determinants'!$G$41*$D6,IF($E6="Distribution Rev.",VLOOKUP(L$4,'4. Billing Determinants'!$B$19:$N$41,8,0)/'4. Billing Determinants'!$I$41*$D6, VLOOKUP(L$4,'4. Billing Determinants'!$B$19:$N$41,3,0)/'4. Billing Determinants'!$D$41*$D6))))) -> -8434.88833 | M6: =IF(M$4="",0,IF($E6="kWh",VLOOKUP(M$4,'4. Billing Determinants'!$B$19:$N$41,4,0)/'4. Billing Determinants'!$E$41*$D6,IF($E6="kW",VLOOKUP(M$4,'4. Billing Determinants'!$B$19:$N$41,5,0)/'4. Billing Determinants'!$F$41*$D6,IF($E6="Non-RPP kWh",VLOOKUP(M$4,'4. Billing Determinants'!$B$19:$N$41,6,0)/'4. Billing Determinants'!$G$41*$D6,IF($E6="Distribution Rev.",VLOOKUP(M$4,'4. Billing Determinants'!$B$19:$N$41,8,0)/'4. Billing Determinants'!$I$41*$D6, VLOOKUP(M$4,'4. Billing Determinants'!$B$19:$N$41,3,0)/'4. Billing Determinants'!$D$41*$D6))))) -> -114.3334428 | N6: =IF(N$4="",0,IF($E6="kWh",VLOOKUP(N$4,'4. Billing Determinants'!$B$19:$N$41,4,0)/'4. Billing Determinants'!$E$41*$D6,IF($E6="kW",VLOOKUP(N$4,'4. Billing Determinants'!$B$19:$N$41,5,0)/'4. Billing Determinants'!$F$41*$D6,IF($E6="Non-RPP kWh",VLOOKUP(N$4,'4. Billing Determinants'!$B$19:$N$41,6,0)/'4. Billing Determinants'!$G$41*$D6,IF($E6="Distribution Rev.",VLOOKUP(N$4,'4. Billing Determinants'!$B$19:$N$41,8,0)/'4. Billing Determinants'!$I$41*$D6, VLOOKUP(N$4,'4. Billing Determinants'!$B$19:$N$41,3,0)/'4. Billing Determinants'!$D$41*$D6))))) -> 0 | O6: =IF(O$4="",0,IF($E6="kWh",VLOOKUP(O$4,'4. Billing Determinants'!$B$19:$N$41,4,0)/'4. Billing Determinants'!$E$41*$D6,IF($E6="kW",VLOOKUP(O$4,'4. Billing Determinants'!$B$19:$N$41,5,0)/'4. Billing Determinants'!$F$41*$D6,IF($E6="Non-RPP kWh",VLOOKUP(O$4,'4. Billing Determinants'!$B$19:$N$41,6,0)/'4. Billing Determinants'!$G$41*$D6,IF($E6="Distribution Rev.",VLOOKUP(O$4,'4. Billing Determinants'!$B$19:$N$41,8,0)/'4. Billing Determinants'!$I$41*$D6, VLOOKUP(O$4,'4. Billing Determinants'!$B$19:$N$41,3,0)/'4. Billing Determinants'!$D$41*$D6))))) -> 0 | P6: =IF(P$4="",0,IF($E6="kWh",VLOOKUP(P$4,'4. Billing Determinants'!$B$19:$N$41,4,0)/'4. Billing Determinants'!$E$41*$D6,IF($E6="kW",VLOOKUP(P$4,'4. Billing Determinants'!$B$19:$N$41,5,0)/'4. Billing Determinants'!$F$41*$D6,IF($E6="Non-RPP kWh",VLOOKUP(P$4,'4. Billing Determinants'!$B$19:$N$41,6,0)/'4. Billing Determinants'!$G$41*$D6,IF($E6="Distribution Rev.",VLOOKUP(P$4,'4. Billing Determinants'!$B$19:$N$41,8,0)/'4. Billing Determinants'!$I$41*$D6, VLOOKUP(P$4,'4. Billing Determinants'!$B$19:$N$41,3,0)/'4. Billing Determinants'!$D$41*$D6))))) -> 0 | Q6: =IF(Q$4="",0,IF($E6="kWh",VLOOKUP(Q$4,'4. Billing Determinants'!$B$19:$N$41,4,0)/'4. Billing Determinants'!$E$41*$D6,IF($E6="kW",VLOOKUP(Q$4,'4. Billing Determinants'!$B$19:$N$41,5,0)/'4. Billing Determinants'!$F$41*$D6,IF($E6="Non-RPP kWh",VLOOKUP(Q$4,'4. Billing Determinants'!$B$19:$N$41,6,0)/'4. Billing Determinants'!$G$41*$D6,IF($E6="Distribution Rev.",VLOOKUP(Q$4,'4. Billing Determinants'!$B$19:$N$41,8,0)/'4. Billing Determinants'!$I$41*$D6, VLOOKUP(Q$4,'4. Billing Determinants'!$B$19:$N$41,3,0)/'4. Billing Determinants'!$D$41*$D6))))) -> 0 | R6: =IF(R$4="",0,IF($E6="kWh",VLOOKUP(R$4,'4. Billing Determinants'!$B$19:$N$41,4,0)/'4. Billing Determinants'!$E$41*$D6,IF($E6="kW",VLOOKUP(R$4,'4. Billing Determinants'!$B$19:$N$41,5,0)/'4. Billing Determinants'!$F$41*$D6,IF($E6="Non-RPP kWh",VLOOKUP(R$4,'4. Billing Determinants'!$B$19:$N$41,6,0)/'4. Billing Determinants'!$G$41*$D6,IF($E6="Distribution Rev.",VLOOKUP(R$4,'4. Billing Determinants'!$B$19:$N$41,8,0)/'4. Billing Determinants'!$I$41*$D6, VLOOKUP(R$4,'4. Billing Determinants'!$B$19:$N$41,3,0)/'4. Billing Determinants'!$D$41*$D6))))) -> 0 | S6: =IF(S$4="",0,IF($E6="kWh",VLOOKUP(S$4,'4. Billing Determinants'!$B$19:$N$41,4,0)/'4. Billing Determinants'!$E$41*$D6,IF($E6="kW",VLOOKUP(S$4,'4. Billing Determinants'!$B$19:$N$41,5,0)/'4. Billing Determinants'!$F$41*$D6,IF($E6="Non-RPP kWh",VLOOKUP(S$4,'4. Billing Determinants'!$B$19:$N$41,6,0)/'4. Billing Determinants'!$G$41*$D6,IF($E6="Distribution Rev.",VLOOKUP(S$4,'4. Billing Determinants'!$B$19:$N$41,8,0)/'4. Billing Determinants'!$I$41*$D6, VLOOKUP(S$4,'4. Billing Determinants'!$B$19:$N$41,3,0)/'4. Billing Determinants'!$D$41*$D6))))) -> 0 | T6: =IF(T$4="",0,IF($E6="kWh",VLOOKUP(T$4,'4. Billing Determinants'!$B$19:$N$41,4,0)/'4. Billing Determinants'!$E$41*$D6,IF($E6="kW",VLOOKUP(T$4,'4. Billing Determinants'!$B$19:$N$41,5,0)/'4. Billing Determinants'!$F$41*$D6,IF($E6="Non-RPP kWh",VLOOKUP(T$4,'4. Billing Determinants'!$B$19:$N$41,6,0)/'4. Billing Determinants'!$G$41*$D6,IF($E6="Distribution Rev.",VLOOKUP(T$4,'4. Billing Determinants'!$B$19:$N$41,8,0)/'4. Billing Determinants'!$I$41*$D6, VLOOKUP(T$4,'4. Billing Determinants'!$B$19:$N$41,3,0)/'4. Billing Determinants'!$D$41*$D6))))) -> 0 | U6: =IF(U$4="",0,IF($E6="kWh",VLOOKUP(U$4,'4. Billing Determinants'!$B$19:$N$41,4,0)/'4. Billing Determinants'!$E$41*$D6,IF($E6="kW",VLOOKUP(U$4,'4. Billing Determinants'!$B$19:$N$41,5,0)/'4. Billing Determinants'!$F$41*$D6,IF($E6="Non-RPP kWh",VLOOKUP(U$4,'4. Billing Determinants'!$B$19:$N$41,6,0)/'4. Billing Determinants'!$G$41*$D6,IF($E6="Distribution Rev.",VLOOKUP(U$4,'4. Billing Determinants'!$B$19:$N$41,8,0)/'4. Billing Determinants'!$I$41*$D6, VLOOKUP(U$4,'4. Billing Determinants'!$B$19:$N$41,3,0)/'4. Billing Determinants'!$D$41*$D6))))) -> 0 | V6: =IF(V$4="",0,IF($E6="kWh",VLOOKUP(V$4,'4. Billing Determinants'!$B$19:$N$41,4,0)/'4. Billing Determinants'!$E$41*$D6,IF($E6="kW",VLOOKUP(V$4,'4. Billing Determinants'!$B$19:$N$41,5,0)/'4. Billing Determinants'!$F$41*$D6,IF($E6="Non-RPP kWh",VLOOKUP(V$4,'4. Billing Determinants'!$B$19:$N$41,6,0)/'4. Billing Determinants'!$G$41*$D6,IF($E6="Distribution Rev.",VLOOKUP(V$4,'4. Billing Determinants'!$B$19:$N$41,8,0)/'4. Billing Determinants'!$I$41*$D6, VLOOKUP(V$4,'4. Billing Determinants'!$B$19:$N$41,3,0)/'4. Billing Determinants'!$D$41*$D6))))) -> 0 | W6: =IF(W$4="",0,IF($E6="kWh",VLOOKUP(W$4,'4. Billing Determinants'!$B$19:$N$41,4,0)/'4. Billing Determinants'!$E$41*$D6,IF($E6="kW",VLOOKUP(W$4,'4. Billing Determinants'!$B$19:$N$41,5,0)/'4. Billing Determinants'!$F$41*$D6,IF($E6="Non-RPP kWh",VLOOKUP(W$4,'4. Billing Determinants'!$B$19:$N$41,6,0)/'4. Billing Determinants'!$G$41*$D6,IF($E6="Distribution Rev.",VLOOKUP(W$4,'4. Billing Determinants'!$B$19:$N$41,8,0)/'4. Billing Determinants'!$I$41*$D6, VLOOKUP(W$4,'4. Billing Determinants'!$B$19:$N$41,3,0)/'4. Billing Determinants'!$D$41*$D6))))) -> 0 | X6: =IF(X$4="",0,IF($E6="kWh",VLOOKUP(X$4,'4. Billing Determinants'!$B$19:$N$41,4,0)/'4. Billing Determinants'!$E$41*$D6,IF($E6="kW",VLOOKUP(X$4,'4. Billing Determinants'!$B$19:$N$41,5,0)/'4. Billing Determinants'!$F$41*$D6,IF($E6="Non-RPP kWh",VLOOKUP(X$4,'4. Billing Determinants'!$B$19:$N$41,6,0)/'4. Billing Determinants'!$G$41*$D6,IF($E6="Distribution Rev.",VLOOKUP(X$4,'4. Billing Determinants'!$B$19:$N$41,8,0)/'4. Billing Determinants'!$I$41*$D6, VLOOKUP(X$4,'4. Billing Determinants'!$B$19:$N$41,3,0)/'4. Billing Determinants'!$D$41*$D6))))) -> 0 | Y6: =IF(Y$4="",0,IF($E6="kWh",VLOOKUP(Y$4,'4. Billing Determinants'!$B$19:$N$41,4,0)/'4. Billing Determinants'!$E$41*$D6,IF($E6="kW",VLOOKUP(Y$4,'4. Billing Determinants'!$B$19:$N$41,5,0)/'4. Billing Determinants'!$F$41*$D6,IF($E6="Non-RPP kWh",VLOOKUP(Y$4,'4. Billing Determinants'!$B$19:$N$41,6,0)/'4. Billing Determinants'!$G$41*$D6,IF($E6="Distribution Rev.",VLOOKUP(Y$4,'4. Billing Determinants'!$B$19:$N$41,8,0)/'4. Billing Determinants'!$I$41*$D6, VLOOKUP(Y$4,'4. Billing Determinants'!$B$19:$N$41,3,0)/'4. Billing Determinants'!$D$41*$D6))))) -> 0
B7: RSVA - Retail Transmission Network Charge | C7: 1584 | D7: ='2. 2013 Continuity Schedule'!DC26 -> 5100488.006 | E7: kWh | F7: =IF(F$4="",0,IF($E7="kWh",VLOOKUP(F$4,'4. Billing Determinants'!$B$19:$N$41,4,0)/'4. Billing Determinants'!$E$41*$D7,IF($E7="kW",VLOOKUP(F$4,'4. Billing Determinants'!$B$19:$N$41,5,0)/'4. Billing Determinants'!$F$41*$D7,IF($E7="Non-RPP kWh",VLOOKUP(F$4,'4. Billing Determinants'!$B$19:$N$41,6,0)/'4. Billing Determinants'!$G$41*$D7,IF($E7="Distribution Rev.",VLOOKUP(F$4,'4. Billing Determinants'!$B$19:$N$41,8,0)/'4. Billing Determinants'!$I$41*$D7, VLOOKUP(F$4,'4. Billing Determinants'!$B$19:$N$41,3,0)/'4. Billing Determinants'!$D$41*$D7))))) -> 2249325.171 | G7: =IF(G$4="",0,IF($E7="kWh",VLOOKUP(G$4,'4. Billing Determinants'!$B$19:$N$41,4,0)/'4. Billing Determinants'!$E$41*$D7,IF($E7="kW",VLOOKUP(G$4,'4. Billing Determinants'!$B$19:$N$41,5,0)/'4. Billing Determinants'!$F$41*$D7,IF($E7="Non-RPP kWh",VLOOKUP(G$4,'4. Billing Determinants'!$B$19:$N$41,6,0)/'4. Billing Determinants'!$G$41*$D7,IF($E7="Distribution Rev.",VLOOKUP(G$4,'4. Billing Determinants'!$B$19:$N$41,8,0)/'4. Billing Determinants'!$I$41*$D7, VLOOKUP(G$4,'4. Billing Determinants'!$B$19:$N$41,3,0)/'4. Billing Determinants'!$D$41*$D7))))) -> 624550.4259 | H7: =IF(H$4="",0,IF($E7="kWh",VLOOKUP(H$4,'4. Billing Determinants'!$B$19:$N$41,4,0)/'4. Billing Determinants'!$E$41*$D7,IF($E7="kW",VLOOKUP(H$4,'4. Billing Determinants'!$B$19:$N$41,5,0)/'4. Billing Determinants'!$F$41*$D7,IF($E7="Non-RPP kWh",VLOOKUP(H$4,'4. Billing Determinants'!$B$19:$N$41,6,0)/'4. Billing Determinants'!$G$41*$D7,IF($E7="Distribution Rev.",VLOOKUP(H$4,'4. Billing Determinants'!$B$19:$N$41,8,0)/'4. Billing Determinants'!$I$41*$D7, VLOOKUP(H$4,'4. Billing Determinants'!$B$19:$N$41,3,0)/'4. Billing Determinants'!$D$41*$D7))))) -> 1595446.687 | I7: =IF(I$4="",0,IF($E7="kWh",VLOOKUP(I$4,'4. Billing Determinants'!$B$19:$N$41,4,0)/'4. Billing Determinants'!$E$41*$D7,IF($E7="kW",VLOOKUP(I$4,'4. Billing Determinants'!$B$19:$N$41,5,0)/'4. Billing Determinants'!$F$41*$D7,IF($E7="Non-RPP kWh",VLOOKUP(I$4,'4. Billing Determinants'!$B$19:$N$41,6,0)/'4. Billing Determinants'!$G$41*$D7,IF($E7="Distribution Rev.",VLOOKUP(I$4,'4. Billing Determinants'!$B$19:$N$41,8,0)/'4. Billing Determinants'!$I$41*$D7, VLOOKUP(I$4,'4. Billing Determinants'!$B$19:$N$41,3,0)/'4. Billing Determinants'!$D$41*$D7))))) -> 374703.6194 | J7: =IF(J$4="",0,IF($E7="kWh",VLOOKUP(J$4,'4. Billing Determinants'!$B$19:$N$41,4,0)/'4. Billing Determinants'!$E$41*$D7,IF($E7="kW",VLOOKUP(J$4,'4. Billing Determinants'!$B$19:$N$41,5,0)/'4. Billing Determinants'!$F$41*$D7,IF($E7="Non-RPP kWh",VLOOKUP(J$4,'4. Billing Determinants'!$B$19:$N$41,6,0)/'4. Billing Determinants'!$G$41*$D7,IF($E7="Distribution Rev.",VLOOKUP(J$4,'4. Billing Determinants'!$B$19:$N$41,8,0)/'4. Billing Determinants'!$I$41*$D7, VLOOKUP(J$4,'4. Billing Determinants'!$B$19:$N$41,3,0)/'4. Billing Determinants'!$D$41*$D7))))) -> 200309.9523 | K7: =IF(K$4="",0,IF($E7="kWh",VLOOKUP(K$4,'4. Billing Determinants'!$B$19:$N$41,4,0)/'4. Billing Determinants'!$E$41*$D7,IF($E7="kW",VLOOKUP(K$4,'4. Billing Determinants'!$B$19:$N$41,5,0)/'4. Billing Determinants'!$F$41*$D7,IF($E7="Non-RPP kWh",VLOOKUP(K$4,'4. Billing Determinants'!$B$19:$N$41,6,0)/'4. Billing Determinants'!$G$41*$D7,IF($E7="Distribution Rev.",VLOOKUP(K$4,'4. Billing Determinants'!$B$19:$N$41,8,0)/'4. Billing Determinants'!$I$41*$D7, VLOOKUP(K$4,'4. Billing Determinants'!$B$19:$N$41,3,0)/'4. Billing Determinants'!$D$41*$D7))))) -> 42803.63211 | L7: =IF(L$4="",0,IF($E7="kWh",VLOOKUP(L$4,'4. Billing Determinants'!$B$19:$N$41,4,0)/'4. Billing Determinants'!$E$41*$D7,IF($E7="kW",VLOOKUP(L$4,'4. Billing Determinants'!$B$19:$N$41,5,0)/'4. Billing Determinants'!$F$41*$D7,IF($E7="Non-RPP kWh",VLOOKUP(L$4,'4. Billing Determinants'!$B$19:$N$41,6,0)/'4. Billing Determinants'!$G$41*$D7,IF($E7="Distribution Rev.",VLOOKUP(L$4,'4. Billing Determinants'!$B$19:$N$41,8,0)/'4. Billing Determinants'!$I$41*$D7, VLOOKUP(L$4,'4. Billing Determinants'!$B$19:$N$41,3,0)/'4. Billing Determinants'!$D$41*$D7))))) -> 13170.0017 | M7: =IF(M$4="",0,IF($E7="kWh",VLOOKUP(M$4,'4. Billing Determinants'!$B$19:$N$41,4,0)/'4. Billing Determinants'!$E$41*$D7,IF($E7="kW",VLOOKUP(M$4,'4. Billing Determinants'!$B$19:$N$41,5,0)/'4. Billing Determinants'!$F$41*$D7,IF($E7="Non-RPP kWh",VLOOKUP(M$4,'4. Billing Determinants'!$B$19:$N$41,6,0)/'4. Billing Determinants'!$G$41*$D7,IF($E7="Distribution Rev.",VLOOKUP(M$4,'4. Billing Determinants'!$B$19:$N$41,8,0)/'4. Billing Determinants'!$I$41*$D7, VLOOKUP(M$4,'4. Billing Determinants'!$B$19:$N$41,3,0)/'4. Billing Determinants'!$D$41*$D7))))) -> 178.5170802 | N7: =IF(N$4="",0,IF($E7="kWh",VLOOKUP(N$4,'4. Billing Determinants'!$B$19:$N$41,4,0)/'4. Billing Determinants'!$E$41*$D7,IF($E7="kW",VLOOKUP(N$4,'4. Billing Determinants'!$B$19:$N$41,5,0)/'4. Billing Determinants'!$F$41*$D7,IF($E7="Non-RPP kWh",VLOOKUP(N$4,'4. Billing Determinants'!$B$19:$N$41,6,0)/'4. Billing Determinants'!$G$41*$D7,IF($E7="Distribution Rev.",VLOOKUP(N$4,'4. Billing Determinants'!$B$19:$N$41,8,0)/'4. Billing Determinants'!$I$41*$D7, VLOOKUP(N$4,'4. Billing Determinants'!$B$19:$N$41,3,0)/'4. Billing Determinants'!$D$41*$D7))))) -> 0 | O7: =IF(O$4="",0,IF($E7="kWh",VLOOKUP(O$4,'4. Billing Determinants'!$B$19:$N$41,4,0)/'4. Billing Determinants'!$E$41*$D7,IF($E7="kW",VLOOKUP(O$4,'4. Billing Determinants'!$B$19:$N$41,5,0)/'4. Billing Determinants'!$F$41*$D7,IF($E7="Non-RPP kWh",VLOOKUP(O$4,'4. Billing Determinants'!$B$19:$N$41,6,0)/'4. Billing Determinants'!$G$41*$D7,IF($E7="Distribution Rev.",VLOOKUP(O$4,'4. Billing Determinants'!$B$19:$N$41,8,0)/'4. Billing Determinants'!$I$41*$D7, VLOOKUP(O$4,'4. Billing Determinants'!$B$19:$N$41,3,0)/'4. Billing Determinants'!$D$41*$D7))))) -> 0 | P7: =IF(P$4="",0,IF($E7="kWh",VLOOKUP(P$4,'4. Billing Determinants'!$B$19:$N$41,4,0)/'4. Billing Determinants'!$E$41*$D7,IF($E7="kW",VLOOKUP(P$4,'4. Billing Determinants'!$B$19:$N$41,5,0)/'4. Billing Determinants'!$F$41*$D7,IF($E7="Non-RPP kWh",VLOOKUP(P$4,'4. Billing Determinants'!$B$19:$N$41,6,0)/'4. Billing Determinants'!$G$41*$D7,IF($E7="Distribution Rev.",VLOOKUP(P$4,'4. Billing Determinants'!$B$19:$N$41,8,0)/'4. Billing Determinants'!$I$41*$D7, VLOOKUP(P$4,'4. Billing Determinants'!$B$19:$N$41,3,0)/'4. Billing Determinants'!$D$41*$D7))))) -> 0 | Q7: =IF(Q$4="",0,IF($E7="kWh",VLOOKUP(Q$4,'4. Billing Determinants'!$B$19:$N$41,4,0)/'4. Billing Determinants'!$E$41*$D7,IF($E7="kW",VLOOKUP(Q$4,'4. Billing Determinants'!$B$19:$N$41,5,0)/'4. Billing Determinants'!$F$41*$D7,IF($E7="Non-RPP kWh",VLOOKUP(Q$4,'4. Billing Determinants'!$B$19:$N$41,6,0)/'4. Billing Determinants'!$G$41*$D7,IF($E7="Distribution Rev.",VLOOKUP(Q$4,'4. Billing Determinants'!$B$19:$N$41,8,0)/'4. Billing Determinants'!$I$41*$D7, VLOOKUP(Q$4,'4. Billing Determinants'!$B$19:$N$41,3,0)/'4. Billing Determinants'!$D$41*$D7))))) -> 0 | R7: =IF(R$4="",0,IF($E7="kWh",VLOOKUP(R$4,'4. Billing Determinants'!$B$19:$N$41,4,0)/'4. Billing Determinants'!$E$41*$D7,IF($E7="kW",VLOOKUP(R$4,'4. Billing Determinants'!$B$19:$N$41,5,0)/'4. Billing Determinants'!$F$41*$D7,IF($E7="Non-RPP kWh",VLOOKUP(R$4,'4. Billing Determinants'!$B$19:$N$41,6,0)/'4. Billing Determinants'!$G$41*$D7,IF($E7="Distribution Rev.",VLOOKUP(R$4,'4. Billing Determinants'!$B$19:$N$41,8,0)/'4. Billing Determinants'!$I$41*$D7, VLOOKUP(R$4,'4. Billing Determinants'!$B$19:$N$41,3,0)/'4. Billing Determinants'!$D$41*$D7))))) -> 0 | S7: =IF(S$4="",0,IF($E7="kWh",VLOOKUP(S$4,'4. Billing Determinants'!$B$19:$N$41,4,0)/'4. Billing Determinants'!$E$41*$D7,IF($E7="kW",VLOOKUP(S$4,'4. Billing Determinants'!$B$19:$N$41,5,0)/'4. Billing Determinants'!$F$41*$D7,IF($E7="Non-RPP kWh",VLOOKUP(S$4,'4. Billing Determinants'!$B$19:$N$41,6,0)/'4. Billing Determinants'!$G$41*$D7,IF($E7="Distribution Rev.",VLOOKUP(S$4,'4. Billing Determinants'!$B$19:$N$41,8,0)/'4. Billing Determinants'!$I$41*$D7, VLOOKUP(S$4,'4. Billing Determinants'!$B$19:$N$41,3,0)/'4. Billing Determinants'!$D$41*$D7))))) -> 0 | T7: =IF(T$4="",0,IF($E7="kWh",VLOOKUP(T$4,'4. Billing Determinants'!$B$19:$N$41,4,0)/'4. Billing Determinants'!$E$41*$D7,IF($E7="kW",VLOOKUP(T$4,'4. Billing Determinants'!$B$19:$N$41,5,0)/'4. Billing Determinants'!$F$41*$D7,IF($E7="Non-RPP kWh",VLOOKUP(T$4,'4. Billing Determinants'!$B$19:$N$41,6,0)/'4. Billing Determinants'!$G$41*$D7,IF($E7="Distribution Rev.",VLOOKUP(T$4,'4. Billing Determinants'!$B$19:$N$41,8,0)/'4. Billing Determinants'!$I$41*$D7, VLOOKUP(T$4,'4. Billing Determinants'!$B$19:$N$41,3,0)/'4. Billing Determinants'!$D$41*$D7))))) -> 0 | U7: =IF(U$4="",0,IF($E7="kWh",VLOOKUP(U$4,'4. Billing Determinants'!$B$19:$N$41,4,0)/'4. Billing Determinants'!$E$41*$D7,IF($E7="kW",VLOOKUP(U$4,'4. Billing Determinants'!$B$19:$N$41,5,0)/'4. Billing Determinants'!$F$41*$D7,IF($E7="Non-RPP kWh",VLOOKUP(U$4,'4. Billing Determinants'!$B$19:$N$41,6,0)/'4. Billing Determinants'!$G$41*$D7,IF($E7="Distribution Rev.",VLOOKUP(U$4,'4. Billing Determinants'!$B$19:$N$41,8,0)/'4. Billing Determinants'!$I$41*$D7, VLOOKUP(U$4,'4. Billing Determinants'!$B$19:$N$41,3,0)/'4. Billing Determinants'!$D$41*$D7))))) -> 0 | V7: =IF(V$4="",0,IF($E7="kWh",VLOOKUP(V$4,'4. Billing Determinants'!$B$19:$N$41,4,0)/'4. Billing Determinants'!$E$41*$D7,IF($E7="kW",VLOOKUP(V$4,'4. Billing Determinants'!$B$19:$N$41,5,0)/'4. Billing Determinants'!$F$41*$D7,IF($E7="Non-RPP kWh",VLOOKUP(V$4,'4. Billing Determinants'!$B$19:$N$41,6,0)/'4. Billing Determinants'!$G$41*$D7,IF($E7="Distribution Rev.",VLOOKUP(V$4,'4. Billing Determinants'!$B$19:$N$41,8,0)/'4. Billing Determinants'!$I$41*$D7, VLOOKUP(V$4,'4. Billing Determinants'!$B$19:$N$41,3,0)/'4. Billing Determinants'!$D$41*$D7))))) -> 0 | W7: =IF(W$4="",0,IF($E7="kWh",VLOOKUP(W$4,'4. Billing Determinants'!$B$19:$N$41,4,0)/'4. Billing Determinants'!$E$41*$D7,IF($E7="kW",VLOOKUP(W$4,'4. Billing Determinants'!$B$19:$N$41,5,0)/'4. Billing Determinants'!$F$41*$D7,IF($E7="Non-RPP kWh",VLOOKUP(W$4,'4. Billing Determinants'!$B$19:$N$41,6,0)/'4. Billing Determinants'!$G$41*$D7,IF($E7="Distribution Rev.",VLOOKUP(W$4,'4. Billing Determinants'!$B$19:$N$41,8,0)/'4. Billing Determinants'!$I$41*$D7, VLOOKUP(W$4,'4. Billing Determinants'!$B$19:$N$41,3,0)/'4. Billing Determinants'!$D$41*$D7))))) -> 0 | X7: =IF(X$4="",0,IF($E7="kWh",VLOOKUP(X$4,'4. Billing Determinants'!$B$19:$N$41,4,0)/'4. Billing Determinants'!$E$41*$D7,IF($E7="kW",VLOOKUP(X$4,'4. Billing Determinants'!$B$19:$N$41,5,0)/'4. Billing Determinants'!$F$41*$D7,IF($E7="Non-RPP kWh",VLOOKUP(X$4,'4. Billing Determinants'!$B$19:$N$41,6,0)/'4. Billing Determinants'!$G$41*$D7,IF($E7="Distribution Rev.",VLOOKUP(X$4,'4. Billing Determinants'!$B$19:$N$41,8,0)/'4. Billing Determinants'!$I$41*$D7, VLOOKUP(X$4,'4. Billing Determinants'!$B$19:$N$41,3,0)/'4. Billing Determinants'!$D$41*$D7))))) -> 0 | Y7: =IF(Y$4="",0,IF($E7="kWh",VLOOKUP(Y$4,'4. Billing Determinants'!$B$19:$N$41,4,0)/'4. Billing Determinants'!$E$41*$D7,IF($E7="kW",VLOOKUP(Y$4,'4. Billing Determinants'!$B$19:$N$41,5,0)/'4. Billing Determinants'!$F$41*$D7,IF($E7="Non-RPP kWh",VLOOKUP(Y$4,'4. Billing Determinants'!$B$19:$N$41,6,0)/'4. Billing Determinants'!$G$41*$D7,IF($E7="Distribution Rev.",VLOOKUP(Y$4,'4. Billing Determinants'!$B$19:$N$41,8,0)/'4. Billing Determinants'!$I$41*$D7, VLOOKUP(Y$4,'4. Billing Determinants'!$B$19:$N$41,3,0)/'4. Billing Determinants'!$D$41*$D7))))) -> 0
B8: RSVA - Retail Transmission Connection Charge | C8: 1586 | D8: ='2. 2013 Continuity Schedule'!DC27 -> -2566054.23 | E8: kWh | F8: =IF(F$4="",0,IF($E8="kWh",VLOOKUP(F$4,'4. Billing Determinants'!$B$19:$N$41,4,0)/'4. Billing Determinants'!$E$41*$D8,IF($E8="kW",VLOOKUP(F$4,'4. Billing Determinants'!$B$19:$N$41,5,0)/'4. Billing Determinants'!$F$41*$D8,IF($E8="Non-RPP kWh",VLOOKUP(F$4,'4. Billing Determinants'!$B$19:$N$41,6,0)/'4. Billing Determinants'!$G$41*$D8,IF($E8="Distribution Rev.",VLOOKUP(F$4,'4. Billing Determinants'!$B$19:$N$41,8,0)/'4. Billing Determinants'!$I$41*$D8, VLOOKUP(F$4,'4. Billing Determinants'!$B$19:$N$41,3,0)/'4. Billing Determinants'!$D$41*$D8))))) -> -1131634.927 | G8: =IF(G$4="",0,IF($E8="kWh",VLOOKUP(G$4,'4. Billing Determinants'!$B$19:$N$41,4,0)/'4. Billing Determinants'!$E$41*$D8,IF($E8="kW",VLOOKUP(G$4,'4. Billing Determinants'!$B$19:$N$41,5,0)/'4. Billing Determinants'!$F$41*$D8,IF($E8="Non-RPP kWh",VLOOKUP(G$4,'4. Billing Determinants'!$B$19:$N$41,6,0)/'4. Billing Determinants'!$G$41*$D8,IF($E8="Distribution Rev.",VLOOKUP(G$4,'4. Billing Determinants'!$B$19:$N$41,8,0)/'4. Billing Determinants'!$I$41*$D8, VLOOKUP(G$4,'4. Billing Determinants'!$B$19:$N$41,3,0)/'4. Billing Determinants'!$D$41*$D8))))) -> -314211.1619 | H8: =IF(H$4="",0,IF($E8="kWh",VLOOKUP(H$4,'4. Billing Determinants'!$B$19:$N$41,4,0)/'4. Billing Determinants'!$E$41*$D8,IF($E8="kW",VLOOKUP(H$4,'4. Billing Determinants'!$B$19:$N$41,5,0)/'4. Billing Determinants'!$F$41*$D8,IF($E8="Non-RPP kWh",VLOOKUP(H$4,'4. Billing Determinants'!$B$19:$N$41,6,0)/'4. Billing Determinants'!$G$41*$D8,IF($E8="Distribution Rev.",VLOOKUP(H$4,'4. Billing Determinants'!$B$19:$N$41,8,0)/'4. Billing Determinants'!$I$41*$D8, VLOOKUP(H$4,'4. Billing Determinants'!$B$19:$N$41,3,0)/'4. Billing Determinants'!$D$41*$D8))))) -> -802668.8259 | I8: =IF(I$4="",0,IF($E8="kWh",VLOOKUP(I$4,'4. Billing Determinants'!$B$19:$N$41,4,0)/'4. Billing Determinants'!$E$41*$D8,IF($E8="kW",VLOOKUP(I$4,'4. Billing Determinants'!$B$19:$N$41,5,0)/'4. Billing Determinants'!$F$41*$D8,IF($E8="Non-RPP kWh",VLOOKUP(I$4,'4. Billing Determinants'!$B$19:$N$41,6,0)/'4. Billing Determinants'!$G$41*$D8,IF($E8="Distribution Rev.",VLOOKUP(I$4,'4. Billing Determinants'!$B$19:$N$41,8,0)/'4. Billing Determinants'!$I$41*$D8, VLOOKUP(I$4,'4. Billing Determinants'!$B$19:$N$41,3,0)/'4. Billing Determinants'!$D$41*$D8))))) -> -188513.2965 | J8: =IF(J$4="",0,IF($E8="kWh",VLOOKUP(J$4,'4. Billing Determinants'!$B$19:$N$41,4,0)/'4. Billing Determinants'!$E$41*$D8,IF($E8="kW",VLOOKUP(J$4,'4. Billing Determinants'!$B$19:$N$41,5,0)/'4. Billing Determinants'!$F$41*$D8,IF($E8="Non-RPP kWh",VLOOKUP(J$4,'4. Billing Determinants'!$B$19:$N$41,6,0)/'4. Billing Determinants'!$G$41*$D8,IF($E8="Distribution Rev.",VLOOKUP(J$4,'4. Billing Determinants'!$B$19:$N$41,8,0)/'4. Billing Determinants'!$I$41*$D8, VLOOKUP(J$4,'4. Billing Determinants'!$B$19:$N$41,3,0)/'4. Billing Determinants'!$D$41*$D8))))) -> -100775.8865 | K8: =IF(K$4="",0,IF($E8="kWh",VLOOKUP(K$4,'4. Billing Determinants'!$B$19:$N$41,4,0)/'4. Billing Determinants'!$E$41*$D8,IF($E8="kW",VLOOKUP(K$4,'4. Billing Determinants'!$B$19:$N$41,5,0)/'4. Billing Determinants'!$F$41*$D8,IF($E8="Non-RPP kWh",VLOOKUP(K$4,'4. Billing Determinants'!$B$19:$N$41,6,0)/'4. Billing Determinants'!$G$41*$D8,IF($E8="Distribution Rev.",VLOOKUP(K$4,'4. Billing Determinants'!$B$19:$N$41,8,0)/'4. Billing Determinants'!$I$41*$D8, VLOOKUP(K$4,'4. Billing Determinants'!$B$19:$N$41,3,0)/'4. Billing Determinants'!$D$41*$D8))))) -> -21534.49653 | L8: =IF(L$4="",0,IF($E8="kWh",VLOOKUP(L$4,'4. Billing Determinants'!$B$19:$N$41,4,0)/'4. Billing Determinants'!$E$41*$D8,IF($E8="kW",VLOOKUP(L$4,'4. Billing Determinants'!$B$19:$N$41,5,0)/'4. Billing Determinants'!$F$41*$D8,IF($E8="Non-RPP kWh",VLOOKUP(L$4,'4. Billing Determinants'!$B$19:$N$41,6,0)/'4. Billing Determinants'!$G$41*$D8,IF($E8="Distribution Rev.",VLOOKUP(L$4,'4. Billing Determinants'!$B$19:$N$41,8,0)/'4. Billing Determinants'!$I$41*$D8, VLOOKUP(L$4,'4. Billing Determinants'!$B$19:$N$41,3,0)/'4. Billing Determinants'!$D$41*$D8))))) -> -6625.824535 | M8: =IF(M$4="",0,IF($E8="kWh",VLOOKUP(M$4,'4. Billing Determinants'!$B$19:$N$41,4,0)/'4. Billing Determinants'!$E$41*$D8,IF($E8="kW",VLOOKUP(M$4,'4. Billing Determinants'!$B$19:$N$41,5,0)/'4. Billing Determinants'!$F$41*$D8,IF($E8="Non-RPP kWh",VLOOKUP(M$4,'4. Billing Determinants'!$B$19:$N$41,6,0)/'4. Billing Determinants'!$G$41*$D8,IF($E8="Distribution Rev.",VLOOKUP(M$4,'4. Billing Determinants'!$B$19:$N$41,8,0)/'4. Billing Determinants'!$I$41*$D8, VLOOKUP(M$4,'4. Billing Determinants'!$B$19:$N$41,3,0)/'4. Billing Determinants'!$D$41*$D8))))) -> -89.81189804 | N8: =IF(N$4="",0,IF($E8="kWh",VLOOKUP(N$4,'4. Billing Determinants'!$B$19:$N$41,4,0)/'4. Billing Determinants'!$E$41*$D8,IF($E8="kW",VLOOKUP(N$4,'4. Billing Determinants'!$B$19:$N$41,5,0)/'4. Billing Determinants'!$F$41*$D8,IF($E8="Non-RPP kWh",VLOOKUP(N$4,'4. Billing Determinants'!$B$19:$N$41,6,0)/'4. Billing Determinants'!$G$41*$D8,IF($E8="Distribution Rev.",VLOOKUP(N$4,'4. Billing Determinants'!$B$19:$N$41,8,0)/'4. Billing Determinants'!$I$41*$D8, VLOOKUP(N$4,'4. Billing Determinants'!$B$19:$N$41,3,0)/'4. Billing Determinants'!$D$41*$D8))))) -> 0 | O8: =IF(O$4="",0,IF($E8="kWh",VLOOKUP(O$4,'4. Billing Determinants'!$B$19:$N$41,4,0)/'4. Billing Determinants'!$E$41*$D8,IF($E8="kW",VLOOKUP(O$4,'4. Billing Determinants'!$B$19:$N$41,5,0)/'4. Billing Determinants'!$F$41*$D8,IF($E8="Non-RPP kWh",VLOOKUP(O$4,'4. Billing Determinants'!$B$19:$N$41,6,0)/'4. Billing Determinants'!$G$41*$D8,IF($E8="Distribution Rev.",VLOOKUP(O$4,'4. Billing Determinants'!$B$19:$N$41,8,0)/'4. Billing Determinants'!$I$41*$D8, VLOOKUP(O$4,'4. Billing Determinants'!$B$19:$N$41,3,0)/'4. Billing Determinants'!$D$41*$D8))))) -> 0 | P8: =IF(P$4="",0,IF($E8="kWh",VLOOKUP(P$4,'4. Billing Determinants'!$B$19:$N$41,4,0)/'4. Billing Determinants'!$E$41*$D8,IF($E8="kW",VLOOKUP(P$4,'4. Billing Determinants'!$B$19:$N$41,5,0)/'4. Billing Determinants'!$F$41*$D8,IF($E8="Non-RPP kWh",VLOOKUP(P$4,'4. Billing Determinants'!$B$19:$N$41,6,0)/'4. Billing Determinants'!$G$41*$D8,IF($E8="Distribution Rev.",VLOOKUP(P$4,'4. Billing Determinants'!$B$19:$N$41,8,0)/'4. Billing Determinants'!$I$41*$D8, VLOOKUP(P$4,'4. Billing Determinants'!$B$19:$N$41,3,0)/'4. Billing Determinants'!$D$41*$D8))))) -> 0 | Q8: =IF(Q$4="",0,IF($E8="kWh",VLOOKUP(Q$4,'4. Billing Determinants'!$B$19:$N$41,4,0)/'4. Billing Determinants'!$E$41*$D8,IF($E8="kW",VLOOKUP(Q$4,'4. Billing Determinants'!$B$19:$N$41,5,0)/'4. Billing Determinants'!$F$41*$D8,IF($E8="Non-RPP kWh",VLOOKUP(Q$4,'4. Billing Determinants'!$B$19:$N$41,6,0)/'4. Billing Determinants'!$G$41*$D8,IF($E8="Distribution Rev.",VLOOKUP(Q$4,'4. Billing Determinants'!$B$19:$N$41,8,0)/'4. Billing Determinants'!$I$41*$D8, VLOOKUP(Q$4,'4. Billing Determinants'!$B$19:$N$41,3,0)/'4. Billing Determinants'!$D$41*$D8))))) -> 0 | R8: =IF(R$4="",0,IF($E8="kWh",VLOOKUP(R$4,'4. Billing Determinants'!$B$19:$N$41,4,0)/'4. Billing Determinants'!$E$41*$D8,IF($E8="kW",VLOOKUP(R$4,'4. Billing Determinants'!$B$19:$N$41,5,0)/'4. Billing Determinants'!$F$41*$D8,IF($E8="Non-RPP kWh",VLOOKUP(R$4,'4. Billing Determinants'!$B$19:$N$41,6,0)/'4. Billing Determinants'!$G$41*$D8,IF($E8="Distribution Rev.",VLOOKUP(R$4,'4. Billing Determinants'!$B$19:$N$41,8,0)/'4. Billing Determinants'!$I$41*$D8, VLOOKUP(R$4,'4. Billing Determinants'!$B$19:$N$41,3,0)/'4. Billing Determinants'!$D$41*$D8))))) -> 0 | S8: =IF(S$4="",0,IF($E8="kWh",VLOOKUP(S$4,'4. Billing Determinants'!$B$19:$N$41,4,0)/'4. Billing Determinants'!$E$41*$D8,IF($E8="kW",VLOOKUP(S$4,'4. Billing Determinants'!$B$19:$N$41,5,0)/'4. Billing Determinants'!$F$41*$D8,IF($E8="Non-RPP kWh",VLOOKUP(S$4,'4. Billing Determinants'!$B$19:$N$41,6,0)/'4. Billing Determinants'!$G$41*$D8,IF($E8="Distribution Rev.",VLOOKUP(S$4,'4. Billing Determinants'!$B$19:$N$41,8,0)/'4. Billing Determinants'!$I$41*$D8, VLOOKUP(S$4,'4. Billing Determinants'!$B$19:$N$41,3,0)/'4. Billing Determinants'!$D$41*$D8))))) -> 0 | T8: =IF(T$4="",0,IF($E8="kWh",VLOOKUP(T$4,'4. Billing Determinants'!$B$19:$N$41,4,0)/'4. Billing Determinants'!$E$41*$D8,IF($E8="kW",VLOOKUP(T$4,'4. Billing Determinants'!$B$19:$N$41,5,0)/'4. Billing Determinants'!$F$41*$D8,IF($E8="Non-RPP kWh",VLOOKUP(T$4,'4. Billing Determinants'!$B$19:$N$41,6,0)/'4. Billing Determinants'!$G$41*$D8,IF($E8="Distribution Rev.",VLOOKUP(T$4,'4. Billing Determinants'!$B$19:$N$41,8,0)/'4. Billing Determinants'!$I$41*$D8, VLOOKUP(T$4,'4. Billing Determinants'!$B$19:$N$41,3,0)/'4. Billing Determinants'!$D$41*$D8))))) -> 0 | U8: =IF(U$4="",0,IF($E8="kWh",VLOOKUP(U$4,'4. Billing Determinants'!$B$19:$N$41,4,0)/'4. Billing Determinants'!$E$41*$D8,IF($E8="kW",VLOOKUP(U$4,'4. Billing Determinants'!$B$19:$N$41,5,0)/'4. Billing Determinants'!$F$41*$D8,IF($E8="Non-RPP kWh",VLOOKUP(U$4,'4. Billing Determinants'!$B$19:$N$41,6,0)/'4. Billing Determinants'!$G$41*$D8,IF($E8="Distribution Rev.",VLOOKUP(U$4,'4. Billing Determinants'!$B$19:$N$41,8,0)/'4. Billing Determinants'!$I$41*$D8, VLOOKUP(U$4,'4. Billing Determinants'!$B$19:$N$41,3,0)/'4. Billing Determinants'!$D$41*$D8))))) -> 0 | V8: =IF(V$4="",0,IF($E8="kWh",VLOOKUP(V$4,'4. Billing Determinants'!$B$19:$N$41,4,0)/'4. Billing Determinants'!$E$41*$D8,IF($E8="kW",VLOOKUP(V$4,'4. Billing Determinants'!$B$19:$N$41,5,0)/'4. Billing Determinants'!$F$41*$D8,IF($E8="Non-RPP kWh",VLOOKUP(V$4,'4. Billing Determinants'!$B$19:$N$41,6,0)/'4. Billing Determinants'!$G$41*$D8,IF($E8="Distribution Rev.",VLOOKUP(V$4,'4. Billing Determinants'!$B$19:$N$41,8,0)/'4. Billing Determinants'!$I$41*$D8, VLOOKUP(V$4,'4. Billing Determinants'!$B$19:$N$41,3,0)/'4. Billing Determinants'!$D$41*$D8))))) -> 0 | W8: =IF(W$4="",0,IF($E8="kWh",VLOOKUP(W$4,'4. Billing Determinants'!$B$19:$N$41,4,0)/'4. Billing Determinants'!$E$41*$D8,IF($E8="kW",VLOOKUP(W$4,'4. Billing Determinants'!$B$19:$N$41,5,0)/'4. Billing Determinants'!$F$41*$D8,IF($E8="Non-RPP kWh",VLOOKUP(W$4,'4. Billing Determinants'!$B$19:$N$41,6,0)/'4. Billing Determinants'!$G$41*$D8,IF($E8="Distribution Rev.",VLOOKUP(W$4,'4. Billing Determinants'!$B$19:$N$41,8,0)/'4. Billing Determinants'!$I$41*$D8, VLOOKUP(W$4,'4. Billing Determinants'!$B$19:$N$41,3,0)/'4. Billing Determinants'!$D$41*$D8))))) -> 0 | X8: =IF(X$4="",0,IF($E8="kWh",VLOOKUP(X$4,'4. Billing Determinants'!$B$19:$N$41,4,0)/'4. Billing Determinants'!$E$41*$D8,IF($E8="kW",VLOOKUP(X$4,'4. Billing Determinants'!$B$19:$N$41,5,0)/'4. Billing Determinants'!$F$41*$D8,IF($E8="Non-RPP kWh",VLOOKUP(X$4,'4. Billing Determinants'!$B$19:$N$41,6,0)/'4. Billing Determinants'!$G$41*$D8,IF($E8="Distribution Rev.",VLOOKUP(X$4,'4. Billing Determinants'!$B$19:$N$41,8,0)/'4. Billing Determinants'!$I$41*$D8, VLOOKUP(X$4,'4. Billing Determinants'!$B$19:$N$41,3,0)/'4. Billing Determinants'!$D$41*$D8))))) -> 0 | Y8: =IF(Y$4="",0,IF($E8="kWh",VLOOKUP(Y$4,'4. Billing Determinants'!$B$19:$N$41,4,0)/'4. Billing Determinants'!$E$41*$D8,IF($E8="kW",VLOOKUP(Y$4,'4. Billing Determinants'!$B$19:$N$41,5,0)/'4. Billing Determinants'!$F$41*$D8,IF($E8="Non-RPP kWh",VLOOKUP(Y$4,'4. Billing Determinants'!$B$19:$N$41,6,0)/'4. Billing Determinants'!$G$41*$D8,IF($E8="Distribution Rev.",VLOOKUP(Y$4,'4. Billing Determinants'!$B$19:$N$41,8,0)/'4. Billing Determinants'!$I$41*$D8, VLOOKUP(Y$4,'4. Billing Determinants'!$B$19:$N$41,3,0)/'4. Billing Determinants'!$D$41*$D8))))) -> 0
B9: RSVA - Power (excluding Global Adjustment) | C9: 1588 | D9: ='2. 2013 Continuity Schedule'!DC28 -> 1880004.395 | E9: kWh | F9: =IF(F$4="",0,IF($E9="kWh",VLOOKUP(F$4,'4. Billing Determinants'!$B$19:$N$41,4,0)/'4. Billing Determinants'!$E$41*$D9,IF($E9="kW",VLOOKUP(F$4,'4. Billing Determinants'!$B$19:$N$41,5,0)/'4. Billing Determinants'!$F$41*$D9,IF($E9="Non-RPP kWh",VLOOKUP(F$4,'4. Billing Determinants'!$B$19:$N$41,6,0)/'4. Billing Determinants'!$G$41*$D9,IF($E9="Distribution Rev.",VLOOKUP(F$4,'4. Billing Determinants'!$B$19:$N$41,8,0)/'4. Billing Determinants'!$I$41*$D9, VLOOKUP(F$4,'4. Billing Determinants'!$B$19:$N$41,3,0)/'4. Billing Determinants'!$D$41*$D9))))) -> 829085.6095 | G9: =IF(G$4="",0,IF($E9="kWh",VLOOKUP(G$4,'4. Billing Determinants'!$B$19:$N$41,4,0)/'4. Billing Determinants'!$E$41*$D9,IF($E9="kW",VLOOKUP(G$4,'4. Billing Determinants'!$B$19:$N$41,5,0)/'4. Billing Determinants'!$F$41*$D9,IF($E9="Non-RPP kWh",VLOOKUP(G$4,'4. Billing Determinants'!$B$19:$N$41,6,0)/'4. Billing Determinants'!$G$41*$D9,IF($E9="Distribution Rev.",VLOOKUP(G$4,'4. Billing Determinants'!$B$19:$N$41,8,0)/'4. Billing Determinants'!$I$41*$D9, VLOOKUP(G$4,'4. Billing Determinants'!$B$19:$N$41,3,0)/'4. Billing Determinants'!$D$41*$D9))))) -> 230204.942 | H9: =IF(H$4="",0,IF($E9="kWh",VLOOKUP(H$4,'4. Billing Determinants'!$B$19:$N$41,4,0)/'4. Billing Determinants'!$E$41*$D9,IF($E9="kW",VLOOKUP(H$4,'4. Billing Determinants'!$B$19:$N$41,5,0)/'4. Billing Determinants'!$F$41*$D9,IF($E9="Non-RPP kWh",VLOOKUP(H$4,'4. Billing Determinants'!$B$19:$N$41,6,0)/'4. Billing Determinants'!$G$41*$D9,IF($E9="Distribution Rev.",VLOOKUP(H$4,'4. Billing Determinants'!$B$19:$N$41,8,0)/'4. Billing Determinants'!$I$41*$D9, VLOOKUP(H$4,'4. Billing Determinants'!$B$19:$N$41,3,0)/'4. Billing Determinants'!$D$41*$D9))))) -> 588070.5492 | I9: =IF(I$4="",0,IF($E9="kWh",VLOOKUP(I$4,'4. Billing Determinants'!$B$19:$N$41,4,0)/'4. Billing Determinants'!$E$41*$D9,IF($E9="kW",VLOOKUP(I$4,'4. Billing Determinants'!$B$19:$N$41,5,0)/'4. Billing Determinants'!$F$41*$D9,IF($E9="Non-RPP kWh",VLOOKUP(I$4,'4. Billing Determinants'!$B$19:$N$41,6,0)/'4. Billing Determinants'!$G$41*$D9,IF($E9="Distribution Rev.",VLOOKUP(I$4,'4. Billing Determinants'!$B$19:$N$41,8,0)/'4. Billing Determinants'!$I$41*$D9, VLOOKUP(I$4,'4. Billing Determinants'!$B$19:$N$41,3,0)/'4. Billing Determinants'!$D$41*$D9))))) -> 138113.1473 | J9: =IF(J$4="",0,IF($E9="kWh",VLOOKUP(J$4,'4. Billing Determinants'!$B$19:$N$41,4,0)/'4. Billing Determinants'!$E$41*$D9,IF($E9="kW",VLOOKUP(J$4,'4. Billing Determinants'!$B$19:$N$41,5,0)/'4. Billing Determinants'!$F$41*$D9,IF($E9="Non-RPP kWh",VLOOKUP(J$4,'4. Billing Determinants'!$B$19:$N$41,6,0)/'4. Billing Determinants'!$G$41*$D9,IF($E9="Distribution Rev.",VLOOKUP(J$4,'4. Billing Determinants'!$B$19:$N$41,8,0)/'4. Billing Determinants'!$I$41*$D9, VLOOKUP(J$4,'4. Billing Determinants'!$B$19:$N$41,3,0)/'4. Billing Determinants'!$D$41*$D9))))) -> 73832.85487 | K9: =IF(K$4="",0,IF($E9="kWh",VLOOKUP(K$4,'4. Billing Determinants'!$B$19:$N$41,4,0)/'4. Billing Determinants'!$E$41*$D9,IF($E9="kW",VLOOKUP(K$4,'4. Billing Determinants'!$B$19:$N$41,5,0)/'4. Billing Determinants'!$F$41*$D9,IF($E9="Non-RPP kWh",VLOOKUP(K$4,'4. Billing Determinants'!$B$19:$N$41,6,0)/'4. Billing Determinants'!$G$41*$D9,IF($E9="Distribution Rev.",VLOOKUP(K$4,'4. Billing Determinants'!$B$19:$N$41,8,0)/'4. Billing Determinants'!$I$41*$D9, VLOOKUP(K$4,'4. Billing Determinants'!$B$19:$N$41,3,0)/'4. Billing Determinants'!$D$41*$D9))))) -> 15777.12101 | L9: =IF(L$4="",0,IF($E9="kWh",VLOOKUP(L$4,'4. Billing Determinants'!$B$19:$N$41,4,0)/'4. Billing Determinants'!$E$41*$D9,IF($E9="kW",VLOOKUP(L$4,'4. Billing Determinants'!$B$19:$N$41,5,0)/'4. Billing Determinants'!$F$41*$D9,IF($E9="Non-RPP kWh",VLOOKUP(L$4,'4. Billing Determinants'!$B$19:$N$41,6,0)/'4. Billing Determinants'!$G$41*$D9,IF($E9="Distribution Rev.",VLOOKUP(L$4,'4. Billing Determinants'!$B$19:$N$41,8,0)/'4. Billing Determinants'!$I$41*$D9, VLOOKUP(L$4,'4. Billing Determinants'!$B$19:$N$41,3,0)/'4. Billing Determinants'!$D$41*$D9))))) -> 4854.371003 | M9: =IF(M$4="",0,IF($E9="kWh",VLOOKUP(M$4,'4. Billing Determinants'!$B$19:$N$41,4,0)/'4. Billing Determinants'!$E$41*$D9,IF($E9="kW",VLOOKUP(M$4,'4. Billing Determinants'!$B$19:$N$41,5,0)/'4. Billing Determinants'!$F$41*$D9,IF($E9="Non-RPP kWh",VLOOKUP(M$4,'4. Billing Determinants'!$B$19:$N$41,6,0)/'4. Billing Determinants'!$G$41*$D9,IF($E9="Distribution Rev.",VLOOKUP(M$4,'4. Billing Determinants'!$B$19:$N$41,8,0)/'4. Billing Determinants'!$I$41*$D9, VLOOKUP(M$4,'4. Billing Determinants'!$B$19:$N$41,3,0)/'4. Billing Determinants'!$D$41*$D9))))) -> 65.80015382 | N9: =IF(N$4="",0,IF($E9="kWh",VLOOKUP(N$4,'4. Billing Determinants'!$B$19:$N$41,4,0)/'4. Billing Determinants'!$E$41*$D9,IF($E9="kW",VLOOKUP(N$4,'4. Billing Determinants'!$B$19:$N$41,5,0)/'4. Billing Determinants'!$F$41*$D9,IF($E9="Non-RPP kWh",VLOOKUP(N$4,'4. Billing Determinants'!$B$19:$N$41,6,0)/'4. Billing Determinants'!$G$41*$D9,IF($E9="Distribution Rev.",VLOOKUP(N$4,'4. Billing Determinants'!$B$19:$N$41,8,0)/'4. Billing Determinants'!$I$41*$D9, VLOOKUP(N$4,'4. Billing Determinants'!$B$19:$N$41,3,0)/'4. Billing Determinants'!$D$41*$D9))))) -> 0 | O9: =IF(O$4="",0,IF($E9="kWh",VLOOKUP(O$4,'4. Billing Determinants'!$B$19:$N$41,4,0)/'4. Billing Determinants'!$E$41*$D9,IF($E9="kW",VLOOKUP(O$4,'4. Billing Determinants'!$B$19:$N$41,5,0)/'4. Billing Determinants'!$F$41*$D9,IF($E9="Non-RPP kWh",VLOOKUP(O$4,'4. Billing Determinants'!$B$19:$N$41,6,0)/'4. Billing Determinants'!$G$41*$D9,IF($E9="Distribution Rev.",VLOOKUP(O$4,'4. Billing Determinants'!$B$19:$N$41,8,0)/'4. Billing Determinants'!$I$41*$D9, VLOOKUP(O$4,'4. Billing Determinants'!$B$19:$N$41,3,0)/'4. Billing Determinants'!$D$41*$D9))))) -> 0 | P9: =IF(P$4="",0,IF($E9="kWh",VLOOKUP(P$4,'4. Billing Determinants'!$B$19:$N$41,4,0)/'4. Billing Determinants'!$E$41*$D9,IF($E9="kW",VLOOKUP(P$4,'4. Billing Determinants'!$B$19:$N$41,5,0)/'4. Billing Determinants'!$F$41*$D9,IF($E9="Non-RPP kWh",VLOOKUP(P$4,'4. Billing Determinants'!$B$19:$N$41,6,0)/'4. Billing Determinants'!$G$41*$D9,IF($E9="Distribution Rev.",VLOOKUP(P$4,'4. Billing Determinants'!$B$19:$N$41,8,0)/'4. Billing Determinants'!$I$41*$D9, VLOOKUP(P$4,'4. Billing Determinants'!$B$19:$N$41,3,0)/'4. Billing Determinants'!$D$41*$D9))))) -> 0 | Q9: =IF(Q$4="",0,IF($E9="kWh",VLOOKUP(Q$4,'4. Billing Determinants'!$B$19:$N$41,4,0)/'4. Billing Determinants'!$E$41*$D9,IF($E9="kW",VLOOKUP(Q$4,'4. Billing Determinants'!$B$19:$N$41,5,0)/'4. Billing Determinants'!$F$41*$D9,IF($E9="Non-RPP kWh",VLOOKUP(Q$4,'4. Billing Determinants'!$B$19:$N$41,6,0)/'4. Billing Determinants'!$G$41*$D9,IF($E9="Distribution Rev.",VLOOKUP(Q$4,'4. Billing Determinants'!$B$19:$N$41,8,0)/'4. Billing Determinants'!$I$41*$D9, VLOOKUP(Q$4,'4. Billing Determinants'!$B$19:$N$41,3,0)/'4. Billing Determinants'!$D$41*$D9))))) -> 0 | R9: =IF(R$4="",0,IF($E9="kWh",VLOOKUP(R$4,'4. Billing Determinants'!$B$19:$N$41,4,0)/'4. Billing Determinants'!$E$41*$D9,IF($E9="kW",VLOOKUP(R$4,'4. Billing Determinants'!$B$19:$N$41,5,0)/'4. Billing Determinants'!$F$41*$D9,IF($E9="Non-RPP kWh",VLOOKUP(R$4,'4. Billing Determinants'!$B$19:$N$41,6,0)/'4. Billing Determinants'!$G$41*$D9,IF($E9="Distribution Rev.",VLOOKUP(R$4,'4. Billing Determinants'!$B$19:$N$41,8,0)/'4. Billing Determinants'!$I$41*$D9, VLOOKUP(R$4,'4. Billing Determinants'!$B$19:$N$41,3,0)/'4. Billing Determinants'!$D$41*$D9))))) -> 0 | S9: =IF(S$4="",0,IF($E9="kWh",VLOOKUP(S$4,'4. Billing Determinants'!$B$19:$N$41,4,0)/'4. Billing Determinants'!$E$41*$D9,IF($E9="kW",VLOOKUP(S$4,'4. Billing Determinants'!$B$19:$N$41,5,0)/'4. Billing Determinants'!$F$41*$D9,IF($E9="Non-RPP kWh",VLOOKUP(S$4,'4. Billing Determinants'!$B$19:$N$41,6,0)/'4. Billing Determinants'!$G$41*$D9,IF($E9="Distribution Rev.",VLOOKUP(S$4,'4. Billing Determinants'!$B$19:$N$41,8,0)/'4. Billing Determinants'!$I$41*$D9, VLOOKUP(S$4,'4. Billing Determinants'!$B$19:$N$41,3,0)/'4. Billing Determinants'!$D$41*$D9))))) -> 0 | T9: =IF(T$4="",0,IF($E9="kWh",VLOOKUP(T$4,'4. Billing Determinants'!$B$19:$N$41,4,0)/'4. Billing Determinants'!$E$41*$D9,IF($E9="kW",VLOOKUP(T$4,'4. Billing Determinants'!$B$19:$N$41,5,0)/'4. Billing Determinants'!$F$41*$D9,IF($E9="Non-RPP kWh",VLOOKUP(T$4,'4. Billing Determinants'!$B$19:$N$41,6,0)/'4. Billing Determinants'!$G$41*$D9,IF($E9="Distribution Rev.",VLOOKUP(T$4,'4. Billing Determinants'!$B$19:$N$41,8,0)/'4. Billing Determinants'!$I$41*$D9, VLOOKUP(T$4,'4. Billing Determinants'!$B$19:$N$41,3,0)/'4. Billing Determinants'!$D$41*$D9))))) -> 0 | U9: =IF(U$4="",0,IF($E9="kWh",VLOOKUP(U$4,'4. Billing Determinants'!$B$19:$N$41,4,0)/'4. Billing Determinants'!$E$41*$D9,IF($E9="kW",VLOOKUP(U$4,'4. Billing Determinants'!$B$19:$N$41,5,0)/'4. Billing Determinants'!$F$41*$D9,IF($E9="Non-RPP kWh",VLOOKUP(U$4,'4. Billing Determinants'!$B$19:$N$41,6,0)/'4. Billing Determinants'!$G$41*$D9,IF($E9="Distribution Rev.",VLOOKUP(U$4,'4. Billing Determinants'!$B$19:$N$41,8,0)/'4. Billing Determinants'!$I$41*$D9, VLOOKUP(U$4,'4. Billing Determinants'!$B$19:$N$41,3,0)/'4. Billing Determinants'!$D$41*$D9))))) -> 0 | V9: =IF(V$4="",0,IF($E9="kWh",VLOOKUP(V$4,'4. Billing Determinants'!$B$19:$N$41,4,0)/'4. Billing Determinants'!$E$41*$D9,IF($E9="kW",VLOOKUP(V$4,'4. Billing Determinants'!$B$19:$N$41,5,0)/'4. Billing Determinants'!$F$41*$D9,IF($E9="Non-RPP kWh",VLOOKUP(V$4,'4. Billing Determinants'!$B$19:$N$41,6,0)/'4. Billing Determinants'!$G$41*$D9,IF($E9="Distribution Rev.",VLOOKUP(V$4,'4. Billing Determinants'!$B$19:$N$41,8,0)/'4. Billing Determinants'!$I$41*$D9, VLOOKUP(V$4,'4. Billing Determinants'!$B$19:$N$41,3,0)/'4. Billing Determinants'!$D$41*$D9))))) -> 0 | W9: =IF(W$4="",0,IF($E9="kWh",VLOOKUP(W$4,'4. Billing Determinants'!$B$19:$N$41,4,0)/'4. Billing Determinants'!$E$41*$D9,IF($E9="kW",VLOOKUP(W$4,'4. Billing Determinants'!$B$19:$N$41,5,0)/'4. Billing Determinants'!$F$41*$D9,IF($E9="Non-RPP kWh",VLOOKUP(W$4,'4. Billing Determinants'!$B$19:$N$41,6,0)/'4. Billing Determinants'!$G$41*$D9,IF($E9="Distribution Rev.",VLOOKUP(W$4,'4. Billing Determinants'!$B$19:$N$41,8,0)/'4. Billing Determinants'!$I$41*$D9, VLOOKUP(W$4,'4. Billing Determinants'!$B$19:$N$41,3,0)/'4. Billing Determinants'!$D$41*$D9))))) -> 0 | X9: =IF(X$4="",0,IF($E9="kWh",VLOOKUP(X$4,'4. Billing Determinants'!$B$19:$N$41,4,0)/'4. Billing Determinants'!$E$41*$D9,IF($E9="kW",VLOOKUP(X$4,'4. Billing Determinants'!$B$19:$N$41,5,0)/'4. Billing Determinants'!$F$41*$D9,IF($E9="Non-RPP kWh",VLOOKUP(X$4,'4. Billing Determinants'!$B$19:$N$41,6,0)/'4. Billing Determinants'!$G$41*$D9,IF($E9="Distribution Rev.",VLOOKUP(X$4,'4. Billing Determinants'!$B$19:$N$41,8,0)/'4. Billing Determinants'!$I$41*$D9, VLOOKUP(X$4,'4. Billing Determinants'!$B$19:$N$41,3,0)/'4. Billing Determinants'!$D$41*$D9))))) -> 0 | Y9: =IF(Y$4="",0,IF($E9="kWh",VLOOKUP(Y$4,'4. Billing Determinants'!$B$19:$N$41,4,0)/'4. Billing Determinants'!$E$41*$D9,IF($E9="kW",VLOOKUP(Y$4,'4. Billing Determinants'!$B$19:$N$41,5,0)/'4. Billing Determinants'!$F$41*$D9,IF($E9="Non-RPP kWh",VLOOKUP(Y$4,'4. Billing Determinants'!$B$19:$N$41,6,0)/'4. Billing Determinants'!$G$41*$D9,IF($E9="Distribution Rev.",VLOOKUP(Y$4,'4. Billing Determinants'!$B$19:$N$41,8,0)/'4. Billing Determinants'!$I$41*$D9, VLOOKUP(Y$4,'4. Billing Determinants'!$B$19:$N$41,3,0)/'4. Billing Determinants'!$D$41*$D9))))) -> 0
B10: RSVA - Global Adjustment | C10: 1589 | D10: ='2. 2013 Continuity Schedule'!DC29 -> 1086125.927 | E10: Non-RPP kWh | F10: =IF(F$4="",0,IF($E10="kWh",VLOOKUP(F$4,'4. Billing Determinants'!$B$19:$N$41,4,0)/'4. Billing Determinants'!$E$41*$D10,IF($E10="kW",VLOOKUP(F$4,'4. Billing Determinants'!$B$19:$N$41,5,0)/'4. Billing Determinants'!$F$41*$D10,IF($E10="Non-RPP kWh",VLOOKUP(F$4,'4. Billing Determinants'!$B$19:$N$41,6,0)/'4. Billing Determinants'!$G$41*$D10,IF($E10="Distribution Rev.",VLOOKUP(F$4,'4. Billing Determinants'!$B$19:$N$41,8,0)/'4. Billing Determinants'!$I$41*$D10, VLOOKUP(F$4,'4. Billing Determinants'!$B$19:$N$41,3,0)/'4. Billing Determinants'!$D$41*$D10))))) -> 261511.7966 | G10: =IF(G$4="",0,IF($E10="kWh",VLOOKUP(G$4,'4. Billing Determinants'!$B$19:$N$41,4,0)/'4. Billing Determinants'!$E$41*$D10,IF($E10="kW",VLOOKUP(G$4,'4. Billing Determinants'!$B$19:$N$41,5,0)/'4. Billing Determinants'!$F$41*$D10,IF($E10="Non-RPP kWh",VLOOKUP(G$4,'4. Billing Determinants'!$B$19:$N$41,6,0)/'4. Billing Determinants'!$G$41*$D10,IF($E10="Distribution Rev.",VLOOKUP(G$4,'4. Billing Determinants'!$B$19:$N$41,8,0)/'4. Billing Determinants'!$I$41*$D10, VLOOKUP(G$4,'4. Billing Determinants'!$B$19:$N$41,3,0)/'4. Billing Determinants'!$D$41*$D10))))) -> 129774.7217 | H10: =IF(H$4="",0,IF($E10="kWh",VLOOKUP(H$4,'4. Billing Determinants'!$B$19:$N$41,4,0)/'4. Billing Determinants'!$E$41*$D10,IF($E10="kW",VLOOKUP(H$4,'4. Billing Determinants'!$B$19:$N$41,5,0)/'4. Billing Determinants'!$F$41*$D10,IF($E10="Non-RPP kWh",VLOOKUP(H$4,'4. Billing Determinants'!$B$19:$N$41,6,0)/'4. Billing Determinants'!$G$41*$D10,IF($E10="Distribution Rev.",VLOOKUP(H$4,'4. Billing Determinants'!$B$19:$N$41,8,0)/'4. Billing Determinants'!$I$41*$D10, VLOOKUP(H$4,'4. Billing Determinants'!$B$19:$N$41,3,0)/'4. Billing Determinants'!$D$41*$D10))))) -> 426429.9517 | I10: =IF(I$4="",0,IF($E10="kWh",VLOOKUP(I$4,'4. Billing Determinants'!$B$19:$N$41,4,0)/'4. Billing Determinants'!$E$41*$D10,IF($E10="kW",VLOOKUP(I$4,'4. Billing Determinants'!$B$19:$N$41,5,0)/'4. Billing Determinants'!$F$41*$D10,IF($E10="Non-RPP kWh",VLOOKUP(I$4,'4. Billing Determinants'!$B$19:$N$41,6,0)/'4. Billing Determinants'!$G$41*$D10,IF($E10="Distribution Rev.",VLOOKUP(I$4,'4. Billing Determinants'!$B$19:$N$41,8,0)/'4. Billing Determinants'!$I$41*$D10, VLOOKUP(I$4,'4. Billing Determinants'!$B$19:$N$41,3,0)/'4. Billing Determinants'!$D$41*$D10))))) -> 21025.35153 | J10: =IF(J$4="",0,IF($E10="kWh",VLOOKUP(J$4,'4. Billing Determinants'!$B$19:$N$41,4,0)/'4. Billing Determinants'!$E$41*$D10,IF($E10="kW",VLOOKUP(J$4,'4. Billing Determinants'!$B$19:$N$41,5,0)/'4. Billing Determinants'!$F$41*$D10,IF($E10="Non-RPP kWh",VLOOKUP(J$4,'4. Billing Determinants'!$B$19:$N$41,6,0)/'4. Billing Determinants'!$G$41*$D10,IF($E10="Distribution Rev.",VLOOKUP(J$4,'4. Billing Determinants'!$B$19:$N$41,8,0)/'4. Billing Determinants'!$I$41*$D10, VLOOKUP(J$4,'4. Billing Determinants'!$B$19:$N$41,3,0)/'4. Billing Determinants'!$D$41*$D10))))) -> 247253.8255 | K10: =IF(K$4="",0,IF($E10="kWh",VLOOKUP(K$4,'4. Billing Determinants'!$B$19:$N$41,4,0)/'4. Billing Determinants'!$E$41*$D10,IF($E10="kW",VLOOKUP(K$4,'4. Billing Determinants'!$B$19:$N$41,5,0)/'4. Billing Determinants'!$F$41*$D10,IF($E10="Non-RPP kWh",VLOOKUP(K$4,'4. Billing Determinants'!$B$19:$N$41,6,0)/'4. Billing Determinants'!$G$41*$D10,IF($E10="Distribution Rev.",VLOOKUP(K$4,'4. Billing Determinants'!$B$19:$N$41,8,0)/'4. Billing Determinants'!$I$41*$D10, VLOOKUP(K$4,'4. Billing Determinants'!$B$19:$N$41,3,0)/'4. Billing Determinants'!$D$41*$D10))))) -> 49.03458565 | L10: =IF(L$4="",0,IF($E10="kWh",VLOOKUP(L$4,'4. Billing Determinants'!$B$19:$N$41,4,0)/'4. Billing Determinants'!$E$41*$D10,IF($E10="kW",VLOOKUP(L$4,'4. Billing Determinants'!$B$19:$N$41,5,0)/'4. Billing Determinants'!$F$41*$D10,IF($E10="Non-RPP kWh",VLOOKUP(L$4,'4. Billing Determinants'!$B$19:$N$41,6,0)/'4. Billing Determinants'!$G$41*$D10,IF($E10="Distribution Rev.",VLOOKUP(L$4,'4. Billing Determinants'!$B$19:$N$41,8,0)/'4. Billing Determinants'!$I$41*$D10, VLOOKUP(L$4,'4. Billing Determinants'!$B$19:$N$41,3,0)/'4. Billing Determinants'!$D$41*$D10))))) -> 81.24529631 | M10: =IF(M$4="",0,IF($E10="kWh",VLOOKUP(M$4,'4. Billing Determinants'!$B$19:$N$41,4,0)/'4. Billing Determinants'!$E$41*$D10,IF($E10="kW",VLOOKUP(M$4,'4. Billing Determinants'!$B$19:$N$41,5,0)/'4. Billing Determinants'!$F$41*$D10,IF($E10="Non-RPP kWh",VLOOKUP(M$4,'4. Billing Determinants'!$B$19:$N$41,6,0)/'4. Billing Determinants'!$G$41*$D10,IF($E10="Distribution Rev.",VLOOKUP(M$4,'4. Billing Determinants'!$B$19:$N$41,8,0)/'4. Billing Determinants'!$I$41*$D10, VLOOKUP(M$4,'4. Billing Determinants'!$B$19:$N$41,3,0)/'4. Billing Determinants'!$D$41*$D10))))) -> 0 | N10: =IF(N$4="",0,IF($E10="kWh",VLOOKUP(N$4,'4. Billing Determinants'!$B$19:$N$41,4,0)/'4. Billing Determinants'!$E$41*$D10,IF($E10="kW",VLOOKUP(N$4,'4. Billing Determinants'!$B$19:$N$41,5,0)/'4. Billing Determinants'!$F$41*$D10,IF($E10="Non-RPP kWh",VLOOKUP(N$4,'4. Billing Determinants'!$B$19:$N$41,6,0)/'4. Billing Determinants'!$G$41*$D10,IF($E10="Distribution Rev.",VLOOKUP(N$4,'4. Billing Determinants'!$B$19:$N$41,8,0)/'4. Billing Determinants'!$I$41*$D10, VLOOKUP(N$4,'4. Billing Determinants'!$B$19:$N$41,3,0)/'4. Billing Determinants'!$D$41*$D10))))) -> 0 | O10: =IF(O$4="",0,IF($E10="kWh",VLOOKUP(O$4,'4. Billing Determinants'!$B$19:$N$41,4,0)/'4. Billing Determinants'!$E$41*$D10,IF($E10="kW",VLOOKUP(O$4,'4. Billing Determinants'!$B$19:$N$41,5,0)/'4. Billing Determinants'!$F$41*$D10,IF($E10="Non-RPP kWh",VLOOKUP(O$4,'4. Billing Determinants'!$B$19:$N$41,6,0)/'4. Billing Determinants'!$G$41*$D10,IF($E10="Distribution Rev.",VLOOKUP(O$4,'4. Billing Determinants'!$B$19:$N$41,8,0)/'4. Billing Determinants'!$I$41*$D10, VLOOKUP(O$4,'4. Billing Determinants'!$B$19:$N$41,3,0)/'4. Billing Determinants'!$D$41*$D10))))) -> 0 | P10: =IF(P$4="",0,IF($E10="kWh",VLOOKUP(P$4,'4. Billing Determinants'!$B$19:$N$41,4,0)/'4. Billing Determinants'!$E$41*$D10,IF($E10="kW",VLOOKUP(P$4,'4. Billing Determinants'!$B$19:$N$41,5,0)/'4. Billing Determinants'!$F$41*$D10,IF($E10="Non-RPP kWh",VLOOKUP(P$4,'4. Billing Determinants'!$B$19:$N$41,6,0)/'4. Billing Determinants'!$G$41*$D10,IF($E10="Distribution Rev.",VLOOKUP(P$4,'4. Billing Determinants'!$B$19:$N$41,8,0)/'4. Billing Determinants'!$I$41*$D10, VLOOKUP(P$4,'4. Billing Determinants'!$B$19:$N$41,3,0)/'4. Billing Determinants'!$D$41*$D10))))) -> 0 | Q10: =IF(Q$4="",0,IF($E10="kWh",VLOOKUP(Q$4,'4. Billing Determinants'!$B$19:$N$41,4,0)/'4. Billing Determinants'!$E$41*$D10,IF($E10="kW",VLOOKUP(Q$4,'4. Billing Determinants'!$B$19:$N$41,5,0)/'4. Billing Determinants'!$F$41*$D10,IF($E10="Non-RPP kWh",VLOOKUP(Q$4,'4. Billing Determinants'!$B$19:$N$41,6,0)/'4. Billing Determinants'!$G$41*$D10,IF($E10="Distribution Rev.",VLOOKUP(Q$4,'4. Billing Determinants'!$B$19:$N$41,8,0)/'4. Billing Determinants'!$I$41*$D10, VLOOKUP(Q$4,'4. Billing Determinants'!$B$19:$N$41,3,0)/'4. Billing Determinants'!$D$41*$D10))))) -> 0 | R10: =IF(R$4="",0,IF($E10="kWh",VLOOKUP(R$4,'4. Billing Determinants'!$B$19:$N$41,4,0)/'4. Billing Determinants'!$E$41*$D10,IF($E10="kW",VLOOKUP(R$4,'4. Billing Determinants'!$B$19:$N$41,5,0)/'4. Billing Determinants'!$F$41*$D10,IF($E10="Non-RPP kWh",VLOOKUP(R$4,'4. Billing Determinants'!$B$19:$N$41,6,0)/'4. Billing Determinants'!$G$41*$D10,IF($E10="Distribution Rev.",VLOOKUP(R$4,'4. Billing Determinants'!$B$19:$N$41,8,0)/'4. Billing Determinants'!$I$41*$D10, VLOOKUP(R$4,'4. Billing Determinants'!$B$19:$N$41,3,0)/'4. Billing Determinants'!$D$41*$D10))))) -> 0 | S10: =IF(S$4="",0,IF($E10="kWh",VLOOKUP(S$4,'4. Billing Determinants'!$B$19:$N$41,4,0)/'4. Billing Determinants'!$E$41*$D10,IF($E10="kW",VLOOKUP(S$4,'4. Billing Determinants'!$B$19:$N$41,5,0)/'4. Billing Determinants'!$F$41*$D10,IF($E10="Non-RPP kWh",VLOOKUP(S$4,'4. Billing Determinants'!$B$19:$N$41,6,0)/'4. Billing Determinants'!$G$41*$D10,IF($E10="Distribution Rev.",VLOOKUP(S$4,'4. Billing Determinants'!$B$19:$N$41,8,0)/'4. Billing Determinants'!$I$41*$D10, VLOOKUP(S$4,'4. Billing Determinants'!$B$19:$N$41,3,0)/'4. Billing Determinants'!$D$41*$D10))))) -> 0 | T10: =IF(T$4="",0,IF($E10="kWh",VLOOKUP(T$4,'4. Billing Determinants'!$B$19:$N$41,4,0)/'4. Billing Determinants'!$E$41*$D10,IF($E10="kW",VLOOKUP(T$4,'4. Billing Determinants'!$B$19:$N$41,5,0)/'4. Billing Determinants'!$F$41*$D10,IF($E10="Non-RPP kWh",VLOOKUP(T$4,'4. Billing Determinants'!$B$19:$N$41,6,0)/'4. Billing Determinants'!$G$41*$D10,IF($E10="Distribution Rev.",VLOOKUP(T$4,'4. Billing Determinants'!$B$19:$N$41,8,0)/'4. Billing Determinants'!$I$41*$D10, VLOOKUP(T$4,'4. Billing Determinants'!$B$19:$N$41,3,0)/'4. Billing Determinants'!$D$41*$D10))))) -> 0 | U10: =IF(U$4="",0,IF($E10="kWh",VLOOKUP(U$4,'4. Billing Determinants'!$B$19:$N$41,4,0)/'4. Billing Determinants'!$E$41*$D10,IF($E10="kW",VLOOKUP(U$4,'4. Billing Determinants'!$B$19:$N$41,5,0)/'4. Billing Determinants'!$F$41*$D10,IF($E10="Non-RPP kWh",VLOOKUP(U$4,'4. Billing Determinants'!$B$19:$N$41,6,0)/'4. Billing Determinants'!$G$41*$D10,IF($E10="Distribution Rev.",VLOOKUP(U$4,'4. Billing Determinants'!$B$19:$N$41,8,0)/'4. Billing Determinants'!$I$41*$D10, VLOOKUP(U$4,'4. Billing Determinants'!$B$19:$N$41,3,0)/'4. Billing Determinants'!$D$41*$D10))))) -> 0 | V10: =IF(V$4="",0,IF($E10="kWh",VLOOKUP(V$4,'4. Billing Determinants'!$B$19:$N$41,4,0)/'4. Billing Determinants'!$E$41*$D10,IF($E10="kW",VLOOKUP(V$4,'4. Billing Determinants'!$B$19:$N$41,5,0)/'4. Billing Determinants'!$F$41*$D10,IF($E10="Non-RPP kWh",VLOOKUP(V$4,'4. Billing Determinants'!$B$19:$N$41,6,0)/'4. Billing Determinants'!$G$41*$D10,IF($E10="Distribution Rev.",VLOOKUP(V$4,'4. Billing Determinants'!$B$19:$N$41,8,0)/'4. Billing Determinants'!$I$41*$D10, VLOOKUP(V$4,'4. Billing Determinants'!$B$19:$N$41,3,0)/'4. Billing Determinants'!$D$41*$D10))))) -> 0 | W10: =IF(W$4="",0,IF($E10="kWh",VLOOKUP(W$4,'4. Billing Determinants'!$B$19:$N$41,4,0)/'4. Billing Determinants'!$E$41*$D10,IF($E10="kW",VLOOKUP(W$4,'4. Billing Determinants'!$B$19:$N$41,5,0)/'4. Billing Determinants'!$F$41*$D10,IF($E10="Non-RPP kWh",VLOOKUP(W$4,'4. Billing Determinants'!$B$19:$N$41,6,0)/'4. Billing Determinants'!$G$41*$D10,IF($E10="Distribution Rev.",VLOOKUP(W$4,'4. Billing Determinants'!$B$19:$N$41,8,0)/'4. Billing Determinants'!$I$41*$D10, VLOOKUP(W$4,'4. Billing Determinants'!$B$19:$N$41,3,0)/'4. Billing Determinants'!$D$41*$D10))))) -> 0 | X10: =IF(X$4="",0,IF($E10="kWh",VLOOKUP(X$4,'4. Billing Determinants'!$B$19:$N$41,4,0)/'4. Billing Determinants'!$E$41*$D10,IF($E10="kW",VLOOKUP(X$4,'4. Billing Determinants'!$B$19:$N$41,5,0)/'4. Billing Determinants'!$F$41*$D10,IF($E10="Non-RPP kWh",VLOOKUP(X$4,'4. Billing Determinants'!$B$19:$N$41,6,0)/'4. Billing Determinants'!$G$41*$D10,IF($E10="Distribution Rev.",VLOOKUP(X$4,'4. Billing Determinants'!$B$19:$N$41,8,0)/'4. Billing Determinants'!$I$41*$D10, VLOOKUP(X$4,'4. Billing Determinants'!$B$19:$N$41,3,0)/'4. Billing Determinants'!$D$41*$D10))))) -> 0 | Y10: =IF(Y$4="",0,IF($E10="kWh",VLOOKUP(Y$4,'4. Billing Determinants'!$B$19:$N$41,4,0)/'4. Billing Determinants'!$E$41*$D10,IF($E10="kW",VLOOKUP(Y$4,'4. Billing Determinants'!$B$19:$N$41,5,0)/'4. Billing Determinants'!$F$41*$D10,IF($E10="Non-RPP kWh",VLOOKUP(Y$4,'4. Billing Determinants'!$B$19:$N$41,6,0)/'4. Billing Determinants'!$G$41*$D10,IF($E10="Distribution Rev.",VLOOKUP(Y$4,'4. Billing Determinants'!$B$19:$N$41,8,0)/'4. Billing Determinants'!$I$41*$D10, VLOOKUP(Y$4,'4. Billing Determinants'!$B$19:$N$41,3,0)/'4. Billing Determinants'!$D$41*$D10))))) -> 0
B11: Recovery of Regulatory Asset Balances | C11: 1590 | D11: ='2. 2013 Continuity Schedule'!DC30 -> 9.276845958e-11 | E11: kWh | F11: =IF(F$4="",0,IF($E11="kWh",VLOOKUP(F$4,'4. Billing Determinants'!$B$19:$N$41,4,0)/'4. Billing Determinants'!$E$41*$D11,IF($E11="kW",VLOOKUP(F$4,'4. Billing Determinants'!$B$19:$N$41,5,0)/'4. Billing Determinants'!$F$41*$D11,IF($E11="Non-RPP kWh",VLOOKUP(F$4,'4. Billing Determinants'!$B$19:$N$41,6,0)/'4. Billing Determinants'!$G$41*$D11,IF($E11="Distribution Rev.",VLOOKUP(F$4,'4. Billing Determinants'!$B$19:$N$41,8,0)/'4. Billing Determinants'!$I$41*$D11, VLOOKUP(F$4,'4. Billing Determinants'!$B$19:$N$41,3,0)/'4. Billing Determinants'!$D$41*$D11))))) -> 4.091107183e-11 | G11: =IF(G$4="",0,IF($E11="kWh",VLOOKUP(G$4,'4. Billing Determinants'!$B$19:$N$41,4,0)/'4. Billing Determinants'!$E$41*$D11,IF($E11="kW",VLOOKUP(G$4,'4. Billing Determinants'!$B$19:$N$41,5,0)/'4. Billing Determinants'!$F$41*$D11,IF($E11="Non-RPP kWh",VLOOKUP(G$4,'4. Billing Determinants'!$B$19:$N$41,6,0)/'4. Billing Determinants'!$G$41*$D11,IF($E11="Distribution Rev.",VLOOKUP(G$4,'4. Billing Determinants'!$B$19:$N$41,8,0)/'4. Billing Determinants'!$I$41*$D11, VLOOKUP(G$4,'4. Billing Determinants'!$B$19:$N$41,3,0)/'4. Billing Determinants'!$D$41*$D11))))) -> 1.135941911e-11 | H11: =IF(H$4="",0,IF($E11="kWh",VLOOKUP(H$4,'4. Billing Determinants'!$B$19:$N$41,4,0)/'4. Billing Determinants'!$E$41*$D11,IF($E11="kW",VLOOKUP(H$4,'4. Billing Determinants'!$B$19:$N$41,5,0)/'4. Billing Determinants'!$F$41*$D11,IF($E11="Non-RPP kWh",VLOOKUP(H$4,'4. Billing Determinants'!$B$19:$N$41,6,0)/'4. Billing Determinants'!$G$41*$D11,IF($E11="Distribution Rev.",VLOOKUP(H$4,'4. Billing Determinants'!$B$19:$N$41,8,0)/'4. Billing Determinants'!$I$41*$D11, VLOOKUP(H$4,'4. Billing Determinants'!$B$19:$N$41,3,0)/'4. Billing Determinants'!$D$41*$D11))))) -> 2.901822949e-11 | I11: =IF(I$4="",0,IF($E11="kWh",VLOOKUP(I$4,'4. Billing Determinants'!$B$19:$N$41,4,0)/'4. Billing Determinants'!$E$41*$D11,IF($E11="kW",VLOOKUP(I$4,'4. Billing Determinants'!$B$19:$N$41,5,0)/'4. Billing Determinants'!$F$41*$D11,IF($E11="Non-RPP kWh",VLOOKUP(I$4,'4. Billing Determinants'!$B$19:$N$41,6,0)/'4. Billing Determinants'!$G$41*$D11,IF($E11="Distribution Rev.",VLOOKUP(I$4,'4. Billing Determinants'!$B$19:$N$41,8,0)/'4. Billing Determinants'!$I$41*$D11, VLOOKUP(I$4,'4. Billing Determinants'!$B$19:$N$41,3,0)/'4. Billing Determinants'!$D$41*$D11))))) -> 6.815167006e-12 | J11: =IF(J$4="",0,IF($E11="kWh",VLOOKUP(J$4,'4. Billing Determinants'!$B$19:$N$41,4,0)/'4. Billing Determinants'!$E$41*$D11,IF($E11="kW",VLOOKUP(J$4,'4. Billing Determinants'!$B$19:$N$41,5,0)/'4. Billing Determinants'!$F$41*$D11,IF($E11="Non-RPP kWh",VLOOKUP(J$4,'4. Billing Determinants'!$B$19:$N$41,6,0)/'4. Billing Determinants'!$G$41*$D11,IF($E11="Distribution Rev.",VLOOKUP(J$4,'4. Billing Determinants'!$B$19:$N$41,8,0)/'4. Billing Determinants'!$I$41*$D11, VLOOKUP(J$4,'4. Billing Determinants'!$B$19:$N$41,3,0)/'4. Billing Determinants'!$D$41*$D11))))) -> 3.643268192e-12 | K11: =IF(K$4="",0,IF($E11="kWh",VLOOKUP(K$4,'4. Billing Determinants'!$B$19:$N$41,4,0)/'4. Billing Determinants'!$E$41*$D11,IF($E11="kW",VLOOKUP(K$4,'4. Billing Determinants'!$B$19:$N$41,5,0)/'4. Billing Determinants'!$F$41*$D11,IF($E11="Non-RPP kWh",VLOOKUP(K$4,'4. Billing Determinants'!$B$19:$N$41,6,0)/'4. Billing Determinants'!$G$41*$D11,IF($E11="Distribution Rev.",VLOOKUP(K$4,'4. Billing Determinants'!$B$19:$N$41,8,0)/'4. Billing Determinants'!$I$41*$D11, VLOOKUP(K$4,'4. Billing Determinants'!$B$19:$N$41,3,0)/'4. Billing Determinants'!$D$41*$D11))))) -> 7.78519038e-13 | L11: =IF(L$4="",0,IF($E11="kWh",VLOOKUP(L$4,'4. Billing Determinants'!$B$19:$N$41,4,0)/'4. Billing Determinants'!$E$41*$D11,IF($E11="kW",VLOOKUP(L$4,'4. Billing Determinants'!$B$19:$N$41,5,0)/'4. Billing Determinants'!$F$41*$D11,IF($E11="Non-RPP kWh",VLOOKUP(L$4,'4. Billing Determinants'!$B$19:$N$41,6,0)/'4. Billing Determinants'!$G$41*$D11,IF($E11="Distribution Rev.",VLOOKUP(L$4,'4. Billing Determinants'!$B$19:$N$41,8,0)/'4. Billing Determinants'!$I$41*$D11, VLOOKUP(L$4,'4. Billing Determinants'!$B$19:$N$41,3,0)/'4. Billing Determinants'!$D$41*$D11))))) -> 2.395380146e-13 | M11: =IF(M$4="",0,IF($E11="kWh",VLOOKUP(M$4,'4. Billing Determinants'!$B$19:$N$41,4,0)/'4. Billing Determinants'!$E$41*$D11,IF($E11="kW",VLOOKUP(M$4,'4. Billing Determinants'!$B$19:$N$41,5,0)/'4. Billing Determinants'!$F$41*$D11,IF($E11="Non-RPP kWh",VLOOKUP(M$4,'4. Billing Determinants'!$B$19:$N$41,6,0)/'4. Billing Determinants'!$G$41*$D11,IF($E11="Distribution Rev.",VLOOKUP(M$4,'4. Billing Determinants'!$B$19:$N$41,8,0)/'4. Billing Determinants'!$I$41*$D11, VLOOKUP(M$4,'4. Billing Determinants'!$B$19:$N$41,3,0)/'4. Billing Determinants'!$D$41*$D11))))) -> 3.246896085e-15 | N11: =IF(N$4="",0,IF($E11="kWh",VLOOKUP(N$4,'4. Billing Determinants'!$B$19:$N$41,4,0)/'4. Billing Determinants'!$E$41*$D11,IF($E11="kW",VLOOKUP(N$4,'4. Billing Determinants'!$B$19:$N$41,5,0)/'4. Billing Determinants'!$F$41*$D11,IF($E11="Non-RPP kWh",VLOOKUP(N$4,'4. Billing Determinants'!$B$19:$N$41,6,0)/'4. Billing Determinants'!$G$41*$D11,IF($E11="Distribution Rev.",VLOOKUP(N$4,'4. Billing Determinants'!$B$19:$N$41,8,0)/'4. Billing Determinants'!$I$41*$D11, VLOOKUP(N$4,'4. Billing Determinants'!$B$19:$N$41,3,0)/'4. Billing Determinants'!$D$41*$D11))))) -> 0 | O11: =IF(O$4="",0,IF($E11="kWh",VLOOKUP(O$4,'4. Billing Determinants'!$B$19:$N$41,4,0)/'4. Billing Determinants'!$E$41*$D11,IF($E11="kW",VLOOKUP(O$4,'4. Billing Determinants'!$B$19:$N$41,5,0)/'4. Billing Determinants'!$F$41*$D11,IF($E11="Non-RPP kWh",VLOOKUP(O$4,'4. Billing Determinants'!$B$19:$N$41,6,0)/'4. Billing Determinants'!$G$41*$D11,IF($E11="Distribution Rev.",VLOOKUP(O$4,'4. Billing Determinants'!$B$19:$N$41,8,0)/'4. Billing Determinants'!$I$41*$D11, VLOOKUP(O$4,'4. Billing Determinants'!$B$19:$N$41,3,0)/'4. Billing Determinants'!$D$41*$D11))))) -> 0 | P11: =IF(P$4="",0,IF($E11="kWh",VLOOKUP(P$4,'4. Billing Determinants'!$B$19:$N$41,4,0)/'4. Billing Determinants'!$E$41*$D11,IF($E11="kW",VLOOKUP(P$4,'4. Billing Determinants'!$B$19:$N$41,5,0)/'4. Billing Determinants'!$F$41*$D11,IF($E11="Non-RPP kWh",VLOOKUP(P$4,'4. Billing Determinants'!$B$19:$N$41,6,0)/'4. Billing Determinants'!$G$41*$D11,IF($E11="Distribution Rev.",VLOOKUP(P$4,'4. Billing Determinants'!$B$19:$N$41,8,0)/'4. Billing Determinants'!$I$41*$D11, VLOOKUP(P$4,'4. Billing Determinants'!$B$19:$N$41,3,0)/'4. Billing Determinants'!$D$41*$D11))))) -> 0 | Q11: =IF(Q$4="",0,IF($E11="kWh",VLOOKUP(Q$4,'4. Billing Determinants'!$B$19:$N$41,4,0)/'4. Billing Determinants'!$E$41*$D11,IF($E11="kW",VLOOKUP(Q$4,'4. Billing Determinants'!$B$19:$N$41,5,0)/'4. Billing Determinants'!$F$41*$D11,IF($E11="Non-RPP kWh",VLOOKUP(Q$4,'4. Billing Determinants'!$B$19:$N$41,6,0)/'4. Billing Determinants'!$G$41*$D11,IF($E11="Distribution Rev.",VLOOKUP(Q$4,'4. Billing Determinants'!$B$19:$N$41,8,0)/'4. Billing Determinants'!$I$41*$D11, VLOOKUP(Q$4,'4. Billing Determinants'!$B$19:$N$41,3,0)/'4. Billing Determinants'!$D$41*$D11))))) -> 0 | R11: =IF(R$4="",0,IF($E11="kWh",VLOOKUP(R$4,'4. Billing Determinants'!$B$19:$N$41,4,0)/'4. Billing Determinants'!$E$41*$D11,IF($E11="kW",VLOOKUP(R$4,'4. Billing Determinants'!$B$19:$N$41,5,0)/'4. Billing Determinants'!$F$41*$D11,IF($E11="Non-RPP kWh",VLOOKUP(R$4,'4. Billing Determinants'!$B$19:$N$41,6,0)/'4. Billing Determinants'!$G$41*$D11,IF($E11="Distribution Rev.",VLOOKUP(R$4,'4. Billing Determinants'!$B$19:$N$41,8,0)/'4. Billing Determinants'!$I$41*$D11, VLOOKUP(R$4,'4. Billing Determinants'!$B$19:$N$41,3,0)/'4. Billing Determinants'!$D$41*$D11))))) -> 0 | S11: =IF(S$4="",0,IF($E11="kWh",VLOOKUP(S$4,'4. Billing Determinants'!$B$19:$N$41,4,0)/'4. Billing Determinants'!$E$41*$D11,IF($E11="kW",VLOOKUP(S$4,'4. Billing Determinants'!$B$19:$N$41,5,0)/'4. Billing Determinants'!$F$41*$D11,IF($E11="Non-RPP kWh",VLOOKUP(S$4,'4. Billing Determinants'!$B$19:$N$41,6,0)/'4. Billing Determinants'!$G$41*$D11,IF($E11="Distribution Rev.",VLOOKUP(S$4,'4. Billing Determinants'!$B$19:$N$41,8,0)/'4. Billing Determinants'!$I$41*$D11, VLOOKUP(S$4,'4. Billing Determinants'!$B$19:$N$41,3,0)/'4. Billing Determinants'!$D$41*$D11))))) -> 0 | T11: =IF(T$4="",0,IF($E11="kWh",VLOOKUP(T$4,'4. Billing Determinants'!$B$19:$N$41,4,0)/'4. Billing Determinants'!$E$41*$D11,IF($E11="kW",VLOOKUP(T$4,'4. Billing Determinants'!$B$19:$N$41,5,0)/'4. Billing Determinants'!$F$41*$D11,IF($E11="Non-RPP kWh",VLOOKUP(T$4,'4. Billing Determinants'!$B$19:$N$41,6,0)/'4. Billing Determinants'!$G$41*$D11,IF($E11="Distribution Rev.",VLOOKUP(T$4,'4. Billing Determinants'!$B$19:$N$41,8,0)/'4. Billing Determinants'!$I$41*$D11, VLOOKUP(T$4,'4. Billing Determinants'!$B$19:$N$41,3,0)/'4. Billing Determinants'!$D$41*$D11))))) -> 0 | U11: =IF(U$4="",0,IF($E11="kWh",VLOOKUP(U$4,'4. Billing Determinants'!$B$19:$N$41,4,0)/'4. Billing Determinants'!$E$41*$D11,IF($E11="kW",VLOOKUP(U$4,'4. Billing Determinants'!$B$19:$N$41,5,0)/'4. Billing Determinants'!$F$41*$D11,IF($E11="Non-RPP kWh",VLOOKUP(U$4,'4. Billing Determinants'!$B$19:$N$41,6,0)/'4. Billing Determinants'!$G$41*$D11,IF($E11="Distribution Rev.",VLOOKUP(U$4,'4. Billing Determinants'!$B$19:$N$41,8,0)/'4. Billing Determinants'!$I$41*$D11, VLOOKUP(U$4,'4. Billing Determinants'!$B$19:$N$41,3,0)/'4. Billing Determinants'!$D$41*$D11))))) -> 0 | V11: =IF(V$4="",0,IF($E11="kWh",VLOOKUP(V$4,'4. Billing Determinants'!$B$19:$N$41,4,0)/'4. Billing Determinants'!$E$41*$D11,IF($E11="kW",VLOOKUP(V$4,'4. Billing Determinants'!$B$19:$N$41,5,0)/'4. Billing Determinants'!$F$41*$D11,IF($E11="Non-RPP kWh",VLOOKUP(V$4,'4. Billing Determinants'!$B$19:$N$41,6,0)/'4. Billing Determinants'!$G$41*$D11,IF($E11="Distribution Rev.",VLOOKUP(V$4,'4. Billing Determinants'!$B$19:$N$41,8,0)/'4. Billing Determinants'!$I$41*$D11, VLOOKUP(V$4,'4. Billing Determinants'!$B$19:$N$41,3,0)/'4. Billing Determinants'!$D$41*$D11))))) -> 0 | W11: =IF(W$4="",0,IF($E11="kWh",VLOOKUP(W$4,'4. Billing Determinants'!$B$19:$N$41,4,0)/'4. Billing Determinants'!$E$41*$D11,IF($E11="kW",VLOOKUP(W$4,'4. Billing Determinants'!$B$19:$N$41,5,0)/'4. Billing Determinants'!$F$41*$D11,IF($E11="Non-RPP kWh",VLOOKUP(W$4,'4. Billing Determinants'!$B$19:$N$41,6,0)/'4. Billing Determinants'!$G$41*$D11,IF($E11="Distribution Rev.",VLOOKUP(W$4,'4. Billing Determinants'!$B$19:$N$41,8,0)/'4. Billing Determinants'!$I$41*$D11, VLOOKUP(W$4,'4. Billing Determinants'!$B$19:$N$41,3,0)/'4. Billing Determinants'!$D$41*$D11))))) -> 0 | X11: =IF(X$4="",0,IF($E11="kWh",VLOOKUP(X$4,'4. Billing Determinants'!$B$19:$N$41,4,0)/'4. Billing Determinants'!$E$41*$D11,IF($E11="kW",VLOOKUP(X$4,'4. Billing Determinants'!$B$19:$N$41,5,0)/'4. Billing Determinants'!$F$41*$D11,IF($E11="Non-RPP kWh",VLOOKUP(X$4,'4. Billing Determinants'!$B$19:$N$41,6,0)/'4. Billing Determinants'!$G$41*$D11,IF($E11="Distribution Rev.",VLOOKUP(X$4,'4. Billing Determinants'!$B$19:$N$41,8,0)/'4. Billing Determinants'!$I$41*$D11, VLOOKUP(X$4,'4. Billing Determinants'!$B$19:$N$41,3,0)/'4. Billing Determinants'!$D$41*$D11))))) -> 0 | Y11: =IF(Y$4="",0,IF($E11="kWh",VLOOKUP(Y$4,'4. Billing Determinants'!$B$19:$N$41,4,0)/'4. Billing Determinants'!$E$41*$D11,IF($E11="kW",VLOOKUP(Y$4,'4. Billing Determinants'!$B$19:$N$41,5,0)/'4. Billing Determinants'!$F$41*$D11,IF($E11="Non-RPP kWh",VLOOKUP(Y$4,'4. Billing Determinants'!$B$19:$N$41,6,0)/'4. Billing Determinants'!$G$41*$D11,IF($E11="Distribution Rev.",VLOOKUP(Y$4,'4. Billing Determinants'!$B$19:$N$41,8,0)/'4. Billing Determinants'!$I$41*$D11, VLOOKUP(Y$4,'4. Billing Determinants'!$B$19:$N$41,3,0)/'4. Billing Determinants'!$D$41*$D11))))) -> 0
B12: Disposition and Recovery/Refund of Regulatory Balances (2008) | C12: 1595 | D12: ='2. 2013 Continuity Schedule'!DC31 -> 0 | E12: kWh | F12: =IF(F$4="",0,IF($E12="kWh",VLOOKUP(F$4,'4. Billing Determinants'!$B$19:$N$41,4,0)/'4. Billing Determinants'!$E$41*$D12,IF($E12="kW",VLOOKUP(F$4,'4. Billing Determinants'!$B$19:$N$41,5,0)/'4. Billing Determinants'!$F$41*$D12,IF($E12="Non-RPP kWh",VLOOKUP(F$4,'4. Billing Determinants'!$B$19:$N$41,6,0)/'4. Billing Determinants'!$G$41*$D12,IF($E12="Distribution Rev.",VLOOKUP(F$4,'4. Billing Determinants'!$B$19:$N$41,8,0)/'4. Billing Determinants'!$I$41*$D12, VLOOKUP(F$4,'4. Billing Determinants'!$B$19:$N$41,3,0)/'4. Billing Determinants'!$D$41*$D12))))) -> 0 | G12: =IF(G$4="",0,IF($E12="kWh",VLOOKUP(G$4,'4. Billing Determinants'!$B$19:$N$41,4,0)/'4. Billing Determinants'!$E$41*$D12,IF($E12="kW",VLOOKUP(G$4,'4. Billing Determinants'!$B$19:$N$41,5,0)/'4. Billing Determinants'!$F$41*$D12,IF($E12="Non-RPP kWh",VLOOKUP(G$4,'4. Billing Determinants'!$B$19:$N$41,6,0)/'4. Billing Determinants'!$G$41*$D12,IF($E12="Distribution Rev.",VLOOKUP(G$4,'4. Billing Determinants'!$B$19:$N$41,8,0)/'4. Billing Determinants'!$I$41*$D12, VLOOKUP(G$4,'4. Billing Determinants'!$B$19:$N$41,3,0)/'4. Billing Determinants'!$D$41*$D12))))) -> 0 | H12: =IF(H$4="",0,IF($E12="kWh",VLOOKUP(H$4,'4. Billing Determinants'!$B$19:$N$41,4,0)/'4. Billing Determinants'!$E$41*$D12,IF($E12="kW",VLOOKUP(H$4,'4. Billing Determinants'!$B$19:$N$41,5,0)/'4. Billing Determinants'!$F$41*$D12,IF($E12="Non-RPP kWh",VLOOKUP(H$4,'4. Billing Determinants'!$B$19:$N$41,6,0)/'4. Billing Determinants'!$G$41*$D12,IF($E12="Distribution Rev.",VLOOKUP(H$4,'4. Billing Determinants'!$B$19:$N$41,8,0)/'4. Billing Determinants'!$I$41*$D12, VLOOKUP(H$4,'4. Billing Determinants'!$B$19:$N$41,3,0)/'4. Billing Determinants'!$D$41*$D12))))) -> 0 | I12: =IF(I$4="",0,IF($E12="kWh",VLOOKUP(I$4,'4. Billing Determinants'!$B$19:$N$41,4,0)/'4. Billing Determinants'!$E$41*$D12,IF($E12="kW",VLOOKUP(I$4,'4. Billing Determinants'!$B$19:$N$41,5,0)/'4. Billing Determinants'!$F$41*$D12,IF($E12="Non-RPP kWh",VLOOKUP(I$4,'4. Billing Determinants'!$B$19:$N$41,6,0)/'4. Billing Determinants'!$G$41*$D12,IF($E12="Distribution Rev.",VLOOKUP(I$4,'4. Billing Determinants'!$B$19:$N$41,8,0)/'4. Billing Determinants'!$I$41*$D12, VLOOKUP(I$4,'4. Billing Determinants'!$B$19:$N$41,3,0)/'4. Billing Determinants'!$D$41*$D12))))) -> 0 | J12: =IF(J$4="",0,IF($E12="kWh",VLOOKUP(J$4,'4. Billing Determinants'!$B$19:$N$41,4,0)/'4. Billing Determinants'!$E$41*$D12,IF($E12="kW",VLOOKUP(J$4,'4. Billing Determinants'!$B$19:$N$41,5,0)/'4. Billing Determinants'!$F$41*$D12,IF($E12="Non-RPP kWh",VLOOKUP(J$4,'4. Billing Determinants'!$B$19:$N$41,6,0)/'4. Billing Determinants'!$G$41*$D12,IF($E12="Distribution Rev.",VLOOKUP(J$4,'4. Billing Determinants'!$B$19:$N$41,8,0)/'4. Billing Determinants'!$I$41*$D12, VLOOKUP(J$4,'4. Billing Determinants'!$B$19:$N$41,3,0)/'4. Billing Determinants'!$D$41*$D12))))) -> 0 | K12: =IF(K$4="",0,IF($E12="kWh",VLOOKUP(K$4,'4. Billing Determinants'!$B$19:$N$41,4,0)/'4. Billing Determinants'!$E$41*$D12,IF($E12="kW",VLOOKUP(K$4,'4. Billing Determinants'!$B$19:$N$41,5,0)/'4. Billing Determinants'!$F$41*$D12,IF($E12="Non-RPP kWh",VLOOKUP(K$4,'4. Billing Determinants'!$B$19:$N$41,6,0)/'4. Billing Determinants'!$G$41*$D12,IF($E12="Distribution Rev.",VLOOKUP(K$4,'4. Billing Determinants'!$B$19:$N$41,8,0)/'4. Billing Determinants'!$I$41*$D12, VLOOKUP(K$4,'4. Billing Determinants'!$B$19:$N$41,3,0)/'4. Billing Determinants'!$D$41*$D12))))) -> 0 | L12: =IF(L$4="",0,IF($E12="kWh",VLOOKUP(L$4,'4. Billing Determinants'!$B$19:$N$41,4,0)/'4. Billing Determinants'!$E$41*$D12,IF($E12="kW",VLOOKUP(L$4,'4. Billing Determinants'!$B$19:$N$41,5,0)/'4. Billing Determinants'!$F$41*$D12,IF($E12="Non-RPP kWh",VLOOKUP(L$4,'4. Billing Determinants'!$B$19:$N$41,6,0)/'4. Billing Determinants'!$G$41*$D12,IF($E12="Distribution Rev.",VLOOKUP(L$4,'4. Billing Determinants'!$B$19:$N$41,8,0)/'4. Billing Determinants'!$I$41*$D12, VLOOKUP(L$4,'4. Billing Determinants'!$B$19:$N$41,3,0)/'4. Billing Determinants'!$D$41*$D12))))) -> 0 | M12: =IF(M$4="",0,IF($E12="kWh",VLOOKUP(M$4,'4. Billing Determinants'!$B$19:$N$41,4,0)/'4. Billing Determinants'!$E$41*$D12,IF($E12="kW",VLOOKUP(M$4,'4. Billing Determinants'!$B$19:$N$41,5,0)/'4. Billing Determinants'!$F$41*$D12,IF($E12="Non-RPP kWh",VLOOKUP(M$4,'4. Billing Determinants'!$B$19:$N$41,6,0)/'4. Billing Determinants'!$G$41*$D12,IF($E12="Distribution Rev.",VLOOKUP(M$4,'4. Billing Determinants'!$B$19:$N$41,8,0)/'4. Billing Determinants'!$I$41*$D12, VLOOKUP(M$4,'4. Billing Determinants'!$B$19:$N$41,3,0)/'4. Billing Determinants'!$D$41*$D12))))) -> 0 | N12: =IF(N$4="",0,IF($E12="kWh",VLOOKUP(N$4,'4. Billing Determinants'!$B$19:$N$41,4,0)/'4. Billing Determinants'!$E$41*$D12,IF($E12="kW",VLOOKUP(N$4,'4. Billing Determinants'!$B$19:$N$41,5,0)/'4. Billing Determinants'!$F$41*$D12,IF($E12="Non-RPP kWh",VLOOKUP(N$4,'4. Billing Determinants'!$B$19:$N$41,6,0)/'4. Billing Determinants'!$G$41*$D12,IF($E12="Distribution Rev.",VLOOKUP(N$4,'4. Billing Determinants'!$B$19:$N$41,8,0)/'4. Billing Determinants'!$I$41*$D12, VLOOKUP(N$4,'4. Billing Determinants'!$B$19:$N$41,3,0)/'4. Billing Determinants'!$D$41*$D12))))) -> 0 | O12: =IF(O$4="",0,IF($E12="kWh",VLOOKUP(O$4,'4. Billing Determinants'!$B$19:$N$41,4,0)/'4. Billing Determinants'!$E$41*$D12,IF($E12="kW",VLOOKUP(O$4,'4. Billing Determinants'!$B$19:$N$41,5,0)/'4. Billing Determinants'!$F$41*$D12,IF($E12="Non-RPP kWh",VLOOKUP(O$4,'4. Billing Determinants'!$B$19:$N$41,6,0)/'4. Billing Determinants'!$G$41*$D12,IF($E12="Distribution Rev.",VLOOKUP(O$4,'4. Billing Determinants'!$B$19:$N$41,8,0)/'4. Billing Determinants'!$I$41*$D12, VLOOKUP(O$4,'4. Billing Determinants'!$B$19:$N$41,3,0)/'4. Billing Determinants'!$D$41*$D12))))) -> 0 | P12: =IF(P$4="",0,IF($E12="kWh",VLOOKUP(P$4,'4. Billing Determinants'!$B$19:$N$41,4,0)/'4. Billing Determinants'!$E$41*$D12,IF($E12="kW",VLOOKUP(P$4,'4. Billing Determinants'!$B$19:$N$41,5,0)/'4. Billing Determinants'!$F$41*$D12,IF($E12="Non-RPP kWh",VLOOKUP(P$4,'4. Billing Determinants'!$B$19:$N$41,6,0)/'4. Billing Determinants'!$G$41*$D12,IF($E12="Distribution Rev.",VLOOKUP(P$4,'4. Billing Determinants'!$B$19:$N$41,8,0)/'4. Billing Determinants'!$I$41*$D12, VLOOKUP(P$4,'4. Billing Determinants'!$B$19:$N$41,3,0)/'4. Billing Determinants'!$D$41*$D12))))) -> 0 | Q12: =IF(Q$4="",0,IF($E12="kWh",VLOOKUP(Q$4,'4. Billing Determinants'!$B$19:$N$41,4,0)/'4. Billing Determinants'!$E$41*$D12,IF($E12="kW",VLOOKUP(Q$4,'4. Billing Determinants'!$B$19:$N$41,5,0)/'4. Billing Determinants'!$F$41*$D12,IF($E12="Non-RPP kWh",VLOOKUP(Q$4,'4. Billing Determinants'!$B$19:$N$41,6,0)/'4. Billing Determinants'!$G$41*$D12,IF($E12="Distribution Rev.",VLOOKUP(Q$4,'4. Billing Determinants'!$B$19:$N$41,8,0)/'4. Billing Determinants'!$I$41*$D12, VLOOKUP(Q$4,'4. Billing Determinants'!$B$19:$N$41,3,0)/'4. Billing Determinants'!$D$41*$D12))))) -> 0 | R12: =IF(R$4="",0,IF($E12="kWh",VLOOKUP(R$4,'4. Billing Determinants'!$B$19:$N$41,4,0)/'4. Billing Determinants'!$E$41*$D12,IF($E12="kW",VLOOKUP(R$4,'4. Billing Determinants'!$B$19:$N$41,5,0)/'4. Billing Determinants'!$F$41*$D12,IF($E12="Non-RPP kWh",VLOOKUP(R$4,'4. Billing Determinants'!$B$19:$N$41,6,0)/'4. Billing Determinants'!$G$41*$D12,IF($E12="Distribution Rev.",VLOOKUP(R$4,'4. Billing Determinants'!$B$19:$N$41,8,0)/'4. Billing Determinants'!$I$41*$D12, VLOOKUP(R$4,'4. Billing Determinants'!$B$19:$N$41,3,0)/'4. Billing Determinants'!$D$41*$D12))))) -> 0 | S12: =IF(S$4="",0,IF($E12="kWh",VLOOKUP(S$4,'4. Billing Determinants'!$B$19:$N$41,4,0)/'4. Billing Determinants'!$E$41*$D12,IF($E12="kW",VLOOKUP(S$4,'4. Billing Determinants'!$B$19:$N$41,5,0)/'4. Billing Determinants'!$F$41*$D12,IF($E12="Non-RPP kWh",VLOOKUP(S$4,'4. Billing Determinants'!$B$19:$N$41,6,0)/'4. Billing Determinants'!$G$41*$D12,IF($E12="Distribution Rev.",VLOOKUP(S$4,'4. Billing Determinants'!$B$19:$N$41,8,0)/'4. Billing Determinants'!$I$41*$D12, VLOOKUP(S$4,'4. Billing Determinants'!$B$19:$N$41,3,0)/'4. Billing Determinants'!$D$41*$D12))))) -> 0 | T12: =IF(T$4="",0,IF($E12="kWh",VLOOKUP(T$4,'4. Billing Determinants'!$B$19:$N$41,4,0)/'4. Billing Determinants'!$E$41*$D12,IF($E12="kW",VLOOKUP(T$4,'4. Billing Determinants'!$B$19:$N$41,5,0)/'4. Billing Determinants'!$F$41*$D12,IF($E12="Non-RPP kWh",VLOOKUP(T$4,'4. Billing Determinants'!$B$19:$N$41,6,0)/'4. Billing Determinants'!$G$41*$D12,IF($E12="Distribution Rev.",VLOOKUP(T$4,'4. Billing Determinants'!$B$19:$N$41,8,0)/'4. Billing Determinants'!$I$41*$D12, VLOOKUP(T$4,'4. Billing Determinants'!$B$19:$N$41,3,0)/'4. Billing Determinants'!$D$41*$D12))))) -> 0 | U12: =IF(U$4="",0,IF($E12="kWh",VLOOKUP(U$4,'4. Billing Determinants'!$B$19:$N$41,4,0)/'4. Billing Determinants'!$E$41*$D12,IF($E12="kW",VLOOKUP(U$4,'4. Billing Determinants'!$B$19:$N$41,5,0)/'4. Billing Determinants'!$F$41*$D12,IF($E12="Non-RPP kWh",VLOOKUP(U$4,'4. Billing Determinants'!$B$19:$N$41,6,0)/'4. Billing Determinants'!$G$41*$D12,IF($E12="Distribution Rev.",VLOOKUP(U$4,'4. Billing Determinants'!$B$19:$N$41,8,0)/'4. Billing Determinants'!$I$41*$D12, VLOOKUP(U$4,'4. Billing Determinants'!$B$19:$N$41,3,0)/'4. Billing Determinants'!$D$41*$D12))))) -> 0 | V12: =IF(V$4="",0,IF($E12="kWh",VLOOKUP(V$4,'4. Billing Determinants'!$B$19:$N$41,4,0)/'4. Billing Determinants'!$E$41*$D12,IF($E12="kW",VLOOKUP(V$4,'4. Billing Determinants'!$B$19:$N$41,5,0)/'4. Billing Determinants'!$F$41*$D12,IF($E12="Non-RPP kWh",VLOOKUP(V$4,'4. Billing Determinants'!$B$19:$N$41,6,0)/'4. Billing Determinants'!$G$41*$D12,IF($E12="Distribution Rev.",VLOOKUP(V$4,'4. Billing Determinants'!$B$19:$N$41,8,0)/'4. Billing Determinants'!$I$41*$D12, VLOOKUP(V$4,'4. Billing Determinants'!$B$19:$N$41,3,0)/'4. Billing Determinants'!$D$41*$D12))))) -> 0 | W12: =IF(W$4="",0,IF($E12="kWh",VLOOKUP(W$4,'4. Billing Determinants'!$B$19:$N$41,4,0)/'4. Billing Determinants'!$E$41*$D12,IF($E12="kW",VLOOKUP(W$4,'4. Billing Determinants'!$B$19:$N$41,5,0)/'4. Billing Determinants'!$F$41*$D12,IF($E12="Non-RPP kWh",VLOOKUP(W$4,'4. Billing Determinants'!$B$19:$N$41,6,0)/'4. Billing Determinants'!$G$41*$D12,IF($E12="Distribution Rev.",VLOOKUP(W$4,'4. Billing Determinants'!$B$19:$N$41,8,0)/'4. Billing Determinants'!$I$41*$D12, VLOOKUP(W$4,'4. Billing Determinants'!$B$19:$N$41,3,0)/'4. Billing Determinants'!$D$41*$D12))))) -> 0 | X12: =IF(X$4="",0,IF($E12="kWh",VLOOKUP(X$4,'4. Billing Determinants'!$B$19:$N$41,4,0)/'4. Billing Determinants'!$E$41*$D12,IF($E12="kW",VLOOKUP(X$4,'4. Billing Determinants'!$B$19:$N$41,5,0)/'4. Billing Determinants'!$F$41*$D12,IF($E12="Non-RPP kWh",VLOOKUP(X$4,'4. Billing Determinants'!$B$19:$N$41,6,0)/'4. Billing Determinants'!$G$41*$D12,IF($E12="Distribution Rev.",VLOOKUP(X$4,'4. Billing Determinants'!$B$19:$N$41,8,0)/'4. Billing Determinants'!$I$41*$D12, VLOOKUP(X$4,'4. Billing Determinants'!$B$19:$N$41,3,0)/'4. Billing Determinants'!$D$41*$D12))))) -> 0 | Y12: =IF(Y$4="",0,IF($E12="kWh",VLOOKUP(Y$4,'4. Billing Determinants'!$B$19:$N$41,4,0)/'4. Billing Determinants'!$E$41*$D12,IF($E12="kW",VLOOKUP(Y$4,'4. Billing Determinants'!$B$19:$N$41,5,0)/'4. Billing Determinants'!$F$41*$D12,IF($E12="Non-RPP kWh",VLOOKUP(Y$4,'4. Billing Determinants'!$B$19:$N$41,6,0)/'4. Billing Determinants'!$G$41*$D12,IF($E12="Distribution Rev.",VLOOKUP(Y$4,'4. Billing Determinants'!$B$19:$N$41,8,0)/'4. Billing Determinants'!$I$41*$D12, VLOOKUP(Y$4,'4. Billing Determinants'!$B$19:$N$41,3,0)/'4. Billing Determinants'!$D$41*$D12))))) -> 0
B13: Disposition and Recovery/Refund of Regulatory Balances (2009) | C13: 1595 | D13: ='2. 2013 Continuity Schedule'!DC32 -> 0 | E13: kWh | F13: =IF(F$4="",0,IF($E13="kWh",VLOOKUP(F$4,'4. Billing Determinants'!$B$19:$N$41,4,0)/'4. Billing Determinants'!$E$41*$D13,IF($E13="kW",VLOOKUP(F$4,'4. Billing Determinants'!$B$19:$N$41,5,0)/'4. Billing Determinants'!$F$41*$D13,IF($E13="Non-RPP kWh",VLOOKUP(F$4,'4. Billing Determinants'!$B$19:$N$41,6,0)/'4. Billing Determinants'!$G$41*$D13,IF($E13="Distribution Rev.",VLOOKUP(F$4,'4. Billing Determinants'!$B$19:$N$41,8,0)/'4. Billing Determinants'!$I$41*$D13, VLOOKUP(F$4,'4. Billing Determinants'!$B$19:$N$41,3,0)/'4. Billing Determinants'!$D$41*$D13))))) -> 0 | G13: =IF(G$4="",0,IF($E13="kWh",VLOOKUP(G$4,'4. Billing Determinants'!$B$19:$N$41,4,0)/'4. Billing Determinants'!$E$41*$D13,IF($E13="kW",VLOOKUP(G$4,'4. Billing Determinants'!$B$19:$N$41,5,0)/'4. Billing Determinants'!$F$41*$D13,IF($E13="Non-RPP kWh",VLOOKUP(G$4,'4. Billing Determinants'!$B$19:$N$41,6,0)/'4. Billing Determinants'!$G$41*$D13,IF($E13="Distribution Rev.",VLOOKUP(G$4,'4. Billing Determinants'!$B$19:$N$41,8,0)/'4. Billing Determinants'!$I$41*$D13, VLOOKUP(G$4,'4. Billing Determinants'!$B$19:$N$41,3,0)/'4. Billing Determinants'!$D$41*$D13))))) -> 0 | H13: =IF(H$4="",0,IF($E13="kWh",VLOOKUP(H$4,'4. Billing Determinants'!$B$19:$N$41,4,0)/'4. Billing Determinants'!$E$41*$D13,IF($E13="kW",VLOOKUP(H$4,'4. Billing Determinants'!$B$19:$N$41,5,0)/'4. Billing Determinants'!$F$41*$D13,IF($E13="Non-RPP kWh",VLOOKUP(H$4,'4. Billing Determinants'!$B$19:$N$41,6,0)/'4. Billing Determinants'!$G$41*$D13,IF($E13="Distribution Rev.",VLOOKUP(H$4,'4. Billing Determinants'!$B$19:$N$41,8,0)/'4. Billing Determinants'!$I$41*$D13, VLOOKUP(H$4,'4. Billing Determinants'!$B$19:$N$41,3,0)/'4. Billing Determinants'!$D$41*$D13))))) -> 0 | I13: =IF(I$4="",0,IF($E13="kWh",VLOOKUP(I$4,'4. Billing Determinants'!$B$19:$N$41,4,0)/'4. Billing Determinants'!$E$41*$D13,IF($E13="kW",VLOOKUP(I$4,'4. Billing Determinants'!$B$19:$N$41,5,0)/'4. Billing Determinants'!$F$41*$D13,IF($E13="Non-RPP kWh",VLOOKUP(I$4,'4. Billing Determinants'!$B$19:$N$41,6,0)/'4. Billing Determinants'!$G$41*$D13,IF($E13="Distribution Rev.",VLOOKUP(I$4,'4. Billing Determinants'!$B$19:$N$41,8,0)/'4. Billing Determinants'!$I$41*$D13, VLOOKUP(I$4,'4. Billing Determinants'!$B$19:$N$41,3,0)/'4. Billing Determinants'!$D$41*$D13))))) -> 0 | J13: =IF(J$4="",0,IF($E13="kWh",VLOOKUP(J$4,'4. Billing Determinants'!$B$19:$N$41,4,0)/'4. Billing Determinants'!$E$41*$D13,IF($E13="kW",VLOOKUP(J$4,'4. Billing Determinants'!$B$19:$N$41,5,0)/'4. Billing Determinants'!$F$41*$D13,IF($E13="Non-RPP kWh",VLOOKUP(J$4,'4. Billing Determinants'!$B$19:$N$41,6,0)/'4. Billing Determinants'!$G$41*$D13,IF($E13="Distribution Rev.",VLOOKUP(J$4,'4. Billing Determinants'!$B$19:$N$41,8,0)/'4. Billing Determinants'!$I$41*$D13, VLOOKUP(J$4,'4. Billing Determinants'!$B$19:$N$41,3,0)/'4. Billing Determinants'!$D$41*$D13))))) -> 0 | K13: =IF(K$4="",0,IF($E13="kWh",VLOOKUP(K$4,'4. Billing Determinants'!$B$19:$N$41,4,0)/'4. Billing Determinants'!$E$41*$D13,IF($E13="kW",VLOOKUP(K$4,'4. Billing Determinants'!$B$19:$N$41,5,0)/'4. Billing Determinants'!$F$41*$D13,IF($E13="Non-RPP kWh",VLOOKUP(K$4,'4. Billing Determinants'!$B$19:$N$41,6,0)/'4. Billing Determinants'!$G$41*$D13,IF($E13="Distribution Rev.",VLOOKUP(K$4,'4. Billing Determinants'!$B$19:$N$41,8,0)/'4. Billing Determinants'!$I$41*$D13, VLOOKUP(K$4,'4. Billing Determinants'!$B$19:$N$41,3,0)/'4. Billing Determinants'!$D$41*$D13))))) -> 0 | L13: =IF(L$4="",0,IF($E13="kWh",VLOOKUP(L$4,'4. Billing Determinants'!$B$19:$N$41,4,0)/'4. Billing Determinants'!$E$41*$D13,IF($E13="kW",VLOOKUP(L$4,'4. Billing Determinants'!$B$19:$N$41,5,0)/'4. Billing Determinants'!$F$41*$D13,IF($E13="Non-RPP kWh",VLOOKUP(L$4,'4. Billing Determinants'!$B$19:$N$41,6,0)/'4. Billing Determinants'!$G$41*$D13,IF($E13="Distribution Rev.",VLOOKUP(L$4,'4. Billing Determinants'!$B$19:$N$41,8,0)/'4. Billing Determinants'!$I$41*$D13, VLOOKUP(L$4,'4. Billing Determinants'!$B$19:$N$41,3,0)/'4. Billing Determinants'!$D$41*$D13))))) -> 0 | M13: =IF(M$4="",0,IF($E13="kWh",VLOOKUP(M$4,'4. Billing Determinants'!$B$19:$N$41,4,0)/'4. Billing Determinants'!$E$41*$D13,IF($E13="kW",VLOOKUP(M$4,'4. Billing Determinants'!$B$19:$N$41,5,0)/'4. Billing Determinants'!$F$41*$D13,IF($E13="Non-RPP kWh",VLOOKUP(M$4,'4. Billing Determinants'!$B$19:$N$41,6,0)/'4. Billing Determinants'!$G$41*$D13,IF($E13="Distribution Rev.",VLOOKUP(M$4,'4. Billing Determinants'!$B$19:$N$41,8,0)/'4. Billing Determinants'!$I$41*$D13, VLOOKUP(M$4,'4. Billing Determinants'!$B$19:$N$41,3,0)/'4. Billing Determinants'!$D$41*$D13))))) -> 0 | N13: =IF(N$4="",0,IF($E13="kWh",VLOOKUP(N$4,'4. Billing Determinants'!$B$19:$N$41,4,0)/'4. Billing Determinants'!$E$41*$D13,IF($E13="kW",VLOOKUP(N$4,'4. Billing Determinants'!$B$19:$N$41,5,0)/'4. Billing Determinants'!$F$41*$D13,IF($E13="Non-RPP kWh",VLOOKUP(N$4,'4. Billing Determinants'!$B$19:$N$41,6,0)/'4. Billing Determinants'!$G$41*$D13,IF($E13="Distribution Rev.",VLOOKUP(N$4,'4. Billing Determinants'!$B$19:$N$41,8,0)/'4. Billing Determinants'!$I$41*$D13, VLOOKUP(N$4,'4. Billing Determinants'!$B$19:$N$41,3,0)/'4. Billing Determinants'!$D$41*$D13))))) -> 0 | O13: =IF(O$4="",0,IF($E13="kWh",VLOOKUP(O$4,'4. Billing Determinants'!$B$19:$N$41,4,0)/'4. Billing Determinants'!$E$41*$D13,IF($E13="kW",VLOOKUP(O$4,'4. Billing Determinants'!$B$19:$N$41,5,0)/'4. Billing Determinants'!$F$41*$D13,IF($E13="Non-RPP kWh",VLOOKUP(O$4,'4. Billing Determinants'!$B$19:$N$41,6,0)/'4. Billing Determinants'!$G$41*$D13,IF($E13="Distribution Rev.",VLOOKUP(O$4,'4. Billing Determinants'!$B$19:$N$41,8,0)/'4. Billing Determinants'!$I$41*$D13, VLOOKUP(O$4,'4. Billing Determinants'!$B$19:$N$41,3,0)/'4. Billing Determinants'!$D$41*$D13))))) -> 0 | P13: =IF(P$4="",0,IF($E13="kWh",VLOOKUP(P$4,'4. Billing Determinants'!$B$19:$N$41,4,0)/'4. Billing Determinants'!$E$41*$D13,IF($E13="kW",VLOOKUP(P$4,'4. Billing Determinants'!$B$19:$N$41,5,0)/'4. Billing Determinants'!$F$41*$D13,IF($E13="Non-RPP kWh",VLOOKUP(P$4,'4. Billing Determinants'!$B$19:$N$41,6,0)/'4. Billing Determinants'!$G$41*$D13,IF($E13="Distribution Rev.",VLOOKUP(P$4,'4. Billing Determinants'!$B$19:$N$41,8,0)/'4. Billing Determinants'!$I$41*$D13, VLOOKUP(P$4,'4. Billing Determinants'!$B$19:$N$41,3,0)/'4. Billing Determinants'!$D$41*$D13))))) -> 0 | Q13: =IF(Q$4="",0,IF($E13="kWh",VLOOKUP(Q$4,'4. Billing Determinants'!$B$19:$N$41,4,0)/'4. Billing Determinants'!$E$41*$D13,IF($E13="kW",VLOOKUP(Q$4,'4. Billing Determinants'!$B$19:$N$41,5,0)/'4. Billing Determinants'!$F$41*$D13,IF($E13="Non-RPP kWh",VLOOKUP(Q$4,'4. Billing Determinants'!$B$19:$N$41,6,0)/'4. Billing Determinants'!$G$41*$D13,IF($E13="Distribution Rev.",VLOOKUP(Q$4,'4. Billing Determinants'!$B$19:$N$41,8,0)/'4. Billing Determinants'!$I$41*$D13, VLOOKUP(Q$4,'4. Billing Determinants'!$B$19:$N$41,3,0)/'4. Billing Determinants'!$D$41*$D13))))) -> 0 | R13: =IF(R$4="",0,IF($E13="kWh",VLOOKUP(R$4,'4. Billing Determinants'!$B$19:$N$41,4,0)/'4. Billing Determinants'!$E$41*$D13,IF($E13="kW",VLOOKUP(R$4,'4. Billing Determinants'!$B$19:$N$41,5,0)/'4. Billing Determinants'!$F$41*$D13,IF($E13="Non-RPP kWh",VLOOKUP(R$4,'4. Billing Determinants'!$B$19:$N$41,6,0)/'4. Billing Determinants'!$G$41*$D13,IF($E13="Distribution Rev.",VLOOKUP(R$4,'4. Billing Determinants'!$B$19:$N$41,8,0)/'4. Billing Determinants'!$I$41*$D13, VLOOKUP(R$4,'4. Billing Determinants'!$B$19:$N$41,3,0)/'4. Billing Determinants'!$D$41*$D13))))) -> 0 | S13: =IF(S$4="",0,IF($E13="kWh",VLOOKUP(S$4,'4. Billing Determinants'!$B$19:$N$41,4,0)/'4. Billing Determinants'!$E$41*$D13,IF($E13="kW",VLOOKUP(S$4,'4. Billing Determinants'!$B$19:$N$41,5,0)/'4. Billing Determinants'!$F$41*$D13,IF($E13="Non-RPP kWh",VLOOKUP(S$4,'4. Billing Determinants'!$B$19:$N$41,6,0)/'4. Billing Determinants'!$G$41*$D13,IF($E13="Distribution Rev.",VLOOKUP(S$4,'4. Billing Determinants'!$B$19:$N$41,8,0)/'4. Billing Determinants'!$I$41*$D13, VLOOKUP(S$4,'4. Billing Determinants'!$B$19:$N$41,3,0)/'4. Billing Determinants'!$D$41*$D13))))) -> 0 | T13: =IF(T$4="",0,IF($E13="kWh",VLOOKUP(T$4,'4. Billing Determinants'!$B$19:$N$41,4,0)/'4. Billing Determinants'!$E$41*$D13,IF($E13="kW",VLOOKUP(T$4,'4. Billing Determinants'!$B$19:$N$41,5,0)/'4. Billing Determinants'!$F$41*$D13,IF($E13="Non-RPP kWh",VLOOKUP(T$4,'4. Billing Determinants'!$B$19:$N$41,6,0)/'4. Billing Determinants'!$G$41*$D13,IF($E13="Distribution Rev.",VLOOKUP(T$4,'4. Billing Determinants'!$B$19:$N$41,8,0)/'4. Billing Determinants'!$I$41*$D13, VLOOKUP(T$4,'4. Billing Determinants'!$B$19:$N$41,3,0)/'4. Billing Determinants'!$D$41*$D13))))) -> 0 | U13: =IF(U$4="",0,IF($E13="kWh",VLOOKUP(U$4,'4. Billing Determinants'!$B$19:$N$41,4,0)/'4. Billing Determinants'!$E$41*$D13,IF($E13="kW",VLOOKUP(U$4,'4. Billing Determinants'!$B$19:$N$41,5,0)/'4. Billing Determinants'!$F$41*$D13,IF($E13="Non-RPP kWh",VLOOKUP(U$4,'4. Billing Determinants'!$B$19:$N$41,6,0)/'4. Billing Determinants'!$G$41*$D13,IF($E13="Distribution Rev.",VLOOKUP(U$4,'4. Billing Determinants'!$B$19:$N$41,8,0)/'4. Billing Determinants'!$I$41*$D13, VLOOKUP(U$4,'4. Billing Determinants'!$B$19:$N$41,3,0)/'4. Billing Determinants'!$D$41*$D13))))) -> 0 | V13: =IF(V$4="",0,IF($E13="kWh",VLOOKUP(V$4,'4. Billing Determinants'!$B$19:$N$41,4,0)/'4. Billing Determinants'!$E$41*$D13,IF($E13="kW",VLOOKUP(V$4,'4. Billing Determinants'!$B$19:$N$41,5,0)/'4. Billing Determinants'!$F$41*$D13,IF($E13="Non-RPP kWh",VLOOKUP(V$4,'4. Billing Determinants'!$B$19:$N$41,6,0)/'4. Billing Determinants'!$G$41*$D13,IF($E13="Distribution Rev.",VLOOKUP(V$4,'4. Billing Determinants'!$B$19:$N$41,8,0)/'4. Billing Determinants'!$I$41*$D13, VLOOKUP(V$4,'4. Billing Determinants'!$B$19:$N$41,3,0)/'4. Billing Determinants'!$D$41*$D13))))) -> 0 | W13: =IF(W$4="",0,IF($E13="kWh",VLOOKUP(W$4,'4. Billing Determinants'!$B$19:$N$41,4,0)/'4. Billing Determinants'!$E$41*$D13,IF($E13="kW",VLOOKUP(W$4,'4. Billing Determinants'!$B$19:$N$41,5,0)/'4. Billing Determinants'!$F$41*$D13,IF($E13="Non-RPP kWh",VLOOKUP(W$4,'4. Billing Determinants'!$B$19:$N$41,6,0)/'4. Billing Determinants'!$G$41*$D13,IF($E13="Distribution Rev.",VLOOKUP(W$4,'4. Billing Determinants'!$B$19:$N$41,8,0)/'4. Billing Determinants'!$I$41*$D13, VLOOKUP(W$4,'4. Billing Determinants'!$B$19:$N$41,3,0)/'4. Billing Determinants'!$D$41*$D13))))) -> 0 | X13: =IF(X$4="",0,IF($E13="kWh",VLOOKUP(X$4,'4. Billing Determinants'!$B$19:$N$41,4,0)/'4. Billing Determinants'!$E$41*$D13,IF($E13="kW",VLOOKUP(X$4,'4. Billing Determinants'!$B$19:$N$41,5,0)/'4. Billing Determinants'!$F$41*$D13,IF($E13="Non-RPP kWh",VLOOKUP(X$4,'4. Billing Determinants'!$B$19:$N$41,6,0)/'4. Billing Determinants'!$G$41*$D13,IF($E13="Distribution Rev.",VLOOKUP(X$4,'4. Billing Determinants'!$B$19:$N$41,8,0)/'4. Billing Determinants'!$I$41*$D13, VLOOKUP(X$4,'4. Billing Determinants'!$B$19:$N$41,3,0)/'4. Billing Determinants'!$D$41*$D13))))) -> 0 | Y13: =IF(Y$4="",0,IF($E13="kWh",VLOOKUP(Y$4,'4. Billing Determinants'!$B$19:$N$41,4,0)/'4. Billing Determinants'!$E$41*$D13,IF($E13="kW",VLOOKUP(Y$4,'4. Billing Determinants'!$B$19:$N$41,5,0)/'4. Billing Determinants'!$F$41*$D13,IF($E13="Non-RPP kWh",VLOOKUP(Y$4,'4. Billing Determinants'!$B$19:$N$41,6,0)/'4. Billing Determinants'!$G$41*$D13,IF($E13="Distribution Rev.",VLOOKUP(Y$4,'4. Billing Determinants'!$B$19:$N$41,8,0)/'4. Billing Determinants'!$I$41*$D13, VLOOKUP(Y$4,'4. Billing Determinants'!$B$19:$N$41,3,0)/'4. Billing Determinants'!$D$41*$D13))))) -> 0
B14: Disposition and Recovery/Refund of Regulatory Balances (2010) | C14: 1595 | D14: ='2. 2013 Continuity Schedule'!DC33 -> 0 | E14: kWh | F14: =IF(F$4="",0,IF($E14="kWh",VLOOKUP(F$4,'4. Billing Determinants'!$B$19:$N$41,4,0)/'4. Billing Determinants'!$E$41*$D14,IF($E14="kW",VLOOKUP(F$4,'4. Billing Determinants'!$B$19:$N$41,5,0)/'4. Billing Determinants'!$F$41*$D14,IF($E14="Non-RPP kWh",VLOOKUP(F$4,'4. Billing Determinants'!$B$19:$N$41,6,0)/'4. Billing Determinants'!$G$41*$D14,IF($E14="Distribution Rev.",VLOOKUP(F$4,'4. Billing Determinants'!$B$19:$N$41,8,0)/'4. Billing Determinants'!$I$41*$D14, VLOOKUP(F$4,'4. Billing Determinants'!$B$19:$N$41,3,0)/'4. Billing Determinants'!$D$41*$D14))))) -> 0 | G14: =IF(G$4="",0,IF($E14="kWh",VLOOKUP(G$4,'4. Billing Determinants'!$B$19:$N$41,4,0)/'4. Billing Determinants'!$E$41*$D14,IF($E14="kW",VLOOKUP(G$4,'4. Billing Determinants'!$B$19:$N$41,5,0)/'4. Billing Determinants'!$F$41*$D14,IF($E14="Non-RPP kWh",VLOOKUP(G$4,'4. Billing Determinants'!$B$19:$N$41,6,0)/'4. Billing Determinants'!$G$41*$D14,IF($E14="Distribution Rev.",VLOOKUP(G$4,'4. Billing Determinants'!$B$19:$N$41,8,0)/'4. Billing Determinants'!$I$41*$D14, VLOOKUP(G$4,'4. Billing Determinants'!$B$19:$N$41,3,0)/'4. Billing Determinants'!$D$41*$D14))))) -> 0 | H14: =IF(H$4="",0,IF($E14="kWh",VLOOKUP(H$4,'4. Billing Determinants'!$B$19:$N$41,4,0)/'4. Billing Determinants'!$E$41*$D14,IF($E14="kW",VLOOKUP(H$4,'4. Billing Determinants'!$B$19:$N$41,5,0)/'4. Billing Determinants'!$F$41*$D14,IF($E14="Non-RPP kWh",VLOOKUP(H$4,'4. Billing Determinants'!$B$19:$N$41,6,0)/'4. Billing Determinants'!$G$41*$D14,IF($E14="Distribution Rev.",VLOOKUP(H$4,'4. Billing Determinants'!$B$19:$N$41,8,0)/'4. Billing Determinants'!$I$41*$D14, VLOOKUP(H$4,'4. Billing Determinants'!$B$19:$N$41,3,0)/'4. Billing Determinants'!$D$41*$D14))))) -> 0 | I14: =IF(I$4="",0,IF($E14="kWh",VLOOKUP(I$4,'4. Billing Determinants'!$B$19:$N$41,4,0)/'4. Billing Determinants'!$E$41*$D14,IF($E14="kW",VLOOKUP(I$4,'4. Billing Determinants'!$B$19:$N$41,5,0)/'4. Billing Determinants'!$F$41*$D14,IF($E14="Non-RPP kWh",VLOOKUP(I$4,'4. Billing Determinants'!$B$19:$N$41,6,0)/'4. Billing Determinants'!$G$41*$D14,IF($E14="Distribution Rev.",VLOOKUP(I$4,'4. Billing Determinants'!$B$19:$N$41,8,0)/'4. Billing Determinants'!$I$41*$D14, VLOOKUP(I$4,'4. Billing Determinants'!$B$19:$N$41,3,0)/'4. Billing Determinants'!$D$41*$D14))))) -> 0 | J14: =IF(J$4="",0,IF($E14="kWh",VLOOKUP(J$4,'4. Billing Determinants'!$B$19:$N$41,4,0)/'4. Billing Determinants'!$E$41*$D14,IF($E14="kW",VLOOKUP(J$4,'4. Billing Determinants'!$B$19:$N$41,5,0)/'4. Billing Determinants'!$F$41*$D14,IF($E14="Non-RPP kWh",VLOOKUP(J$4,'4. Billing Determinants'!$B$19:$N$41,6,0)/'4. Billing Determinants'!$G$41*$D14,IF($E14="Distribution Rev.",VLOOKUP(J$4,'4. Billing Determinants'!$B$19:$N$41,8,0)/'4. Billing Determinants'!$I$41*$D14, VLOOKUP(J$4,'4. Billing Determinants'!$B$19:$N$41,3,0)/'4. Billing Determinants'!$D$41*$D14))))) -> 0 | K14: =IF(K$4="",0,IF($E14="kWh",VLOOKUP(K$4,'4. Billing Determinants'!$B$19:$N$41,4,0)/'4. Billing Determinants'!$E$41*$D14,IF($E14="kW",VLOOKUP(K$4,'4. Billing Determinants'!$B$19:$N$41,5,0)/'4. Billing Determinants'!$F$41*$D14,IF($E14="Non-RPP kWh",VLOOKUP(K$4,'4. Billing Determinants'!$B$19:$N$41,6,0)/'4. Billing Determinants'!$G$41*$D14,IF($E14="Distribution Rev.",VLOOKUP(K$4,'4. Billing Determinants'!$B$19:$N$41,8,0)/'4. Billing Determinants'!$I$41*$D14, VLOOKUP(K$4,'4. Billing Determinants'!$B$19:$N$41,3,0)/'4. Billing Determinants'!$D$41*$D14))))) -> 0 | L14: =IF(L$4="",0,IF($E14="kWh",VLOOKUP(L$4,'4. Billing Determinants'!$B$19:$N$41,4,0)/'4. Billing Determinants'!$E$41*$D14,IF($E14="kW",VLOOKUP(L$4,'4. Billing Determinants'!$B$19:$N$41,5,0)/'4. Billing Determinants'!$F$41*$D14,IF($E14="Non-RPP kWh",VLOOKUP(L$4,'4. Billing Determinants'!$B$19:$N$41,6,0)/'4. Billing Determinants'!$G$41*$D14,IF($E14="Distribution Rev.",VLOOKUP(L$4,'4. Billing Determinants'!$B$19:$N$41,8,0)/'4. Billing Determinants'!$I$41*$D14, VLOOKUP(L$4,'4. Billing Determinants'!$B$19:$N$41,3,0)/'4. Billing Determinants'!$D$41*$D14))))) -> 0 | M14: =IF(M$4="",0,IF($E14="kWh",VLOOKUP(M$4,'4. Billing Determinants'!$B$19:$N$41,4,0)/'4. Billing Determinants'!$E$41*$D14,IF($E14="kW",VLOOKUP(M$4,'4. Billing Determinants'!$B$19:$N$41,5,0)/'4. Billing Determinants'!$F$41*$D14,IF($E14="Non-RPP kWh",VLOOKUP(M$4,'4. Billing Determinants'!$B$19:$N$41,6,0)/'4. Billing Determinants'!$G$41*$D14,IF($E14="Distribution Rev.",VLOOKUP(M$4,'4. Billing Determinants'!$B$19:$N$41,8,0)/'4. Billing Determinants'!$I$41*$D14, VLOOKUP(M$4,'4. Billing Determinants'!$B$19:$N$41,3,0)/'4. Billing Determinants'!$D$41*$D14))))) -> 0 | N14: =IF(N$4="",0,IF($E14="kWh",VLOOKUP(N$4,'4. Billing Determinants'!$B$19:$N$41,4,0)/'4. Billing Determinants'!$E$41*$D14,IF($E14="kW",VLOOKUP(N$4,'4. Billing Determinants'!$B$19:$N$41,5,0)/'4. Billing Determinants'!$F$41*$D14,IF($E14="Non-RPP kWh",VLOOKUP(N$4,'4. Billing Determinants'!$B$19:$N$41,6,0)/'4. Billing Determinants'!$G$41*$D14,IF($E14="Distribution Rev.",VLOOKUP(N$4,'4. Billing Determinants'!$B$19:$N$41,8,0)/'4. Billing Determinants'!$I$41*$D14, VLOOKUP(N$4,'4. Billing Determinants'!$B$19:$N$41,3,0)/'4. Billing Determinants'!$D$41*$D14))))) -> 0 | O14: =IF(O$4="",0,IF($E14="kWh",VLOOKUP(O$4,'4. Billing Determinants'!$B$19:$N$41,4,0)/'4. Billing Determinants'!$E$41*$D14,IF($E14="kW",VLOOKUP(O$4,'4. Billing Determinants'!$B$19:$N$41,5,0)/'4. Billing Determinants'!$F$41*$D14,IF($E14="Non-RPP kWh",VLOOKUP(O$4,'4. Billing Determinants'!$B$19:$N$41,6,0)/'4. Billing Determinants'!$G$41*$D14,IF($E14="Distribution Rev.",VLOOKUP(O$4,'4. Billing Determinants'!$B$19:$N$41,8,0)/'4. Billing Determinants'!$I$41*$D14, VLOOKUP(O$4,'4. Billing Determinants'!$B$19:$N$41,3,0)/'4. Billing Determinants'!$D$41*$D14))))) -> 0 | P14: =IF(P$4="",0,IF($E14="kWh",VLOOKUP(P$4,'4. Billing Determinants'!$B$19:$N$41,4,0)/'4. Billing Determinants'!$E$41*$D14,IF($E14="kW",VLOOKUP(P$4,'4. Billing Determinants'!$B$19:$N$41,5,0)/'4. Billing Determinants'!$F$41*$D14,IF($E14="Non-RPP kWh",VLOOKUP(P$4,'4. Billing Determinants'!$B$19:$N$41,6,0)/'4. Billing Determinants'!$G$41*$D14,IF($E14="Distribution Rev.",VLOOKUP(P$4,'4. Billing Determinants'!$B$19:$N$41,8,0)/'4. Billing Determinants'!$I$41*$D14, VLOOKUP(P$4,'4. Billing Determinants'!$B$19:$N$41,3,0)/'4. Billing Determinants'!$D$41*$D14))))) -> 0 | Q14: =IF(Q$4="",0,IF($E14="kWh",VLOOKUP(Q$4,'4. Billing Determinants'!$B$19:$N$41,4,0)/'4. Billing Determinants'!$E$41*$D14,IF($E14="kW",VLOOKUP(Q$4,'4. Billing Determinants'!$B$19:$N$41,5,0)/'4. Billing Determinants'!$F$41*$D14,IF($E14="Non-RPP kWh",VLOOKUP(Q$4,'4. Billing Determinants'!$B$19:$N$41,6,0)/'4. Billing Determinants'!$G$41*$D14,IF($E14="Distribution Rev.",VLOOKUP(Q$4,'4. Billing Determinants'!$B$19:$N$41,8,0)/'4. Billing Determinants'!$I$41*$D14, VLOOKUP(Q$4,'4. Billing Determinants'!$B$19:$N$41,3,0)/'4. Billing Determinants'!$D$41*$D14))))) -> 0 | R14: =IF(R$4="",0,IF($E14="kWh",VLOOKUP(R$4,'4. Billing Determinants'!$B$19:$N$41,4,0)/'4. Billing Determinants'!$E$41*$D14,IF($E14="kW",VLOOKUP(R$4,'4. Billing Determinants'!$B$19:$N$41,5,0)/'4. Billing Determinants'!$F$41*$D14,IF($E14="Non-RPP kWh",VLOOKUP(R$4,'4. Billing Determinants'!$B$19:$N$41,6,0)/'4. Billing Determinants'!$G$41*$D14,IF($E14="Distribution Rev.",VLOOKUP(R$4,'4. Billing Determinants'!$B$19:$N$41,8,0)/'4. Billing Determinants'!$I$41*$D14, VLOOKUP(R$4,'4. Billing Determinants'!$B$19:$N$41,3,0)/'4. Billing Determinants'!$D$41*$D14))))) -> 0 | S14: =IF(S$4="",0,IF($E14="kWh",VLOOKUP(S$4,'4. Billing Determinants'!$B$19:$N$41,4,0)/'4. Billing Determinants'!$E$41*$D14,IF($E14="kW",VLOOKUP(S$4,'4. Billing Determinants'!$B$19:$N$41,5,0)/'4. Billing Determinants'!$F$41*$D14,IF($E14="Non-RPP kWh",VLOOKUP(S$4,'4. Billing Determinants'!$B$19:$N$41,6,0)/'4. Billing Determinants'!$G$41*$D14,IF($E14="Distribution Rev.",VLOOKUP(S$4,'4. Billing Determinants'!$B$19:$N$41,8,0)/'4. Billing Determinants'!$I$41*$D14, VLOOKUP(S$4,'4. Billing Determinants'!$B$19:$N$41,3,0)/'4. Billing Determinants'!$D$41*$D14))))) -> 0 | T14: =IF(T$4="",0,IF($E14="kWh",VLOOKUP(T$4,'4. Billing Determinants'!$B$19:$N$41,4,0)/'4. Billing Determinants'!$E$41*$D14,IF($E14="kW",VLOOKUP(T$4,'4. Billing Determinants'!$B$19:$N$41,5,0)/'4. Billing Determinants'!$F$41*$D14,IF($E14="Non-RPP kWh",VLOOKUP(T$4,'4. Billing Determinants'!$B$19:$N$41,6,0)/'4. Billing Determinants'!$G$41*$D14,IF($E14="Distribution Rev.",VLOOKUP(T$4,'4. Billing Determinants'!$B$19:$N$41,8,0)/'4. Billing Determinants'!$I$41*$D14, VLOOKUP(T$4,'4. Billing Determinants'!$B$19:$N$41,3,0)/'4. Billing Determinants'!$D$41*$D14))))) -> 0 | U14: =IF(U$4="",0,IF($E14="kWh",VLOOKUP(U$4,'4. Billing Determinants'!$B$19:$N$41,4,0)/'4. Billing Determinants'!$E$41*$D14,IF($E14="kW",VLOOKUP(U$4,'4. Billing Determinants'!$B$19:$N$41,5,0)/'4. Billing Determinants'!$F$41*$D14,IF($E14="Non-RPP kWh",VLOOKUP(U$4,'4. Billing Determinants'!$B$19:$N$41,6,0)/'4. Billing Determinants'!$G$41*$D14,IF($E14="Distribution Rev.",VLOOKUP(U$4,'4. Billing Determinants'!$B$19:$N$41,8,0)/'4. Billing Determinants'!$I$41*$D14, VLOOKUP(U$4,'4. Billing Determinants'!$B$19:$N$41,3,0)/'4. Billing Determinants'!$D$41*$D14))))) -> 0 | V14: =IF(V$4="",0,IF($E14="kWh",VLOOKUP(V$4,'4. Billing Determinants'!$B$19:$N$41,4,0)/'4. Billing Determinants'!$E$41*$D14,IF($E14="kW",VLOOKUP(V$4,'4. Billing Determinants'!$B$19:$N$41,5,0)/'4. Billing Determinants'!$F$41*$D14,IF($E14="Non-RPP kWh",VLOOKUP(V$4,'4. Billing Determinants'!$B$19:$N$41,6,0)/'4. Billing Determinants'!$G$41*$D14,IF($E14="Distribution Rev.",VLOOKUP(V$4,'4. Billing Determinants'!$B$19:$N$41,8,0)/'4. Billing Determinants'!$I$41*$D14, VLOOKUP(V$4,'4. Billing Determinants'!$B$19:$N$41,3,0)/'4. Billing Determinants'!$D$41*$D14))))) -> 0 | W14: =IF(W$4="",0,IF($E14="kWh",VLOOKUP(W$4,'4. Billing Determinants'!$B$19:$N$41,4,0)/'4. Billing Determinants'!$E$41*$D14,IF($E14="kW",VLOOKUP(W$4,'4. Billing Determinants'!$B$19:$N$41,5,0)/'4. Billing Determinants'!$F$41*$D14,IF($E14="Non-RPP kWh",VLOOKUP(W$4,'4. Billing Determinants'!$B$19:$N$41,6,0)/'4. Billing Determinants'!$G$41*$D14,IF($E14="Distribution Rev.",VLOOKUP(W$4,'4. Billing Determinants'!$B$19:$N$41,8,0)/'4. Billing Determinants'!$I$41*$D14, VLOOKUP(W$4,'4. Billing Determinants'!$B$19:$N$41,3,0)/'4. Billing Determinants'!$D$41*$D14))))) -> 0 | X14: =IF(X$4="",0,IF($E14="kWh",VLOOKUP(X$4,'4. Billing Determinants'!$B$19:$N$41,4,0)/'4. Billing Determinants'!$E$41*$D14,IF($E14="kW",VLOOKUP(X$4,'4. Billing Determinants'!$B$19:$N$41,5,0)/'4. Billing Determinants'!$F$41*$D14,IF($E14="Non-RPP kWh",VLOOKUP(X$4,'4. Billing Determinants'!$B$19:$N$41,6,0)/'4. Billing Determinants'!$G$41*$D14,IF($E14="Distribution Rev.",VLOOKUP(X$4,'4. Billing Determinants'!$B$19:$N$41,8,0)/'4. Billing Determinants'!$I$41*$D14, VLOOKUP(X$4,'4. Billing Determinants'!$B$19:$N$41,3,0)/'4. Billing Determinants'!$D$41*$D14))))) -> 0 | Y14: =IF(Y$4="",0,IF($E14="kWh",VLOOKUP(Y$4,'4. Billing Determinants'!$B$19:$N$41,4,0)/'4. Billing Determinants'!$E$41*$D14,IF($E14="kW",VLOOKUP(Y$4,'4. Billing Determinants'!$B$19:$N$41,5,0)/'4. Billing Determinants'!$F$41*$D14,IF($E14="Non-RPP kWh",VLOOKUP(Y$4,'4. Billing Determinants'!$B$19:$N$41,6,0)/'4. Billing Determinants'!$G$41*$D14,IF($E14="Distribution Rev.",VLOOKUP(Y$4,'4. Billing Determinants'!$B$19:$N$41,8,0)/'4. Billing Determinants'!$I$41*$D14, VLOOKUP(Y$4,'4. Billing Determinants'!$B$19:$N$41,3,0)/'4. Billing Determinants'!$D$41*$D14))))) -> 0
B15: Disposition and Recovery/Refund of Regulatory Balances (2011) | C15: 1595 | D15: ='2. 2013 Continuity Schedule'!DC34 -> 0 | E15: kWh | F15: =IF(F$4="",0,IF($E15="kWh",VLOOKUP(F$4,'4. Billing Determinants'!$B$19:$N$41,4,0)/'4. Billing Determinants'!$E$41*$D15,IF($E15="kW",VLOOKUP(F$4,'4. Billing Determinants'!$B$19:$N$41,5,0)/'4. Billing Determinants'!$F$41*$D15,IF($E15="Non-RPP kWh",VLOOKUP(F$4,'4. Billing Determinants'!$B$19:$N$41,6,0)/'4. Billing Determinants'!$G$41*$D15,IF($E15="Distribution Rev.",VLOOKUP(F$4,'4. Billing Determinants'!$B$19:$N$41,8,0)/'4. Billing Determinants'!$I$41*$D15, VLOOKUP(F$4,'4. Billing Determinants'!$B$19:$N$41,3,0)/'4. Billing Determinants'!$D$41*$D15))))) -> 0 | G15: =IF(G$4="",0,IF($E15="kWh",VLOOKUP(G$4,'4. Billing Determinants'!$B$19:$N$41,4,0)/'4. Billing Determinants'!$E$41*$D15,IF($E15="kW",VLOOKUP(G$4,'4. Billing Determinants'!$B$19:$N$41,5,0)/'4. Billing Determinants'!$F$41*$D15,IF($E15="Non-RPP kWh",VLOOKUP(G$4,'4. Billing Determinants'!$B$19:$N$41,6,0)/'4. Billing Determinants'!$G$41*$D15,IF($E15="Distribution Rev.",VLOOKUP(G$4,'4. Billing Determinants'!$B$19:$N$41,8,0)/'4. Billing Determinants'!$I$41*$D15, VLOOKUP(G$4,'4. Billing Determinants'!$B$19:$N$41,3,0)/'4. Billing Determinants'!$D$41*$D15))))) -> 0 | H15: =IF(H$4="",0,IF($E15="kWh",VLOOKUP(H$4,'4. Billing Determinants'!$B$19:$N$41,4,0)/'4. Billing Determinants'!$E$41*$D15,IF($E15="kW",VLOOKUP(H$4,'4. Billing Determinants'!$B$19:$N$41,5,0)/'4. Billing Determinants'!$F$41*$D15,IF($E15="Non-RPP kWh",VLOOKUP(H$4,'4. Billing Determinants'!$B$19:$N$41,6,0)/'4. Billing Determinants'!$G$41*$D15,IF($E15="Distribution Rev.",VLOOKUP(H$4,'4. Billing Determinants'!$B$19:$N$41,8,0)/'4. Billing Determinants'!$I$41*$D15, VLOOKUP(H$4,'4. Billing Determinants'!$B$19:$N$41,3,0)/'4. Billing Determinants'!$D$41*$D15))))) -> 0 | I15: =IF(I$4="",0,IF($E15="kWh",VLOOKUP(I$4,'4. Billing Determinants'!$B$19:$N$41,4,0)/'4. Billing Determinants'!$E$41*$D15,IF($E15="kW",VLOOKUP(I$4,'4. Billing Determinants'!$B$19:$N$41,5,0)/'4. Billing Determinants'!$F$41*$D15,IF($E15="Non-RPP kWh",VLOOKUP(I$4,'4. Billing Determinants'!$B$19:$N$41,6,0)/'4. Billing Determinants'!$G$41*$D15,IF($E15="Distribution Rev.",VLOOKUP(I$4,'4. Billing Determinants'!$B$19:$N$41,8,0)/'4. Billing Determinants'!$I$41*$D15, VLOOKUP(I$4,'4. Billing Determinants'!$B$19:$N$41,3,0)/'4. Billing Determinants'!$D$41*$D15))))) -> 0 | J15: =IF(J$4="",0,IF($E15="kWh",VLOOKUP(J$4,'4. Billing Determinants'!$B$19:$N$41,4,0)/'4. Billing Determinants'!$E$41*$D15,IF($E15="kW",VLOOKUP(J$4,'4. Billing Determinants'!$B$19:$N$41,5,0)/'4. Billing Determinants'!$F$41*$D15,IF($E15="Non-RPP kWh",VLOOKUP(J$4,'4. Billing Determinants'!$B$19:$N$41,6,0)/'4. Billing Determinants'!$G$41*$D15,IF($E15="Distribution Rev.",VLOOKUP(J$4,'4. Billing Determinants'!$B$19:$N$41,8,0)/'4. Billing Determinants'!$I$41*$D15, VLOOKUP(J$4,'4. Billing Determinants'!$B$19:$N$41,3,0)/'4. Billing Determinants'!$D$41*$D15))))) -> 0 | K15: =IF(K$4="",0,IF($E15="kWh",VLOOKUP(K$4,'4. Billing Determinants'!$B$19:$N$41,4,0)/'4. Billing Determinants'!$E$41*$D15,IF($E15="kW",VLOOKUP(K$4,'4. Billing Determinants'!$B$19:$N$41,5,0)/'4. Billing Determinants'!$F$41*$D15,IF($E15="Non-RPP kWh",VLOOKUP(K$4,'4. Billing Determinants'!$B$19:$N$41,6,0)/'4. Billing Determinants'!$G$41*$D15,IF($E15="Distribution Rev.",VLOOKUP(K$4,'4. Billing Determinants'!$B$19:$N$41,8,0)/'4. Billing Determinants'!$I$41*$D15, VLOOKUP(K$4,'4. Billing Determinants'!$B$19:$N$41,3,0)/'4. Billing Determinants'!$D$41*$D15))))) -> 0 | L15: =IF(L$4="",0,IF($E15="kWh",VLOOKUP(L$4,'4. Billing Determinants'!$B$19:$N$41,4,0)/'4. Billing Determinants'!$E$41*$D15,IF($E15="kW",VLOOKUP(L$4,'4. Billing Determinants'!$B$19:$N$41,5,0)/'4. Billing Determinants'!$F$41*$D15,IF($E15="Non-RPP kWh",VLOOKUP(L$4,'4. Billing Determinants'!$B$19:$N$41,6,0)/'4. Billing Determinants'!$G$41*$D15,IF($E15="Distribution Rev.",VLOOKUP(L$4,'4. Billing Determinants'!$B$19:$N$41,8,0)/'4. Billing Determinants'!$I$41*$D15, VLOOKUP(L$4,'4. Billing Determinants'!$B$19:$N$41,3,0)/'4. Billing Determinants'!$D$41*$D15))))) -> 0 | M15: =IF(M$4="",0,IF($E15="kWh",VLOOKUP(M$4,'4. Billing Determinants'!$B$19:$N$41,4,0)/'4. Billing Determinants'!$E$41*$D15,IF($E15="kW",VLOOKUP(M$4,'4. Billing Determinants'!$B$19:$N$41,5,0)/'4. Billing Determinants'!$F$41*$D15,IF($E15="Non-RPP kWh",VLOOKUP(M$4,'4. Billing Determinants'!$B$19:$N$41,6,0)/'4. Billing Determinants'!$G$41*$D15,IF($E15="Distribution Rev.",VLOOKUP(M$4,'4. Billing Determinants'!$B$19:$N$41,8,0)/'4. Billing Determinants'!$I$41*$D15, VLOOKUP(M$4,'4. Billing Determinants'!$B$19:$N$41,3,0)/'4. Billing Determinants'!$D$41*$D15))))) -> 0 | N15: =IF(N$4="",0,IF($E15="kWh",VLOOKUP(N$4,'4. Billing Determinants'!$B$19:$N$41,4,0)/'4. Billing Determinants'!$E$41*$D15,IF($E15="kW",VLOOKUP(N$4,'4. Billing Determinants'!$B$19:$N$41,5,0)/'4. Billing Determinants'!$F$41*$D15,IF($E15="Non-RPP kWh",VLOOKUP(N$4,'4. Billing Determinants'!$B$19:$N$41,6,0)/'4. Billing Determinants'!$G$41*$D15,IF($E15="Distribution Rev.",VLOOKUP(N$4,'4. Billing Determinants'!$B$19:$N$41,8,0)/'4. Billing Determinants'!$I$41*$D15, VLOOKUP(N$4,'4. Billing Determinants'!$B$19:$N$41,3,0)/'4. Billing Determinants'!$D$41*$D15))))) -> 0 | O15: =IF(O$4="",0,IF($E15="kWh",VLOOKUP(O$4,'4. Billing Determinants'!$B$19:$N$41,4,0)/'4. Billing Determinants'!$E$41*$D15,IF($E15="kW",VLOOKUP(O$4,'4. Billing Determinants'!$B$19:$N$41,5,0)/'4. Billing Determinants'!$F$41*$D15,IF($E15="Non-RPP kWh",VLOOKUP(O$4,'4. Billing Determinants'!$B$19:$N$41,6,0)/'4. Billing Determinants'!$G$41*$D15,IF($E15="Distribution Rev.",VLOOKUP(O$4,'4. Billing Determinants'!$B$19:$N$41,8,0)/'4. Billing Determinants'!$I$41*$D15, VLOOKUP(O$4,'4. Billing Determinants'!$B$19:$N$41,3,0)/'4. Billing Determinants'!$D$41*$D15))))) -> 0 | P15: =IF(P$4="",0,IF($E15="kWh",VLOOKUP(P$4,'4. Billing Determinants'!$B$19:$N$41,4,0)/'4. Billing Determinants'!$E$41*$D15,IF($E15="kW",VLOOKUP(P$4,'4. Billing Determinants'!$B$19:$N$41,5,0)/'4. Billing Determinants'!$F$41*$D15,IF($E15="Non-RPP kWh",VLOOKUP(P$4,'4. Billing Determinants'!$B$19:$N$41,6,0)/'4. Billing Determinants'!$G$41*$D15,IF($E15="Distribution Rev.",VLOOKUP(P$4,'4. Billing Determinants'!$B$19:$N$41,8,0)/'4. Billing Determinants'!$I$41*$D15, VLOOKUP(P$4,'4. Billing Determinants'!$B$19:$N$41,3,0)/'4. Billing Determinants'!$D$41*$D15))))) -> 0 | Q15: =IF(Q$4="",0,IF($E15="kWh",VLOOKUP(Q$4,'4. Billing Determinants'!$B$19:$N$41,4,0)/'4. Billing Determinants'!$E$41*$D15,IF($E15="kW",VLOOKUP(Q$4,'4. Billing Determinants'!$B$19:$N$41,5,0)/'4. Billing Determinants'!$F$41*$D15,IF($E15="Non-RPP kWh",VLOOKUP(Q$4,'4. Billing Determinants'!$B$19:$N$41,6,0)/'4. Billing Determinants'!$G$41*$D15,IF($E15="Distribution Rev.",VLOOKUP(Q$4,'4. Billing Determinants'!$B$19:$N$41,8,0)/'4. Billing Determinants'!$I$41*$D15, VLOOKUP(Q$4,'4. Billing Determinants'!$B$19:$N$41,3,0)/'4. Billing Determinants'!$D$41*$D15))))) -> 0 | R15: =IF(R$4="",0,IF($E15="kWh",VLOOKUP(R$4,'4. Billing Determinants'!$B$19:$N$41,4,0)/'4. Billing Determinants'!$E$41*$D15,IF($E15="kW",VLOOKUP(R$4,'4. Billing Determinants'!$B$19:$N$41,5,0)/'4. Billing Determinants'!$F$41*$D15,IF($E15="Non-RPP kWh",VLOOKUP(R$4,'4. Billing Determinants'!$B$19:$N$41,6,0)/'4. Billing Determinants'!$G$41*$D15,IF($E15="Distribution Rev.",VLOOKUP(R$4,'4. Billing Determinants'!$B$19:$N$41,8,0)/'4. Billing Determinants'!$I$41*$D15, VLOOKUP(R$4,'4. Billing Determinants'!$B$19:$N$41,3,0)/'4. Billing Determinants'!$D$41*$D15))))) -> 0 | S15: =IF(S$4="",0,IF($E15="kWh",VLOOKUP(S$4,'4. Billing Determinants'!$B$19:$N$41,4,0)/'4. Billing Determinants'!$E$41*$D15,IF($E15="kW",VLOOKUP(S$4,'4. Billing Determinants'!$B$19:$N$41,5,0)/'4. Billing Determinants'!$F$41*$D15,IF($E15="Non-RPP kWh",VLOOKUP(S$4,'4. Billing Determinants'!$B$19:$N$41,6,0)/'4. Billing Determinants'!$G$41*$D15,IF($E15="Distribution Rev.",VLOOKUP(S$4,'4. Billing Determinants'!$B$19:$N$41,8,0)/'4. Billing Determinants'!$I$41*$D15, VLOOKUP(S$4,'4. Billing Determinants'!$B$19:$N$41,3,0)/'4. Billing Determinants'!$D$41*$D15))))) -> 0 | T15: =IF(T$4="",0,IF($E15="kWh",VLOOKUP(T$4,'4. Billing Determinants'!$B$19:$N$41,4,0)/'4. Billing Determinants'!$E$41*$D15,IF($E15="kW",VLOOKUP(T$4,'4. Billing Determinants'!$B$19:$N$41,5,0)/'4. Billing Determinants'!$F$41*$D15,IF($E15="Non-RPP kWh",VLOOKUP(T$4,'4. Billing Determinants'!$B$19:$N$41,6,0)/'4. Billing Determinants'!$G$41*$D15,IF($E15="Distribution Rev.",VLOOKUP(T$4,'4. Billing Determinants'!$B$19:$N$41,8,0)/'4. Billing Determinants'!$I$41*$D15, VLOOKUP(T$4,'4. Billing Determinants'!$B$19:$N$41,3,0)/'4. Billing Determinants'!$D$41*$D15))))) -> 0 | U15: =IF(U$4="",0,IF($E15="kWh",VLOOKUP(U$4,'4. Billing Determinants'!$B$19:$N$41,4,0)/'4. Billing Determinants'!$E$41*$D15,IF($E15="kW",VLOOKUP(U$4,'4. Billing Determinants'!$B$19:$N$41,5,0)/'4. Billing Determinants'!$F$41*$D15,IF($E15="Non-RPP kWh",VLOOKUP(U$4,'4. Billing Determinants'!$B$19:$N$41,6,0)/'4. Billing Determinants'!$G$41*$D15,IF($E15="Distribution Rev.",VLOOKUP(U$4,'4. Billing Determinants'!$B$19:$N$41,8,0)/'4. Billing Determinants'!$I$41*$D15, VLOOKUP(U$4,'4. Billing Determinants'!$B$19:$N$41,3,0)/'4. Billing Determinants'!$D$41*$D15))))) -> 0 | V15: =IF(V$4="",0,IF($E15="kWh",VLOOKUP(V$4,'4. Billing Determinants'!$B$19:$N$41,4,0)/'4. Billing Determinants'!$E$41*$D15,IF($E15="kW",VLOOKUP(V$4,'4. Billing Determinants'!$B$19:$N$41,5,0)/'4. Billing Determinants'!$F$41*$D15,IF($E15="Non-RPP kWh",VLOOKUP(V$4,'4. Billing Determinants'!$B$19:$N$41,6,0)/'4. Billing Determinants'!$G$41*$D15,IF($E15="Distribution Rev.",VLOOKUP(V$4,'4. Billing Determinants'!$B$19:$N$41,8,0)/'4. Billing Determinants'!$I$41*$D15, VLOOKUP(V$4,'4. Billing Determinants'!$B$19:$N$41,3,0)/'4. Billing Determinants'!$D$41*$D15))))) -> 0 | W15: =IF(W$4="",0,IF($E15="kWh",VLOOKUP(W$4,'4. Billing Determinants'!$B$19:$N$41,4,0)/'4. Billing Determinants'!$E$41*$D15,IF($E15="kW",VLOOKUP(W$4,'4. Billing Determinants'!$B$19:$N$41,5,0)/'4. Billing Determinants'!$F$41*$D15,IF($E15="Non-RPP kWh",VLOOKUP(W$4,'4. Billing Determinants'!$B$19:$N$41,6,0)/'4. Billing Determinants'!$G$41*$D15,IF($E15="Distribution Rev.",VLOOKUP(W$4,'4. Billing Determinants'!$B$19:$N$41,8,0)/'4. Billing Determinants'!$I$41*$D15, VLOOKUP(W$4,'4. Billing Determinants'!$B$19:$N$41,3,0)/'4. Billing Determinants'!$D$41*$D15))))) -> 0 | X15: =IF(X$4="",0,IF($E15="kWh",VLOOKUP(X$4,'4. Billing Determinants'!$B$19:$N$41,4,0)/'4. Billing Determinants'!$E$41*$D15,IF($E15="kW",VLOOKUP(X$4,'4. Billing Determinants'!$B$19:$N$41,5,0)/'4. Billing Determinants'!$F$41*$D15,IF($E15="Non-RPP kWh",VLOOKUP(X$4,'4. Billing Determinants'!$B$19:$N$41,6,0)/'4. Billing Determinants'!$G$41*$D15,IF($E15="Distribution Rev.",VLOOKUP(X$4,'4. Billing Determinants'!$B$19:$N$41,8,0)/'4. Billing Determinants'!$I$41*$D15, VLOOKUP(X$4,'4. Billing Determinants'!$B$19:$N$41,3,0)/'4. Billing Determinants'!$D$41*$D15))))) -> 0 | Y15: =IF(Y$4="",0,IF($E15="kWh",VLOOKUP(Y$4,'4. Billing Determinants'!$B$19:$N$41,4,0)/'4. Billing Determinants'!$E$41*$D15,IF($E15="kW",VLOOKUP(Y$4,'4. Billing Determinants'!$B$19:$N$41,5,0)/'4. Billing Determinants'!$F$41*$D15,IF($E15="Non-RPP kWh",VLOOKUP(Y$4,'4. Billing Determinants'!$B$19:$N$41,6,0)/'4. Billing Determinants'!$G$41*$D15,IF($E15="Distribution Rev.",VLOOKUP(Y$4,'4. Billing Determinants'!$B$19:$N$41,8,0)/'4. Billing Determinants'!$I$41*$D15, VLOOKUP(Y$4,'4. Billing Determinants'!$B$19:$N$41,3,0)/'4. Billing Determinants'!$D$41*$D15))))) -> 0
B16: Total of Group 1 Accounts (excluding 1589) | D16: =SUM(D5:D15)-D10 -> 1147768.375 | F16: =SUM(F5:F15)-F10 -> 506168.0946 | G16: =SUM(G5:G15)-G10 -> 140543.263 | H16: 359025.1067 | I16: 84319.96385 | J16: 45075.96688 | K16: 9632.147984 | L16: 2963.659836 | M16: 40.17189311 | N16: 0 | O16: 0 | P16: 0 | Q16: 0 | R16: 0 | S16: 0 | T16: 0 | U16: 0 | V16: 0 | W16: 0 | X16: 0 | Y16: 0
B18: Other Regulatory Assets - Sub-Account - Ampco Motion Costs | C18: 1508 | D18: ='2. 2013 Continuity Schedule'!DC41 -> 0.071029 | E18: Distribution Rev. | F18: =IF(F$4="",0,IF($E18="kWh",VLOOKUP(F$4,'4. Billing Determinants'!$B$19:$N$41,4,0)/'4. Billing Determinants'!$E$41*$D18,IF($E18="kW",VLOOKUP(F$4,'4. Billing Determinants'!$B$19:$N$41,5,0)/'4. Billing Determinants'!$F$41*$D18,IF($E18="Non-RPP kWh",VLOOKUP(F$4,'4. Billing Determinants'!$B$19:$N$41,6,0)/'4. Billing Determinants'!$G$41*$D18,IF($E18="Distribution Rev.",VLOOKUP(F$4,'4. Billing Determinants'!$B$19:$N$41,8,0)/'4. Billing Determinants'!$I$41*$D18, VLOOKUP(F$4,'4. Billing Determinants'!$B$19:$N$41,3,0)/'4. Billing Determinants'!$D$41*$D18))))) -> 0.04173997079 | G18: =IF(G$4="",0,IF($E18="kWh",VLOOKUP(G$4,'4. Billing Determinants'!$B$19:$N$41,4,0)/'4. Billing Determinants'!$E$41*$D18,IF($E18="kW",VLOOKUP(G$4,'4. Billing Determinants'!$B$19:$N$41,5,0)/'4. Billing Determinants'!$F$41*$D18,IF($E18="Non-RPP kWh",VLOOKUP(G$4,'4. Billing Determinants'!$B$19:$N$41,6,0)/'4. Billing Determinants'!$G$41*$D18,IF($E18="Distribution Rev.",VLOOKUP(G$4,'4. Billing Determinants'!$B$19:$N$41,8,0)/'4. Billing Determinants'!$I$41*$D18, VLOOKUP(G$4,'4. Billing Determinants'!$B$19:$N$41,3,0)/'4. Billing Determinants'!$D$41*$D18))))) -> 0.01012128592 | H18: =IF(H$4="",0,IF($E18="kWh",VLOOKUP(H$4,'4. Billing Determinants'!$B$19:$N$41,4,0)/'4. Billing Determinants'!$E$41*$D18,IF($E18="kW",VLOOKUP(H$4,'4. Billing Determinants'!$B$19:$N$41,5,0)/'4. Billing Determinants'!$F$41*$D18,IF($E18="Non-RPP kWh",VLOOKUP(H$4,'4. Billing Determinants'!$B$19:$N$41,6,0)/'4. Billing Determinants'!$G$41*$D18,IF($E18="Distribution Rev.",VLOOKUP(H$4,'4. Billing Determinants'!$B$19:$N$41,8,0)/'4. Billing Determinants'!$I$41*$D18, VLOOKUP(H$4,'4. Billing Determinants'!$B$19:$N$41,3,0)/'4. Billing Determinants'!$D$41*$D18))))) -> 0.01310884208 | I18: =IF(I$4="",0,IF($E18="kWh",VLOOKUP(I$4,'4. Billing Determinants'!$B$19:$N$41,4,0)/'4. Billing Determinants'!$E$41*$D18,IF($E18="kW",VLOOKUP(I$4,'4. Billing Determinants'!$B$19:$N$41,5,0)/'4. Billing Determinants'!$F$41*$D18,IF($E18="Non-RPP kWh",VLOOKUP(I$4,'4. Billing Determinants'!$B$19:$N$41,6,0)/'4. Billing Determinants'!$G$41*$D18,IF($E18="Distribution Rev.",VLOOKUP(I$4,'4. Billing Determinants'!$B$19:$N$41,8,0)/'4. Billing Determinants'!$I$41*$D18, VLOOKUP(I$4,'4. Billing Determinants'!$B$19:$N$41,3,0)/'4. Billing Determinants'!$D$41*$D18))))) -> 0.002456118481 | J18: =IF(J$4="",0,IF($E18="kWh",VLOOKUP(J$4,'4. Billing Determinants'!$B$19:$N$41,4,0)/'4. Billing Determinants'!$E$41*$D18,IF($E18="kW",VLOOKUP(J$4,'4. Billing Determinants'!$B$19:$N$41,5,0)/'4. Billing Determinants'!$F$41*$D18,IF($E18="Non-RPP kWh",VLOOKUP(J$4,'4. Billing Determinants'!$B$19:$N$41,6,0)/'4. Billing Determinants'!$G$41*$D18,IF($E18="Distribution Rev.",VLOOKUP(J$4,'4. Billing Determinants'!$B$19:$N$41,8,0)/'4. Billing Determinants'!$I$41*$D18, VLOOKUP(J$4,'4. Billing Determinants'!$B$19:$N$41,3,0)/'4. Billing Determinants'!$D$41*$D18))))) -> 0.001114676911 | K18: =IF(K$4="",0,IF($E18="kWh",VLOOKUP(K$4,'4. Billing Determinants'!$B$19:$N$41,4,0)/'4. Billing Determinants'!$E$41*$D18,IF($E18="kW",VLOOKUP(K$4,'4. Billing Determinants'!$B$19:$N$41,5,0)/'4. Billing Determinants'!$F$41*$D18,IF($E18="Non-RPP kWh",VLOOKUP(K$4,'4. Billing Determinants'!$B$19:$N$41,6,0)/'4. Billing Determinants'!$G$41*$D18,IF($E18="Distribution Rev.",VLOOKUP(K$4,'4. Billing Determinants'!$B$19:$N$41,8,0)/'4. Billing Determinants'!$I$41*$D18, VLOOKUP(K$4,'4. Billing Determinants'!$B$19:$N$41,3,0)/'4. Billing Determinants'!$D$41*$D18))))) -> 0.002441969017 | L18: =IF(L$4="",0,IF($E18="kWh",VLOOKUP(L$4,'4. Billing Determinants'!$B$19:$N$41,4,0)/'4. Billing Determinants'!$E$41*$D18,IF($E18="kW",VLOOKUP(L$4,'4. Billing Determinants'!$B$19:$N$41,5,0)/'4. Billing Determinants'!$F$41*$D18,IF($E18="Non-RPP kWh",VLOOKUP(L$4,'4. Billing Determinants'!$B$19:$N$41,6,0)/'4. Billing Determinants'!$G$41*$D18,IF($E18="Distribution Rev.",VLOOKUP(L$4,'4. Billing Determinants'!$B$19:$N$41,8,0)/'4. Billing Determinants'!$I$41*$D18, VLOOKUP(L$4,'4. Billing Determinants'!$B$19:$N$41,3,0)/'4. Billing Determinants'!$D$41*$D18))))) -> 4.588685773e-05 | M18: =IF(M$4="",0,IF($E18="kWh",VLOOKUP(M$4,'4. Billing Determinants'!$B$19:$N$41,4,0)/'4. Billing Determinants'!$E$41*$D18,IF($E18="kW",VLOOKUP(M$4,'4. Billing Determinants'!$B$19:$N$41,5,0)/'4. Billing Determinants'!$F$41*$D18,IF($E18="Non-RPP kWh",VLOOKUP(M$4,'4. Billing Determinants'!$B$19:$N$41,6,0)/'4. Billing Determinants'!$G$41*$D18,IF($E18="Distribution Rev.",VLOOKUP(M$4,'4. Billing Determinants'!$B$19:$N$41,8,0)/'4. Billing Determinants'!$I$41*$D18, VLOOKUP(M$4,'4. Billing Determinants'!$B$19:$N$41,3,0)/'4. Billing Determinants'!$D$41*$D18))))) -> 2.499363932e-07 | N18: =IF(N$4="",0,IF($E18="kWh",VLOOKUP(N$4,'4. Billing Determinants'!$B$19:$N$41,4,0)/'4. Billing Determinants'!$E$41*$D18,IF($E18="kW",VLOOKUP(N$4,'4. Billing Determinants'!$B$19:$N$41,5,0)/'4. Billing Determinants'!$F$41*$D18,IF($E18="Non-RPP kWh",VLOOKUP(N$4,'4. Billing Determinants'!$B$19:$N$41,6,0)/'4. Billing Determinants'!$G$41*$D18,IF($E18="Distribution Rev.",VLOOKUP(N$4,'4. Billing Determinants'!$B$19:$N$41,8,0)/'4. Billing Determinants'!$I$41*$D18, VLOOKUP(N$4,'4. Billing Determinants'!$B$19:$N$41,3,0)/'4. Billing Determinants'!$D$41*$D18))))) -> 0 | O18: =IF(O$4="",0,IF($E18="kWh",VLOOKUP(O$4,'4. Billing Determinants'!$B$19:$N$41,4,0)/'4. Billing Determinants'!$E$41*$D18,IF($E18="kW",VLOOKUP(O$4,'4. Billing Determinants'!$B$19:$N$41,5,0)/'4. Billing Determinants'!$F$41*$D18,IF($E18="Non-RPP kWh",VLOOKUP(O$4,'4. Billing Determinants'!$B$19:$N$41,6,0)/'4. Billing Determinants'!$G$41*$D18,IF($E18="Distribution Rev.",VLOOKUP(O$4,'4. Billing Determinants'!$B$19:$N$41,8,0)/'4. Billing Determinants'!$I$41*$D18, VLOOKUP(O$4,'4. Billing Determinants'!$B$19:$N$41,3,0)/'4. Billing Determinants'!$D$41*$D18))))) -> 0 | P18: =IF(P$4="",0,IF($E18="kWh",VLOOKUP(P$4,'4. Billing Determinants'!$B$19:$N$41,4,0)/'4. Billing Determinants'!$E$41*$D18,IF($E18="kW",VLOOKUP(P$4,'4. Billing Determinants'!$B$19:$N$41,5,0)/'4. Billing Determinants'!$F$41*$D18,IF($E18="Non-RPP kWh",VLOOKUP(P$4,'4. Billing Determinants'!$B$19:$N$41,6,0)/'4. Billing Determinants'!$G$41*$D18,IF($E18="Distribution Rev.",VLOOKUP(P$4,'4. Billing Determinants'!$B$19:$N$41,8,0)/'4. Billing Determinants'!$I$41*$D18, VLOOKUP(P$4,'4. Billing Determinants'!$B$19:$N$41,3,0)/'4. Billing Determinants'!$D$41*$D18))))) -> 0 | Q18: =IF(Q$4="",0,IF($E18="kWh",VLOOKUP(Q$4,'4. Billing Determinants'!$B$19:$N$41,4,0)/'4. Billing Determinants'!$E$41*$D18,IF($E18="kW",VLOOKUP(Q$4,'4. Billing Determinants'!$B$19:$N$41,5,0)/'4. Billing Determinants'!$F$41*$D18,IF($E18="Non-RPP kWh",VLOOKUP(Q$4,'4. Billing Determinants'!$B$19:$N$41,6,0)/'4. Billing Determinants'!$G$41*$D18,IF($E18="Distribution Rev.",VLOOKUP(Q$4,'4. Billing Determinants'!$B$19:$N$41,8,0)/'4. Billing Determinants'!$I$41*$D18, VLOOKUP(Q$4,'4. Billing Determinants'!$B$19:$N$41,3,0)/'4. Billing Determinants'!$D$41*$D18))))) -> 0 | R18: =IF(R$4="",0,IF($E18="kWh",VLOOKUP(R$4,'4. Billing Determinants'!$B$19:$N$41,4,0)/'4. Billing Determinants'!$E$41*$D18,IF($E18="kW",VLOOKUP(R$4,'4. Billing Determinants'!$B$19:$N$41,5,0)/'4. Billing Determinants'!$F$41*$D18,IF($E18="Non-RPP kWh",VLOOKUP(R$4,'4. Billing Determinants'!$B$19:$N$41,6,0)/'4. Billing Determinants'!$G$41*$D18,IF($E18="Distribution Rev.",VLOOKUP(R$4,'4. Billing Determinants'!$B$19:$N$41,8,0)/'4. Billing Determinants'!$I$41*$D18, VLOOKUP(R$4,'4. Billing Determinants'!$B$19:$N$41,3,0)/'4. Billing Determinants'!$D$41*$D18))))) -> 0 | S18: =IF(S$4="",0,IF($E18="kWh",VLOOKUP(S$4,'4. Billing Determinants'!$B$19:$N$41,4,0)/'4. Billing Determinants'!$E$41*$D18,IF($E18="kW",VLOOKUP(S$4,'4. Billing Determinants'!$B$19:$N$41,5,0)/'4. Billing Determinants'!$F$41*$D18,IF($E18="Non-RPP kWh",VLOOKUP(S$4,'4. Billing Determinants'!$B$19:$N$41,6,0)/'4. Billing Determinants'!$G$41*$D18,IF($E18="Distribution Rev.",VLOOKUP(S$4,'4. Billing Determinants'!$B$19:$N$41,8,0)/'4. Billing Determinants'!$I$41*$D18, VLOOKUP(S$4,'4. Billing Determinants'!$B$19:$N$41,3,0)/'4. Billing Determinants'!$D$41*$D18))))) -> 0 | T18: =IF(T$4="",0,IF($E18="kWh",VLOOKUP(T$4,'4. Billing Determinants'!$B$19:$N$41,4,0)/'4. Billing Determinants'!$E$41*$D18,IF($E18="kW",VLOOKUP(T$4,'4. Billing Determinants'!$B$19:$N$41,5,0)/'4. Billing Determinants'!$F$41*$D18,IF($E18="Non-RPP kWh",VLOOKUP(T$4,'4. Billing Determinants'!$B$19:$N$41,6,0)/'4. Billing Determinants'!$G$41*$D18,IF($E18="Distribution Rev.",VLOOKUP(T$4,'4. Billing Determinants'!$B$19:$N$41,8,0)/'4. Billing Determinants'!$I$41*$D18, VLOOKUP(T$4,'4. Billing Determinants'!$B$19:$N$41,3,0)/'4. Billing Determinants'!$D$41*$D18))))) -> 0 | U18: =IF(U$4="",0,IF($E18="kWh",VLOOKUP(U$4,'4. Billing Determinants'!$B$19:$N$41,4,0)/'4. Billing Determinants'!$E$41*$D18,IF($E18="kW",VLOOKUP(U$4,'4. Billing Determinants'!$B$19:$N$41,5,0)/'4. Billing Determinants'!$F$41*$D18,IF($E18="Non-RPP kWh",VLOOKUP(U$4,'4. Billing Determinants'!$B$19:$N$41,6,0)/'4. Billing Determinants'!$G$41*$D18,IF($E18="Distribution Rev.",VLOOKUP(U$4,'4. Billing Determinants'!$B$19:$N$41,8,0)/'4. Billing Determinants'!$I$41*$D18, VLOOKUP(U$4,'4. Billing Determinants'!$B$19:$N$41,3,0)/'4. Billing Determinants'!$D$41*$D18))))) -> 0 | V18: =IF(V$4="",0,IF($E18="kWh",VLOOKUP(V$4,'4. Billing Determinants'!$B$19:$N$41,4,0)/'4. Billing Determinants'!$E$41*$D18,IF($E18="kW",VLOOKUP(V$4,'4. Billing Determinants'!$B$19:$N$41,5,0)/'4. Billing Determinants'!$F$41*$D18,IF($E18="Non-RPP kWh",VLOOKUP(V$4,'4. Billing Determinants'!$B$19:$N$41,6,0)/'4. Billing Determinants'!$G$41*$D18,IF($E18="Distribution Rev.",VLOOKUP(V$4,'4. Billing Determinants'!$B$19:$N$41,8,0)/'4. Billing Determinants'!$I$41*$D18, VLOOKUP(V$4,'4. Billing Determinants'!$B$19:$N$41,3,0)/'4. Billing Determinants'!$D$41*$D18))))) -> 0 | W18: =IF(W$4="",0,IF($E18="kWh",VLOOKUP(W$4,'4. Billing Determinants'!$B$19:$N$41,4,0)/'4. Billing Determinants'!$E$41*$D18,IF($E18="kW",VLOOKUP(W$4,'4. Billing Determinants'!$B$19:$N$41,5,0)/'4. Billing Determinants'!$F$41*$D18,IF($E18="Non-RPP kWh",VLOOKUP(W$4,'4. Billing Determinants'!$B$19:$N$41,6,0)/'4. Billing Determinants'!$G$41*$D18,IF($E18="Distribution Rev.",VLOOKUP(W$4,'4. Billing Determinants'!$B$19:$N$41,8,0)/'4. Billing Determinants'!$I$41*$D18, VLOOKUP(W$4,'4. Billing Determinants'!$B$19:$N$41,3,0)/'4. Billing Determinants'!$D$41*$D18))))) -> 0 | X18: =IF(X$4="",0,IF($E18="kWh",VLOOKUP(X$4,'4. Billing Determinants'!$B$19:$N$41,4,0)/'4. Billing Determinants'!$E$41*$D18,IF($E18="kW",VLOOKUP(X$4,'4. Billing Determinants'!$B$19:$N$41,5,0)/'4. Billing Determinants'!$F$41*$D18,IF($E18="Non-RPP kWh",VLOOKUP(X$4,'4. Billing Determinants'!$B$19:$N$41,6,0)/'4. Billing Determinants'!$G$41*$D18,IF($E18="Distribution Rev.",VLOOKUP(X$4,'4. Billing Determinants'!$B$19:$N$41,8,0)/'4. Billing Determinants'!$I$41*$D18, VLOOKUP(X$4,'4. Billing Determinants'!$B$19:$N$41,3,0)/'4. Billing Determinants'!$D$41*$D18))))) -> 0 | Y18: =IF(Y$4="",0,IF($E18="kWh",VLOOKUP(Y$4,'4. Billing Determinants'!$B$19:$N$41,4,0)/'4. Billing Determinants'!$E$41*$D18,IF($E18="kW",VLOOKUP(Y$4,'4. Billing Determinants'!$B$19:$N$41,5,0)/'4. Billing Determinants'!$F$41*$D18,IF($E18="Non-RPP kWh",VLOOKUP(Y$4,'4. Billing Determinants'!$B$19:$N$41,6,0)/'4. Billing Determinants'!$G$41*$D18,IF($E18="Distribution Rev.",VLOOKUP(Y$4,'4. Billing Determinants'!$B$19:$N$41,8,0)/'4. Billing Determinants'!$I$41*$D18, VLOOKUP(Y$4,'4. Billing Determinants'!$B$19:$N$41,3,0)/'4. Billing Determinants'!$D$41*$D18))))) -> 0
B19: Other Regulatory Assets - Sub-Account - Acsys Deferred Revenue | C19: 1508 | D19: ='2. 2013 Continuity Schedule'!DC42 -> -0.10147 | E19: Distribution Rev. | F19: =IF(F$4="",0,IF($E19="kWh",VLOOKUP(F$4,'4. Billing Determinants'!$B$19:$N$41,4,0)/'4. Billing Determinants'!$E$41*$D19,IF($E19="kW",VLOOKUP(F$4,'4. Billing Determinants'!$B$19:$N$41,5,0)/'4. Billing Determinants'!$F$41*$D19,IF($E19="Non-RPP kWh",VLOOKUP(F$4,'4. Billing Determinants'!$B$19:$N$41,6,0)/'4. Billing Determinants'!$G$41*$D19,IF($E19="Distribution Rev.",VLOOKUP(F$4,'4. Billing Determinants'!$B$19:$N$41,8,0)/'4. Billing Determinants'!$I$41*$D19, VLOOKUP(F$4,'4. Billing Determinants'!$B$19:$N$41,3,0)/'4. Billing Determinants'!$D$41*$D19))))) -> -0.0596285297 | G19: =IF(G$4="",0,IF($E19="kWh",VLOOKUP(G$4,'4. Billing Determinants'!$B$19:$N$41,4,0)/'4. Billing Determinants'!$E$41*$D19,IF($E19="kW",VLOOKUP(G$4,'4. Billing Determinants'!$B$19:$N$41,5,0)/'4. Billing Determinants'!$F$41*$D19,IF($E19="Non-RPP kWh",VLOOKUP(G$4,'4. Billing Determinants'!$B$19:$N$41,6,0)/'4. Billing Determinants'!$G$41*$D19,IF($E19="Distribution Rev.",VLOOKUP(G$4,'4. Billing Determinants'!$B$19:$N$41,8,0)/'4. Billing Determinants'!$I$41*$D19, VLOOKUP(G$4,'4. Billing Determinants'!$B$19:$N$41,3,0)/'4. Billing Determinants'!$D$41*$D19))))) -> -0.01445897989 | H19: =IF(H$4="",0,IF($E19="kWh",VLOOKUP(H$4,'4. Billing Determinants'!$B$19:$N$41,4,0)/'4. Billing Determinants'!$E$41*$D19,IF($E19="kW",VLOOKUP(H$4,'4. Billing Determinants'!$B$19:$N$41,5,0)/'4. Billing Determinants'!$F$41*$D19,IF($E19="Non-RPP kWh",VLOOKUP(H$4,'4. Billing Determinants'!$B$19:$N$41,6,0)/'4. Billing Determinants'!$G$41*$D19,IF($E19="Distribution Rev.",VLOOKUP(H$4,'4. Billing Determinants'!$B$19:$N$41,8,0)/'4. Billing Determinants'!$I$41*$D19, VLOOKUP(H$4,'4. Billing Determinants'!$B$19:$N$41,3,0)/'4. Billing Determinants'!$D$41*$D19))))) -> -0.01872691726 | I19: =IF(I$4="",0,IF($E19="kWh",VLOOKUP(I$4,'4. Billing Determinants'!$B$19:$N$41,4,0)/'4. Billing Determinants'!$E$41*$D19,IF($E19="kW",VLOOKUP(I$4,'4. Billing Determinants'!$B$19:$N$41,5,0)/'4. Billing Determinants'!$F$41*$D19,IF($E19="Non-RPP kWh",VLOOKUP(I$4,'4. Billing Determinants'!$B$19:$N$41,6,0)/'4. Billing Determinants'!$G$41*$D19,IF($E19="Distribution Rev.",VLOOKUP(I$4,'4. Billing Determinants'!$B$19:$N$41,8,0)/'4. Billing Determinants'!$I$41*$D19, VLOOKUP(I$4,'4. Billing Determinants'!$B$19:$N$41,3,0)/'4. Billing Determinants'!$D$41*$D19))))) -> -0.003508740687 | J19: =IF(J$4="",0,IF($E19="kWh",VLOOKUP(J$4,'4. Billing Determinants'!$B$19:$N$41,4,0)/'4. Billing Determinants'!$E$41*$D19,IF($E19="kW",VLOOKUP(J$4,'4. Billing Determinants'!$B$19:$N$41,5,0)/'4. Billing Determinants'!$F$41*$D19,IF($E19="Non-RPP kWh",VLOOKUP(J$4,'4. Billing Determinants'!$B$19:$N$41,6,0)/'4. Billing Determinants'!$G$41*$D19,IF($E19="Distribution Rev.",VLOOKUP(J$4,'4. Billing Determinants'!$B$19:$N$41,8,0)/'4. Billing Determinants'!$I$41*$D19, VLOOKUP(J$4,'4. Billing Determinants'!$B$19:$N$41,3,0)/'4. Billing Determinants'!$D$41*$D19))))) -> -0.001592395587 | K19: =IF(K$4="",0,IF($E19="kWh",VLOOKUP(K$4,'4. Billing Determinants'!$B$19:$N$41,4,0)/'4. Billing Determinants'!$E$41*$D19,IF($E19="kW",VLOOKUP(K$4,'4. Billing Determinants'!$B$19:$N$41,5,0)/'4. Billing Determinants'!$F$41*$D19,IF($E19="Non-RPP kWh",VLOOKUP(K$4,'4. Billing Determinants'!$B$19:$N$41,6,0)/'4. Billing Determinants'!$G$41*$D19,IF($E19="Distribution Rev.",VLOOKUP(K$4,'4. Billing Determinants'!$B$19:$N$41,8,0)/'4. Billing Determinants'!$I$41*$D19, VLOOKUP(K$4,'4. Billing Determinants'!$B$19:$N$41,3,0)/'4. Billing Determinants'!$D$41*$D19))))) -> -0.003488527168 | L19: =IF(L$4="",0,IF($E19="kWh",VLOOKUP(L$4,'4. Billing Determinants'!$B$19:$N$41,4,0)/'4. Billing Determinants'!$E$41*$D19,IF($E19="kW",VLOOKUP(L$4,'4. Billing Determinants'!$B$19:$N$41,5,0)/'4. Billing Determinants'!$F$41*$D19,IF($E19="Non-RPP kWh",VLOOKUP(L$4,'4. Billing Determinants'!$B$19:$N$41,6,0)/'4. Billing Determinants'!$G$41*$D19,IF($E19="Distribution Rev.",VLOOKUP(L$4,'4. Billing Determinants'!$B$19:$N$41,8,0)/'4. Billing Determinants'!$I$41*$D19, VLOOKUP(L$4,'4. Billing Determinants'!$B$19:$N$41,3,0)/'4. Billing Determinants'!$D$41*$D19))))) -> -6.555265389e-05 | M19: =IF(M$4="",0,IF($E19="kWh",VLOOKUP(M$4,'4. Billing Determinants'!$B$19:$N$41,4,0)/'4. Billing Determinants'!$E$41*$D19,IF($E19="kW",VLOOKUP(M$4,'4. Billing Determinants'!$B$19:$N$41,5,0)/'4. Billing Determinants'!$F$41*$D19,IF($E19="Non-RPP kWh",VLOOKUP(M$4,'4. Billing Determinants'!$B$19:$N$41,6,0)/'4. Billing Determinants'!$G$41*$D19,IF($E19="Distribution Rev.",VLOOKUP(M$4,'4. Billing Determinants'!$B$19:$N$41,8,0)/'4. Billing Determinants'!$I$41*$D19, VLOOKUP(M$4,'4. Billing Determinants'!$B$19:$N$41,3,0)/'4. Billing Determinants'!$D$41*$D19))))) -> -3.570519903e-07 | N19: =IF(N$4="",0,IF($E19="kWh",VLOOKUP(N$4,'4. Billing Determinants'!$B$19:$N$41,4,0)/'4. Billing Determinants'!$E$41*$D19,IF($E19="kW",VLOOKUP(N$4,'4. Billing Determinants'!$B$19:$N$41,5,0)/'4. Billing Determinants'!$F$41*$D19,IF($E19="Non-RPP kWh",VLOOKUP(N$4,'4. Billing Determinants'!$B$19:$N$41,6,0)/'4. Billing Determinants'!$G$41*$D19,IF($E19="Distribution Rev.",VLOOKUP(N$4,'4. Billing Determinants'!$B$19:$N$41,8,0)/'4. Billing Determinants'!$I$41*$D19, VLOOKUP(N$4,'4. Billing Determinants'!$B$19:$N$41,3,0)/'4. Billing Determinants'!$D$41*$D19))))) -> 0 | O19: =IF(O$4="",0,IF($E19="kWh",VLOOKUP(O$4,'4. Billing Determinants'!$B$19:$N$41,4,0)/'4. Billing Determinants'!$E$41*$D19,IF($E19="kW",VLOOKUP(O$4,'4. Billing Determinants'!$B$19:$N$41,5,0)/'4. Billing Determinants'!$F$41*$D19,IF($E19="Non-RPP kWh",VLOOKUP(O$4,'4. Billing Determinants'!$B$19:$N$41,6,0)/'4. Billing Determinants'!$G$41*$D19,IF($E19="Distribution Rev.",VLOOKUP(O$4,'4. Billing Determinants'!$B$19:$N$41,8,0)/'4. Billing Determinants'!$I$41*$D19, VLOOKUP(O$4,'4. Billing Determinants'!$B$19:$N$41,3,0)/'4. Billing Determinants'!$D$41*$D19))))) -> 0 | P19: =IF(P$4="",0,IF($E19="kWh",VLOOKUP(P$4,'4. Billing Determinants'!$B$19:$N$41,4,0)/'4. Billing Determinants'!$E$41*$D19,IF($E19="kW",VLOOKUP(P$4,'4. Billing Determinants'!$B$19:$N$41,5,0)/'4. Billing Determinants'!$F$41*$D19,IF($E19="Non-RPP kWh",VLOOKUP(P$4,'4. Billing Determinants'!$B$19:$N$41,6,0)/'4. Billing Determinants'!$G$41*$D19,IF($E19="Distribution Rev.",VLOOKUP(P$4,'4. Billing Determinants'!$B$19:$N$41,8,0)/'4. Billing Determinants'!$I$41*$D19, VLOOKUP(P$4,'4. Billing Determinants'!$B$19:$N$41,3,0)/'4. Billing Determinants'!$D$41*$D19))))) -> 0 | Q19: =IF(Q$4="",0,IF($E19="kWh",VLOOKUP(Q$4,'4. Billing Determinants'!$B$19:$N$41,4,0)/'4. Billing Determinants'!$E$41*$D19,IF($E19="kW",VLOOKUP(Q$4,'4. Billing Determinants'!$B$19:$N$41,5,0)/'4. Billing Determinants'!$F$41*$D19,IF($E19="Non-RPP kWh",VLOOKUP(Q$4,'4. Billing Determinants'!$B$19:$N$41,6,0)/'4. Billing Determinants'!$G$41*$D19,IF($E19="Distribution Rev.",VLOOKUP(Q$4,'4. Billing Determinants'!$B$19:$N$41,8,0)/'4. Billing Determinants'!$I$41*$D19, VLOOKUP(Q$4,'4. Billing Determinants'!$B$19:$N$41,3,0)/'4. Billing Determinants'!$D$41*$D19))))) -> 0 | R19: =IF(R$4="",0,IF($E19="kWh",VLOOKUP(R$4,'4. Billing Determinants'!$B$19:$N$41,4,0)/'4. Billing Determinants'!$E$41*$D19,IF($E19="kW",VLOOKUP(R$4,'4. Billing Determinants'!$B$19:$N$41,5,0)/'4. Billing Determinants'!$F$41*$D19,IF($E19="Non-RPP kWh",VLOOKUP(R$4,'4. Billing Determinants'!$B$19:$N$41,6,0)/'4. Billing Determinants'!$G$41*$D19,IF($E19="Distribution Rev.",VLOOKUP(R$4,'4. Billing Determinants'!$B$19:$N$41,8,0)/'4. Billing Determinants'!$I$41*$D19, VLOOKUP(R$4,'4. Billing Determinants'!$B$19:$N$41,3,0)/'4. Billing Determinants'!$D$41*$D19))))) -> 0 | S19: =IF(S$4="",0,IF($E19="kWh",VLOOKUP(S$4,'4. Billing Determinants'!$B$19:$N$41,4,0)/'4. Billing Determinants'!$E$41*$D19,IF($E19="kW",VLOOKUP(S$4,'4. Billing Determinants'!$B$19:$N$41,5,0)/'4. Billing Determinants'!$F$41*$D19,IF($E19="Non-RPP kWh",VLOOKUP(S$4,'4. Billing Determinants'!$B$19:$N$41,6,0)/'4. Billing Determinants'!$G$41*$D19,IF($E19="Distribution Rev.",VLOOKUP(S$4,'4. Billing Determinants'!$B$19:$N$41,8,0)/'4. Billing Determinants'!$I$41*$D19, VLOOKUP(S$4,'4. Billing Determinants'!$B$19:$N$41,3,0)/'4. Billing Determinants'!$D$41*$D19))))) -> 0 | T19: =IF(T$4="",0,IF($E19="kWh",VLOOKUP(T$4,'4. Billing Determinants'!$B$19:$N$41,4,0)/'4. Billing Determinants'!$E$41*$D19,IF($E19="kW",VLOOKUP(T$4,'4. Billing Determinants'!$B$19:$N$41,5,0)/'4. Billing Determinants'!$F$41*$D19,IF($E19="Non-RPP kWh",VLOOKUP(T$4,'4. Billing Determinants'!$B$19:$N$41,6,0)/'4. Billing Determinants'!$G$41*$D19,IF($E19="Distribution Rev.",VLOOKUP(T$4,'4. Billing Determinants'!$B$19:$N$41,8,0)/'4. Billing Determinants'!$I$41*$D19, VLOOKUP(T$4,'4. Billing Determinants'!$B$19:$N$41,3,0)/'4. Billing Determinants'!$D$41*$D19))))) -> 0 | U19: =IF(U$4="",0,IF($E19="kWh",VLOOKUP(U$4,'4. Billing Determinants'!$B$19:$N$41,4,0)/'4. Billing Determinants'!$E$41*$D19,IF($E19="kW",VLOOKUP(U$4,'4. Billing Determinants'!$B$19:$N$41,5,0)/'4. Billing Determinants'!$F$41*$D19,IF($E19="Non-RPP kWh",VLOOKUP(U$4,'4. Billing Determinants'!$B$19:$N$41,6,0)/'4. Billing Determinants'!$G$41*$D19,IF($E19="Distribution Rev.",VLOOKUP(U$4,'4. Billing Determinants'!$B$19:$N$41,8,0)/'4. Billing Determinants'!$I$41*$D19, VLOOKUP(U$4,'4. Billing Determinants'!$B$19:$N$41,3,0)/'4. Billing Determinants'!$D$41*$D19))))) -> 0 | V19: =IF(V$4="",0,IF($E19="kWh",VLOOKUP(V$4,'4. Billing Determinants'!$B$19:$N$41,4,0)/'4. Billing Determinants'!$E$41*$D19,IF($E19="kW",VLOOKUP(V$4,'4. Billing Determinants'!$B$19:$N$41,5,0)/'4. Billing Determinants'!$F$41*$D19,IF($E19="Non-RPP kWh",VLOOKUP(V$4,'4. Billing Determinants'!$B$19:$N$41,6,0)/'4. Billing Determinants'!$G$41*$D19,IF($E19="Distribution Rev.",VLOOKUP(V$4,'4. Billing Determinants'!$B$19:$N$41,8,0)/'4. Billing Determinants'!$I$41*$D19, VLOOKUP(V$4,'4. Billing Determinants'!$B$19:$N$41,3,0)/'4. Billing Determinants'!$D$41*$D19))))) -> 0 | W19: =IF(W$4="",0,IF($E19="kWh",VLOOKUP(W$4,'4. Billing Determinants'!$B$19:$N$41,4,0)/'4. Billing Determinants'!$E$41*$D19,IF($E19="kW",VLOOKUP(W$4,'4. Billing Determinants'!$B$19:$N$41,5,0)/'4. Billing Determinants'!$F$41*$D19,IF($E19="Non-RPP kWh",VLOOKUP(W$4,'4. Billing Determinants'!$B$19:$N$41,6,0)/'4. Billing Determinants'!$G$41*$D19,IF($E19="Distribution Rev.",VLOOKUP(W$4,'4. Billing Determinants'!$B$19:$N$41,8,0)/'4. Billing Determinants'!$I$41*$D19, VLOOKUP(W$4,'4. Billing Determinants'!$B$19:$N$41,3,0)/'4. Billing Determinants'!$D$41*$D19))))) -> 0 | X19: =IF(X$4="",0,IF($E19="kWh",VLOOKUP(X$4,'4. Billing Determinants'!$B$19:$N$41,4,0)/'4. Billing Determinants'!$E$41*$D19,IF($E19="kW",VLOOKUP(X$4,'4. Billing Determinants'!$B$19:$N$41,5,0)/'4. Billing Determinants'!$F$41*$D19,IF($E19="Non-RPP kWh",VLOOKUP(X$4,'4. Billing Determinants'!$B$19:$N$41,6,0)/'4. Billing Determinants'!$G$41*$D19,IF($E19="Distribution Rev.",VLOOKUP(X$4,'4. Billing Determinants'!$B$19:$N$41,8,0)/'4. Billing Determinants'!$I$41*$D19, VLOOKUP(X$4,'4. Billing Determinants'!$B$19:$N$41,3,0)/'4. Billing Determinants'!$D$41*$D19))))) -> 0 | Y19: =IF(Y$4="",0,IF($E19="kWh",VLOOKUP(Y$4,'4. Billing Determinants'!$B$19:$N$41,4,0)/'4. Billing Determinants'!$E$41*$D19,IF($E19="kW",VLOOKUP(Y$4,'4. Billing Determinants'!$B$19:$N$41,5,0)/'4. Billing Determinants'!$F$41*$D19,IF($E19="Non-RPP kWh",VLOOKUP(Y$4,'4. Billing Determinants'!$B$19:$N$41,6,0)/'4. Billing Determinants'!$G$41*$D19,IF($E19="Distribution Rev.",VLOOKUP(Y$4,'4. Billing Determinants'!$B$19:$N$41,8,0)/'4. Billing Determinants'!$I$41*$D19, VLOOKUP(Y$4,'4. Billing Determinants'!$B$19:$N$41,3,0)/'4. Billing Determinants'!$D$41*$D19))))) -> 0
B20: Other Regulatory Assets - Sub-Account - Deferred IFRS Transition Costs | C20: 1508 | D20: ='2. 2013 Continuity Schedule'!DC43 -> 123122.8885 | E20: Distribution Rev. | F20: =IF(F$4="",0,IF($E20="kWh",VLOOKUP(F$4,'4. Billing Determinants'!$B$19:$N$41,4,0)/'4. Billing Determinants'!$E$41*$D20,IF($E20="kW",VLOOKUP(F$4,'4. Billing Determinants'!$B$19:$N$41,5,0)/'4. Billing Determinants'!$F$41*$D20,IF($E20="Non-RPP kWh",VLOOKUP(F$4,'4. Billing Determinants'!$B$19:$N$41,6,0)/'4. Billing Determinants'!$G$41*$D20,IF($E20="Distribution Rev.",VLOOKUP(F$4,'4. Billing Determinants'!$B$19:$N$41,8,0)/'4. Billing Determinants'!$I$41*$D20, VLOOKUP(F$4,'4. Billing Determinants'!$B$19:$N$41,3,0)/'4. Billing Determinants'!$D$41*$D20))))) -> 72352.78223 | G20: =IF(G$4="",0,IF($E20="kWh",VLOOKUP(G$4,'4. Billing Determinants'!$B$19:$N$41,4,0)/'4. Billing Determinants'!$E$41*$D20,IF($E20="kW",VLOOKUP(G$4,'4. Billing Determinants'!$B$19:$N$41,5,0)/'4. Billing Determinants'!$F$41*$D20,IF($E20="Non-RPP kWh",VLOOKUP(G$4,'4. Billing Determinants'!$B$19:$N$41,6,0)/'4. Billing Determinants'!$G$41*$D20,IF($E20="Distribution Rev.",VLOOKUP(G$4,'4. Billing Determinants'!$B$19:$N$41,8,0)/'4. Billing Determinants'!$I$41*$D20, VLOOKUP(G$4,'4. Billing Determinants'!$B$19:$N$41,3,0)/'4. Billing Determinants'!$D$41*$D20))))) -> 17544.41085 | H20: =IF(H$4="",0,IF($E20="kWh",VLOOKUP(H$4,'4. Billing Determinants'!$B$19:$N$41,4,0)/'4. Billing Determinants'!$E$41*$D20,IF($E20="kW",VLOOKUP(H$4,'4. Billing Determinants'!$B$19:$N$41,5,0)/'4. Billing Determinants'!$F$41*$D20,IF($E20="Non-RPP kWh",VLOOKUP(H$4,'4. Billing Determinants'!$B$19:$N$41,6,0)/'4. Billing Determinants'!$G$41*$D20,IF($E20="Distribution Rev.",VLOOKUP(H$4,'4. Billing Determinants'!$B$19:$N$41,8,0)/'4. Billing Determinants'!$I$41*$D20, VLOOKUP(H$4,'4. Billing Determinants'!$B$19:$N$41,3,0)/'4. Billing Determinants'!$D$41*$D20))))) -> 22723.09201 | I20: =IF(I$4="",0,IF($E20="kWh",VLOOKUP(I$4,'4. Billing Determinants'!$B$19:$N$41,4,0)/'4. Billing Determinants'!$E$41*$D20,IF($E20="kW",VLOOKUP(I$4,'4. Billing Determinants'!$B$19:$N$41,5,0)/'4. Billing Determinants'!$F$41*$D20,IF($E20="Non-RPP kWh",VLOOKUP(I$4,'4. Billing Determinants'!$B$19:$N$41,6,0)/'4. Billing Determinants'!$G$41*$D20,IF($E20="Distribution Rev.",VLOOKUP(I$4,'4. Billing Determinants'!$B$19:$N$41,8,0)/'4. Billing Determinants'!$I$41*$D20, VLOOKUP(I$4,'4. Billing Determinants'!$B$19:$N$41,3,0)/'4. Billing Determinants'!$D$41*$D20))))) -> 4257.477957 | J20: =IF(J$4="",0,IF($E20="kWh",VLOOKUP(J$4,'4. Billing Determinants'!$B$19:$N$41,4,0)/'4. Billing Determinants'!$E$41*$D20,IF($E20="kW",VLOOKUP(J$4,'4. Billing Determinants'!$B$19:$N$41,5,0)/'4. Billing Determinants'!$F$41*$D20,IF($E20="Non-RPP kWh",VLOOKUP(J$4,'4. Billing Determinants'!$B$19:$N$41,6,0)/'4. Billing Determinants'!$G$41*$D20,IF($E20="Distribution Rev.",VLOOKUP(J$4,'4. Billing Determinants'!$B$19:$N$41,8,0)/'4. Billing Determinants'!$I$41*$D20, VLOOKUP(J$4,'4. Billing Determinants'!$B$19:$N$41,3,0)/'4. Billing Determinants'!$D$41*$D20))))) -> 1932.200101 | K20: =IF(K$4="",0,IF($E20="kWh",VLOOKUP(K$4,'4. Billing Determinants'!$B$19:$N$41,4,0)/'4. Billing Determinants'!$E$41*$D20,IF($E20="kW",VLOOKUP(K$4,'4. Billing Determinants'!$B$19:$N$41,5,0)/'4. Billing Determinants'!$F$41*$D20,IF($E20="Non-RPP kWh",VLOOKUP(K$4,'4. Billing Determinants'!$B$19:$N$41,6,0)/'4. Billing Determinants'!$G$41*$D20,IF($E20="Distribution Rev.",VLOOKUP(K$4,'4. Billing Determinants'!$B$19:$N$41,8,0)/'4. Billing Determinants'!$I$41*$D20, VLOOKUP(K$4,'4. Billing Determinants'!$B$19:$N$41,3,0)/'4. Billing Determinants'!$D$41*$D20))))) -> 4232.951034 | L20: =IF(L$4="",0,IF($E20="kWh",VLOOKUP(L$4,'4. Billing Determinants'!$B$19:$N$41,4,0)/'4. Billing Determinants'!$E$41*$D20,IF($E20="kW",VLOOKUP(L$4,'4. Billing Determinants'!$B$19:$N$41,5,0)/'4. Billing Determinants'!$F$41*$D20,IF($E20="Non-RPP kWh",VLOOKUP(L$4,'4. Billing Determinants'!$B$19:$N$41,6,0)/'4. Billing Determinants'!$G$41*$D20,IF($E20="Distribution Rev.",VLOOKUP(L$4,'4. Billing Determinants'!$B$19:$N$41,8,0)/'4. Billing Determinants'!$I$41*$D20, VLOOKUP(L$4,'4. Billing Determinants'!$B$19:$N$41,3,0)/'4. Billing Determinants'!$D$41*$D20))))) -> 79.54106727 | M20: =IF(M$4="",0,IF($E20="kWh",VLOOKUP(M$4,'4. Billing Determinants'!$B$19:$N$41,4,0)/'4. Billing Determinants'!$E$41*$D20,IF($E20="kW",VLOOKUP(M$4,'4. Billing Determinants'!$B$19:$N$41,5,0)/'4. Billing Determinants'!$F$41*$D20,IF($E20="Non-RPP kWh",VLOOKUP(M$4,'4. Billing Determinants'!$B$19:$N$41,6,0)/'4. Billing Determinants'!$G$41*$D20,IF($E20="Distribution Rev.",VLOOKUP(M$4,'4. Billing Determinants'!$B$19:$N$41,8,0)/'4. Billing Determinants'!$I$41*$D20, VLOOKUP(M$4,'4. Billing Determinants'!$B$19:$N$41,3,0)/'4. Billing Determinants'!$D$41*$D20))))) -> 0.4332440365 | N20: =IF(N$4="",0,IF($E20="kWh",VLOOKUP(N$4,'4. Billing Determinants'!$B$19:$N$41,4,0)/'4. Billing Determinants'!$E$41*$D20,IF($E20="kW",VLOOKUP(N$4,'4. Billing Determinants'!$B$19:$N$41,5,0)/'4. Billing Determinants'!$F$41*$D20,IF($E20="Non-RPP kWh",VLOOKUP(N$4,'4. Billing Determinants'!$B$19:$N$41,6,0)/'4. Billing Determinants'!$G$41*$D20,IF($E20="Distribution Rev.",VLOOKUP(N$4,'4. Billing Determinants'!$B$19:$N$41,8,0)/'4. Billing Determinants'!$I$41*$D20, VLOOKUP(N$4,'4. Billing Determinants'!$B$19:$N$41,3,0)/'4. Billing Determinants'!$D$41*$D20))))) -> 0 | O20: =IF(O$4="",0,IF($E20="kWh",VLOOKUP(O$4,'4. Billing Determinants'!$B$19:$N$41,4,0)/'4. Billing Determinants'!$E$41*$D20,IF($E20="kW",VLOOKUP(O$4,'4. Billing Determinants'!$B$19:$N$41,5,0)/'4. Billing Determinants'!$F$41*$D20,IF($E20="Non-RPP kWh",VLOOKUP(O$4,'4. Billing Determinants'!$B$19:$N$41,6,0)/'4. Billing Determinants'!$G$41*$D20,IF($E20="Distribution Rev.",VLOOKUP(O$4,'4. Billing Determinants'!$B$19:$N$41,8,0)/'4. Billing Determinants'!$I$41*$D20, VLOOKUP(O$4,'4. Billing Determinants'!$B$19:$N$41,3,0)/'4. Billing Determinants'!$D$41*$D20))))) -> 0 | P20: =IF(P$4="",0,IF($E20="kWh",VLOOKUP(P$4,'4. Billing Determinants'!$B$19:$N$41,4,0)/'4. Billing Determinants'!$E$41*$D20,IF($E20="kW",VLOOKUP(P$4,'4. Billing Determinants'!$B$19:$N$41,5,0)/'4. Billing Determinants'!$F$41*$D20,IF($E20="Non-RPP kWh",VLOOKUP(P$4,'4. Billing Determinants'!$B$19:$N$41,6,0)/'4. Billing Determinants'!$G$41*$D20,IF($E20="Distribution Rev.",VLOOKUP(P$4,'4. Billing Determinants'!$B$19:$N$41,8,0)/'4. Billing Determinants'!$I$41*$D20, VLOOKUP(P$4,'4. Billing Determinants'!$B$19:$N$41,3,0)/'4. Billing Determinants'!$D$41*$D20))))) -> 0 | Q20: =IF(Q$4="",0,IF($E20="kWh",VLOOKUP(Q$4,'4. Billing Determinants'!$B$19:$N$41,4,0)/'4. Billing Determinants'!$E$41*$D20,IF($E20="kW",VLOOKUP(Q$4,'4. Billing Determinants'!$B$19:$N$41,5,0)/'4. Billing Determinants'!$F$41*$D20,IF($E20="Non-RPP kWh",VLOOKUP(Q$4,'4. Billing Determinants'!$B$19:$N$41,6,0)/'4. Billing Determinants'!$G$41*$D20,IF($E20="Distribution Rev.",VLOOKUP(Q$4,'4. Billing Determinants'!$B$19:$N$41,8,0)/'4. Billing Determinants'!$I$41*$D20, VLOOKUP(Q$4,'4. Billing Determinants'!$B$19:$N$41,3,0)/'4. Billing Determinants'!$D$41*$D20))))) -> 0 | R20: =IF(R$4="",0,IF($E20="kWh",VLOOKUP(R$4,'4. Billing Determinants'!$B$19:$N$41,4,0)/'4. Billing Determinants'!$E$41*$D20,IF($E20="kW",VLOOKUP(R$4,'4. Billing Determinants'!$B$19:$N$41,5,0)/'4. Billing Determinants'!$F$41*$D20,IF($E20="Non-RPP kWh",VLOOKUP(R$4,'4. Billing Determinants'!$B$19:$N$41,6,0)/'4. Billing Determinants'!$G$41*$D20,IF($E20="Distribution Rev.",VLOOKUP(R$4,'4. Billing Determinants'!$B$19:$N$41,8,0)/'4. Billing Determinants'!$I$41*$D20, VLOOKUP(R$4,'4. Billing Determinants'!$B$19:$N$41,3,0)/'4. Billing Determinants'!$D$41*$D20))))) -> 0 | S20: =IF(S$4="",0,IF($E20="kWh",VLOOKUP(S$4,'4. Billing Determinants'!$B$19:$N$41,4,0)/'4. Billing Determinants'!$E$41*$D20,IF($E20="kW",VLOOKUP(S$4,'4. Billing Determinants'!$B$19:$N$41,5,0)/'4. Billing Determinants'!$F$41*$D20,IF($E20="Non-RPP kWh",VLOOKUP(S$4,'4. Billing Determinants'!$B$19:$N$41,6,0)/'4. Billing Determinants'!$G$41*$D20,IF($E20="Distribution Rev.",VLOOKUP(S$4,'4. Billing Determinants'!$B$19:$N$41,8,0)/'4. Billing Determinants'!$I$41*$D20, VLOOKUP(S$4,'4. Billing Determinants'!$B$19:$N$41,3,0)/'4. Billing Determinants'!$D$41*$D20))))) -> 0 | T20: =IF(T$4="",0,IF($E20="kWh",VLOOKUP(T$4,'4. Billing Determinants'!$B$19:$N$41,4,0)/'4. Billing Determinants'!$E$41*$D20,IF($E20="kW",VLOOKUP(T$4,'4. Billing Determinants'!$B$19:$N$41,5,0)/'4. Billing Determinants'!$F$41*$D20,IF($E20="Non-RPP kWh",VLOOKUP(T$4,'4. Billing Determinants'!$B$19:$N$41,6,0)/'4. Billing Determinants'!$G$41*$D20,IF($E20="Distribution Rev.",VLOOKUP(T$4,'4. Billing Determinants'!$B$19:$N$41,8,0)/'4. Billing Determinants'!$I$41*$D20, VLOOKUP(T$4,'4. Billing Determinants'!$B$19:$N$41,3,0)/'4. Billing Determinants'!$D$41*$D20))))) -> 0 | U20: =IF(U$4="",0,IF($E20="kWh",VLOOKUP(U$4,'4. Billing Determinants'!$B$19:$N$41,4,0)/'4. Billing Determinants'!$E$41*$D20,IF($E20="kW",VLOOKUP(U$4,'4. Billing Determinants'!$B$19:$N$41,5,0)/'4. Billing Determinants'!$F$41*$D20,IF($E20="Non-RPP kWh",VLOOKUP(U$4,'4. Billing Determinants'!$B$19:$N$41,6,0)/'4. Billing Determinants'!$G$41*$D20,IF($E20="Distribution Rev.",VLOOKUP(U$4,'4. Billing Determinants'!$B$19:$N$41,8,0)/'4. Billing Determinants'!$I$41*$D20, VLOOKUP(U$4,'4. Billing Determinants'!$B$19:$N$41,3,0)/'4. Billing Determinants'!$D$41*$D20))))) -> 0 | V20: =IF(V$4="",0,IF($E20="kWh",VLOOKUP(V$4,'4. Billing Determinants'!$B$19:$N$41,4,0)/'4. Billing Determinants'!$E$41*$D20,IF($E20="kW",VLOOKUP(V$4,'4. Billing Determinants'!$B$19:$N$41,5,0)/'4. Billing Determinants'!$F$41*$D20,IF($E20="Non-RPP kWh",VLOOKUP(V$4,'4. Billing Determinants'!$B$19:$N$41,6,0)/'4. Billing Determinants'!$G$41*$D20,IF($E20="Distribution Rev.",VLOOKUP(V$4,'4. Billing Determinants'!$B$19:$N$41,8,0)/'4. Billing Determinants'!$I$41*$D20, VLOOKUP(V$4,'4. Billing Determinants'!$B$19:$N$41,3,0)/'4. Billing Determinants'!$D$41*$D20))))) -> 0 | W20: =IF(W$4="",0,IF($E20="kWh",VLOOKUP(W$4,'4. Billing Determinants'!$B$19:$N$41,4,0)/'4. Billing Determinants'!$E$41*$D20,IF($E20="kW",VLOOKUP(W$4,'4. Billing Determinants'!$B$19:$N$41,5,0)/'4. Billing Determinants'!$F$41*$D20,IF($E20="Non-RPP kWh",VLOOKUP(W$4,'4. Billing Determinants'!$B$19:$N$41,6,0)/'4. Billing Determinants'!$G$41*$D20,IF($E20="Distribution Rev.",VLOOKUP(W$4,'4. Billing Determinants'!$B$19:$N$41,8,0)/'4. Billing Determinants'!$I$41*$D20, VLOOKUP(W$4,'4. Billing Determinants'!$B$19:$N$41,3,0)/'4. Billing Determinants'!$D$41*$D20))))) -> 0 | X20: =IF(X$4="",0,IF($E20="kWh",VLOOKUP(X$4,'4. Billing Determinants'!$B$19:$N$41,4,0)/'4. Billing Determinants'!$E$41*$D20,IF($E20="kW",VLOOKUP(X$4,'4. Billing Determinants'!$B$19:$N$41,5,0)/'4. Billing Determinants'!$F$41*$D20,IF($E20="Non-RPP kWh",VLOOKUP(X$4,'4. Billing Determinants'!$B$19:$N$41,6,0)/'4. Billing Determinants'!$G$41*$D20,IF($E20="Distribution Rev.",VLOOKUP(X$4,'4. Billing Determinants'!$B$19:$N$41,8,0)/'4. Billing Determinants'!$I$41*$D20, VLOOKUP(X$4,'4. Billing Determinants'!$B$19:$N$41,3,0)/'4. Billing Determinants'!$D$41*$D20))))) -> 0 | Y20: =IF(Y$4="",0,IF($E20="kWh",VLOOKUP(Y$4,'4. Billing Determinants'!$B$19:$N$41,4,0)/'4. Billing Determinants'!$E$41*$D20,IF($E20="kW",VLOOKUP(Y$4,'4. Billing Determinants'!$B$19:$N$41,5,0)/'4. Billing Determinants'!$F$41*$D20,IF($E20="Non-RPP kWh",VLOOKUP(Y$4,'4. Billing Determinants'!$B$19:$N$41,6,0)/'4. Billing Determinants'!$G$41*$D20,IF($E20="Distribution Rev.",VLOOKUP(Y$4,'4. Billing Determinants'!$B$19:$N$41,8,0)/'4. Billing Determinants'!$I$41*$D20, VLOOKUP(Y$4,'4. Billing Determinants'!$B$19:$N$41,3,0)/'4. Billing Determinants'!$D$41*$D20))))) -> 0
B21: Other Regulatory Assets - Sub-Account - Capital Recovery (2008 Rates Motion) | C21: 1508 | D21: ='2. 2013 Continuity Schedule'!DC44 -> 0 | E21: Distribution Rev. | F21: =IF(F$4="",0,IF($E21="kWh",VLOOKUP(F$4,'4. Billing Determinants'!$B$19:$N$41,4,0)/'4. Billing Determinants'!$E$41*$D21,IF($E21="kW",VLOOKUP(F$4,'4. Billing Determinants'!$B$19:$N$41,5,0)/'4. Billing Determinants'!$F$41*$D21,IF($E21="Non-RPP kWh",VLOOKUP(F$4,'4. Billing Determinants'!$B$19:$N$41,6,0)/'4. Billing Determinants'!$G$41*$D21,IF($E21="Distribution Rev.",VLOOKUP(F$4,'4. Billing Determinants'!$B$19:$N$41,8,0)/'4. Billing Determinants'!$I$41*$D21, VLOOKUP(F$4,'4. Billing Determinants'!$B$19:$N$41,3,0)/'4. Billing Determinants'!$D$41*$D21))))) -> 0 | G21: =IF(G$4="",0,IF($E21="kWh",VLOOKUP(G$4,'4. Billing Determinants'!$B$19:$N$41,4,0)/'4. Billing Determinants'!$E$41*$D21,IF($E21="kW",VLOOKUP(G$4,'4. Billing Determinants'!$B$19:$N$41,5,0)/'4. Billing Determinants'!$F$41*$D21,IF($E21="Non-RPP kWh",VLOOKUP(G$4,'4. Billing Determinants'!$B$19:$N$41,6,0)/'4. Billing Determinants'!$G$41*$D21,IF($E21="Distribution Rev.",VLOOKUP(G$4,'4. Billing Determinants'!$B$19:$N$41,8,0)/'4. Billing Determinants'!$I$41*$D21, VLOOKUP(G$4,'4. Billing Determinants'!$B$19:$N$41,3,0)/'4. Billing Determinants'!$D$41*$D21))))) -> 0 | H21: =IF(H$4="",0,IF($E21="kWh",VLOOKUP(H$4,'4. Billing Determinants'!$B$19:$N$41,4,0)/'4. Billing Determinants'!$E$41*$D21,IF($E21="kW",VLOOKUP(H$4,'4. Billing Determinants'!$B$19:$N$41,5,0)/'4. Billing Determinants'!$F$41*$D21,IF($E21="Non-RPP kWh",VLOOKUP(H$4,'4. Billing Determinants'!$B$19:$N$41,6,0)/'4. Billing Determinants'!$G$41*$D21,IF($E21="Distribution Rev.",VLOOKUP(H$4,'4. Billing Determinants'!$B$19:$N$41,8,0)/'4. Billing Determinants'!$I$41*$D21, VLOOKUP(H$4,'4. Billing Determinants'!$B$19:$N$41,3,0)/'4. Billing Determinants'!$D$41*$D21))))) -> 0 | I21: =IF(I$4="",0,IF($E21="kWh",VLOOKUP(I$4,'4. Billing Determinants'!$B$19:$N$41,4,0)/'4. Billing Determinants'!$E$41*$D21,IF($E21="kW",VLOOKUP(I$4,'4. Billing Determinants'!$B$19:$N$41,5,0)/'4. Billing Determinants'!$F$41*$D21,IF($E21="Non-RPP kWh",VLOOKUP(I$4,'4. Billing Determinants'!$B$19:$N$41,6,0)/'4. Billing Determinants'!$G$41*$D21,IF($E21="Distribution Rev.",VLOOKUP(I$4,'4. Billing Determinants'!$B$19:$N$41,8,0)/'4. Billing Determinants'!$I$41*$D21, VLOOKUP(I$4,'4. Billing Determinants'!$B$19:$N$41,3,0)/'4. Billing Determinants'!$D$41*$D21))))) -> 0 | J21: =IF(J$4="",0,IF($E21="kWh",VLOOKUP(J$4,'4. Billing Determinants'!$B$19:$N$41,4,0)/'4. Billing Determinants'!$E$41*$D21,IF($E21="kW",VLOOKUP(J$4,'4. Billing Determinants'!$B$19:$N$41,5,0)/'4. Billing Determinants'!$F$41*$D21,IF($E21="Non-RPP kWh",VLOOKUP(J$4,'4. Billing Determinants'!$B$19:$N$41,6,0)/'4. Billing Determinants'!$G$41*$D21,IF($E21="Distribution Rev.",VLOOKUP(J$4,'4. Billing Determinants'!$B$19:$N$41,8,0)/'4. Billing Determinants'!$I$41*$D21, VLOOKUP(J$4,'4. Billing Determinants'!$B$19:$N$41,3,0)/'4. Billing Determinants'!$D$41*$D21))))) -> 0 | K21: =IF(K$4="",0,IF($E21="kWh",VLOOKUP(K$4,'4. Billing Determinants'!$B$19:$N$41,4,0)/'4. Billing Determinants'!$E$41*$D21,IF($E21="kW",VLOOKUP(K$4,'4. Billing Determinants'!$B$19:$N$41,5,0)/'4. Billing Determinants'!$F$41*$D21,IF($E21="Non-RPP kWh",VLOOKUP(K$4,'4. Billing Determinants'!$B$19:$N$41,6,0)/'4. Billing Determinants'!$G$41*$D21,IF($E21="Distribution Rev.",VLOOKUP(K$4,'4. Billing Determinants'!$B$19:$N$41,8,0)/'4. Billing Determinants'!$I$41*$D21, VLOOKUP(K$4,'4. Billing Determinants'!$B$19:$N$41,3,0)/'4. Billing Determinants'!$D$41*$D21))))) -> 0 | L21: =IF(L$4="",0,IF($E21="kWh",VLOOKUP(L$4,'4. Billing Determinants'!$B$19:$N$41,4,0)/'4. Billing Determinants'!$E$41*$D21,IF($E21="kW",VLOOKUP(L$4,'4. Billing Determinants'!$B$19:$N$41,5,0)/'4. Billing Determinants'!$F$41*$D21,IF($E21="Non-RPP kWh",VLOOKUP(L$4,'4. Billing Determinants'!$B$19:$N$41,6,0)/'4. Billing Determinants'!$G$41*$D21,IF($E21="Distribution Rev.",VLOOKUP(L$4,'4. Billing Determinants'!$B$19:$N$41,8,0)/'4. Billing Determinants'!$I$41*$D21, VLOOKUP(L$4,'4. Billing Determinants'!$B$19:$N$41,3,0)/'4. Billing Determinants'!$D$41*$D21))))) -> 0 | M21: =IF(M$4="",0,IF($E21="kWh",VLOOKUP(M$4,'4. Billing Determinants'!$B$19:$N$41,4,0)/'4. Billing Determinants'!$E$41*$D21,IF($E21="kW",VLOOKUP(M$4,'4. Billing Determinants'!$B$19:$N$41,5,0)/'4. Billing Determinants'!$F$41*$D21,IF($E21="Non-RPP kWh",VLOOKUP(M$4,'4. Billing Determinants'!$B$19:$N$41,6,0)/'4. Billing Determinants'!$G$41*$D21,IF($E21="Distribution Rev.",VLOOKUP(M$4,'4. Billing Determinants'!$B$19:$N$41,8,0)/'4. Billing Determinants'!$I$41*$D21, VLOOKUP(M$4,'4. Billing Determinants'!$B$19:$N$41,3,0)/'4. Billing Determinants'!$D$41*$D21))))) -> 0 | N21: =IF(N$4="",0,IF($E21="kWh",VLOOKUP(N$4,'4. Billing Determinants'!$B$19:$N$41,4,0)/'4. Billing Determinants'!$E$41*$D21,IF($E21="kW",VLOOKUP(N$4,'4. Billing Determinants'!$B$19:$N$41,5,0)/'4. Billing Determinants'!$F$41*$D21,IF($E21="Non-RPP kWh",VLOOKUP(N$4,'4. Billing Determinants'!$B$19:$N$41,6,0)/'4. Billing Determinants'!$G$41*$D21,IF($E21="Distribution Rev.",VLOOKUP(N$4,'4. Billing Determinants'!$B$19:$N$41,8,0)/'4. Billing Determinants'!$I$41*$D21, VLOOKUP(N$4,'4. Billing Determinants'!$B$19:$N$41,3,0)/'4. Billing Determinants'!$D$41*$D21))))) -> 0 | O21: =IF(O$4="",0,IF($E21="kWh",VLOOKUP(O$4,'4. Billing Determinants'!$B$19:$N$41,4,0)/'4. Billing Determinants'!$E$41*$D21,IF($E21="kW",VLOOKUP(O$4,'4. Billing Determinants'!$B$19:$N$41,5,0)/'4. Billing Determinants'!$F$41*$D21,IF($E21="Non-RPP kWh",VLOOKUP(O$4,'4. Billing Determinants'!$B$19:$N$41,6,0)/'4. Billing Determinants'!$G$41*$D21,IF($E21="Distribution Rev.",VLOOKUP(O$4,'4. Billing Determinants'!$B$19:$N$41,8,0)/'4. Billing Determinants'!$I$41*$D21, VLOOKUP(O$4,'4. Billing Determinants'!$B$19:$N$41,3,0)/'4. Billing Determinants'!$D$41*$D21))))) -> 0 | P21: =IF(P$4="",0,IF($E21="kWh",VLOOKUP(P$4,'4. Billing Determinants'!$B$19:$N$41,4,0)/'4. Billing Determinants'!$E$41*$D21,IF($E21="kW",VLOOKUP(P$4,'4. Billing Determinants'!$B$19:$N$41,5,0)/'4. Billing Determinants'!$F$41*$D21,IF($E21="Non-RPP kWh",VLOOKUP(P$4,'4. Billing Determinants'!$B$19:$N$41,6,0)/'4. Billing Determinants'!$G$41*$D21,IF($E21="Distribution Rev.",VLOOKUP(P$4,'4. Billing Determinants'!$B$19:$N$41,8,0)/'4. Billing Determinants'!$I$41*$D21, VLOOKUP(P$4,'4. Billing Determinants'!$B$19:$N$41,3,0)/'4. Billing Determinants'!$D$41*$D21))))) -> 0 | Q21: =IF(Q$4="",0,IF($E21="kWh",VLOOKUP(Q$4,'4. Billing Determinants'!$B$19:$N$41,4,0)/'4. Billing Determinants'!$E$41*$D21,IF($E21="kW",VLOOKUP(Q$4,'4. Billing Determinants'!$B$19:$N$41,5,0)/'4. Billing Determinants'!$F$41*$D21,IF($E21="Non-RPP kWh",VLOOKUP(Q$4,'4. Billing Determinants'!$B$19:$N$41,6,0)/'4. Billing Determinants'!$G$41*$D21,IF($E21="Distribution Rev.",VLOOKUP(Q$4,'4. Billing Determinants'!$B$19:$N$41,8,0)/'4. Billing Determinants'!$I$41*$D21, VLOOKUP(Q$4,'4. Billing Determinants'!$B$19:$N$41,3,0)/'4. Billing Determinants'!$D$41*$D21))))) -> 0 | R21: =IF(R$4="",0,IF($E21="kWh",VLOOKUP(R$4,'4. Billing Determinants'!$B$19:$N$41,4,0)/'4. Billing Determinants'!$E$41*$D21,IF($E21="kW",VLOOKUP(R$4,'4. Billing Determinants'!$B$19:$N$41,5,0)/'4. Billing Determinants'!$F$41*$D21,IF($E21="Non-RPP kWh",VLOOKUP(R$4,'4. Billing Determinants'!$B$19:$N$41,6,0)/'4. Billing Determinants'!$G$41*$D21,IF($E21="Distribution Rev.",VLOOKUP(R$4,'4. Billing Determinants'!$B$19:$N$41,8,0)/'4. Billing Determinants'!$I$41*$D21, VLOOKUP(R$4,'4. Billing Determinants'!$B$19:$N$41,3,0)/'4. Billing Determinants'!$D$41*$D21))))) -> 0 | S21: =IF(S$4="",0,IF($E21="kWh",VLOOKUP(S$4,'4. Billing Determinants'!$B$19:$N$41,4,0)/'4. Billing Determinants'!$E$41*$D21,IF($E21="kW",VLOOKUP(S$4,'4. Billing Determinants'!$B$19:$N$41,5,0)/'4. Billing Determinants'!$F$41*$D21,IF($E21="Non-RPP kWh",VLOOKUP(S$4,'4. Billing Determinants'!$B$19:$N$41,6,0)/'4. Billing Determinants'!$G$41*$D21,IF($E21="Distribution Rev.",VLOOKUP(S$4,'4. Billing Determinants'!$B$19:$N$41,8,0)/'4. Billing Determinants'!$I$41*$D21, VLOOKUP(S$4,'4. Billing Determinants'!$B$19:$N$41,3,0)/'4. Billing Determinants'!$D$41*$D21))))) -> 0 | T21: =IF(T$4="",0,IF($E21="kWh",VLOOKUP(T$4,'4. Billing Determinants'!$B$19:$N$41,4,0)/'4. Billing Determinants'!$E$41*$D21,IF($E21="kW",VLOOKUP(T$4,'4. Billing Determinants'!$B$19:$N$41,5,0)/'4. Billing Determinants'!$F$41*$D21,IF($E21="Non-RPP kWh",VLOOKUP(T$4,'4. Billing Determinants'!$B$19:$N$41,6,0)/'4. Billing Determinants'!$G$41*$D21,IF($E21="Distribution Rev.",VLOOKUP(T$4,'4. Billing Determinants'!$B$19:$N$41,8,0)/'4. Billing Determinants'!$I$41*$D21, VLOOKUP(T$4,'4. Billing Determinants'!$B$19:$N$41,3,0)/'4. Billing Determinants'!$D$41*$D21))))) -> 0 | U21: =IF(U$4="",0,IF($E21="kWh",VLOOKUP(U$4,'4. Billing Determinants'!$B$19:$N$41,4,0)/'4. Billing Determinants'!$E$41*$D21,IF($E21="kW",VLOOKUP(U$4,'4. Billing Determinants'!$B$19:$N$41,5,0)/'4. Billing Determinants'!$F$41*$D21,IF($E21="Non-RPP kWh",VLOOKUP(U$4,'4. Billing Determinants'!$B$19:$N$41,6,0)/'4. Billing Determinants'!$G$41*$D21,IF($E21="Distribution Rev.",VLOOKUP(U$4,'4. Billing Determinants'!$B$19:$N$41,8,0)/'4. Billing Determinants'!$I$41*$D21, VLOOKUP(U$4,'4. Billing Determinants'!$B$19:$N$41,3,0)/'4. Billing Determinants'!$D$41*$D21))))) -> 0 | V21: =IF(V$4="",0,IF($E21="kWh",VLOOKUP(V$4,'4. Billing Determinants'!$B$19:$N$41,4,0)/'4. Billing Determinants'!$E$41*$D21,IF($E21="kW",VLOOKUP(V$4,'4. Billing Determinants'!$B$19:$N$41,5,0)/'4. Billing Determinants'!$F$41*$D21,IF($E21="Non-RPP kWh",VLOOKUP(V$4,'4. Billing Determinants'!$B$19:$N$41,6,0)/'4. Billing Determinants'!$G$41*$D21,IF($E21="Distribution Rev.",VLOOKUP(V$4,'4. Billing Determinants'!$B$19:$N$41,8,0)/'4. Billing Determinants'!$I$41*$D21, VLOOKUP(V$4,'4. Billing Determinants'!$B$19:$N$41,3,0)/'4. Billing Determinants'!$D$41*$D21))))) -> 0 | W21: =IF(W$4="",0,IF($E21="kWh",VLOOKUP(W$4,'4. Billing Determinants'!$B$19:$N$41,4,0)/'4. Billing Determinants'!$E$41*$D21,IF($E21="kW",VLOOKUP(W$4,'4. Billing Determinants'!$B$19:$N$41,5,0)/'4. Billing Determinants'!$F$41*$D21,IF($E21="Non-RPP kWh",VLOOKUP(W$4,'4. Billing Determinants'!$B$19:$N$41,6,0)/'4. Billing Determinants'!$G$41*$D21,IF($E21="Distribution Rev.",VLOOKUP(W$4,'4. Billing Determinants'!$B$19:$N$41,8,0)/'4. Billing Determinants'!$I$41*$D21, VLOOKUP(W$4,'4. Billing Determinants'!$B$19:$N$41,3,0)/'4. Billing Determinants'!$D$41*$D21))))) -> 0 | X21: =IF(X$4="",0,IF($E21="kWh",VLOOKUP(X$4,'4. Billing Determinants'!$B$19:$N$41,4,0)/'4. Billing Determinants'!$E$41*$D21,IF($E21="kW",VLOOKUP(X$4,'4. Billing Determinants'!$B$19:$N$41,5,0)/'4. Billing Determinants'!$F$41*$D21,IF($E21="Non-RPP kWh",VLOOKUP(X$4,'4. Billing Determinants'!$B$19:$N$41,6,0)/'4. Billing Determinants'!$G$41*$D21,IF($E21="Distribution Rev.",VLOOKUP(X$4,'4. Billing Determinants'!$B$19:$N$41,8,0)/'4. Billing Determinants'!$I$41*$D21, VLOOKUP(X$4,'4. Billing Determinants'!$B$19:$N$41,3,0)/'4. Billing Determinants'!$D$41*$D21))))) -> 0 | Y21: =IF(Y$4="",0,IF($E21="kWh",VLOOKUP(Y$4,'4. Billing Determinants'!$B$19:$N$41,4,0)/'4. Billing Determinants'!$E$41*$D21,IF($E21="kW",VLOOKUP(Y$4,'4. Billing Determinants'!$B$19:$N$41,5,0)/'4. Billing Determinants'!$F$41*$D21,IF($E21="Non-RPP kWh",VLOOKUP(Y$4,'4. Billing Determinants'!$B$19:$N$41,6,0)/'4. Billing Determinants'!$G$41*$D21,IF($E21="Distribution Rev.",VLOOKUP(Y$4,'4. Billing Determinants'!$B$19:$N$41,8,0)/'4. Billing Determinants'!$I$41*$D21, VLOOKUP(Y$4,'4. Billing Determinants'!$B$19:$N$41,3,0)/'4. Billing Determinants'!$D$41*$D21))))) -> 0
B22: Other Regulatory Assets - Sub-Account - Financial Assistance Payment and Recovery Variance - Ontario Clean Energy Benefit Act | C22: 1508 | D22: ='2. 2013 Continuity Schedule'!DC45 -> 0 | E22: Distribution Rev. | F22: =IF(F$4="",0,IF($E22="kWh",VLOOKUP(F$4,'4. Billing Determinants'!$B$19:$N$41,4,0)/'4. Billing Determinants'!$E$41*$D22,IF($E22="kW",VLOOKUP(F$4,'4. Billing Determinants'!$B$19:$N$41,5,0)/'4. Billing Determinants'!$F$41*$D22,IF($E22="Non-RPP kWh",VLOOKUP(F$4,'4. Billing Determinants'!$B$19:$N$41,6,0)/'4. Billing Determinants'!$G$41*$D22,IF($E22="Distribution Rev.",VLOOKUP(F$4,'4. Billing Determinants'!$B$19:$N$41,8,0)/'4. Billing Determinants'!$I$41*$D22, VLOOKUP(F$4,'4. Billing Determinants'!$B$19:$N$41,3,0)/'4. Billing Determinants'!$D$41*$D22))))) -> 0 | G22: =IF(G$4="",0,IF($E22="kWh",VLOOKUP(G$4,'4. Billing Determinants'!$B$19:$N$41,4,0)/'4. Billing Determinants'!$E$41*$D22,IF($E22="kW",VLOOKUP(G$4,'4. Billing Determinants'!$B$19:$N$41,5,0)/'4. Billing Determinants'!$F$41*$D22,IF($E22="Non-RPP kWh",VLOOKUP(G$4,'4. Billing Determinants'!$B$19:$N$41,6,0)/'4. Billing Determinants'!$G$41*$D22,IF($E22="Distribution Rev.",VLOOKUP(G$4,'4. Billing Determinants'!$B$19:$N$41,8,0)/'4. Billing Determinants'!$I$41*$D22, VLOOKUP(G$4,'4. Billing Determinants'!$B$19:$N$41,3,0)/'4. Billing Determinants'!$D$41*$D22))))) -> 0 | H22: =IF(H$4="",0,IF($E22="kWh",VLOOKUP(H$4,'4. Billing Determinants'!$B$19:$N$41,4,0)/'4. Billing Determinants'!$E$41*$D22,IF($E22="kW",VLOOKUP(H$4,'4. Billing Determinants'!$B$19:$N$41,5,0)/'4. Billing Determinants'!$F$41*$D22,IF($E22="Non-RPP kWh",VLOOKUP(H$4,'4. Billing Determinants'!$B$19:$N$41,6,0)/'4. Billing Determinants'!$G$41*$D22,IF($E22="Distribution Rev.",VLOOKUP(H$4,'4. Billing Determinants'!$B$19:$N$41,8,0)/'4. Billing Determinants'!$I$41*$D22, VLOOKUP(H$4,'4. Billing Determinants'!$B$19:$N$41,3,0)/'4. Billing Determinants'!$D$41*$D22))))) -> 0 | I22: =IF(I$4="",0,IF($E22="kWh",VLOOKUP(I$4,'4. Billing Determinants'!$B$19:$N$41,4,0)/'4. Billing Determinants'!$E$41*$D22,IF($E22="kW",VLOOKUP(I$4,'4. Billing Determinants'!$B$19:$N$41,5,0)/'4. Billing Determinants'!$F$41*$D22,IF($E22="Non-RPP kWh",VLOOKUP(I$4,'4. Billing Determinants'!$B$19:$N$41,6,0)/'4. Billing Determinants'!$G$41*$D22,IF($E22="Distribution Rev.",VLOOKUP(I$4,'4. Billing Determinants'!$B$19:$N$41,8,0)/'4. Billing Determinants'!$I$41*$D22, VLOOKUP(I$4,'4. Billing Determinants'!$B$19:$N$41,3,0)/'4. Billing Determinants'!$D$41*$D22))))) -> 0 | J22: =IF(J$4="",0,IF($E22="kWh",VLOOKUP(J$4,'4. Billing Determinants'!$B$19:$N$41,4,0)/'4. Billing Determinants'!$E$41*$D22,IF($E22="kW",VLOOKUP(J$4,'4. Billing Determinants'!$B$19:$N$41,5,0)/'4. Billing Determinants'!$F$41*$D22,IF($E22="Non-RPP kWh",VLOOKUP(J$4,'4. Billing Determinants'!$B$19:$N$41,6,0)/'4. Billing Determinants'!$G$41*$D22,IF($E22="Distribution Rev.",VLOOKUP(J$4,'4. Billing Determinants'!$B$19:$N$41,8,0)/'4. Billing Determinants'!$I$41*$D22, VLOOKUP(J$4,'4. Billing Determinants'!$B$19:$N$41,3,0)/'4. Billing Determinants'!$D$41*$D22))))) -> 0 | K22: =IF(K$4="",0,IF($E22="kWh",VLOOKUP(K$4,'4. Billing Determinants'!$B$19:$N$41,4,0)/'4. Billing Determinants'!$E$41*$D22,IF($E22="kW",VLOOKUP(K$4,'4. Billing Determinants'!$B$19:$N$41,5,0)/'4. Billing Determinants'!$F$41*$D22,IF($E22="Non-RPP kWh",VLOOKUP(K$4,'4. Billing Determinants'!$B$19:$N$41,6,0)/'4. Billing Determinants'!$G$41*$D22,IF($E22="Distribution Rev.",VLOOKUP(K$4,'4. Billing Determinants'!$B$19:$N$41,8,0)/'4. Billing Determinants'!$I$41*$D22, VLOOKUP(K$4,'4. Billing Determinants'!$B$19:$N$41,3,0)/'4. Billing Determinants'!$D$41*$D22))))) -> 0 | L22: =IF(L$4="",0,IF($E22="kWh",VLOOKUP(L$4,'4. Billing Determinants'!$B$19:$N$41,4,0)/'4. Billing Determinants'!$E$41*$D22,IF($E22="kW",VLOOKUP(L$4,'4. Billing Determinants'!$B$19:$N$41,5,0)/'4. Billing Determinants'!$F$41*$D22,IF($E22="Non-RPP kWh",VLOOKUP(L$4,'4. Billing Determinants'!$B$19:$N$41,6,0)/'4. Billing Determinants'!$G$41*$D22,IF($E22="Distribution Rev.",VLOOKUP(L$4,'4. Billing Determinants'!$B$19:$N$41,8,0)/'4. Billing Determinants'!$I$41*$D22, VLOOKUP(L$4,'4. Billing Determinants'!$B$19:$N$41,3,0)/'4. Billing Determinants'!$D$41*$D22))))) -> 0 | M22: =IF(M$4="",0,IF($E22="kWh",VLOOKUP(M$4,'4. Billing Determinants'!$B$19:$N$41,4,0)/'4. Billing Determinants'!$E$41*$D22,IF($E22="kW",VLOOKUP(M$4,'4. Billing Determinants'!$B$19:$N$41,5,0)/'4. Billing Determinants'!$F$41*$D22,IF($E22="Non-RPP kWh",VLOOKUP(M$4,'4. Billing Determinants'!$B$19:$N$41,6,0)/'4. Billing Determinants'!$G$41*$D22,IF($E22="Distribution Rev.",VLOOKUP(M$4,'4. Billing Determinants'!$B$19:$N$41,8,0)/'4. Billing Determinants'!$I$41*$D22, VLOOKUP(M$4,'4. Billing Determinants'!$B$19:$N$41,3,0)/'4. Billing Determinants'!$D$41*$D22))))) -> 0 | N22: =IF(N$4="",0,IF($E22="kWh",VLOOKUP(N$4,'4. Billing Determinants'!$B$19:$N$41,4,0)/'4. Billing Determinants'!$E$41*$D22,IF($E22="kW",VLOOKUP(N$4,'4. Billing Determinants'!$B$19:$N$41,5,0)/'4. Billing Determinants'!$F$41*$D22,IF($E22="Non-RPP kWh",VLOOKUP(N$4,'4. Billing Determinants'!$B$19:$N$41,6,0)/'4. Billing Determinants'!$G$41*$D22,IF($E22="Distribution Rev.",VLOOKUP(N$4,'4. Billing Determinants'!$B$19:$N$41,8,0)/'4. Billing Determinants'!$I$41*$D22, VLOOKUP(N$4,'4. Billing Determinants'!$B$19:$N$41,3,0)/'4. Billing Determinants'!$D$41*$D22))))) -> 0 | O22: =IF(O$4="",0,IF($E22="kWh",VLOOKUP(O$4,'4. Billing Determinants'!$B$19:$N$41,4,0)/'4. Billing Determinants'!$E$41*$D22,IF($E22="kW",VLOOKUP(O$4,'4. Billing Determinants'!$B$19:$N$41,5,0)/'4. Billing Determinants'!$F$41*$D22,IF($E22="Non-RPP kWh",VLOOKUP(O$4,'4. Billing Determinants'!$B$19:$N$41,6,0)/'4. Billing Determinants'!$G$41*$D22,IF($E22="Distribution Rev.",VLOOKUP(O$4,'4. Billing Determinants'!$B$19:$N$41,8,0)/'4. Billing Determinants'!$I$41*$D22, VLOOKUP(O$4,'4. Billing Determinants'!$B$19:$N$41,3,0)/'4. Billing Determinants'!$D$41*$D22))))) -> 0 | P22: =IF(P$4="",0,IF($E22="kWh",VLOOKUP(P$4,'4. Billing Determinants'!$B$19:$N$41,4,0)/'4. Billing Determinants'!$E$41*$D22,IF($E22="kW",VLOOKUP(P$4,'4. Billing Determinants'!$B$19:$N$41,5,0)/'4. Billing Determinants'!$F$41*$D22,IF($E22="Non-RPP kWh",VLOOKUP(P$4,'4. Billing Determinants'!$B$19:$N$41,6,0)/'4. Billing Determinants'!$G$41*$D22,IF($E22="Distribution Rev.",VLOOKUP(P$4,'4. Billing Determinants'!$B$19:$N$41,8,0)/'4. Billing Determinants'!$I$41*$D22, VLOOKUP(P$4,'4. Billing Determinants'!$B$19:$N$41,3,0)/'4. Billing Determinants'!$D$41*$D22))))) -> 0 | Q22: =IF(Q$4="",0,IF($E22="kWh",VLOOKUP(Q$4,'4. Billing Determinants'!$B$19:$N$41,4,0)/'4. Billing Determinants'!$E$41*$D22,IF($E22="kW",VLOOKUP(Q$4,'4. Billing Determinants'!$B$19:$N$41,5,0)/'4. Billing Determinants'!$F$41*$D22,IF($E22="Non-RPP kWh",VLOOKUP(Q$4,'4. Billing Determinants'!$B$19:$N$41,6,0)/'4. Billing Determinants'!$G$41*$D22,IF($E22="Distribution Rev.",VLOOKUP(Q$4,'4. Billing Determinants'!$B$19:$N$41,8,0)/'4. Billing Determinants'!$I$41*$D22, VLOOKUP(Q$4,'4. Billing Determinants'!$B$19:$N$41,3,0)/'4. Billing Determinants'!$D$41*$D22))))) -> 0 | R22: =IF(R$4="",0,IF($E22="kWh",VLOOKUP(R$4,'4. Billing Determinants'!$B$19:$N$41,4,0)/'4. Billing Determinants'!$E$41*$D22,IF($E22="kW",VLOOKUP(R$4,'4. Billing Determinants'!$B$19:$N$41,5,0)/'4. Billing Determinants'!$F$41*$D22,IF($E22="Non-RPP kWh",VLOOKUP(R$4,'4. Billing Determinants'!$B$19:$N$41,6,0)/'4. Billing Determinants'!$G$41*$D22,IF($E22="Distribution Rev.",VLOOKUP(R$4,'4. Billing Determinants'!$B$19:$N$41,8,0)/'4. Billing Determinants'!$I$41*$D22, VLOOKUP(R$4,'4. Billing Determinants'!$B$19:$N$41,3,0)/'4. Billing Determinants'!$D$41*$D22))))) -> 0 | S22: =IF(S$4="",0,IF($E22="kWh",VLOOKUP(S$4,'4. Billing Determinants'!$B$19:$N$41,4,0)/'4. Billing Determinants'!$E$41*$D22,IF($E22="kW",VLOOKUP(S$4,'4. Billing Determinants'!$B$19:$N$41,5,0)/'4. Billing Determinants'!$F$41*$D22,IF($E22="Non-RPP kWh",VLOOKUP(S$4,'4. Billing Determinants'!$B$19:$N$41,6,0)/'4. Billing Determinants'!$G$41*$D22,IF($E22="Distribution Rev.",VLOOKUP(S$4,'4. Billing Determinants'!$B$19:$N$41,8,0)/'4. Billing Determinants'!$I$41*$D22, VLOOKUP(S$4,'4. Billing Determinants'!$B$19:$N$41,3,0)/'4. Billing Determinants'!$D$41*$D22))))) -> 0 | T22: =IF(T$4="",0,IF($E22="kWh",VLOOKUP(T$4,'4. Billing Determinants'!$B$19:$N$41,4,0)/'4. Billing Determinants'!$E$41*$D22,IF($E22="kW",VLOOKUP(T$4,'4. Billing Determinants'!$B$19:$N$41,5,0)/'4. Billing Determinants'!$F$41*$D22,IF($E22="Non-RPP kWh",VLOOKUP(T$4,'4. Billing Determinants'!$B$19:$N$41,6,0)/'4. Billing Determinants'!$G$41*$D22,IF($E22="Distribution Rev.",VLOOKUP(T$4,'4. Billing Determinants'!$B$19:$N$41,8,0)/'4. Billing Determinants'!$I$41*$D22, VLOOKUP(T$4,'4. Billing Determinants'!$B$19:$N$41,3,0)/'4. Billing Determinants'!$D$41*$D22))))) -> 0 | U22: =IF(U$4="",0,IF($E22="kWh",VLOOKUP(U$4,'4. Billing Determinants'!$B$19:$N$41,4,0)/'4. Billing Determinants'!$E$41*$D22,IF($E22="kW",VLOOKUP(U$4,'4. Billing Determinants'!$B$19:$N$41,5,0)/'4. Billing Determinants'!$F$41*$D22,IF($E22="Non-RPP kWh",VLOOKUP(U$4,'4. Billing Determinants'!$B$19:$N$41,6,0)/'4. Billing Determinants'!$G$41*$D22,IF($E22="Distribution Rev.",VLOOKUP(U$4,'4. Billing Determinants'!$B$19:$N$41,8,0)/'4. Billing Determinants'!$I$41*$D22, VLOOKUP(U$4,'4. Billing Determinants'!$B$19:$N$41,3,0)/'4. Billing Determinants'!$D$41*$D22))))) -> 0 | V22: =IF(V$4="",0,IF($E22="kWh",VLOOKUP(V$4,'4. Billing Determinants'!$B$19:$N$41,4,0)/'4. Billing Determinants'!$E$41*$D22,IF($E22="kW",VLOOKUP(V$4,'4. Billing Determinants'!$B$19:$N$41,5,0)/'4. Billing Determinants'!$F$41*$D22,IF($E22="Non-RPP kWh",VLOOKUP(V$4,'4. Billing Determinants'!$B$19:$N$41,6,0)/'4. Billing Determinants'!$G$41*$D22,IF($E22="Distribution Rev.",VLOOKUP(V$4,'4. Billing Determinants'!$B$19:$N$41,8,0)/'4. Billing Determinants'!$I$41*$D22, VLOOKUP(V$4,'4. Billing Determinants'!$B$19:$N$41,3,0)/'4. Billing Determinants'!$D$41*$D22))))) -> 0 | W22: =IF(W$4="",0,IF($E22="kWh",VLOOKUP(W$4,'4. Billing Determinants'!$B$19:$N$41,4,0)/'4. Billing Determinants'!$E$41*$D22,IF($E22="kW",VLOOKUP(W$4,'4. Billing Determinants'!$B$19:$N$41,5,0)/'4. Billing Determinants'!$F$41*$D22,IF($E22="Non-RPP kWh",VLOOKUP(W$4,'4. Billing Determinants'!$B$19:$N$41,6,0)/'4. Billing Determinants'!$G$41*$D22,IF($E22="Distribution Rev.",VLOOKUP(W$4,'4. Billing Determinants'!$B$19:$N$41,8,0)/'4. Billing Determinants'!$I$41*$D22, VLOOKUP(W$4,'4. Billing Determinants'!$B$19:$N$41,3,0)/'4. Billing Determinants'!$D$41*$D22))))) -> 0 | X22: =IF(X$4="",0,IF($E22="kWh",VLOOKUP(X$4,'4. Billing Determinants'!$B$19:$N$41,4,0)/'4. Billing Determinants'!$E$41*$D22,IF($E22="kW",VLOOKUP(X$4,'4. Billing Determinants'!$B$19:$N$41,5,0)/'4. Billing Determinants'!$F$41*$D22,IF($E22="Non-RPP kWh",VLOOKUP(X$4,'4. Billing Determinants'!$B$19:$N$41,6,0)/'4. Billing Determinants'!$G$41*$D22,IF($E22="Distribution Rev.",VLOOKUP(X$4,'4. Billing Determinants'!$B$19:$N$41,8,0)/'4. Billing Determinants'!$I$41*$D22, VLOOKUP(X$4,'4. Billing Determinants'!$B$19:$N$41,3,0)/'4. Billing Determinants'!$D$41*$D22))))) -> 0 | Y22: =IF(Y$4="",0,IF($E22="kWh",VLOOKUP(Y$4,'4. Billing Determinants'!$B$19:$N$41,4,0)/'4. Billing Determinants'!$E$41*$D22,IF($E22="kW",VLOOKUP(Y$4,'4. Billing Determinants'!$B$19:$N$41,5,0)/'4. Billing Determinants'!$F$41*$D22,IF($E22="Non-RPP kWh",VLOOKUP(Y$4,'4. Billing Determinants'!$B$19:$N$41,6,0)/'4. Billing Determinants'!$G$41*$D22,IF($E22="Distribution Rev.",VLOOKUP(Y$4,'4. Billing Determinants'!$B$19:$N$41,8,0)/'4. Billing Determinants'!$I$41*$D22, VLOOKUP(Y$4,'4. Billing Determinants'!$B$19:$N$41,3,0)/'4. Billing Determinants'!$D$41*$D22))))) -> 0
B23: Other Regulatory Assets - Sub-Account - Financial Assistance Payment and Recovery Carrying Charges | C23: 1508 | D23: ='2. 2013 Continuity Schedule'!DC46 -> 0 | E23: Distribution Rev. | F23: =IF(F$4="",0,IF($E23="kWh",VLOOKUP(F$4,'4. Billing Determinants'!$B$19:$N$41,4,0)/'4. Billing Determinants'!$E$41*$D23,IF($E23="kW",VLOOKUP(F$4,'4. Billing Determinants'!$B$19:$N$41,5,0)/'4. Billing Determinants'!$F$41*$D23,IF($E23="Non-RPP kWh",VLOOKUP(F$4,'4. Billing Determinants'!$B$19:$N$41,6,0)/'4. Billing Determinants'!$G$41*$D23,IF($E23="Distribution Rev.",VLOOKUP(F$4,'4. Billing Determinants'!$B$19:$N$41,8,0)/'4. Billing Determinants'!$I$41*$D23, VLOOKUP(F$4,'4. Billing Determinants'!$B$19:$N$41,3,0)/'4. Billing Determinants'!$D$41*$D23))))) -> 0 | G23: =IF(G$4="",0,IF($E23="kWh",VLOOKUP(G$4,'4. Billing Determinants'!$B$19:$N$41,4,0)/'4. Billing Determinants'!$E$41*$D23,IF($E23="kW",VLOOKUP(G$4,'4. Billing Determinants'!$B$19:$N$41,5,0)/'4. Billing Determinants'!$F$41*$D23,IF($E23="Non-RPP kWh",VLOOKUP(G$4,'4. Billing Determinants'!$B$19:$N$41,6,0)/'4. Billing Determinants'!$G$41*$D23,IF($E23="Distribution Rev.",VLOOKUP(G$4,'4. Billing Determinants'!$B$19:$N$41,8,0)/'4. Billing Determinants'!$I$41*$D23, VLOOKUP(G$4,'4. Billing Determinants'!$B$19:$N$41,3,0)/'4. Billing Determinants'!$D$41*$D23))))) -> 0 | H23: =IF(H$4="",0,IF($E23="kWh",VLOOKUP(H$4,'4. Billing Determinants'!$B$19:$N$41,4,0)/'4. Billing Determinants'!$E$41*$D23,IF($E23="kW",VLOOKUP(H$4,'4. Billing Determinants'!$B$19:$N$41,5,0)/'4. Billing Determinants'!$F$41*$D23,IF($E23="Non-RPP kWh",VLOOKUP(H$4,'4. Billing Determinants'!$B$19:$N$41,6,0)/'4. Billing Determinants'!$G$41*$D23,IF($E23="Distribution Rev.",VLOOKUP(H$4,'4. Billing Determinants'!$B$19:$N$41,8,0)/'4. Billing Determinants'!$I$41*$D23, VLOOKUP(H$4,'4. Billing Determinants'!$B$19:$N$41,3,0)/'4. Billing Determinants'!$D$41*$D23))))) -> 0 | I23: =IF(I$4="",0,IF($E23="kWh",VLOOKUP(I$4,'4. Billing Determinants'!$B$19:$N$41,4,0)/'4. Billing Determinants'!$E$41*$D23,IF($E23="kW",VLOOKUP(I$4,'4. Billing Determinants'!$B$19:$N$41,5,0)/'4. Billing Determinants'!$F$41*$D23,IF($E23="Non-RPP kWh",VLOOKUP(I$4,'4. Billing Determinants'!$B$19:$N$41,6,0)/'4. Billing Determinants'!$G$41*$D23,IF($E23="Distribution Rev.",VLOOKUP(I$4,'4. Billing Determinants'!$B$19:$N$41,8,0)/'4. Billing Determinants'!$I$41*$D23, VLOOKUP(I$4,'4. Billing Determinants'!$B$19:$N$41,3,0)/'4. Billing Determinants'!$D$41*$D23))))) -> 0 | J23: =IF(J$4="",0,IF($E23="kWh",VLOOKUP(J$4,'4. Billing Determinants'!$B$19:$N$41,4,0)/'4. Billing Determinants'!$E$41*$D23,IF($E23="kW",VLOOKUP(J$4,'4. Billing Determinants'!$B$19:$N$41,5,0)/'4. Billing Determinants'!$F$41*$D23,IF($E23="Non-RPP kWh",VLOOKUP(J$4,'4. Billing Determinants'!$B$19:$N$41,6,0)/'4. Billing Determinants'!$G$41*$D23,IF($E23="Distribution Rev.",VLOOKUP(J$4,'4. Billing Determinants'!$B$19:$N$41,8,0)/'4. Billing Determinants'!$I$41*$D23, VLOOKUP(J$4,'4. Billing Determinants'!$B$19:$N$41,3,0)/'4. Billing Determinants'!$D$41*$D23))))) -> 0 | K23: =IF(K$4="",0,IF($E23="kWh",VLOOKUP(K$4,'4. Billing Determinants'!$B$19:$N$41,4,0)/'4. Billing Determinants'!$E$41*$D23,IF($E23="kW",VLOOKUP(K$4,'4. Billing Determinants'!$B$19:$N$41,5,0)/'4. Billing Determinants'!$F$41*$D23,IF($E23="Non-RPP kWh",VLOOKUP(K$4,'4. Billing Determinants'!$B$19:$N$41,6,0)/'4. Billing Determinants'!$G$41*$D23,IF($E23="Distribution Rev.",VLOOKUP(K$4,'4. Billing Determinants'!$B$19:$N$41,8,0)/'4. Billing Determinants'!$I$41*$D23, VLOOKUP(K$4,'4. Billing Determinants'!$B$19:$N$41,3,0)/'4. Billing Determinants'!$D$41*$D23))))) -> 0 | L23: =IF(L$4="",0,IF($E23="kWh",VLOOKUP(L$4,'4. Billing Determinants'!$B$19:$N$41,4,0)/'4. Billing Determinants'!$E$41*$D23,IF($E23="kW",VLOOKUP(L$4,'4. Billing Determinants'!$B$19:$N$41,5,0)/'4. Billing Determinants'!$F$41*$D23,IF($E23="Non-RPP kWh",VLOOKUP(L$4,'4. Billing Determinants'!$B$19:$N$41,6,0)/'4. Billing Determinants'!$G$41*$D23,IF($E23="Distribution Rev.",VLOOKUP(L$4,'4. Billing Determinants'!$B$19:$N$41,8,0)/'4. Billing Determinants'!$I$41*$D23, VLOOKUP(L$4,'4. Billing Determinants'!$B$19:$N$41,3,0)/'4. Billing Determinants'!$D$41*$D23))))) -> 0 | M23: =IF(M$4="",0,IF($E23="kWh",VLOOKUP(M$4,'4. Billing Determinants'!$B$19:$N$41,4,0)/'4. Billing Determinants'!$E$41*$D23,IF($E23="kW",VLOOKUP(M$4,'4. Billing Determinants'!$B$19:$N$41,5,0)/'4. Billing Determinants'!$F$41*$D23,IF($E23="Non-RPP kWh",VLOOKUP(M$4,'4. Billing Determinants'!$B$19:$N$41,6,0)/'4. Billing Determinants'!$G$41*$D23,IF($E23="Distribution Rev.",VLOOKUP(M$4,'4. Billing Determinants'!$B$19:$N$41,8,0)/'4. Billing Determinants'!$I$41*$D23, VLOOKUP(M$4,'4. Billing Determinants'!$B$19:$N$41,3,0)/'4. Billing Determinants'!$D$41*$D23))))) -> 0 | N23: =IF(N$4="",0,IF($E23="kWh",VLOOKUP(N$4,'4. Billing Determinants'!$B$19:$N$41,4,0)/'4. Billing Determinants'!$E$41*$D23,IF($E23="kW",VLOOKUP(N$4,'4. Billing Determinants'!$B$19:$N$41,5,0)/'4. Billing Determinants'!$F$41*$D23,IF($E23="Non-RPP kWh",VLOOKUP(N$4,'4. Billing Determinants'!$B$19:$N$41,6,0)/'4. Billing Determinants'!$G$41*$D23,IF($E23="Distribution Rev.",VLOOKUP(N$4,'4. Billing Determinants'!$B$19:$N$41,8,0)/'4. Billing Determinants'!$I$41*$D23, VLOOKUP(N$4,'4. Billing Determinants'!$B$19:$N$41,3,0)/'4. Billing Determinants'!$D$41*$D23))))) -> 0 | O23: =IF(O$4="",0,IF($E23="kWh",VLOOKUP(O$4,'4. Billing Determinants'!$B$19:$N$41,4,0)/'4. Billing Determinants'!$E$41*$D23,IF($E23="kW",VLOOKUP(O$4,'4. Billing Determinants'!$B$19:$N$41,5,0)/'4. Billing Determinants'!$F$41*$D23,IF($E23="Non-RPP kWh",VLOOKUP(O$4,'4. Billing Determinants'!$B$19:$N$41,6,0)/'4. Billing Determinants'!$G$41*$D23,IF($E23="Distribution Rev.",VLOOKUP(O$4,'4. Billing Determinants'!$B$19:$N$41,8,0)/'4. Billing Determinants'!$I$41*$D23, VLOOKUP(O$4,'4. Billing Determinants'!$B$19:$N$41,3,0)/'4. Billing Determinants'!$D$41*$D23))))) -> 0 | P23: =IF(P$4="",0,IF($E23="kWh",VLOOKUP(P$4,'4. Billing Determinants'!$B$19:$N$41,4,0)/'4. Billing Determinants'!$E$41*$D23,IF($E23="kW",VLOOKUP(P$4,'4. Billing Determinants'!$B$19:$N$41,5,0)/'4. Billing Determinants'!$F$41*$D23,IF($E23="Non-RPP kWh",VLOOKUP(P$4,'4. Billing Determinants'!$B$19:$N$41,6,0)/'4. Billing Determinants'!$G$41*$D23,IF($E23="Distribution Rev.",VLOOKUP(P$4,'4. Billing Determinants'!$B$19:$N$41,8,0)/'4. Billing Determinants'!$I$41*$D23, VLOOKUP(P$4,'4. Billing Determinants'!$B$19:$N$41,3,0)/'4. Billing Determinants'!$D$41*$D23))))) -> 0 | Q23: =IF(Q$4="",0,IF($E23="kWh",VLOOKUP(Q$4,'4. Billing Determinants'!$B$19:$N$41,4,0)/'4. Billing Determinants'!$E$41*$D23,IF($E23="kW",VLOOKUP(Q$4,'4. Billing Determinants'!$B$19:$N$41,5,0)/'4. Billing Determinants'!$F$41*$D23,IF($E23="Non-RPP kWh",VLOOKUP(Q$4,'4. Billing Determinants'!$B$19:$N$41,6,0)/'4. Billing Determinants'!$G$41*$D23,IF($E23="Distribution Rev.",VLOOKUP(Q$4,'4. Billing Determinants'!$B$19:$N$41,8,0)/'4. Billing Determinants'!$I$41*$D23, VLOOKUP(Q$4,'4. Billing Determinants'!$B$19:$N$41,3,0)/'4. Billing Determinants'!$D$41*$D23))))) -> 0 | R23: =IF(R$4="",0,IF($E23="kWh",VLOOKUP(R$4,'4. Billing Determinants'!$B$19:$N$41,4,0)/'4. Billing Determinants'!$E$41*$D23,IF($E23="kW",VLOOKUP(R$4,'4. Billing Determinants'!$B$19:$N$41,5,0)/'4. Billing Determinants'!$F$41*$D23,IF($E23="Non-RPP kWh",VLOOKUP(R$4,'4. Billing Determinants'!$B$19:$N$41,6,0)/'4. Billing Determinants'!$G$41*$D23,IF($E23="Distribution Rev.",VLOOKUP(R$4,'4. Billing Determinants'!$B$19:$N$41,8,0)/'4. Billing Determinants'!$I$41*$D23, VLOOKUP(R$4,'4. Billing Determinants'!$B$19:$N$41,3,0)/'4. Billing Determinants'!$D$41*$D23))))) -> 0 | S23: =IF(S$4="",0,IF($E23="kWh",VLOOKUP(S$4,'4. Billing Determinants'!$B$19:$N$41,4,0)/'4. Billing Determinants'!$E$41*$D23,IF($E23="kW",VLOOKUP(S$4,'4. Billing Determinants'!$B$19:$N$41,5,0)/'4. Billing Determinants'!$F$41*$D23,IF($E23="Non-RPP kWh",VLOOKUP(S$4,'4. Billing Determinants'!$B$19:$N$41,6,0)/'4. Billing Determinants'!$G$41*$D23,IF($E23="Distribution Rev.",VLOOKUP(S$4,'4. Billing Determinants'!$B$19:$N$41,8,0)/'4. Billing Determinants'!$I$41*$D23, VLOOKUP(S$4,'4. Billing Determinants'!$B$19:$N$41,3,0)/'4. Billing Determinants'!$D$41*$D23))))) -> 0 | T23: =IF(T$4="",0,IF($E23="kWh",VLOOKUP(T$4,'4. Billing Determinants'!$B$19:$N$41,4,0)/'4. Billing Determinants'!$E$41*$D23,IF($E23="kW",VLOOKUP(T$4,'4. Billing Determinants'!$B$19:$N$41,5,0)/'4. Billing Determinants'!$F$41*$D23,IF($E23="Non-RPP kWh",VLOOKUP(T$4,'4. Billing Determinants'!$B$19:$N$41,6,0)/'4. Billing Determinants'!$G$41*$D23,IF($E23="Distribution Rev.",VLOOKUP(T$4,'4. Billing Determinants'!$B$19:$N$41,8,0)/'4. Billing Determinants'!$I$41*$D23, VLOOKUP(T$4,'4. Billing Determinants'!$B$19:$N$41,3,0)/'4. Billing Determinants'!$D$41*$D23))))) -> 0 | U23: =IF(U$4="",0,IF($E23="kWh",VLOOKUP(U$4,'4. Billing Determinants'!$B$19:$N$41,4,0)/'4. Billing Determinants'!$E$41*$D23,IF($E23="kW",VLOOKUP(U$4,'4. Billing Determinants'!$B$19:$N$41,5,0)/'4. Billing Determinants'!$F$41*$D23,IF($E23="Non-RPP kWh",VLOOKUP(U$4,'4. Billing Determinants'!$B$19:$N$41,6,0)/'4. Billing Determinants'!$G$41*$D23,IF($E23="Distribution Rev.",VLOOKUP(U$4,'4. Billing Determinants'!$B$19:$N$41,8,0)/'4. Billing Determinants'!$I$41*$D23, VLOOKUP(U$4,'4. Billing Determinants'!$B$19:$N$41,3,0)/'4. Billing Determinants'!$D$41*$D23))))) -> 0 | V23: =IF(V$4="",0,IF($E23="kWh",VLOOKUP(V$4,'4. Billing Determinants'!$B$19:$N$41,4,0)/'4. Billing Determinants'!$E$41*$D23,IF($E23="kW",VLOOKUP(V$4,'4. Billing Determinants'!$B$19:$N$41,5,0)/'4. Billing Determinants'!$F$41*$D23,IF($E23="Non-RPP kWh",VLOOKUP(V$4,'4. Billing Determinants'!$B$19:$N$41,6,0)/'4. Billing Determinants'!$G$41*$D23,IF($E23="Distribution Rev.",VLOOKUP(V$4,'4. Billing Determinants'!$B$19:$N$41,8,0)/'4. Billing Determinants'!$I$41*$D23, VLOOKUP(V$4,'4. Billing Determinants'!$B$19:$N$41,3,0)/'4. Billing Determinants'!$D$41*$D23))))) -> 0 | W23: =IF(W$4="",0,IF($E23="kWh",VLOOKUP(W$4,'4. Billing Determinants'!$B$19:$N$41,4,0)/'4. Billing Determinants'!$E$41*$D23,IF($E23="kW",VLOOKUP(W$4,'4. Billing Determinants'!$B$19:$N$41,5,0)/'4. Billing Determinants'!$F$41*$D23,IF($E23="Non-RPP kWh",VLOOKUP(W$4,'4. Billing Determinants'!$B$19:$N$41,6,0)/'4. Billing Determinants'!$G$41*$D23,IF($E23="Distribution Rev.",VLOOKUP(W$4,'4. Billing Determinants'!$B$19:$N$41,8,0)/'4. Billing Determinants'!$I$41*$D23, VLOOKUP(W$4,'4. Billing Determinants'!$B$19:$N$41,3,0)/'4. Billing Determinants'!$D$41*$D23))))) -> 0 | X23: =IF(X$4="",0,IF($E23="kWh",VLOOKUP(X$4,'4. Billing Determinants'!$B$19:$N$41,4,0)/'4. Billing Determinants'!$E$41*$D23,IF($E23="kW",VLOOKUP(X$4,'4. Billing Determinants'!$B$19:$N$41,5,0)/'4. Billing Determinants'!$F$41*$D23,IF($E23="Non-RPP kWh",VLOOKUP(X$4,'4. Billing Determinants'!$B$19:$N$41,6,0)/'4. Billing Determinants'!$G$41*$D23,IF($E23="Distribution Rev.",VLOOKUP(X$4,'4. Billing Determinants'!$B$19:$N$41,8,0)/'4. Billing Determinants'!$I$41*$D23, VLOOKUP(X$4,'4. Billing Determinants'!$B$19:$N$41,3,0)/'4. Billing Determinants'!$D$41*$D23))))) -> 0 | Y23: =IF(Y$4="",0,IF($E23="kWh",VLOOKUP(Y$4,'4. Billing Determinants'!$B$19:$N$41,4,0)/'4. Billing Determinants'!$E$41*$D23,IF($E23="kW",VLOOKUP(Y$4,'4. Billing Determinants'!$B$19:$N$41,5,0)/'4. Billing Determinants'!$F$41*$D23,IF($E23="Non-RPP kWh",VLOOKUP(Y$4,'4. Billing Determinants'!$B$19:$N$41,6,0)/'4. Billing Determinants'!$G$41*$D23,IF($E23="Distribution Rev.",VLOOKUP(Y$4,'4. Billing Determinants'!$B$19:$N$41,8,0)/'4. Billing Determinants'!$I$41*$D23, VLOOKUP(Y$4,'4. Billing Determinants'!$B$19:$N$41,3,0)/'4. Billing Determinants'!$D$41*$D23))))) -> 0
B24: Other Regulatory Assets - Sub-Account - Other | C24: 1508 | D24: ='2. 2013 Continuity Schedule'!DC47 -> -126801.0012 | E24: Distribution Rev. | F24: =IF(F$4="",0,IF($E24="kWh",VLOOKUP(F$4,'4. Billing Determinants'!$B$19:$N$41,4,0)/'4. Billing Determinants'!$E$41*$D24,IF($E24="kW",VLOOKUP(F$4,'4. Billing Determinants'!$B$19:$N$41,5,0)/'4. Billing Determinants'!$F$41*$D24,IF($E24="Non-RPP kWh",VLOOKUP(F$4,'4. Billing Determinants'!$B$19:$N$41,6,0)/'4. Billing Determinants'!$G$41*$D24,IF($E24="Distribution Rev.",VLOOKUP(F$4,'4. Billing Determinants'!$B$19:$N$41,8,0)/'4. Billing Determinants'!$I$41*$D24, VLOOKUP(F$4,'4. Billing Determinants'!$B$19:$N$41,3,0)/'4. Billing Determinants'!$D$41*$D24))))) -> -74514.21374 | G24: =IF(G$4="",0,IF($E24="kWh",VLOOKUP(G$4,'4. Billing Determinants'!$B$19:$N$41,4,0)/'4. Billing Determinants'!$E$41*$D24,IF($E24="kW",VLOOKUP(G$4,'4. Billing Determinants'!$B$19:$N$41,5,0)/'4. Billing Determinants'!$F$41*$D24,IF($E24="Non-RPP kWh",VLOOKUP(G$4,'4. Billing Determinants'!$B$19:$N$41,6,0)/'4. Billing Determinants'!$G$41*$D24,IF($E24="Distribution Rev.",VLOOKUP(G$4,'4. Billing Determinants'!$B$19:$N$41,8,0)/'4. Billing Determinants'!$I$41*$D24, VLOOKUP(G$4,'4. Billing Determinants'!$B$19:$N$41,3,0)/'4. Billing Determinants'!$D$41*$D24))))) -> -18068.52397 | H24: =IF(H$4="",0,IF($E24="kWh",VLOOKUP(H$4,'4. Billing Determinants'!$B$19:$N$41,4,0)/'4. Billing Determinants'!$E$41*$D24,IF($E24="kW",VLOOKUP(H$4,'4. Billing Determinants'!$B$19:$N$41,5,0)/'4. Billing Determinants'!$F$41*$D24,IF($E24="Non-RPP kWh",VLOOKUP(H$4,'4. Billing Determinants'!$B$19:$N$41,6,0)/'4. Billing Determinants'!$G$41*$D24,IF($E24="Distribution Rev.",VLOOKUP(H$4,'4. Billing Determinants'!$B$19:$N$41,8,0)/'4. Billing Determinants'!$I$41*$D24, VLOOKUP(H$4,'4. Billing Determinants'!$B$19:$N$41,3,0)/'4. Billing Determinants'!$D$41*$D24))))) -> -23401.91051 | I24: =IF(I$4="",0,IF($E24="kWh",VLOOKUP(I$4,'4. Billing Determinants'!$B$19:$N$41,4,0)/'4. Billing Determinants'!$E$41*$D24,IF($E24="kW",VLOOKUP(I$4,'4. Billing Determinants'!$B$19:$N$41,5,0)/'4. Billing Determinants'!$F$41*$D24,IF($E24="Non-RPP kWh",VLOOKUP(I$4,'4. Billing Determinants'!$B$19:$N$41,6,0)/'4. Billing Determinants'!$G$41*$D24,IF($E24="Distribution Rev.",VLOOKUP(I$4,'4. Billing Determinants'!$B$19:$N$41,8,0)/'4. Billing Determinants'!$I$41*$D24, VLOOKUP(I$4,'4. Billing Determinants'!$B$19:$N$41,3,0)/'4. Billing Determinants'!$D$41*$D24))))) -> -4384.663765 | J24: =IF(J$4="",0,IF($E24="kWh",VLOOKUP(J$4,'4. Billing Determinants'!$B$19:$N$41,4,0)/'4. Billing Determinants'!$E$41*$D24,IF($E24="kW",VLOOKUP(J$4,'4. Billing Determinants'!$B$19:$N$41,5,0)/'4. Billing Determinants'!$F$41*$D24,IF($E24="Non-RPP kWh",VLOOKUP(J$4,'4. Billing Determinants'!$B$19:$N$41,6,0)/'4. Billing Determinants'!$G$41*$D24,IF($E24="Distribution Rev.",VLOOKUP(J$4,'4. Billing Determinants'!$B$19:$N$41,8,0)/'4. Billing Determinants'!$I$41*$D24, VLOOKUP(J$4,'4. Billing Determinants'!$B$19:$N$41,3,0)/'4. Billing Determinants'!$D$41*$D24))))) -> -1989.921699 | K24: =IF(K$4="",0,IF($E24="kWh",VLOOKUP(K$4,'4. Billing Determinants'!$B$19:$N$41,4,0)/'4. Billing Determinants'!$E$41*$D24,IF($E24="kW",VLOOKUP(K$4,'4. Billing Determinants'!$B$19:$N$41,5,0)/'4. Billing Determinants'!$F$41*$D24,IF($E24="Non-RPP kWh",VLOOKUP(K$4,'4. Billing Determinants'!$B$19:$N$41,6,0)/'4. Billing Determinants'!$G$41*$D24,IF($E24="Distribution Rev.",VLOOKUP(K$4,'4. Billing Determinants'!$B$19:$N$41,8,0)/'4. Billing Determinants'!$I$41*$D24, VLOOKUP(K$4,'4. Billing Determinants'!$B$19:$N$41,3,0)/'4. Billing Determinants'!$D$41*$D24))))) -> -4359.404136 | L24: =IF(L$4="",0,IF($E24="kWh",VLOOKUP(L$4,'4. Billing Determinants'!$B$19:$N$41,4,0)/'4. Billing Determinants'!$E$41*$D24,IF($E24="kW",VLOOKUP(L$4,'4. Billing Determinants'!$B$19:$N$41,5,0)/'4. Billing Determinants'!$F$41*$D24,IF($E24="Non-RPP kWh",VLOOKUP(L$4,'4. Billing Determinants'!$B$19:$N$41,6,0)/'4. Billing Determinants'!$G$41*$D24,IF($E24="Distribution Rev.",VLOOKUP(L$4,'4. Billing Determinants'!$B$19:$N$41,8,0)/'4. Billing Determinants'!$I$41*$D24, VLOOKUP(L$4,'4. Billing Determinants'!$B$19:$N$41,3,0)/'4. Billing Determinants'!$D$41*$D24))))) -> -81.91723808 | M24: =IF(M$4="",0,IF($E24="kWh",VLOOKUP(M$4,'4. Billing Determinants'!$B$19:$N$41,4,0)/'4. Billing Determinants'!$E$41*$D24,IF($E24="kW",VLOOKUP(M$4,'4. Billing Determinants'!$B$19:$N$41,5,0)/'4. Billing Determinants'!$F$41*$D24,IF($E24="Non-RPP kWh",VLOOKUP(M$4,'4. Billing Determinants'!$B$19:$N$41,6,0)/'4. Billing Determinants'!$G$41*$D24,IF($E24="Distribution Rev.",VLOOKUP(M$4,'4. Billing Determinants'!$B$19:$N$41,8,0)/'4. Billing Determinants'!$I$41*$D24, VLOOKUP(M$4,'4. Billing Determinants'!$B$19:$N$41,3,0)/'4. Billing Determinants'!$D$41*$D24))))) -> -0.4461865563 | N24: =IF(N$4="",0,IF($E24="kWh",VLOOKUP(N$4,'4. Billing Determinants'!$B$19:$N$41,4,0)/'4. Billing Determinants'!$E$41*$D24,IF($E24="kW",VLOOKUP(N$4,'4. Billing Determinants'!$B$19:$N$41,5,0)/'4. Billing Determinants'!$F$41*$D24,IF($E24="Non-RPP kWh",VLOOKUP(N$4,'4. Billing Determinants'!$B$19:$N$41,6,0)/'4. Billing Determinants'!$G$41*$D24,IF($E24="Distribution Rev.",VLOOKUP(N$4,'4. Billing Determinants'!$B$19:$N$41,8,0)/'4. Billing Determinants'!$I$41*$D24, VLOOKUP(N$4,'4. Billing Determinants'!$B$19:$N$41,3,0)/'4. Billing Determinants'!$D$41*$D24))))) -> 0 | O24: =IF(O$4="",0,IF($E24="kWh",VLOOKUP(O$4,'4. Billing Determinants'!$B$19:$N$41,4,0)/'4. Billing Determinants'!$E$41*$D24,IF($E24="kW",VLOOKUP(O$4,'4. Billing Determinants'!$B$19:$N$41,5,0)/'4. Billing Determinants'!$F$41*$D24,IF($E24="Non-RPP kWh",VLOOKUP(O$4,'4. Billing Determinants'!$B$19:$N$41,6,0)/'4. Billing Determinants'!$G$41*$D24,IF($E24="Distribution Rev.",VLOOKUP(O$4,'4. Billing Determinants'!$B$19:$N$41,8,0)/'4. Billing Determinants'!$I$41*$D24, VLOOKUP(O$4,'4. Billing Determinants'!$B$19:$N$41,3,0)/'4. Billing Determinants'!$D$41*$D24))))) -> 0 | P24: =IF(P$4="",0,IF($E24="kWh",VLOOKUP(P$4,'4. Billing Determinants'!$B$19:$N$41,4,0)/'4. Billing Determinants'!$E$41*$D24,IF($E24="kW",VLOOKUP(P$4,'4. Billing Determinants'!$B$19:$N$41,5,0)/'4. Billing Determinants'!$F$41*$D24,IF($E24="Non-RPP kWh",VLOOKUP(P$4,'4. Billing Determinants'!$B$19:$N$41,6,0)/'4. Billing Determinants'!$G$41*$D24,IF($E24="Distribution Rev.",VLOOKUP(P$4,'4. Billing Determinants'!$B$19:$N$41,8,0)/'4. Billing Determinants'!$I$41*$D24, VLOOKUP(P$4,'4. Billing Determinants'!$B$19:$N$41,3,0)/'4. Billing Determinants'!$D$41*$D24))))) -> 0 | Q24: =IF(Q$4="",0,IF($E24="kWh",VLOOKUP(Q$4,'4. Billing Determinants'!$B$19:$N$41,4,0)/'4. Billing Determinants'!$E$41*$D24,IF($E24="kW",VLOOKUP(Q$4,'4. Billing Determinants'!$B$19:$N$41,5,0)/'4. Billing Determinants'!$F$41*$D24,IF($E24="Non-RPP kWh",VLOOKUP(Q$4,'4. Billing Determinants'!$B$19:$N$41,6,0)/'4. Billing Determinants'!$G$41*$D24,IF($E24="Distribution Rev.",VLOOKUP(Q$4,'4. Billing Determinants'!$B$19:$N$41,8,0)/'4. Billing Determinants'!$I$41*$D24, VLOOKUP(Q$4,'4. Billing Determinants'!$B$19:$N$41,3,0)/'4. Billing Determinants'!$D$41*$D24))))) -> 0 | R24: =IF(R$4="",0,IF($E24="kWh",VLOOKUP(R$4,'4. Billing Determinants'!$B$19:$N$41,4,0)/'4. Billing Determinants'!$E$41*$D24,IF($E24="kW",VLOOKUP(R$4,'4. Billing Determinants'!$B$19:$N$41,5,0)/'4. Billing Determinants'!$F$41*$D24,IF($E24="Non-RPP kWh",VLOOKUP(R$4,'4. Billing Determinants'!$B$19:$N$41,6,0)/'4. Billing Determinants'!$G$41*$D24,IF($E24="Distribution Rev.",VLOOKUP(R$4,'4. Billing Determinants'!$B$19:$N$41,8,0)/'4. Billing Determinants'!$I$41*$D24, VLOOKUP(R$4,'4. Billing Determinants'!$B$19:$N$41,3,0)/'4. Billing Determinants'!$D$41*$D24))))) -> 0 | S24: =IF(S$4="",0,IF($E24="kWh",VLOOKUP(S$4,'4. Billing Determinants'!$B$19:$N$41,4,0)/'4. Billing Determinants'!$E$41*$D24,IF($E24="kW",VLOOKUP(S$4,'4. Billing Determinants'!$B$19:$N$41,5,0)/'4. Billing Determinants'!$F$41*$D24,IF($E24="Non-RPP kWh",VLOOKUP(S$4,'4. Billing Determinants'!$B$19:$N$41,6,0)/'4. Billing Determinants'!$G$41*$D24,IF($E24="Distribution Rev.",VLOOKUP(S$4,'4. Billing Determinants'!$B$19:$N$41,8,0)/'4. Billing Determinants'!$I$41*$D24, VLOOKUP(S$4,'4. Billing Determinants'!$B$19:$N$41,3,0)/'4. Billing Determinants'!$D$41*$D24))))) -> 0 | T24: =IF(T$4="",0,IF($E24="kWh",VLOOKUP(T$4,'4. Billing Determinants'!$B$19:$N$41,4,0)/'4. Billing Determinants'!$E$41*$D24,IF($E24="kW",VLOOKUP(T$4,'4. Billing Determinants'!$B$19:$N$41,5,0)/'4. Billing Determinants'!$F$41*$D24,IF($E24="Non-RPP kWh",VLOOKUP(T$4,'4. Billing Determinants'!$B$19:$N$41,6,0)/'4. Billing Determinants'!$G$41*$D24,IF($E24="Distribution Rev.",VLOOKUP(T$4,'4. Billing Determinants'!$B$19:$N$41,8,0)/'4. Billing Determinants'!$I$41*$D24, VLOOKUP(T$4,'4. Billing Determinants'!$B$19:$N$41,3,0)/'4. Billing Determinants'!$D$41*$D24))))) -> 0 | U24: =IF(U$4="",0,IF($E24="kWh",VLOOKUP(U$4,'4. Billing Determinants'!$B$19:$N$41,4,0)/'4. Billing Determinants'!$E$41*$D24,IF($E24="kW",VLOOKUP(U$4,'4. Billing Determinants'!$B$19:$N$41,5,0)/'4. Billing Determinants'!$F$41*$D24,IF($E24="Non-RPP kWh",VLOOKUP(U$4,'4. Billing Determinants'!$B$19:$N$41,6,0)/'4. Billing Determinants'!$G$41*$D24,IF($E24="Distribution Rev.",VLOOKUP(U$4,'4. Billing Determinants'!$B$19:$N$41,8,0)/'4. Billing Determinants'!$I$41*$D24, VLOOKUP(U$4,'4. Billing Determinants'!$B$19:$N$41,3,0)/'4. Billing Determinants'!$D$41*$D24))))) -> 0 | V24: =IF(V$4="",0,IF($E24="kWh",VLOOKUP(V$4,'4. Billing Determinants'!$B$19:$N$41,4,0)/'4. Billing Determinants'!$E$41*$D24,IF($E24="kW",VLOOKUP(V$4,'4. Billing Determinants'!$B$19:$N$41,5,0)/'4. Billing Determinants'!$F$41*$D24,IF($E24="Non-RPP kWh",VLOOKUP(V$4,'4. Billing Determinants'!$B$19:$N$41,6,0)/'4. Billing Determinants'!$G$41*$D24,IF($E24="Distribution Rev.",VLOOKUP(V$4,'4. Billing Determinants'!$B$19:$N$41,8,0)/'4. Billing Determinants'!$I$41*$D24, VLOOKUP(V$4,'4. Billing Determinants'!$B$19:$N$41,3,0)/'4. Billing Determinants'!$D$41*$D24))))) -> 0 | W24: =IF(W$4="",0,IF($E24="kWh",VLOOKUP(W$4,'4. Billing Determinants'!$B$19:$N$41,4,0)/'4. Billing Determinants'!$E$41*$D24,IF($E24="kW",VLOOKUP(W$4,'4. Billing Determinants'!$B$19:$N$41,5,0)/'4. Billing Determinants'!$F$41*$D24,IF($E24="Non-RPP kWh",VLOOKUP(W$4,'4. Billing Determinants'!$B$19:$N$41,6,0)/'4. Billing Determinants'!$G$41*$D24,IF($E24="Distribution Rev.",VLOOKUP(W$4,'4. Billing Determinants'!$B$19:$N$41,8,0)/'4. Billing Determinants'!$I$41*$D24, VLOOKUP(W$4,'4. Billing Determinants'!$B$19:$N$41,3,0)/'4. Billing Determinants'!$D$41*$D24))))) -> 0 | X24: =IF(X$4="",0,IF($E24="kWh",VLOOKUP(X$4,'4. Billing Determinants'!$B$19:$N$41,4,0)/'4. Billing Determinants'!$E$41*$D24,IF($E24="kW",VLOOKUP(X$4,'4. Billing Determinants'!$B$19:$N$41,5,0)/'4. Billing Determinants'!$F$41*$D24,IF($E24="Non-RPP kWh",VLOOKUP(X$4,'4. Billing Determinants'!$B$19:$N$41,6,0)/'4. Billing Determinants'!$G$41*$D24,IF($E24="Distribution Rev.",VLOOKUP(X$4,'4. Billing Determinants'!$B$19:$N$41,8,0)/'4. Billing Determinants'!$I$41*$D24, VLOOKUP(X$4,'4. Billing Determinants'!$B$19:$N$41,3,0)/'4. Billing Determinants'!$D$41*$D24))))) -> 0 | Y24: =IF(Y$4="",0,IF($E24="kWh",VLOOKUP(Y$4,'4. Billing Determinants'!$B$19:$N$41,4,0)/'4. Billing Determinants'!$E$41*$D24,IF($E24="kW",VLOOKUP(Y$4,'4. Billing Determinants'!$B$19:$N$41,5,0)/'4. Billing Determinants'!$F$41*$D24,IF($E24="Non-RPP kWh",VLOOKUP(Y$4,'4. Billing Determinants'!$B$19:$N$41,6,0)/'4. Billing Determinants'!$G$41*$D24,IF($E24="Distribution Rev.",VLOOKUP(Y$4,'4. Billing Determinants'!$B$19:$N$41,8,0)/'4. Billing Determinants'!$I$41*$D24, VLOOKUP(Y$4,'4. Billing Determinants'!$B$19:$N$41,3,0)/'4. Billing Determinants'!$D$41*$D24))))) -> 0
